Workbook

Sheet Текущий рейтинг
B1: =DATE(B2,B3,1) -> 2022-12-01 | C1: Регион | E1: Страна | F1: Пол | G1: Рейтинг соревнования | H1: Ранг соревнования
B2: 2022 | C2: ="" ->  | E2: ="" ->  | F2: ="" ->  | G2: ="" ->  | H2: Все соревнования
B3: 12 | C3: Алтайский край | E3: Беларусь | F3: М | H3: Только международные за пределами РФ, включенные в ЕКП (МСМК)
C4: Республика Алтай | E4: Индия | F4: Ж | H4: Только общероссийские официальные (ОФСЛА), в т.ч. международные на терр.РФ (МС)
C5: Амурская область | E5: Казахстан | H5: Только региональные и межрегиональные (КМС)
C6: Брянская область | E6: Латвия | H6: Только муниципальные, любительские и клубные (III р.)
C7: Волгоградская область | E7: Россия
C8: Воронежская область | E8: Albania
C9: г.Екатеринбург | E9: Argentina
C10: К.Б.Р. | E10: Bulgaria
C11: К.Ч.Р. | E11: Canada
C12: Республика Карелия | E12: Chile
C13: Калининградская область | E13: Colombia
C14: Камчатский край | E14: Croatia
C15: Кемеровская область | E15: Cruz León
C16: Красноярский край | E16: Cuba
C17: Ленинградская область | E17: Czech Republic
C18: Республика Мордовия | E18: France
C19: г.Москва | E19: Germany
C20: Московская область | E20: Hungary
C21: Мурманская область | E21: Italy
C22: Новосибирская область | E22: Japan
C23: Омская область | E23: Kosovo
C24: Пермский край | E24: Lithuania
C25: Приморский край | E25: Mongolia
C26: Самарская область | E26: Netherlands
C27: г.Санкт-Петербург | E27: North Macedonia
C28: г.Севастополь | E28: Poland
C29: Ставропольский край | E29: Romania
C30: Республика Татарстан | E30: Serbia
C31: Томская область | E31: Slovenia
C32: Тюменская область | E32: South Korea
B33: 1 | C33: Удмуртская республика | E33: Spain | F33: 2 | H33: 1
C34: Республика Хакасия | E34: Turkey
C35: ХМАО-Югра | E35: United Kingdom
C36: Чувашская республика | E36: United States
C37: Якутия (республика Саха) | E37: ? | K37: 1
C38: ?
C39: ?
C40: ?
C41: ?
C42: ?
B43: 2 | C43: ? | E43: ? | F43: 1 | H43: 1
C44: забугорье | E44: ?
B45: Рейтинг | C45: Номер по алфавиту | E45: Рейтинг | F45: Баллы | H45: Номер в рейтинге
B46: Ср.балл на дату | C46: 0 | E46: Ср.балл общий (посл.год) | F46: Ср.балл на соревн. | H46: Номер в рейтинге по ср.баллу
B48: 1 | C48: 1 | E48: 6 | F48: 1 | G48: 1 | H48: 1
B49: =B1 -> 2022-12-01 | C49: =OFFSET(C1,C48,) ->  | E49: =OFFSET(E1,E48,) -> Россия | F49: =OFFSET(F1,F48,) ->  | G49: =OFFSET(G1,G48,) -> 
A50: N п/п | B50: =IF(($B$48+C46)=1,H45,IF(($B$48+C46)=2,H46,C45)) -> Номер в рейтинге | C50: Фамилия, Имя | E50: =IF($B$48=1,E45,E46) -> Рейтинг | F50: =IF($B$48=1,F45,F46) -> Баллы | H50: Соревнования
A51: =A47+1 -> 1 | B51: =IFERROR(RANK(SMALL(Рейтинг!B$10:B$492,A51),Рейтинг!B$10:B$492,1),"") -> 1 | C51: =IF(B51="","",VLOOKUP(A51,Рейтинг!A$10:C$493,3,FALSE)) -> Павлушко Константин | D51: =MATCH(C51,Рейтинг!C$10:C$493,0) -> 1 | E51: =IFERROR(IF($B$48=1,SUM(F51:F54),IF($B$48=2,VLOOKUP(C51,Рейтинг!C$10:K$493,9,FALSE),"")),"") -> 272.6146663 | F51: =IFERROR(IF($B$48=1,LARGE(OFFSET(Рейтинг!$L$9:$ED$9,D51,,),1),SMALL(OFFSET(Рейтинг!$L$9:$ED$9,D51,,),1)),"") -> 98.64669293 | G51: =IF(F51="","",IFERROR(MATCH(F51,OFFSET(Рейтинг!$P$9:$ED$9,D51,,),0),"")) -> 29 | H51: =IFERROR(IF(F51=0,"",INDEX(Рейтинг!P$6:ED$6,,G51)),"") -> Чемпионат России, Кубок Дружбы. Виллози, Ленобласть. 14/09/2022-21/09/2022
C52: =IF(C51="","",VLOOKUP(C51,Рейтинг!C$10:I$493,2,FALSE)) -> М | F52: =IFERROR(IF($B$48=1,LARGE(OFFSET(Рейтинг!$L$9:$ED$9,D51,,),2),SMALL(OFFSET(Рейтинг!$L$9:$ED$9,D51,,),2)),"") -> 80.71118763 | G52: =IF(F52="","",IFERROR(MATCH(F52,OFFSET(Рейтинг!$P$9:$ED$9,D51,,),0),"")) -> 15 | H52: =IFERROR(IF(F52=0,"",INDEX(Рейтинг!P$6:ED$6,,G52)),"") -> Чемпионат России п.Виллози Ленинградская обл. 02/09/2021-13/09/2021
C53: =IF(C51="","",VLOOKUP(C51,Рейтинг!C$10:I$493,4,FALSE)) -> Россия | F53: =IFERROR(IF($B$48=1,LARGE(OFFSET(Рейтинг!$L$9:$ED$9,D51,,),3),SMALL(OFFSET(Рейтинг!$L$9:$ED$9,D51,,),3)),"") -> 48.23100189 | G53: =IF(F53="","",IFERROR(MATCH(F53,OFFSET(Рейтинг!$P$9:$ED$9,D51,,),0),"")) -> 17 | H53: =IFERROR(IF(F53=0,"",INDEX(Рейтинг!P$6:ED$6,,G53)),"") -> Чемпионат Беларуси 2021. с.Зябровка Гомельская обл. 30/10/2021-31/10/2021
C54: =IF(C51="","",VLOOKUP(C51,Рейтинг!C$10:I$493,6,FALSE)) -> Калининградская область | F54: =IFERROR(IF($B$48=1,LARGE(OFFSET(Рейтинг!$L$9:$ED$9,D51,,),4),SMALL(OFFSET(Рейтинг!$L$9:$ED$9,D51,,),4)),"") -> 45.02578381 | G54: =IF(F54="","",IFERROR(MATCH(F54,OFFSET(Рейтинг!$P$9:$ED$9,D51,,),0),"")) -> 22 | H54: =IFERROR(IF(F54=0,"",INDEX(Рейтинг!P$6:ED$6,,G54)),"") -> Кубок России п.Ува Удмуртская республика 10.06.2022 - 14.06.2022
A55: =A51+1 -> 2 | B55: =IFERROR(RANK(SMALL(Рейтинг!B$10:B$492,A55),Рейтинг!B$10:B$492,1),"") -> 2 | C55: =IF(B55="","",VLOOKUP(A55,Рейтинг!A$10:C$493,3,FALSE)) -> Орлов Андрей | D55: =MATCH(C55,Рейтинг!C$10:C$493,0) -> 2 | E55: =IFERROR(IF($B$48=1,SUM(F55:F58),IF($B$48=2,VLOOKUP(C55,Рейтинг!C$10:K$493,9,FALSE),"")),"") -> 250.7994307 | F55: =IFERROR(IF($B$48=1,LARGE(OFFSET(Рейтинг!$L$9:$ED$9,D55,,),1),SMALL(OFFSET(Рейтинг!$L$9:$ED$9,D55,,),1)),"") -> 91.39290854 | G55: =IF(F55="","",IFERROR(MATCH(F55,OFFSET(Рейтинг!$P$9:$ED$9,D55,,),0),"")) -> 29 | H55: =IFERROR(IF(F55=0,"",INDEX(Рейтинг!P$6:ED$6,,G55)),"") -> Чемпионат России, Кубок Дружбы. Виллози, Ленобласть. 14/09/2022-21/09/2022
C56: =IF(C55="","",VLOOKUP(C55,Рейтинг!C$10:I$493,2,FALSE)) -> М | F56: =IFERROR(IF($B$48=1,LARGE(OFFSET(Рейтинг!$L$9:$ED$9,D55,,),2),SMALL(OFFSET(Рейтинг!$L$9:$ED$9,D55,,),2)),"") -> 74.76235394 | G56: =IF(F56="","",IFERROR(MATCH(F56,OFFSET(Рейтинг!$P$9:$ED$9,D55,,),0),"")) -> 22 | H56: =IFERROR(IF(F56=0,"",INDEX(Рейтинг!P$6:ED$6,,G56)),"") -> Кубок России п.Ува Удмуртская республика 10.06.2022 - 14.06.2022
C57: =IF(C55="","",VLOOKUP(C55,Рейтинг!C$10:I$493,4,FALSE)) -> Россия | F57: =IFERROR(IF($B$48=1,LARGE(OFFSET(Рейтинг!$L$9:$ED$9,D55,,),3),SMALL(OFFSET(Рейтинг!$L$9:$ED$9,D55,,),3)),"") -> 70.7320813 | G57: =IF(F57="","",IFERROR(MATCH(F57,OFFSET(Рейтинг!$P$9:$ED$9,D55,,),0),"")) -> 15 | H57: =IFERROR(IF(F57=0,"",INDEX(Рейтинг!P$6:ED$6,,G57)),"") -> Чемпионат России п.Виллози Ленинградская обл. 02/09/2021-13/09/2021
C58: =IF(C55="","",VLOOKUP(C55,Рейтинг!C$10:I$493,6,FALSE)) -> Удмуртская республика | F58: =IFERROR(IF($B$48=1,LARGE(OFFSET(Рейтинг!$L$9:$ED$9,D55,,),4),SMALL(OFFSET(Рейтинг!$L$9:$ED$9,D55,,),4)),"") -> 13.9120869 | G58: =IF(F58="","",IFERROR(MATCH(F58,OFFSET(Рейтинг!$P$9:$ED$9,D55,,),0),"")) -> 13 | H58: =IFERROR(IF(F58=0,"",INDEX(Рейтинг!P$6:ED$6,,G58)),"") -> Кубок России. г.Калининград 29/07/2021-02/08/2021
A59: =A55+1 -> 3 | B59: =IFERROR(RANK(SMALL(Рейтинг!B$10:B$492,A59),Рейтинг!B$10:B$492,1),"") -> 3 | C59: =IF(B59="","",VLOOKUP(A59,Рейтинг!A$10:C$493,3,FALSE)) -> Мельников Никита | D59: =MATCH(C59,Рейтинг!C$10:C$493,0) -> 3 | E59: =IFERROR(IF($B$48=1,SUM(F59:F62),IF($B$48=2,VLOOKUP(C59,Рейтинг!C$10:K$493,9,FALSE),"")),"") -> 248.1289923 | F59: =IFERROR(IF($B$48=1,LARGE(OFFSET(Рейтинг!$L$9:$ED$9,D59,,),1),SMALL(OFFSET(Рейтинг!$L$9:$ED$9,D59,,),1)),"") -> 117.98346 | G59: =IF(F59="","",IFERROR(MATCH(F59,OFFSET(Рейтинг!$P$9:$ED$9,D59,,),0),"")) -> 29 | H59: =IFERROR(IF(F59=0,"",INDEX(Рейтинг!P$6:ED$6,,G59)),"") -> Чемпионат России, Кубок Дружбы. Виллози, Ленобласть. 14/09/2022-21/09/2022
C60: =IF(C59="","",VLOOKUP(C59,Рейтинг!C$10:I$493,2,FALSE)) -> М | F60: =IFERROR(IF($B$48=1,LARGE(OFFSET(Рейтинг!$L$9:$ED$9,D59,,),2),SMALL(OFFSET(Рейтинг!$L$9:$ED$9,D59,,),2)),"") -> 61.38321879 | G60: =IF(F60="","",IFERROR(MATCH(F60,OFFSET(Рейтинг!$P$9:$ED$9,D59,,),0),"")) -> 15 | H60: =IFERROR(IF(F60=0,"",INDEX(Рейтинг!P$6:ED$6,,G60)),"") -> Чемпионат России п.Виллози Ленинградская обл. 02/09/2021-13/09/2021
C61: =IF(C59="","",VLOOKUP(C59,Рейтинг!C$10:I$493,4,FALSE)) -> Россия | F61: =IFERROR(IF($B$48=1,LARGE(OFFSET(Рейтинг!$L$9:$ED$9,D59,,),3),SMALL(OFFSET(Рейтинг!$L$9:$ED$9,D59,,),3)),"") -> 37.89459832 | G61: =IF(F61="","",IFERROR(MATCH(F61,OFFSET(Рейтинг!$P$9:$ED$9,D59,,),0),"")) -> 13 | H61: =IFERROR(IF(F61=0,"",INDEX(Рейтинг!P$6:ED$6,,G61)),"") -> Кубок России. г.Калининград 29/07/2021-02/08/2021
C62: =IF(C59="","",VLOOKUP(C59,Рейтинг!C$10:I$493,6,FALSE)) -> Самарская область | F62: =IFERROR(IF($B$48=1,LARGE(OFFSET(Рейтинг!$L$9:$ED$9,D59,,),4),SMALL(OFFSET(Рейтинг!$L$9:$ED$9,D59,,),4)),"") -> 30.86771515 | G62: =IF(F62="","",IFERROR(MATCH(F62,OFFSET(Рейтинг!$P$9:$ED$9,D59,,),0),"")) -> 16 | H62: =IFERROR(IF(F62=0,"",INDEX(Рейтинг!P$6:ED$6,,G62)),"") -> Чемпионат Мира г.Прилеп. Македония. 07/10/2021-16/10/2021
A63: =A59+1 -> 4 | B63: =IFERROR(RANK(SMALL(Рейтинг!B$10:B$492,A63),Рейтинг!B$10:B$492,1),"") -> 4 | C63: =IF(B63="","",VLOOKUP(A63,Рейтинг!A$10:C$493,3,FALSE)) -> Звездин Иван | D63: =MATCH(C63,Рейтинг!C$10:C$493,0) -> 4 | E63: =IFERROR(IF($B$48=1,SUM(F63:F66),IF($B$48=2,VLOOKUP(C63,Рейтинг!C$10:K$493,9,FALSE),"")),"") -> 241.0378527 | F63: =IFERROR(IF($B$48=1,LARGE(OFFSET(Рейтинг!$L$9:$ED$9,D63,,),1),SMALL(OFFSET(Рейтинг!$L$9:$ED$9,D63,,),1)),"") -> 91.39290854 | G63: =IF(F63="","",IFERROR(MATCH(F63,OFFSET(Рейтинг!$P$9:$ED$9,D63,,),0),"")) -> 29 | H63: =IFERROR(IF(F63=0,"",INDEX(Рейтинг!P$6:ED$6,,G63)),"") -> Чемпионат России, Кубок Дружбы. Виллози, Ленобласть. 14/09/2022-21/09/2022
C64: =IF(C63="","",VLOOKUP(C63,Рейтинг!C$10:I$493,2,FALSE)) -> М | F64: =IFERROR(IF($B$48=1,LARGE(OFFSET(Рейтинг!$L$9:$ED$9,D63,,),2),SMALL(OFFSET(Рейтинг!$L$9:$ED$9,D63,,),2)),"") -> 62.09106435 | G64: =IF(F64="","",IFERROR(MATCH(F64,OFFSET(Рейтинг!$P$9:$ED$9,D63,,),0),"")) -> 22 | H64: =IFERROR(IF(F64=0,"",INDEX(Рейтинг!P$6:ED$6,,G64)),"") -> Кубок России п.Ува Удмуртская республика 10.06.2022 - 14.06.2022
C65: =IF(C63="","",VLOOKUP(C63,Рейтинг!C$10:I$493,4,FALSE)) -> Россия | F65: =IFERROR(IF($B$48=1,LARGE(OFFSET(Рейтинг!$L$9:$ED$9,D63,,),3),SMALL(OFFSET(Рейтинг!$L$9:$ED$9,D63,,),3)),"") -> 44.59292007 | G65: =IF(F65="","",IFERROR(MATCH(F65,OFFSET(Рейтинг!$P$9:$ED$9,D63,,),0),"")) -> 15 | H65: =IFERROR(IF(F65=0,"",INDEX(Рейтинг!P$6:ED$6,,G65)),"") -> Чемпионат России п.Виллози Ленинградская обл. 02/09/2021-13/09/2021
C66: =IF(C63="","",VLOOKUP(C63,Рейтинг!C$10:I$493,6,FALSE)) -> Ленинградская область | F66: =IFERROR(IF($B$48=1,LARGE(OFFSET(Рейтинг!$L$9:$ED$9,D63,,),4),SMALL(OFFSET(Рейтинг!$L$9:$ED$9,D63,,),4)),"") -> 42.96095979 | G66: =IF(F66="","",IFERROR(MATCH(F66,OFFSET(Рейтинг!$P$9:$ED$9,D63,,),0),"")) -> 20 | H66: =IFERROR(IF(F66=0,"",INDEX(Рейтинг!P$6:ED$6,,G66)),"") -> ЧСЗФО, "SkyStream Accuracy Cup" п.Володарское, Ленобласть. 29/04/2022-04/05/2022
A67: =A63+1 -> 5 | B67: =IFERROR(RANK(SMALL(Рейтинг!B$10:B$492,A67),Рейтинг!B$10:B$492,1),"") -> 5 | C67: =IF(B67="","",VLOOKUP(A67,Рейтинг!A$10:C$493,3,FALSE)) -> Бажанов Сергей | D67: =MATCH(C67,Рейтинг!C$10:C$493,0) -> 5 | E67: =IFERROR(IF($B$48=1,SUM(F67:F70),IF($B$48=2,VLOOKUP(C67,Рейтинг!C$10:K$493,9,FALSE),"")),"") -> 237.3621416 | F67: =IFERROR(IF($B$48=1,LARGE(OFFSET(Рейтинг!$L$9:$ED$9,D67,,),1),SMALL(OFFSET(Рейтинг!$L$9:$ED$9,D67,,),1)),"") -> 110.0427346 | G67: =IF(F67="","",IFERROR(MATCH(F67,OFFSET(Рейтинг!$P$9:$ED$9,D67,,),0),"")) -> 29 | H67: =IFERROR(IF(F67=0,"",INDEX(Рейтинг!P$6:ED$6,,G67)),"") -> Чемпионат России, Кубок Дружбы. Виллози, Ленобласть. 14/09/2022-21/09/2022
C68: =IF(C67="","",VLOOKUP(C67,Рейтинг!C$10:I$493,2,FALSE)) -> М | F68: =IFERROR(IF($B$48=1,LARGE(OFFSET(Рейтинг!$L$9:$ED$9,D67,,),2),SMALL(OFFSET(Рейтинг!$L$9:$ED$9,D67,,),2)),"") -> 75.64309678 | G68: =IF(F68="","",IFERROR(MATCH(F68,OFFSET(Рейтинг!$P$9:$ED$9,D67,,),0),"")) -> 15 | H68: =IFERROR(IF(F68=0,"",INDEX(Рейтинг!P$6:ED$6,,G68)),"") -> Чемпионат России п.Виллози Ленинградская обл. 02/09/2021-13/09/2021
C69: =IF(C67="","",VLOOKUP(C67,Рейтинг!C$10:I$493,4,FALSE)) -> Россия | F69: =IFERROR(IF($B$48=1,LARGE(OFFSET(Рейтинг!$L$9:$ED$9,D67,,),3),SMALL(OFFSET(Рейтинг!$L$9:$ED$9,D67,,),3)),"") -> 50.45053281 | G69: =IF(F69="","",IFERROR(MATCH(F69,OFFSET(Рейтинг!$P$9:$ED$9,D67,,),0),"")) -> 22 | H69: =IFERROR(IF(F69=0,"",INDEX(Рейтинг!P$6:ED$6,,G69)),"") -> Кубок России п.Ува Удмуртская республика 10.06.2022 - 14.06.2022
C70: =IF(C67="","",VLOOKUP(C67,Рейтинг!C$10:I$493,6,FALSE)) -> Калининградская область | F70: =IFERROR(IF($B$48=1,LARGE(OFFSET(Рейтинг!$L$9:$ED$9,D67,,),4),SMALL(OFFSET(Рейтинг!$L$9:$ED$9,D67,,),4)),"") -> 1.225777316 | G70: =IF(F70="","",IFERROR(MATCH(F70,OFFSET(Рейтинг!$P$9:$ED$9,D67,,),0),"")) -> 2 | H70: =IFERROR(IF(F70=0,"",INDEX(Рейтинг!P$6:ED$6,,G70)),"") -> Чемпионат России г.Брянск 17/08/2020-23/08/2020
A71: =A67+1 -> 6 | B71: =IFERROR(RANK(SMALL(Рейтинг!B$10:B$492,A71),Рейтинг!B$10:B$492,1),"") -> 6 | C71: =IF(B71="","",VLOOKUP(A71,Рейтинг!A$10:C$493,3,FALSE)) -> Скляренко Дмитрий | D71: =MATCH(C71,Рейтинг!C$10:C$493,0) -> 6 | E71: =IFERROR(IF($B$48=1,SUM(F71:F74),IF($B$48=2,VLOOKUP(C71,Рейтинг!C$10:K$493,9,FALSE),"")),"") -> 231.4527798 | F71: =IFERROR(IF($B$48=1,LARGE(OFFSET(Рейтинг!$L$9:$ED$9,D71,,),1),SMALL(OFFSET(Рейтинг!$L$9:$ED$9,D71,,),1)),"") -> 81.02797931 | G71: =IF(F71="","",IFERROR(MATCH(F71,OFFSET(Рейтинг!$P$9:$ED$9,D71,,),0),"")) -> 29 | H71: =IFERROR(IF(F71=0,"",INDEX(Рейтинг!P$6:ED$6,,G71)),"") -> Чемпионат России, Кубок Дружбы. Виллози, Ленобласть. 14/09/2022-21/09/2022
C72: =IF(C71="","",VLOOKUP(C71,Рейтинг!C$10:I$493,2,FALSE)) -> М | F72: =IFERROR(IF($B$48=1,LARGE(OFFSET(Рейтинг!$L$9:$ED$9,D71,,),2),SMALL(OFFSET(Рейтинг!$L$9:$ED$9,D71,,),2)),"") -> 68.29953727 | G72: =IF(F72="","",IFERROR(MATCH(F72,OFFSET(Рейтинг!$P$9:$ED$9,D71,,),0),"")) -> 22 | H72: =IFERROR(IF(F72=0,"",INDEX(Рейтинг!P$6:ED$6,,G72)),"") -> Кубок России п.Ува Удмуртская республика 10.06.2022 - 14.06.2022
C73: =IF(C71="","",VLOOKUP(C71,Рейтинг!C$10:I$493,4,FALSE)) -> Россия | F73: =IFERROR(IF($B$48=1,LARGE(OFFSET(Рейтинг!$L$9:$ED$9,D71,,),3),SMALL(OFFSET(Рейтинг!$L$9:$ED$9,D71,,),3)),"") -> 41.32918499 | G73: =IF(F73="","",IFERROR(MATCH(F73,OFFSET(Рейтинг!$P$9:$ED$9,D71,,),0),"")) -> 17 | H73: =IFERROR(IF(F73=0,"",INDEX(Рейтинг!P$6:ED$6,,G73)),"") -> Чемпионат Беларуси 2021. с.Зябровка Гомельская обл. 30/10/2021-31/10/2021
C74: =IF(C71="","",VLOOKUP(C71,Рейтинг!C$10:I$493,6,FALSE)) -> Калининградская область | F74: =IFERROR(IF($B$48=1,LARGE(OFFSET(Рейтинг!$L$9:$ED$9,D71,,),4),SMALL(OFFSET(Рейтинг!$L$9:$ED$9,D71,,),4)),"") -> 40.79607826 | G74: =IF(F74="","",IFERROR(MATCH(F74,OFFSET(Рейтинг!$P$9:$ED$9,D71,,),0),"")) -> 15 | H74: =IFERROR(IF(F74=0,"",INDEX(Рейтинг!P$6:ED$6,,G74)),"") -> Чемпионат России п.Виллози Ленинградская обл. 02/09/2021-13/09/2021
A75: =A71+1 -> 7 | B75: =IFERROR(RANK(SMALL(Рейтинг!B$10:B$492,A75),Рейтинг!B$10:B$492,1),"") -> 7 | C75: =IF(B75="","",VLOOKUP(A75,Рейтинг!A$10:C$493,3,FALSE)) -> Дымшаков Андрей | D75: =MATCH(C75,Рейтинг!C$10:C$493,0) -> 7 | E75: =IFERROR(IF($B$48=1,SUM(F75:F78),IF($B$48=2,VLOOKUP(C75,Рейтинг!C$10:K$493,9,FALSE),"")),"") -> 224.3987678 | F75: =IFERROR(IF($B$48=1,LARGE(OFFSET(Рейтинг!$L$9:$ED$9,D75,,),1),SMALL(OFFSET(Рейтинг!$L$9:$ED$9,D75,,),1)),"") -> 94.98543057 | G75: =IF(F75="","",IFERROR(MATCH(F75,OFFSET(Рейтинг!$P$9:$ED$9,D75,,),0),"")) -> 29 | H75: =IFERROR(IF(F75=0,"",INDEX(Рейтинг!P$6:ED$6,,G75)),"") -> Чемпионат России, Кубок Дружбы. Виллози, Ленобласть. 14/09/2022-21/09/2022
C76: =IF(C75="","",VLOOKUP(C75,Рейтинг!C$10:I$493,2,FALSE)) -> М | F76: =IFERROR(IF($B$48=1,LARGE(OFFSET(Рейтинг!$L$9:$ED$9,D75,,),2),SMALL(OFFSET(Рейтинг!$L$9:$ED$9,D75,,),2)),"") -> 81.47643481 | G76: =IF(F76="","",IFERROR(MATCH(F76,OFFSET(Рейтинг!$P$9:$ED$9,D75,,),0),"")) -> 22 | H76: =IFERROR(IF(F76=0,"",INDEX(Рейтинг!P$6:ED$6,,G76)),"") -> Кубок России п.Ува Удмуртская республика 10.06.2022 - 14.06.2022
C77: =IF(C75="","",VLOOKUP(C75,Рейтинг!C$10:I$493,4,FALSE)) -> Россия | F77: =IFERROR(IF($B$48=1,LARGE(OFFSET(Рейтинг!$L$9:$ED$9,D75,,),3),SMALL(OFFSET(Рейтинг!$L$9:$ED$9,D75,,),3)),"") -> 37.16079069 | G77: =IF(F77="","",IFERROR(MATCH(F77,OFFSET(Рейтинг!$P$9:$ED$9,D75,,),0),"")) -> 15 | H77: =IFERROR(IF(F77=0,"",INDEX(Рейтинг!P$6:ED$6,,G77)),"") -> Чемпионат России п.Виллози Ленинградская обл. 02/09/2021-13/09/2021
C78: =IF(C75="","",VLOOKUP(C75,Рейтинг!C$10:I$493,6,FALSE)) -> Тюменская область | F78: =IFERROR(IF($B$48=1,LARGE(OFFSET(Рейтинг!$L$9:$ED$9,D75,,),4),SMALL(OFFSET(Рейтинг!$L$9:$ED$9,D75,,),4)),"") -> 10.77611169 | G78: =IF(F78="","",IFERROR(MATCH(F78,OFFSET(Рейтинг!$P$9:$ED$9,D75,,),0),"")) -> 12 | H78: =IFERROR(IF(F78=0,"",INDEX(Рейтинг!P$6:ED$6,,G78)),"") -> Всероссийские соревнования. с.Солоновка Алтайский край 25/06/2021-27/06/2021
A79: =A75+1 -> 8 | B79: =IFERROR(RANK(SMALL(Рейтинг!B$10:B$492,A79),Рейтинг!B$10:B$492,1),"") -> 8 | C79: =IF(B79="","",VLOOKUP(A79,Рейтинг!A$10:C$493,3,FALSE)) -> Сухорученко Сергей | D79: =MATCH(C79,Рейтинг!C$10:C$493,0) -> 8 | E79: =IFERROR(IF($B$48=1,SUM(F79:F82),IF($B$48=2,VLOOKUP(C79,Рейтинг!C$10:K$493,9,FALSE),"")),"") -> 210.1270011 | F79: =IFERROR(IF($B$48=1,LARGE(OFFSET(Рейтинг!$L$9:$ED$9,D79,,),1),SMALL(OFFSET(Рейтинг!$L$9:$ED$9,D79,,),1)),"") -> 102.3766767 | G79: =IF(F79="","",IFERROR(MATCH(F79,OFFSET(Рейтинг!$P$9:$ED$9,D79,,),0),"")) -> 29 | H79: =IFERROR(IF(F79=0,"",INDEX(Рейтинг!P$6:ED$6,,G79)),"") -> Чемпионат России, Кубок Дружбы. Виллози, Ленобласть. 14/09/2022-21/09/2022
C80: =IF(C79="","",VLOOKUP(C79,Рейтинг!C$10:I$493,2,FALSE)) -> М | F80: =IFERROR(IF($B$48=1,LARGE(OFFSET(Рейтинг!$L$9:$ED$9,D79,,),2),SMALL(OFFSET(Рейтинг!$L$9:$ED$9,D79,,),2)),"") -> 65.97862202 | G80: =IF(F80="","",IFERROR(MATCH(F80,OFFSET(Рейтинг!$P$9:$ED$9,D79,,),0),"")) -> 15 | H80: =IFERROR(IF(F80=0,"",INDEX(Рейтинг!P$6:ED$6,,G80)),"") -> Чемпионат России п.Виллози Ленинградская обл. 02/09/2021-13/09/2021
C81: =IF(C79="","",VLOOKUP(C79,Рейтинг!C$10:I$493,4,FALSE)) -> Россия | F81: =IFERROR(IF($B$48=1,LARGE(OFFSET(Рейтинг!$L$9:$ED$9,D79,,),3),SMALL(OFFSET(Рейтинг!$L$9:$ED$9,D79,,),3)),"") -> 32.37038161 | G81: =IF(F81="","",IFERROR(MATCH(F81,OFFSET(Рейтинг!$P$9:$ED$9,D79,,),0),"")) -> 13 | H81: =IFERROR(IF(F81=0,"",INDEX(Рейтинг!P$6:ED$6,,G81)),"") -> Кубок России. г.Калининград 29/07/2021-02/08/2021
C82: =IF(C79="","",VLOOKUP(C79,Рейтинг!C$10:I$493,6,FALSE)) -> Калининградская область | F82: =IFERROR(IF($B$48=1,LARGE(OFFSET(Рейтинг!$L$9:$ED$9,D79,,),4),SMALL(OFFSET(Рейтинг!$L$9:$ED$9,D79,,),4)),"") -> 9.401320806 | G82: =IF(F82="","",IFERROR(MATCH(F82,OFFSET(Рейтинг!$P$9:$ED$9,D79,,),0),"")) -> 16 | H82: =IFERROR(IF(F82=0,"",INDEX(Рейтинг!P$6:ED$6,,G82)),"") -> Чемпионат Мира г.Прилеп. Македония. 07/10/2021-16/10/2021
A83: =A79+1 -> 9 | B83: =IFERROR(RANK(SMALL(Рейтинг!B$10:B$492,A83),Рейтинг!B$10:B$492,1),"") -> 9 | C83: =IF(B83="","",VLOOKUP(A83,Рейтинг!A$10:C$493,3,FALSE)) -> Носаль Александр | D83: =MATCH(C83,Рейтинг!C$10:C$493,0) -> 9 | E83: =IFERROR(IF($B$48=1,SUM(F83:F86),IF($B$48=2,VLOOKUP(C83,Рейтинг!C$10:K$493,9,FALSE),"")),"") -> 209.8403382 | F83: =IFERROR(IF($B$48=1,LARGE(OFFSET(Рейтинг!$L$9:$ED$9,D83,,),1),SMALL(OFFSET(Рейтинг!$L$9:$ED$9,D83,,),1)),"") -> 74.46209244 | G83: =IF(F83="","",IFERROR(MATCH(F83,OFFSET(Рейтинг!$P$9:$ED$9,D83,,),0),"")) -> 29 | H83: =IFERROR(IF(F83=0,"",INDEX(Рейтинг!P$6:ED$6,,G83)),"") -> Чемпионат России, Кубок Дружбы. Виллози, Ленобласть. 14/09/2022-21/09/2022
C84: =IF(C83="","",VLOOKUP(C83,Рейтинг!C$10:I$493,2,FALSE)) -> М | F84: =IFERROR(IF($B$48=1,LARGE(OFFSET(Рейтинг!$L$9:$ED$9,D83,,),2),SMALL(OFFSET(Рейтинг!$L$9:$ED$9,D83,,),2)),"") -> 56.94639203 | G84: =IF(F84="","",IFERROR(MATCH(F84,OFFSET(Рейтинг!$P$9:$ED$9,D83,,),0),"")) -> 15 | H84: =IFERROR(IF(F84=0,"",INDEX(Рейтинг!P$6:ED$6,,G84)),"") -> Чемпионат России п.Виллози Ленинградская обл. 02/09/2021-13/09/2021
C85: =IF(C83="","",VLOOKUP(C83,Рейтинг!C$10:I$493,4,FALSE)) -> Россия | F85: =IFERROR(IF($B$48=1,LARGE(OFFSET(Рейтинг!$L$9:$ED$9,D83,,),3),SMALL(OFFSET(Рейтинг!$L$9:$ED$9,D83,,),3)),"") -> 45.6876116 | G85: =IF(F85="","",IFERROR(MATCH(F85,OFFSET(Рейтинг!$P$9:$ED$9,D83,,),0),"")) -> 20 | H85: =IFERROR(IF(F85=0,"",INDEX(Рейтинг!P$6:ED$6,,G85)),"") -> ЧСЗФО, "SkyStream Accuracy Cup" п.Володарское, Ленобласть. 29/04/2022-04/05/2022
C86: =IF(C83="","",VLOOKUP(C83,Рейтинг!C$10:I$493,6,FALSE)) -> Калининградская область | F86: =IFERROR(IF($B$48=1,LARGE(OFFSET(Рейтинг!$L$9:$ED$9,D83,,),4),SMALL(OFFSET(Рейтинг!$L$9:$ED$9,D83,,),4)),"") -> 32.74424215 | G86: =IF(F86="","",IFERROR(MATCH(F86,OFFSET(Рейтинг!$P$9:$ED$9,D83,,),0),"")) -> 17 | H86: =IFERROR(IF(F86=0,"",INDEX(Рейтинг!P$6:ED$6,,G86)),"") -> Чемпионат Беларуси 2021. с.Зябровка Гомельская обл. 30/10/2021-31/10/2021
A87: =A83+1 -> 10 | B87: =IFERROR(RANK(SMALL(Рейтинг!B$10:B$492,A87),Рейтинг!B$10:B$492,1),"") -> 10 | C87: =IF(B87="","",VLOOKUP(A87,Рейтинг!A$10:C$493,3,FALSE)) -> Кива Артем | D87: =MATCH(C87,Рейтинг!C$10:C$493,0) -> 10 | E87: =IFERROR(IF($B$48=1,SUM(F87:F90),IF($B$48=2,VLOOKUP(C87,Рейтинг!C$10:K$493,9,FALSE),"")),"") -> 176.2766666 | F87: =IFERROR(IF($B$48=1,LARGE(OFFSET(Рейтинг!$L$9:$ED$9,D87,,),1),SMALL(OFFSET(Рейтинг!$L$9:$ED$9,D87,,),1)),"") -> 59.25285554 | G87: =IF(F87="","",IFERROR(MATCH(F87,OFFSET(Рейтинг!$P$9:$ED$9,D87,,),0),"")) -> 29 | H87: =IFERROR(IF(F87=0,"",INDEX(Рейтинг!P$6:ED$6,,G87)),"") -> Чемпионат России, Кубок Дружбы. Виллози, Ленобласть. 14/09/2022-21/09/2022
C88: =IF(C87="","",VLOOKUP(C87,Рейтинг!C$10:I$493,2,FALSE)) -> М | F88: =IFERROR(IF($B$48=1,LARGE(OFFSET(Рейтинг!$L$9:$ED$9,D87,,),2),SMALL(OFFSET(Рейтинг!$L$9:$ED$9,D87,,),2)),"") -> 56.14022234 | G88: =IF(F88="","",IFERROR(MATCH(F88,OFFSET(Рейтинг!$P$9:$ED$9,D87,,),0),"")) -> 22 | H88: =IFERROR(IF(F88=0,"",INDEX(Рейтинг!P$6:ED$6,,G88)),"") -> Кубок России п.Ува Удмуртская республика 10.06.2022 - 14.06.2022
C89: =IF(C87="","",VLOOKUP(C87,Рейтинг!C$10:I$493,4,FALSE)) -> Россия | F89: =IFERROR(IF($B$48=1,LARGE(OFFSET(Рейтинг!$L$9:$ED$9,D87,,),3),SMALL(OFFSET(Рейтинг!$L$9:$ED$9,D87,,),3)),"") -> 33.68774548 | G89: =IF(F89="","",IFERROR(MATCH(F89,OFFSET(Рейтинг!$P$9:$ED$9,D87,,),0),"")) -> 15 | H89: =IFERROR(IF(F89=0,"",INDEX(Рейтинг!P$6:ED$6,,G89)),"") -> Чемпионат России п.Виллози Ленинградская обл. 02/09/2021-13/09/2021
C90: =IF(C87="","",VLOOKUP(C87,Рейтинг!C$10:I$493,6,FALSE)) -> Ленинградская область | F90: =IFERROR(IF($B$48=1,LARGE(OFFSET(Рейтинг!$L$9:$ED$9,D87,,),4),SMALL(OFFSET(Рейтинг!$L$9:$ED$9,D87,,),4)),"") -> 27.19584323 | G90: =IF(F90="","",IFERROR(MATCH(F90,OFFSET(Рейтинг!$P$9:$ED$9,D87,,),0),"")) -> 13 | H90: =IFERROR(IF(F90=0,"",INDEX(Рейтинг!P$6:ED$6,,G90)),"") -> Кубок России. г.Калининград 29/07/2021-02/08/2021
A91: =A87+1 -> 11 | B91: =IFERROR(RANK(SMALL(Рейтинг!B$10:B$492,A91),Рейтинг!B$10:B$492,1),"") -> 11 | C91: =IF(B91="","",VLOOKUP(A91,Рейтинг!A$10:C$493,3,FALSE)) -> Потапов Дмитрий | D91: =MATCH(C91,Рейтинг!C$10:C$493,0) -> 11 | E91: =IFERROR(IF($B$48=1,SUM(F91:F94),IF($B$48=2,VLOOKUP(C91,Рейтинг!C$10:K$493,9,FALSE),"")),"") -> 150.2291298 | F91: =IFERROR(IF($B$48=1,LARGE(OFFSET(Рейтинг!$L$9:$ED$9,D91,,),1),SMALL(OFFSET(Рейтинг!$L$9:$ED$9,D91,,),1)),"") -> 77.71061547 | G91: =IF(F91="","",IFERROR(MATCH(F91,OFFSET(Рейтинг!$P$9:$ED$9,D91,,),0),"")) -> 29 | H91: =IFERROR(IF(F91=0,"",INDEX(Рейтинг!P$6:ED$6,,G91)),"") -> Чемпионат России, Кубок Дружбы. Виллози, Ленобласть. 14/09/2022-21/09/2022
C92: =IF(C91="","",VLOOKUP(C91,Рейтинг!C$10:I$493,2,FALSE)) -> М | F92: =IFERROR(IF($B$48=1,LARGE(OFFSET(Рейтинг!$L$9:$ED$9,D91,,),2),SMALL(OFFSET(Рейтинг!$L$9:$ED$9,D91,,),2)),"") -> 48.55066272 | G92: =IF(F92="","",IFERROR(MATCH(F92,OFFSET(Рейтинг!$P$9:$ED$9,D91,,),0),"")) -> 15 | H92: =IFERROR(IF(F92=0,"",INDEX(Рейтинг!P$6:ED$6,,G92)),"") -> Чемпионат России п.Виллози Ленинградская обл. 02/09/2021-13/09/2021
C93: =IF(C91="","",VLOOKUP(C91,Рейтинг!C$10:I$493,4,FALSE)) -> Россия | F93: =IFERROR(IF($B$48=1,LARGE(OFFSET(Рейтинг!$L$9:$ED$9,D91,,),3),SMALL(OFFSET(Рейтинг!$L$9:$ED$9,D91,,),3)),"") -> 22.38403052 | G93: =IF(F93="","",IFERROR(MATCH(F93,OFFSET(Рейтинг!$P$9:$ED$9,D91,,),0),"")) -> 13 | H93: =IFERROR(IF(F93=0,"",INDEX(Рейтинг!P$6:ED$6,,G93)),"") -> Кубок России. г.Калининград 29/07/2021-02/08/2021
C94: =IF(C91="","",VLOOKUP(C91,Рейтинг!C$10:I$493,6,FALSE)) -> Брянская область | F94: =IFERROR(IF($B$48=1,LARGE(OFFSET(Рейтинг!$L$9:$ED$9,D91,,),4),SMALL(OFFSET(Рейтинг!$L$9:$ED$9,D91,,),4)),"") -> 1.583821051 | G94: =IF(F94="","",IFERROR(MATCH(F94,OFFSET(Рейтинг!$P$9:$ED$9,D91,,),0),"")) -> 2 | H94: =IFERROR(IF(F94=0,"",INDEX(Рейтинг!P$6:ED$6,,G94)),"") -> Чемпионат России г.Брянск 17/08/2020-23/08/2020
A95: =A91+1 -> 12 | B95: =IFERROR(RANK(SMALL(Рейтинг!B$10:B$492,A95),Рейтинг!B$10:B$492,1),"") -> 12 | C95: =IF(B95="","",VLOOKUP(A95,Рейтинг!A$10:C$493,3,FALSE)) -> Доррер Алексей | D95: =MATCH(C95,Рейтинг!C$10:C$493,0) -> 12 | E95: =IFERROR(IF($B$48=1,SUM(F95:F98),IF($B$48=2,VLOOKUP(C95,Рейтинг!C$10:K$493,9,FALSE),"")),"") -> 148.2503795 | F95: =IFERROR(IF($B$48=1,LARGE(OFFSET(Рейтинг!$L$9:$ED$9,D95,,),1),SMALL(OFFSET(Рейтинг!$L$9:$ED$9,D95,,),1)),"") -> 52.66868441 | G95: =IF(F95="","",IFERROR(MATCH(F95,OFFSET(Рейтинг!$P$9:$ED$9,D95,,),0),"")) -> 15 | H95: =IFERROR(IF(F95=0,"",INDEX(Рейтинг!P$6:ED$6,,G95)),"") -> Чемпионат России п.Виллози Ленинградская обл. 02/09/2021-13/09/2021
C96: =IF(C95="","",VLOOKUP(C95,Рейтинг!C$10:I$493,2,FALSE)) -> М | F96: =IFERROR(IF($B$48=1,LARGE(OFFSET(Рейтинг!$L$9:$ED$9,D95,,),2),SMALL(OFFSET(Рейтинг!$L$9:$ED$9,D95,,),2)),"") -> 43.27832376 | G96: =IF(F96="","",IFERROR(MATCH(F96,OFFSET(Рейтинг!$P$9:$ED$9,D95,,),0),"")) -> 29 | H96: =IFERROR(IF(F96=0,"",INDEX(Рейтинг!P$6:ED$6,,G96)),"") -> Чемпионат России, Кубок Дружбы. Виллози, Ленобласть. 14/09/2022-21/09/2022
C97: =IF(C95="","",VLOOKUP(C95,Рейтинг!C$10:I$493,4,FALSE)) -> Россия | F97: =IFERROR(IF($B$48=1,LARGE(OFFSET(Рейтинг!$L$9:$ED$9,D95,,),3),SMALL(OFFSET(Рейтинг!$L$9:$ED$9,D95,,),3)),"") -> 27.93034538 | G97: =IF(F97="","",IFERROR(MATCH(F97,OFFSET(Рейтинг!$P$9:$ED$9,D95,,),0),"")) -> 20 | H97: =IFERROR(IF(F97=0,"",INDEX(Рейтинг!P$6:ED$6,,G97)),"") -> ЧСЗФО, "SkyStream Accuracy Cup" п.Володарское, Ленобласть. 29/04/2022-04/05/2022
C98: =IF(C95="","",VLOOKUP(C95,Рейтинг!C$10:I$493,6,FALSE)) -> Ленинградская область | F98: =IFERROR(IF($B$48=1,LARGE(OFFSET(Рейтинг!$L$9:$ED$9,D95,,),4),SMALL(OFFSET(Рейтинг!$L$9:$ED$9,D95,,),4)),"") -> 24.373026 | G98: =IF(F98="","",IFERROR(MATCH(F98,OFFSET(Рейтинг!$P$9:$ED$9,D95,,),0),"")) -> 24 | H98: =IFERROR(IF(F98=0,"",INDEX(Рейтинг!P$6:ED$6,,G98)),"") -> Кубок Санкт-Петербурга, МП-5, п.Ущевицы Ленинградская обл. 02/07/2022
A99: =A95+1 -> 13 | B99: =IFERROR(RANK(SMALL(Рейтинг!B$10:B$492,A99),Рейтинг!B$10:B$492,1),"") -> 13 | C99: =IF(B99="","",VLOOKUP(A99,Рейтинг!A$10:C$493,3,FALSE)) -> Зотов Антон | D99: =MATCH(C99,Рейтинг!C$10:C$493,0) -> 13 | E99: =IFERROR(IF($B$48=1,SUM(F99:F102),IF($B$48=2,VLOOKUP(C99,Рейтинг!C$10:K$493,9,FALSE),"")),"") -> 111.0728881 | F99: =IFERROR(IF($B$48=1,LARGE(OFFSET(Рейтинг!$L$9:$ED$9,D99,,),1),SMALL(OFFSET(Рейтинг!$L$9:$ED$9,D99,,),1)),"") -> 50.95485097 | G99: =IF(F99="","",IFERROR(MATCH(F99,OFFSET(Рейтинг!$P$9:$ED$9,D99,,),0),"")) -> 29 | H99: =IFERROR(IF(F99=0,"",INDEX(Рейтинг!P$6:ED$6,,G99)),"") -> Чемпионат России, Кубок Дружбы. Виллози, Ленобласть. 14/09/2022-21/09/2022
C100: =IF(C99="","",VLOOKUP(C99,Рейтинг!C$10:I$493,2,FALSE)) -> М | F100: =IFERROR(IF($B$48=1,LARGE(OFFSET(Рейтинг!$L$9:$ED$9,D99,,),2),SMALL(OFFSET(Рейтинг!$L$9:$ED$9,D99,,),2)),"") -> 39.11545021 | G100: =IF(F100="","",IFERROR(MATCH(F100,OFFSET(Рейтинг!$P$9:$ED$9,D99,,),0),"")) -> 17 | H100: =IFERROR(IF(F100=0,"",INDEX(Рейтинг!P$6:ED$6,,G100)),"") -> Чемпионат Беларуси 2021. с.Зябровка Гомельская обл. 30/10/2021-31/10/2021
C101: =IF(C99="","",VLOOKUP(C99,Рейтинг!C$10:I$493,4,FALSE)) -> Россия | F101: =IFERROR(IF($B$48=1,LARGE(OFFSET(Рейтинг!$L$9:$ED$9,D99,,),3),SMALL(OFFSET(Рейтинг!$L$9:$ED$9,D99,,),3)),"") -> 12.04816906 | G101: =IF(F101="","",IFERROR(MATCH(F101,OFFSET(Рейтинг!$P$9:$ED$9,D99,,),0),"")) -> 13 | H101: =IFERROR(IF(F101=0,"",INDEX(Рейтинг!P$6:ED$6,,G101)),"") -> Кубок России. г.Калининград 29/07/2021-02/08/2021
C102: =IF(C99="","",VLOOKUP(C99,Рейтинг!C$10:I$493,6,FALSE)) -> Калининградская область | F102: =IFERROR(IF($B$48=1,LARGE(OFFSET(Рейтинг!$L$9:$ED$9,D99,,),4),SMALL(OFFSET(Рейтинг!$L$9:$ED$9,D99,,),4)),"") -> 8.954417807 | G102: =IF(F102="","",IFERROR(MATCH(F102,OFFSET(Рейтинг!$P$9:$ED$9,D99,,),0),"")) -> 22 | H102: =IFERROR(IF(F102=0,"",INDEX(Рейтинг!P$6:ED$6,,G102)),"") -> Кубок России п.Ува Удмуртская республика 10.06.2022 - 14.06.2022
A103: =A99+1 -> 14 | B103: =IFERROR(RANK(SMALL(Рейтинг!B$10:B$492,A103),Рейтинг!B$10:B$492,1),"") -> 14 | C103: =IF(B103="","",VLOOKUP(A103,Рейтинг!A$10:C$493,3,FALSE)) -> Мичурин Андрей | D103: =MATCH(C103,Рейтинг!C$10:C$493,0) -> 14 | E103: =IFERROR(IF($B$48=1,SUM(F103:F106),IF($B$48=2,VLOOKUP(C103,Рейтинг!C$10:K$493,9,FALSE),"")),"") -> 108.7152601 | F103: =IFERROR(IF($B$48=1,LARGE(OFFSET(Рейтинг!$L$9:$ED$9,D103,,),1),SMALL(OFFSET(Рейтинг!$L$9:$ED$9,D103,,),1)),"") -> 35.15361497 | G103: =IF(F103="","",IFERROR(MATCH(F103,OFFSET(Рейтинг!$P$9:$ED$9,D103,,),0),"")) -> 20 | H103: =IFERROR(IF(F103=0,"",INDEX(Рейтинг!P$6:ED$6,,G103)),"") -> ЧСЗФО, "SkyStream Accuracy Cup" п.Володарское, Ленобласть. 29/04/2022-04/05/2022
C104: =IF(C103="","",VLOOKUP(C103,Рейтинг!C$10:I$493,2,FALSE)) -> М | F104: =IFERROR(IF($B$48=1,LARGE(OFFSET(Рейтинг!$L$9:$ED$9,D103,,),2),SMALL(OFFSET(Рейтинг!$L$9:$ED$9,D103,,),2)),"") -> 30.38393876 | G104: =IF(F104="","",IFERROR(MATCH(F104,OFFSET(Рейтинг!$P$9:$ED$9,D103,,),0),"")) -> 22 | H104: =IFERROR(IF(F104=0,"",INDEX(Рейтинг!P$6:ED$6,,G104)),"") -> Кубок России п.Ува Удмуртская республика 10.06.2022 - 14.06.2022
C105: =IF(C103="","",VLOOKUP(C103,Рейтинг!C$10:I$493,4,FALSE)) -> Россия | F105: =IFERROR(IF($B$48=1,LARGE(OFFSET(Рейтинг!$L$9:$ED$9,D103,,),3),SMALL(OFFSET(Рейтинг!$L$9:$ED$9,D103,,),3)),"") -> 22.1883774 | G105: =IF(F105="","",IFERROR(MATCH(F105,OFFSET(Рейтинг!$P$9:$ED$9,D103,,),0),"")) -> 29 | H105: =IFERROR(IF(F105=0,"",INDEX(Рейтинг!P$6:ED$6,,G105)),"") -> Чемпионат России, Кубок Дружбы. Виллози, Ленобласть. 14/09/2022-21/09/2022
C106: =IF(C103="","",VLOOKUP(C103,Рейтинг!C$10:I$493,6,FALSE)) -> Калининградская область | F106: =IFERROR(IF($B$48=1,LARGE(OFFSET(Рейтинг!$L$9:$ED$9,D103,,),4),SMALL(OFFSET(Рейтинг!$L$9:$ED$9,D103,,),4)),"") -> 20.98932899 | G106: =IF(F106="","",IFERROR(MATCH(F106,OFFSET(Рейтинг!$P$9:$ED$9,D103,,),0),"")) -> 24 | H106: =IFERROR(IF(F106=0,"",INDEX(Рейтинг!P$6:ED$6,,G106)),"") -> Кубок Санкт-Петербурга, МП-5, п.Ущевицы Ленинградская обл. 02/07/2022
A107: =A103+1 -> 15 | B107: =IFERROR(RANK(SMALL(Рейтинг!B$10:B$492,A107),Рейтинг!B$10:B$492,1),"") -> 15 | C107: =IF(B107="","",VLOOKUP(A107,Рейтинг!A$10:C$493,3,FALSE)) -> Кулистиков Евгений | D107: =MATCH(C107,Рейтинг!C$10:C$493,0) -> 15 | E107: =IFERROR(IF($B$48=1,SUM(F107:F110),IF($B$48=2,VLOOKUP(C107,Рейтинг!C$10:K$493,9,FALSE),"")),"") -> 104.7456295 | F107: =IFERROR(IF($B$48=1,LARGE(OFFSET(Рейтинг!$L$9:$ED$9,D107,,),1),SMALL(OFFSET(Рейтинг!$L$9:$ED$9,D107,,),1)),"") -> 56.41784419 | G107: =IF(F107="","",IFERROR(MATCH(F107,OFFSET(Рейтинг!$P$9:$ED$9,D107,,),0),"")) -> 29 | H107: =IFERROR(IF(F107=0,"",INDEX(Рейтинг!P$6:ED$6,,G107)),"") -> Чемпионат России, Кубок Дружбы. Виллози, Ленобласть. 14/09/2022-21/09/2022
C108: =IF(C107="","",VLOOKUP(C107,Рейтинг!C$10:I$493,2,FALSE)) -> М | F108: =IFERROR(IF($B$48=1,LARGE(OFFSET(Рейтинг!$L$9:$ED$9,D107,,),2),SMALL(OFFSET(Рейтинг!$L$9:$ED$9,D107,,),2)),"") -> 30.37766925 | G108: =IF(F108="","",IFERROR(MATCH(F108,OFFSET(Рейтинг!$P$9:$ED$9,D107,,),0),"")) -> 15 | H108: =IFERROR(IF(F108=0,"",INDEX(Рейтинг!P$6:ED$6,,G108)),"") -> Чемпионат России п.Виллози Ленинградская обл. 02/09/2021-13/09/2021
C109: =IF(C107="","",VLOOKUP(C107,Рейтинг!C$10:I$493,4,FALSE)) -> Россия | F109: =IFERROR(IF($B$48=1,LARGE(OFFSET(Рейтинг!$L$9:$ED$9,D107,,),3),SMALL(OFFSET(Рейтинг!$L$9:$ED$9,D107,,),3)),"") -> 17.95011607 | G109: =IF(F109="","",IFERROR(MATCH(F109,OFFSET(Рейтинг!$P$9:$ED$9,D107,,),0),"")) -> 13 | H109: =IFERROR(IF(F109=0,"",INDEX(Рейтинг!P$6:ED$6,,G109)),"") -> Кубок России. г.Калининград 29/07/2021-02/08/2021
C110: =IF(C107="","",VLOOKUP(C107,Рейтинг!C$10:I$493,6,FALSE)) -> Брянская область | F110: =IFERROR(IF($B$48=1,LARGE(OFFSET(Рейтинг!$L$9:$ED$9,D107,,),4),SMALL(OFFSET(Рейтинг!$L$9:$ED$9,D107,,),4)),"") -> 0 | G110: =IF(F110="","",IFERROR(MATCH(F110,OFFSET(Рейтинг!$P$9:$ED$9,D107,,),0),"")) ->  | H110: =IFERROR(IF(F110=0,"",INDEX(Рейтинг!P$6:ED$6,,G110)),"") -> 
A111: =A107+1 -> 16 | B111: =IFERROR(RANK(SMALL(Рейтинг!B$10:B$492,A111),Рейтинг!B$10:B$492,1),"") -> 16 | C111: =IF(B111="","",VLOOKUP(A111,Рейтинг!A$10:C$493,3,FALSE)) -> Калинин Константин | D111: =MATCH(C111,Рейтинг!C$10:C$493,0) -> 16 | E111: =IFERROR(IF($B$48=1,SUM(F111:F114),IF($B$48=2,VLOOKUP(C111,Рейтинг!C$10:K$493,9,FALSE),"")),"") -> 103.2029757 | F111: =IFERROR(IF($B$48=1,LARGE(OFFSET(Рейтинг!$L$9:$ED$9,D111,,),1),SMALL(OFFSET(Рейтинг!$L$9:$ED$9,D111,,),1)),"") -> 40.85771345 | G111: =IF(F111="","",IFERROR(MATCH(F111,OFFSET(Рейтинг!$P$9:$ED$9,D111,,),0),"")) -> 29 | H111: =IFERROR(IF(F111=0,"",INDEX(Рейтинг!P$6:ED$6,,G111)),"") -> Чемпионат России, Кубок Дружбы. Виллози, Ленобласть. 14/09/2022-21/09/2022
C112: =IF(C111="","",VLOOKUP(C111,Рейтинг!C$10:I$493,2,FALSE)) -> М | F112: =IFERROR(IF($B$48=1,LARGE(OFFSET(Рейтинг!$L$9:$ED$9,D111,,),2),SMALL(OFFSET(Рейтинг!$L$9:$ED$9,D111,,),2)),"") -> 40.29567206 | G112: =IF(F112="","",IFERROR(MATCH(F112,OFFSET(Рейтинг!$P$9:$ED$9,D111,,),0),"")) -> 20 | H112: =IFERROR(IF(F112=0,"",INDEX(Рейтинг!P$6:ED$6,,G112)),"") -> ЧСЗФО, "SkyStream Accuracy Cup" п.Володарское, Ленобласть. 29/04/2022-04/05/2022
C113: =IF(C111="","",VLOOKUP(C111,Рейтинг!C$10:I$493,4,FALSE)) -> Россия | F113: =IFERROR(IF($B$48=1,LARGE(OFFSET(Рейтинг!$L$9:$ED$9,D111,,),3),SMALL(OFFSET(Рейтинг!$L$9:$ED$9,D111,,),3)),"") -> 19.63620142 | G113: =IF(F113="","",IFERROR(MATCH(F113,OFFSET(Рейтинг!$P$9:$ED$9,D111,,),0),"")) -> 26 | H113: =IFERROR(IF(F113=0,"",INDEX(Рейтинг!P$6:ED$6,,G113)),"") -> Турнир победы. Всероссийское ФМ. Юца, Ставропольский край. 22-28/07/2022
C114: =IF(C111="","",VLOOKUP(C111,Рейтинг!C$10:I$493,6,FALSE)) -> Ленинградская область | F114: =IFERROR(IF($B$48=1,LARGE(OFFSET(Рейтинг!$L$9:$ED$9,D111,,),4),SMALL(OFFSET(Рейтинг!$L$9:$ED$9,D111,,),4)),"") -> 2.413388761 | G114: =IF(F114="","",IFERROR(MATCH(F114,OFFSET(Рейтинг!$P$9:$ED$9,D111,,),0),"")) -> 4 | H114: =IFERROR(IF(F114=0,"",INDEX(Рейтинг!P$6:ED$6,,G114)),"") -> Кубок России п.Виллози Ленинградская обл. 08/10/2020-12/10/2020
A115: =A111+1 -> 17 | B115: =IFERROR(RANK(SMALL(Рейтинг!B$10:B$492,A115),Рейтинг!B$10:B$492,1),"") -> 17 | C115: =IF(B115="","",VLOOKUP(A115,Рейтинг!A$10:C$493,3,FALSE)) -> Крикун Константин | D115: =MATCH(C115,Рейтинг!C$10:C$493,0) -> 17 | E115: =IFERROR(IF($B$48=1,SUM(F115:F118),IF($B$48=2,VLOOKUP(C115,Рейтинг!C$10:K$493,9,FALSE),"")),"") -> 102.7129536 | F115: =IFERROR(IF($B$48=1,LARGE(OFFSET(Рейтинг!$L$9:$ED$9,D115,,),1),SMALL(OFFSET(Рейтинг!$L$9:$ED$9,D115,,),1)),"") -> 84.41416304 | G115: =IF(F115="","",IFERROR(MATCH(F115,OFFSET(Рейтинг!$P$9:$ED$9,D115,,),0),"")) -> 29 | H115: =IFERROR(IF(F115=0,"",INDEX(Рейтинг!P$6:ED$6,,G115)),"") -> Чемпионат России, Кубок Дружбы. Виллози, Ленобласть. 14/09/2022-21/09/2022
C116: =IF(C115="","",VLOOKUP(C115,Рейтинг!C$10:I$493,2,FALSE)) -> М | F116: =IFERROR(IF($B$48=1,LARGE(OFFSET(Рейтинг!$L$9:$ED$9,D115,,),2),SMALL(OFFSET(Рейтинг!$L$9:$ED$9,D115,,),2)),"") -> 18.29879058 | G116: =IF(F116="","",IFERROR(MATCH(F116,OFFSET(Рейтинг!$P$9:$ED$9,D115,,),0),"")) -> 22 | H116: =IFERROR(IF(F116=0,"",INDEX(Рейтинг!P$6:ED$6,,G116)),"") -> Кубок России п.Ува Удмуртская республика 10.06.2022 - 14.06.2022
C117: =IF(C115="","",VLOOKUP(C115,Рейтинг!C$10:I$493,4,FALSE)) -> Россия | F117: =IFERROR(IF($B$48=1,LARGE(OFFSET(Рейтинг!$L$9:$ED$9,D115,,),3),SMALL(OFFSET(Рейтинг!$L$9:$ED$9,D115,,),3)),"") -> 0 | G117: =IF(F117="","",IFERROR(MATCH(F117,OFFSET(Рейтинг!$P$9:$ED$9,D115,,),0),"")) ->  | H117: =IFERROR(IF(F117=0,"",INDEX(Рейтинг!P$6:ED$6,,G117)),"") -> 
C118: =IF(C115="","",VLOOKUP(C115,Рейтинг!C$10:I$493,6,FALSE)) -> Удмуртская республика | F118: =IFERROR(IF($B$48=1,LARGE(OFFSET(Рейтинг!$L$9:$ED$9,D115,,),4),SMALL(OFFSET(Рейтинг!$L$9:$ED$9,D115,,),4)),"") -> 0 | G118: =IF(F118="","",IFERROR(MATCH(F118,OFFSET(Рейтинг!$P$9:$ED$9,D115,,),0),"")) ->  | H118: =IFERROR(IF(F118=0,"",INDEX(Рейтинг!P$6:ED$6,,G118)),"") -> 
A119: =A115+1 -> 18 | B119: =IFERROR(RANK(SMALL(Рейтинг!B$10:B$492,A119),Рейтинг!B$10:B$492,1),"") -> 18 | C119: =IF(B119="","",VLOOKUP(A119,Рейтинг!A$10:C$493,3,FALSE)) -> Кукарцев Владимир | D119: =MATCH(C119,Рейтинг!C$10:C$493,0) -> 18 | E119: =IFERROR(IF($B$48=1,SUM(F119:F122),IF($B$48=2,VLOOKUP(C119,Рейтинг!C$10:K$493,9,FALSE),"")),"") -> 102.5537345 | F119: =IFERROR(IF($B$48=1,LARGE(OFFSET(Рейтинг!$L$9:$ED$9,D119,,),1),SMALL(OFFSET(Рейтинг!$L$9:$ED$9,D119,,),1)),"") -> 34.98783416 | G119: =IF(F119="","",IFERROR(MATCH(F119,OFFSET(Рейтинг!$P$9:$ED$9,D119,,),0),"")) -> 22 | H119: =IFERROR(IF(F119=0,"",INDEX(Рейтинг!P$6:ED$6,,G119)),"") -> Кубок России п.Ува Удмуртская республика 10.06.2022 - 14.06.2022
C120: =IF(C119="","",VLOOKUP(C119,Рейтинг!C$10:I$493,2,FALSE)) -> М | F120: =IFERROR(IF($B$48=1,LARGE(OFFSET(Рейтинг!$L$9:$ED$9,D119,,),2),SMALL(OFFSET(Рейтинг!$L$9:$ED$9,D119,,),2)),"") -> 34.01098464 | G120: =IF(F120="","",IFERROR(MATCH(F120,OFFSET(Рейтинг!$P$9:$ED$9,D119,,),0),"")) -> 29 | H120: =IFERROR(IF(F120=0,"",INDEX(Рейтинг!P$6:ED$6,,G120)),"") -> Чемпионат России, Кубок Дружбы. Виллози, Ленобласть. 14/09/2022-21/09/2022
C121: =IF(C119="","",VLOOKUP(C119,Рейтинг!C$10:I$493,4,FALSE)) -> Россия | F121: =IFERROR(IF($B$48=1,LARGE(OFFSET(Рейтинг!$L$9:$ED$9,D119,,),3),SMALL(OFFSET(Рейтинг!$L$9:$ED$9,D119,,),3)),"") -> 24.90829767 | G121: =IF(F121="","",IFERROR(MATCH(F121,OFFSET(Рейтинг!$P$9:$ED$9,D119,,),0),"")) -> 17 | H121: =IFERROR(IF(F121=0,"",INDEX(Рейтинг!P$6:ED$6,,G121)),"") -> Чемпионат Беларуси 2021. с.Зябровка Гомельская обл. 30/10/2021-31/10/2021
C122: =IF(C119="","",VLOOKUP(C119,Рейтинг!C$10:I$493,6,FALSE)) -> Калининградская область | F122: =IFERROR(IF($B$48=1,LARGE(OFFSET(Рейтинг!$L$9:$ED$9,D119,,),4),SMALL(OFFSET(Рейтинг!$L$9:$ED$9,D119,,),4)),"") -> 8.646618031 | G122: =IF(F122="","",IFERROR(MATCH(F122,OFFSET(Рейтинг!$P$9:$ED$9,D119,,),0),"")) -> 13 | H122: =IFERROR(IF(F122=0,"",INDEX(Рейтинг!P$6:ED$6,,G122)),"") -> Кубок России. г.Калининград 29/07/2021-02/08/2021
A123: =A119+1 -> 19 | B123: =IFERROR(RANK(SMALL(Рейтинг!B$10:B$492,A123),Рейтинг!B$10:B$492,1),"") -> 19 | C123: =IF(B123="","",VLOOKUP(A123,Рейтинг!A$10:C$493,3,FALSE)) -> Зубкова Анастасия | D123: =MATCH(C123,Рейтинг!C$10:C$493,0) -> 19 | E123: =IFERROR(IF($B$48=1,SUM(F123:F126),IF($B$48=2,VLOOKUP(C123,Рейтинг!C$10:K$493,9,FALSE),"")),"") -> 99.63379619 | F123: =IFERROR(IF($B$48=1,LARGE(OFFSET(Рейтинг!$L$9:$ED$9,D123,,),1),SMALL(OFFSET(Рейтинг!$L$9:$ED$9,D123,,),1)),"") -> 48.32692027 | G123: =IF(F123="","",IFERROR(MATCH(F123,OFFSET(Рейтинг!$P$9:$ED$9,D123,,),0),"")) -> 29 | H123: =IFERROR(IF(F123=0,"",INDEX(Рейтинг!P$6:ED$6,,G123)),"") -> Чемпионат России, Кубок Дружбы. Виллози, Ленобласть. 14/09/2022-21/09/2022
C124: =IF(C123="","",VLOOKUP(C123,Рейтинг!C$10:I$493,2,FALSE)) -> Ж | F124: =IFERROR(IF($B$48=1,LARGE(OFFSET(Рейтинг!$L$9:$ED$9,D123,,),2),SMALL(OFFSET(Рейтинг!$L$9:$ED$9,D123,,),2)),"") -> 25.65875679 | G124: =IF(F124="","",IFERROR(MATCH(F124,OFFSET(Рейтинг!$P$9:$ED$9,D123,,),0),"")) -> 20 | H124: =IFERROR(IF(F124=0,"",INDEX(Рейтинг!P$6:ED$6,,G124)),"") -> ЧСЗФО, "SkyStream Accuracy Cup" п.Володарское, Ленобласть. 29/04/2022-04/05/2022
C125: =IF(C123="","",VLOOKUP(C123,Рейтинг!C$10:I$493,4,FALSE)) -> Россия | F125: =IFERROR(IF($B$48=1,LARGE(OFFSET(Рейтинг!$L$9:$ED$9,D123,,),3),SMALL(OFFSET(Рейтинг!$L$9:$ED$9,D123,,),3)),"") -> 13.98639076 | G125: =IF(F125="","",IFERROR(MATCH(F125,OFFSET(Рейтинг!$P$9:$ED$9,D123,,),0),"")) -> 15 | H125: =IFERROR(IF(F125=0,"",INDEX(Рейтинг!P$6:ED$6,,G125)),"") -> Чемпионат России п.Виллози Ленинградская обл. 02/09/2021-13/09/2021
C126: =IF(C123="","",VLOOKUP(C123,Рейтинг!C$10:I$493,6,FALSE)) -> Ленинградская область | F126: =IFERROR(IF($B$48=1,LARGE(OFFSET(Рейтинг!$L$9:$ED$9,D123,,),4),SMALL(OFFSET(Рейтинг!$L$9:$ED$9,D123,,),4)),"") -> 11.66172837 | G126: =IF(F126="","",IFERROR(MATCH(F126,OFFSET(Рейтинг!$P$9:$ED$9,D123,,),0),"")) -> 28 | H126: =IFERROR(IF(F126=0,"",INDEX(Рейтинг!P$6:ED$6,,G126)),"") -> Золотая Мишенька. Клубные, п.Ущевицы, Ленинградская обл. 10/09/2022
A127: =A123+1 -> 20 | B127: =IFERROR(RANK(SMALL(Рейтинг!B$10:B$492,A127),Рейтинг!B$10:B$492,1),"") -> 20 | C127: =IF(B127="","",VLOOKUP(A127,Рейтинг!A$10:C$493,3,FALSE)) -> Браунов Алексей | D127: =MATCH(C127,Рейтинг!C$10:C$493,0) -> 20 | E127: =IFERROR(IF($B$48=1,SUM(F127:F130),IF($B$48=2,VLOOKUP(C127,Рейтинг!C$10:K$493,9,FALSE),"")),"") -> 87.78884816 | F127: =IFERROR(IF($B$48=1,LARGE(OFFSET(Рейтинг!$L$9:$ED$9,D127,,),1),SMALL(OFFSET(Рейтинг!$L$9:$ED$9,D127,,),1)),"") -> 27.93627247 | G127: =IF(F127="","",IFERROR(MATCH(F127,OFFSET(Рейтинг!$P$9:$ED$9,D127,,),0),"")) -> 24 | H127: =IFERROR(IF(F127=0,"",INDEX(Рейтинг!P$6:ED$6,,G127)),"") -> Кубок Санкт-Петербурга, МП-5, п.Ущевицы Ленинградская обл. 02/07/2022
C128: =IF(C127="","",VLOOKUP(C127,Рейтинг!C$10:I$493,2,FALSE)) -> М | F128: =IFERROR(IF($B$48=1,LARGE(OFFSET(Рейтинг!$L$9:$ED$9,D127,,),2),SMALL(OFFSET(Рейтинг!$L$9:$ED$9,D127,,),2)),"") -> 27.2313315 | G128: =IF(F128="","",IFERROR(MATCH(F128,OFFSET(Рейтинг!$P$9:$ED$9,D127,,),0),"")) -> 15 | H128: =IFERROR(IF(F128=0,"",INDEX(Рейтинг!P$6:ED$6,,G128)),"") -> Чемпионат России п.Виллози Ленинградская обл. 02/09/2021-13/09/2021
C129: =IF(C127="","",VLOOKUP(C127,Рейтинг!C$10:I$493,4,FALSE)) -> Россия | F129: =IFERROR(IF($B$48=1,LARGE(OFFSET(Рейтинг!$L$9:$ED$9,D127,,),3),SMALL(OFFSET(Рейтинг!$L$9:$ED$9,D127,,),3)),"") -> 20.77260189 | G129: =IF(F129="","",IFERROR(MATCH(F129,OFFSET(Рейтинг!$P$9:$ED$9,D127,,),0),"")) -> 19 | H129: =IFERROR(IF(F129=0,"",INDEX(Рейтинг!P$6:ED$6,,G129)),"") -> Любительские соревнования "Серебряная Мишенька" 23/02/2022
C130: =IF(C127="","",VLOOKUP(C127,Рейтинг!C$10:I$493,6,FALSE)) -> г.Санкт-Петербург | F130: =IFERROR(IF($B$48=1,LARGE(OFFSET(Рейтинг!$L$9:$ED$9,D127,,),4),SMALL(OFFSET(Рейтинг!$L$9:$ED$9,D127,,),4)),"") -> 11.8486423 | G130: =IF(F130="","",IFERROR(MATCH(F130,OFFSET(Рейтинг!$P$9:$ED$9,D127,,),0),"")) -> 20 | H130: =IFERROR(IF(F130=0,"",INDEX(Рейтинг!P$6:ED$6,,G130)),"") -> ЧСЗФО, "SkyStream Accuracy Cup" п.Володарское, Ленобласть. 29/04/2022-04/05/2022
A131: =A127+1 -> 21 | B131: =IFERROR(RANK(SMALL(Рейтинг!B$10:B$492,A131),Рейтинг!B$10:B$492,1),"") -> 21 | C131: =IF(B131="","",VLOOKUP(A131,Рейтинг!A$10:C$493,3,FALSE)) -> Шляпин Владимир | D131: =MATCH(C131,Рейтинг!C$10:C$493,0) -> 21 | E131: =IFERROR(IF($B$48=1,SUM(F131:F134),IF($B$48=2,VLOOKUP(C131,Рейтинг!C$10:K$493,9,FALSE),"")),"") -> 84.12871075 | F131: =IFERROR(IF($B$48=1,LARGE(OFFSET(Рейтинг!$L$9:$ED$9,D131,,),1),SMALL(OFFSET(Рейтинг!$L$9:$ED$9,D131,,),1)),"") -> 53.65183425 | G131: =IF(F131="","",IFERROR(MATCH(F131,OFFSET(Рейтинг!$P$9:$ED$9,D131,,),0),"")) -> 29 | H131: =IFERROR(IF(F131=0,"",INDEX(Рейтинг!P$6:ED$6,,G131)),"") -> Чемпионат России, Кубок Дружбы. Виллози, Ленобласть. 14/09/2022-21/09/2022
C132: =IF(C131="","",VLOOKUP(C131,Рейтинг!C$10:I$493,2,FALSE)) -> М | F132: =IFERROR(IF($B$48=1,LARGE(OFFSET(Рейтинг!$L$9:$ED$9,D131,,),2),SMALL(OFFSET(Рейтинг!$L$9:$ED$9,D131,,),2)),"") -> 16.30057203 | G132: =IF(F132="","",IFERROR(MATCH(F132,OFFSET(Рейтинг!$P$9:$ED$9,D131,,),0),"")) -> 15 | H132: =IFERROR(IF(F132=0,"",INDEX(Рейтинг!P$6:ED$6,,G132)),"") -> Чемпионат России п.Виллози Ленинградская обл. 02/09/2021-13/09/2021
C133: =IF(C131="","",VLOOKUP(C131,Рейтинг!C$10:I$493,4,FALSE)) -> Россия | F133: =IFERROR(IF($B$48=1,LARGE(OFFSET(Рейтинг!$L$9:$ED$9,D131,,),3),SMALL(OFFSET(Рейтинг!$L$9:$ED$9,D131,,),3)),"") -> 14.17630447 | G133: =IF(F133="","",IFERROR(MATCH(F133,OFFSET(Рейтинг!$P$9:$ED$9,D131,,),0),"")) -> 26 | H133: =IFERROR(IF(F133=0,"",INDEX(Рейтинг!P$6:ED$6,,G133)),"") -> Турнир победы. Всероссийское ФМ. Юца, Ставропольский край. 22-28/07/2022
C134: =IF(C131="","",VLOOKUP(C131,Рейтинг!C$10:I$493,6,FALSE)) -> Удмуртская республика | F134: =IFERROR(IF($B$48=1,LARGE(OFFSET(Рейтинг!$L$9:$ED$9,D131,,),4),SMALL(OFFSET(Рейтинг!$L$9:$ED$9,D131,,),4)),"") -> 0 | G134: =IF(F134="","",IFERROR(MATCH(F134,OFFSET(Рейтинг!$P$9:$ED$9,D131,,),0),"")) ->  | H134: =IFERROR(IF(F134=0,"",INDEX(Рейтинг!P$6:ED$6,,G134)),"") -> 
A135: =A131+1 -> 22 | B135: =IFERROR(RANK(SMALL(Рейтинг!B$10:B$492,A135),Рейтинг!B$10:B$492,1),"") -> 22 | C135: =IF(B135="","",VLOOKUP(A135,Рейтинг!A$10:C$493,3,FALSE)) -> Липатникова Наталья | D135: =MATCH(C135,Рейтинг!C$10:C$493,0) -> 22 | E135: =IFERROR(IF($B$48=1,SUM(F135:F138),IF($B$48=2,VLOOKUP(C135,Рейтинг!C$10:K$493,9,FALSE),"")),"") -> 83.90132918 | F135: =IFERROR(IF($B$48=1,LARGE(OFFSET(Рейтинг!$L$9:$ED$9,D135,,),1),SMALL(OFFSET(Рейтинг!$L$9:$ED$9,D135,,),1)),"") -> 26.06372848 | G135: =IF(F135="","",IFERROR(MATCH(F135,OFFSET(Рейтинг!$P$9:$ED$9,D135,,),0),"")) -> 22 | H135: =IFERROR(IF(F135=0,"",INDEX(Рейтинг!P$6:ED$6,,G135)),"") -> Кубок России п.Ува Удмуртская республика 10.06.2022 - 14.06.2022
C136: =IF(C135="","",VLOOKUP(C135,Рейтинг!C$10:I$493,2,FALSE)) -> Ж | F136: =IFERROR(IF($B$48=1,LARGE(OFFSET(Рейтинг!$L$9:$ED$9,D135,,),2),SMALL(OFFSET(Рейтинг!$L$9:$ED$9,D135,,),2)),"") -> 21.32945672 | G136: =IF(F136="","",IFERROR(MATCH(F136,OFFSET(Рейтинг!$P$9:$ED$9,D135,,),0),"")) -> 20 | H136: =IFERROR(IF(F136=0,"",INDEX(Рейтинг!P$6:ED$6,,G136)),"") -> ЧСЗФО, "SkyStream Accuracy Cup" п.Володарское, Ленобласть. 29/04/2022-04/05/2022
C137: =IF(C135="","",VLOOKUP(C135,Рейтинг!C$10:I$493,4,FALSE)) -> Россия | F137: =IFERROR(IF($B$48=1,LARGE(OFFSET(Рейтинг!$L$9:$ED$9,D135,,),3),SMALL(OFFSET(Рейтинг!$L$9:$ED$9,D135,,),3)),"") -> 19.29370099 | G137: =IF(F137="","",IFERROR(MATCH(F137,OFFSET(Рейтинг!$P$9:$ED$9,D135,,),0),"")) -> 12 | H137: =IFERROR(IF(F137=0,"",INDEX(Рейтинг!P$6:ED$6,,G137)),"") -> Всероссийские соревнования. с.Солоновка Алтайский край 25/06/2021-27/06/2021
C138: =IF(C135="","",VLOOKUP(C135,Рейтинг!C$10:I$493,6,FALSE)) -> Томская область | F138: =IFERROR(IF($B$48=1,LARGE(OFFSET(Рейтинг!$L$9:$ED$9,D135,,),4),SMALL(OFFSET(Рейтинг!$L$9:$ED$9,D135,,),4)),"") -> 17.21444299 | G138: =IF(F138="","",IFERROR(MATCH(F138,OFFSET(Рейтинг!$P$9:$ED$9,D135,,),0),"")) -> 29 | H138: =IFERROR(IF(F138=0,"",INDEX(Рейтинг!P$6:ED$6,,G138)),"") -> Чемпионат России, Кубок Дружбы. Виллози, Ленобласть. 14/09/2022-21/09/2022
A139: =A135+1 -> 23 | B139: =IFERROR(RANK(SMALL(Рейтинг!B$10:B$492,A139),Рейтинг!B$10:B$492,1),"") -> 23 | C139: =IF(B139="","",VLOOKUP(A139,Рейтинг!A$10:C$493,3,FALSE)) -> Вознесенский Алексей | D139: =MATCH(C139,Рейтинг!C$10:C$493,0) -> 23 | E139: =IFERROR(IF($B$48=1,SUM(F139:F142),IF($B$48=2,VLOOKUP(C139,Рейтинг!C$10:K$493,9,FALSE),"")),"") -> 82.94428993 | F139: =IFERROR(IF($B$48=1,LARGE(OFFSET(Рейтинг!$L$9:$ED$9,D139,,),1),SMALL(OFFSET(Рейтинг!$L$9:$ED$9,D139,,),1)),"") -> 38.50626678 | G139: =IF(F139="","",IFERROR(MATCH(F139,OFFSET(Рейтинг!$P$9:$ED$9,D139,,),0),"")) -> 29 | H139: =IFERROR(IF(F139=0,"",INDEX(Рейтинг!P$6:ED$6,,G139)),"") -> Чемпионат России, Кубок Дружбы. Виллози, Ленобласть. 14/09/2022-21/09/2022
C140: =IF(C139="","",VLOOKUP(C139,Рейтинг!C$10:I$493,2,FALSE)) -> М | F140: =IFERROR(IF($B$48=1,LARGE(OFFSET(Рейтинг!$L$9:$ED$9,D139,,),2),SMALL(OFFSET(Рейтинг!$L$9:$ED$9,D139,,),2)),"") -> 28.72930844 | G140: =IF(F140="","",IFERROR(MATCH(F140,OFFSET(Рейтинг!$P$9:$ED$9,D139,,),0),"")) -> 17 | H140: =IFERROR(IF(F140=0,"",INDEX(Рейтинг!P$6:ED$6,,G140)),"") -> Чемпионат Беларуси 2021. с.Зябровка Гомельская обл. 30/10/2021-31/10/2021
C141: =IF(C139="","",VLOOKUP(C139,Рейтинг!C$10:I$493,4,FALSE)) -> Россия | F141: =IFERROR(IF($B$48=1,LARGE(OFFSET(Рейтинг!$L$9:$ED$9,D139,,),3),SMALL(OFFSET(Рейтинг!$L$9:$ED$9,D139,,),3)),"") -> 15.70871471 | G141: =IF(F141="","",IFERROR(MATCH(F141,OFFSET(Рейтинг!$P$9:$ED$9,D139,,),0),"")) -> 12 | H141: =IFERROR(IF(F141=0,"",INDEX(Рейтинг!P$6:ED$6,,G141)),"") -> Всероссийские соревнования. с.Солоновка Алтайский край 25/06/2021-27/06/2021
C142: =IF(C139="","",VLOOKUP(C139,Рейтинг!C$10:I$493,6,FALSE)) -> Калининградская область | F142: =IFERROR(IF($B$48=1,LARGE(OFFSET(Рейтинг!$L$9:$ED$9,D139,,),4),SMALL(OFFSET(Рейтинг!$L$9:$ED$9,D139,,),4)),"") -> 0 | G142: =IF(F142="","",IFERROR(MATCH(F142,OFFSET(Рейтинг!$P$9:$ED$9,D139,,),0),"")) ->  | H142: =IFERROR(IF(F142=0,"",INDEX(Рейтинг!P$6:ED$6,,G142)),"") -> 
A143: =A139+1 -> 24 | B143: =IFERROR(RANK(SMALL(Рейтинг!B$10:B$492,A143),Рейтинг!B$10:B$492,1),"") -> 24 | C143: =IF(B143="","",VLOOKUP(A143,Рейтинг!A$10:C$493,3,FALSE)) -> Черникова Наталья | D143: =MATCH(C143,Рейтинг!C$10:C$493,0) -> 24 | E143: =IFERROR(IF($B$48=1,SUM(F143:F146),IF($B$48=2,VLOOKUP(C143,Рейтинг!C$10:K$493,9,FALSE),"")),"") -> 79.11893857 | F143: =IFERROR(IF($B$48=1,LARGE(OFFSET(Рейтинг!$L$9:$ED$9,D143,,),1),SMALL(OFFSET(Рейтинг!$L$9:$ED$9,D143,,),1)),"") -> 25.85176299 | G143: =IF(F143="","",IFERROR(MATCH(F143,OFFSET(Рейтинг!$P$9:$ED$9,D143,,),0),"")) -> 29 | H143: =IFERROR(IF(F143=0,"",INDEX(Рейтинг!P$6:ED$6,,G143)),"") -> Чемпионат России, Кубок Дружбы. Виллози, Ленобласть. 14/09/2022-21/09/2022
C144: =IF(C143="","",VLOOKUP(C143,Рейтинг!C$10:I$493,2,FALSE)) -> Ж | F144: =IFERROR(IF($B$48=1,LARGE(OFFSET(Рейтинг!$L$9:$ED$9,D143,,),2),SMALL(OFFSET(Рейтинг!$L$9:$ED$9,D143,,),2)),"") -> 19.27543072 | G144: =IF(F144="","",IFERROR(MATCH(F144,OFFSET(Рейтинг!$P$9:$ED$9,D143,,),0),"")) -> 20 | H144: =IFERROR(IF(F144=0,"",INDEX(Рейтинг!P$6:ED$6,,G144)),"") -> ЧСЗФО, "SkyStream Accuracy Cup" п.Володарское, Ленобласть. 29/04/2022-04/05/2022
C145: =IF(C143="","",VLOOKUP(C143,Рейтинг!C$10:I$493,4,FALSE)) -> Россия | F145: =IFERROR(IF($B$48=1,LARGE(OFFSET(Рейтинг!$L$9:$ED$9,D143,,),3),SMALL(OFFSET(Рейтинг!$L$9:$ED$9,D143,,),3)),"") -> 17.79274224 | G145: =IF(F145="","",IFERROR(MATCH(F145,OFFSET(Рейтинг!$P$9:$ED$9,D143,,),0),"")) -> 24 | H145: =IFERROR(IF(F145=0,"",INDEX(Рейтинг!P$6:ED$6,,G145)),"") -> Кубок Санкт-Петербурга, МП-5, п.Ущевицы Ленинградская обл. 02/07/2022
C146: =IF(C143="","",VLOOKUP(C143,Рейтинг!C$10:I$493,6,FALSE)) -> Ленинградская область | F146: =IFERROR(IF($B$48=1,LARGE(OFFSET(Рейтинг!$L$9:$ED$9,D143,,),4),SMALL(OFFSET(Рейтинг!$L$9:$ED$9,D143,,),4)),"") -> 16.19900263 | G146: =IF(F146="","",IFERROR(MATCH(F146,OFFSET(Рейтинг!$P$9:$ED$9,D143,,),0),"")) -> 25 | H146: =IFERROR(IF(F146=0,"",INDEX(Рейтинг!P$6:ED$6,,G146)),"") -> Кубок Республики Карелия п.Эссойла респ. Карелия. 23/07/2022
A147: =A143+1 -> 25 | B147: =IFERROR(RANK(SMALL(Рейтинг!B$10:B$492,A147),Рейтинг!B$10:B$492,1),"") -> 25 | C147: =IF(B147="","",VLOOKUP(A147,Рейтинг!A$10:C$493,3,FALSE)) -> Лебедев Владимир | D147: =MATCH(C147,Рейтинг!C$10:C$493,0) -> 25 | E147: =IFERROR(IF($B$48=1,SUM(F147:F150),IF($B$48=2,VLOOKUP(C147,Рейтинг!C$10:K$493,9,FALSE),"")),"") -> 76.58245891 | F147: =IFERROR(IF($B$48=1,LARGE(OFFSET(Рейтинг!$L$9:$ED$9,D147,,),1),SMALL(OFFSET(Рейтинг!$L$9:$ED$9,D147,,),1)),"") -> 45.76806874 | G147: =IF(F147="","",IFERROR(MATCH(F147,OFFSET(Рейтинг!$P$9:$ED$9,D147,,),0),"")) -> 29 | H147: =IFERROR(IF(F147=0,"",INDEX(Рейтинг!P$6:ED$6,,G147)),"") -> Чемпионат России, Кубок Дружбы. Виллози, Ленобласть. 14/09/2022-21/09/2022
C148: =IF(C147="","",VLOOKUP(C147,Рейтинг!C$10:I$493,2,FALSE)) -> М | F148: =IFERROR(IF($B$48=1,LARGE(OFFSET(Рейтинг!$L$9:$ED$9,D147,,),2),SMALL(OFFSET(Рейтинг!$L$9:$ED$9,D147,,),2)),"") -> 22.03313266 | G148: =IF(F148="","",IFERROR(MATCH(F148,OFFSET(Рейтинг!$P$9:$ED$9,D147,,),0),"")) -> 22 | H148: =IFERROR(IF(F148=0,"",INDEX(Рейтинг!P$6:ED$6,,G148)),"") -> Кубок России п.Ува Удмуртская республика 10.06.2022 - 14.06.2022
C149: =IF(C147="","",VLOOKUP(C147,Рейтинг!C$10:I$493,4,FALSE)) -> Россия | F149: =IFERROR(IF($B$48=1,LARGE(OFFSET(Рейтинг!$L$9:$ED$9,D147,,),3),SMALL(OFFSET(Рейтинг!$L$9:$ED$9,D147,,),3)),"") -> 8.781257507 | G149: =IF(F149="","",IFERROR(MATCH(F149,OFFSET(Рейтинг!$P$9:$ED$9,D147,,),0),"")) -> 10 | H149: =IFERROR(IF(F149=0,"",INDEX(Рейтинг!P$6:ED$6,,G149)),"") -> Чемпионат ПФО. г.Чебоксары Удмуртская республика. 18.06.2021-20.06.2021
C150: =IF(C147="","",VLOOKUP(C147,Рейтинг!C$10:I$493,6,FALSE)) -> Удмуртская республика | F150: =IFERROR(IF($B$48=1,LARGE(OFFSET(Рейтинг!$L$9:$ED$9,D147,,),4),SMALL(OFFSET(Рейтинг!$L$9:$ED$9,D147,,),4)),"") -> 0 | G150: =IF(F150="","",IFERROR(MATCH(F150,OFFSET(Рейтинг!$P$9:$ED$9,D147,,),0),"")) ->  | H150: =IFERROR(IF(F150=0,"",INDEX(Рейтинг!P$6:ED$6,,G150)),"") -> 
A151: =A147+1 -> 26 | B151: =IFERROR(RANK(SMALL(Рейтинг!B$10:B$492,A151),Рейтинг!B$10:B$492,1),"") -> 26 | C151: =IF(B151="","",VLOOKUP(A151,Рейтинг!A$10:C$493,3,FALSE)) -> Земеров Константин | D151: =MATCH(C151,Рейтинг!C$10:C$493,0) -> 26 | E151: =IFERROR(IF($B$48=1,SUM(F151:F154),IF($B$48=2,VLOOKUP(C151,Рейтинг!C$10:K$493,9,FALSE),"")),"") -> 71.51090949 | F151: =IFERROR(IF($B$48=1,LARGE(OFFSET(Рейтинг!$L$9:$ED$9,D151,,),1),SMALL(OFFSET(Рейтинг!$L$9:$ED$9,D151,,),1)),"") -> 24.19191026 | G151: =IF(F151="","",IFERROR(MATCH(F151,OFFSET(Рейтинг!$P$9:$ED$9,D151,,),0),"")) -> 30 | H151: =IFERROR(IF(F151=0,"",INDEX(Рейтинг!P$6:ED$6,,G151)),"") -> МРС Кубок Солоновки. Алтайский край. 23/09/2022-26/09/2022
C152: =IF(C151="","",VLOOKUP(C151,Рейтинг!C$10:I$493,2,FALSE)) -> М | F152: =IFERROR(IF($B$48=1,LARGE(OFFSET(Рейтинг!$L$9:$ED$9,D151,,),2),SMALL(OFFSET(Рейтинг!$L$9:$ED$9,D151,,),2)),"") -> 17.47324842 | G152: =IF(F152="","",IFERROR(MATCH(F152,OFFSET(Рейтинг!$P$9:$ED$9,D151,,),0),"")) -> 12 | H152: =IFERROR(IF(F152=0,"",INDEX(Рейтинг!P$6:ED$6,,G152)),"") -> Всероссийские соревнования. с.Солоновка Алтайский край 25/06/2021-27/06/2021
C153: =IF(C151="","",VLOOKUP(C151,Рейтинг!C$10:I$493,4,FALSE)) -> Россия | F153: =IFERROR(IF($B$48=1,LARGE(OFFSET(Рейтинг!$L$9:$ED$9,D151,,),3),SMALL(OFFSET(Рейтинг!$L$9:$ED$9,D151,,),3)),"") -> 16.88784377 | G153: =IF(F153="","",IFERROR(MATCH(F153,OFFSET(Рейтинг!$P$9:$ED$9,D151,,),0),"")) -> 21 | H153: =IFERROR(IF(F153=0,"",INDEX(Рейтинг!P$6:ED$6,,G153)),"") -> Межрегиональные соревнования. с.Солоновка Алтайский край.30.04.2022-02.05.2022
C154: =IF(C151="","",VLOOKUP(C151,Рейтинг!C$10:I$493,6,FALSE)) -> Алтайский край | F154: =IFERROR(IF($B$48=1,LARGE(OFFSET(Рейтинг!$L$9:$ED$9,D151,,),4),SMALL(OFFSET(Рейтинг!$L$9:$ED$9,D151,,),4)),"") -> 12.95790704 | G154: =IF(F154="","",IFERROR(MATCH(F154,OFFSET(Рейтинг!$P$9:$ED$9,D151,,),0),"")) -> 23 | H154: =IFERROR(IF(F154=0,"",INDEX(Рейтинг!P$6:ED$6,,G154)),"") -> Всероссийские соревнования. с.Солоновка Алтайский край 17/06/2022-20/06/2022
A155: =A151+1 -> 27 | B155: =IFERROR(RANK(SMALL(Рейтинг!B$10:B$492,A155),Рейтинг!B$10:B$492,1),"") -> 27 | C155: =IF(B155="","",VLOOKUP(A155,Рейтинг!A$10:C$493,3,FALSE)) -> Гордеев Дмитрий | D155: =MATCH(C155,Рейтинг!C$10:C$493,0) -> 27 | E155: =IFERROR(IF($B$48=1,SUM(F155:F158),IF($B$48=2,VLOOKUP(C155,Рейтинг!C$10:K$493,9,FALSE),"")),"") -> 69.37947515 | F155: =IFERROR(IF($B$48=1,LARGE(OFFSET(Рейтинг!$L$9:$ED$9,D155,,),1),SMALL(OFFSET(Рейтинг!$L$9:$ED$9,D155,,),1)),"") -> 30.27100811 | G155: =IF(F155="","",IFERROR(MATCH(F155,OFFSET(Рейтинг!$P$9:$ED$9,D155,,),0),"")) -> 20 | H155: =IFERROR(IF(F155=0,"",INDEX(Рейтинг!P$6:ED$6,,G155)),"") -> ЧСЗФО, "SkyStream Accuracy Cup" п.Володарское, Ленобласть. 29/04/2022-04/05/2022
C156: =IF(C155="","",VLOOKUP(C155,Рейтинг!C$10:I$493,2,FALSE)) -> М | F156: =IFERROR(IF($B$48=1,LARGE(OFFSET(Рейтинг!$L$9:$ED$9,D155,,),2),SMALL(OFFSET(Рейтинг!$L$9:$ED$9,D155,,),2)),"") -> 15.6956061 | G156: =IF(F156="","",IFERROR(MATCH(F156,OFFSET(Рейтинг!$P$9:$ED$9,D155,,),0),"")) -> 29 | H156: =IFERROR(IF(F156=0,"",INDEX(Рейтинг!P$6:ED$6,,G156)),"") -> Чемпионат России, Кубок Дружбы. Виллози, Ленобласть. 14/09/2022-21/09/2022
C157: =IF(C155="","",VLOOKUP(C155,Рейтинг!C$10:I$493,4,FALSE)) -> Россия | F157: =IFERROR(IF($B$48=1,LARGE(OFFSET(Рейтинг!$L$9:$ED$9,D155,,),3),SMALL(OFFSET(Рейтинг!$L$9:$ED$9,D155,,),3)),"") -> 14.84438428 | G157: =IF(F157="","",IFERROR(MATCH(F157,OFFSET(Рейтинг!$P$9:$ED$9,D155,,),0),"")) -> 28 | H157: =IFERROR(IF(F157=0,"",INDEX(Рейтинг!P$6:ED$6,,G157)),"") -> Золотая Мишенька. Клубные, п.Ущевицы, Ленинградская обл. 10/09/2022
C158: =IF(C155="","",VLOOKUP(C155,Рейтинг!C$10:I$493,6,FALSE)) -> Ленинградская область | F158: =IFERROR(IF($B$48=1,LARGE(OFFSET(Рейтинг!$L$9:$ED$9,D155,,),4),SMALL(OFFSET(Рейтинг!$L$9:$ED$9,D155,,),4)),"") -> 8.568476658 | G158: =IF(F158="","",IFERROR(MATCH(F158,OFFSET(Рейтинг!$P$9:$ED$9,D155,,),0),"")) -> 9 | H158: =IFERROR(IF(F158=0,"",INDEX(Рейтинг!P$6:ED$6,,G158)),"") -> ВС. "SkyStream Accuracy Cup" п.Володарское, Ленинградская обл. 11/06/2021-17/06/2021
A159: =A155+1 -> 28 | B159: =IFERROR(RANK(SMALL(Рейтинг!B$10:B$492,A159),Рейтинг!B$10:B$492,1),"") -> 28 | C159: =IF(B159="","",VLOOKUP(A159,Рейтинг!A$10:C$493,3,FALSE)) -> Козинцев Михаил | D159: =MATCH(C159,Рейтинг!C$10:C$493,0) -> 28 | E159: =IFERROR(IF($B$48=1,SUM(F159:F162),IF($B$48=2,VLOOKUP(C159,Рейтинг!C$10:K$493,9,FALSE),"")),"") -> 69.01037285 | F159: =IFERROR(IF($B$48=1,LARGE(OFFSET(Рейтинг!$L$9:$ED$9,D159,,),1),SMALL(OFFSET(Рейтинг!$L$9:$ED$9,D159,,),1)),"") -> 29.79272763 | G159: =IF(F159="","",IFERROR(MATCH(F159,OFFSET(Рейтинг!$P$9:$ED$9,D159,,),0),"")) -> 29 | H159: =IFERROR(IF(F159=0,"",INDEX(Рейтинг!P$6:ED$6,,G159)),"") -> Чемпионат России, Кубок Дружбы. Виллози, Ленобласть. 14/09/2022-21/09/2022
C160: =IF(C159="","",VLOOKUP(C159,Рейтинг!C$10:I$493,2,FALSE)) -> М | F160: =IFERROR(IF($B$48=1,LARGE(OFFSET(Рейтинг!$L$9:$ED$9,D159,,),2),SMALL(OFFSET(Рейтинг!$L$9:$ED$9,D159,,),2)),"") -> 23.45787222 | G160: =IF(F160="","",IFERROR(MATCH(F160,OFFSET(Рейтинг!$P$9:$ED$9,D159,,),0),"")) -> 20 | H160: =IFERROR(IF(F160=0,"",INDEX(Рейтинг!P$6:ED$6,,G160)),"") -> ЧСЗФО, "SkyStream Accuracy Cup" п.Володарское, Ленобласть. 29/04/2022-04/05/2022
C161: =IF(C159="","",VLOOKUP(C159,Рейтинг!C$10:I$493,4,FALSE)) -> Россия | F161: =IFERROR(IF($B$48=1,LARGE(OFFSET(Рейтинг!$L$9:$ED$9,D159,,),3),SMALL(OFFSET(Рейтинг!$L$9:$ED$9,D159,,),3)),"") -> 13.81778799 | G161: =IF(F161="","",IFERROR(MATCH(F161,OFFSET(Рейтинг!$P$9:$ED$9,D159,,),0),"")) -> 9 | H161: =IFERROR(IF(F161=0,"",INDEX(Рейтинг!P$6:ED$6,,G161)),"") -> ВС. "SkyStream Accuracy Cup" п.Володарское, Ленинградская обл. 11/06/2021-17/06/2021
C162: =IF(C159="","",VLOOKUP(C159,Рейтинг!C$10:I$493,6,FALSE)) -> Ленинградская область | F162: =IFERROR(IF($B$48=1,LARGE(OFFSET(Рейтинг!$L$9:$ED$9,D159,,),4),SMALL(OFFSET(Рейтинг!$L$9:$ED$9,D159,,),4)),"") -> 1.941985022 | G162: =IF(F162="","",IFERROR(MATCH(F162,OFFSET(Рейтинг!$P$9:$ED$9,D159,,),0),"")) -> 6 | H162: =IFERROR(IF(F162=0,"",INDEX(Рейтинг!P$6:ED$6,,G162)),"") -> Областные соревнования. WinterCup 2021. п.Виллози, Ленинградская обл. 23.01.2021
A163: =A159+1 -> 29 | B163: =IFERROR(RANK(SMALL(Рейтинг!B$10:B$492,A163),Рейтинг!B$10:B$492,1),"") -> 29 | C163: =IF(B163="","",VLOOKUP(A163,Рейтинг!A$10:C$493,3,FALSE)) -> Рудаков Алексей | D163: =MATCH(C163,Рейтинг!C$10:C$493,0) -> 29 | E163: =IFERROR(IF($B$48=1,SUM(F163:F166),IF($B$48=2,VLOOKUP(C163,Рейтинг!C$10:K$493,9,FALSE),"")),"") -> 68.14373033 | F163: =IFERROR(IF($B$48=1,LARGE(OFFSET(Рейтинг!$L$9:$ED$9,D163,,),1),SMALL(OFFSET(Рейтинг!$L$9:$ED$9,D163,,),1)),"") -> 27.78756633 | G163: =IF(F163="","",IFERROR(MATCH(F163,OFFSET(Рейтинг!$P$9:$ED$9,D163,,),0),"")) -> 29 | H163: =IFERROR(IF(F163=0,"",INDEX(Рейтинг!P$6:ED$6,,G163)),"") -> Чемпионат России, Кубок Дружбы. Виллози, Ленобласть. 14/09/2022-21/09/2022
C164: =IF(C163="","",VLOOKUP(C163,Рейтинг!C$10:I$493,2,FALSE)) -> М | F164: =IFERROR(IF($B$48=1,LARGE(OFFSET(Рейтинг!$L$9:$ED$9,D163,,),2),SMALL(OFFSET(Рейтинг!$L$9:$ED$9,D163,,),2)),"") -> 21.28898368 | G164: =IF(F164="","",IFERROR(MATCH(F164,OFFSET(Рейтинг!$P$9:$ED$9,D163,,),0),"")) -> 17 | H164: =IFERROR(IF(F164=0,"",INDEX(Рейтинг!P$6:ED$6,,G164)),"") -> Чемпионат Беларуси 2021. с.Зябровка Гомельская обл. 30/10/2021-31/10/2021
C165: =IF(C163="","",VLOOKUP(C163,Рейтинг!C$10:I$493,4,FALSE)) -> Россия | F165: =IFERROR(IF($B$48=1,LARGE(OFFSET(Рейтинг!$L$9:$ED$9,D163,,),3),SMALL(OFFSET(Рейтинг!$L$9:$ED$9,D163,,),3)),"") -> 9.646087014 | G165: =IF(F165="","",IFERROR(MATCH(F165,OFFSET(Рейтинг!$P$9:$ED$9,D163,,),0),"")) -> 19 | H165: =IFERROR(IF(F165=0,"",INDEX(Рейтинг!P$6:ED$6,,G165)),"") -> Любительские соревнования "Серебряная Мишенька" 23/02/2022
C166: =IF(C163="","",VLOOKUP(C163,Рейтинг!C$10:I$493,6,FALSE)) -> Калининградская область | F166: =IFERROR(IF($B$48=1,LARGE(OFFSET(Рейтинг!$L$9:$ED$9,D163,,),4),SMALL(OFFSET(Рейтинг!$L$9:$ED$9,D163,,),4)),"") -> 9.421093302 | G166: =IF(F166="","",IFERROR(MATCH(F166,OFFSET(Рейтинг!$P$9:$ED$9,D163,,),0),"")) -> 24 | H166: =IFERROR(IF(F166=0,"",INDEX(Рейтинг!P$6:ED$6,,G166)),"") -> Кубок Санкт-Петербурга, МП-5, п.Ущевицы Ленинградская обл. 02/07/2022
A167: =A163+1 -> 30 | B167: =IFERROR(RANK(SMALL(Рейтинг!B$10:B$492,A167),Рейтинг!B$10:B$492,1),"") -> 30 | C167: =IF(B167="","",VLOOKUP(A167,Рейтинг!A$10:C$493,3,FALSE)) -> Михеев Сергей | D167: =MATCH(C167,Рейтинг!C$10:C$493,0) -> 30 | E167: =IFERROR(IF($B$48=1,SUM(F167:F170),IF($B$48=2,VLOOKUP(C167,Рейтинг!C$10:K$493,9,FALSE),"")),"") -> 66.42185031 | F167: =IFERROR(IF($B$48=1,LARGE(OFFSET(Рейтинг!$L$9:$ED$9,D167,,),1),SMALL(OFFSET(Рейтинг!$L$9:$ED$9,D167,,),1)),"") -> 65.12978462 | G167: =IF(F167="","",IFERROR(MATCH(F167,OFFSET(Рейтинг!$P$9:$ED$9,D167,,),0),"")) -> 29 | H167: =IFERROR(IF(F167=0,"",INDEX(Рейтинг!P$6:ED$6,,G167)),"") -> Чемпионат России, Кубок Дружбы. Виллози, Ленобласть. 14/09/2022-21/09/2022
C168: =IF(C167="","",VLOOKUP(C167,Рейтинг!C$10:I$493,2,FALSE)) -> М | F168: =IFERROR(IF($B$48=1,LARGE(OFFSET(Рейтинг!$L$9:$ED$9,D167,,),2),SMALL(OFFSET(Рейтинг!$L$9:$ED$9,D167,,),2)),"") -> 1.292065694 | G168: =IF(F168="","",IFERROR(MATCH(F168,OFFSET(Рейтинг!$P$9:$ED$9,D167,,),0),"")) -> 3 | H168: =IFERROR(IF(F168=0,"",INDEX(Рейтинг!P$6:ED$6,,G168)),"") -> ВС "Кубок Солоновки" с.Солоновка Алтайский край 01/10/2020-04/10/2020
C169: =IF(C167="","",VLOOKUP(C167,Рейтинг!C$10:I$493,4,FALSE)) -> Россия | F169: =IFERROR(IF($B$48=1,LARGE(OFFSET(Рейтинг!$L$9:$ED$9,D167,,),3),SMALL(OFFSET(Рейтинг!$L$9:$ED$9,D167,,),3)),"") -> 0 | G169: =IF(F169="","",IFERROR(MATCH(F169,OFFSET(Рейтинг!$P$9:$ED$9,D167,,),0),"")) ->  | H169: =IFERROR(IF(F169=0,"",INDEX(Рейтинг!P$6:ED$6,,G169)),"") -> 
C170: =IF(C167="","",VLOOKUP(C167,Рейтинг!C$10:I$493,6,FALSE)) -> Новосибирская область | F170: =IFERROR(IF($B$48=1,LARGE(OFFSET(Рейтинг!$L$9:$ED$9,D167,,),4),SMALL(OFFSET(Рейтинг!$L$9:$ED$9,D167,,),4)),"") -> 0 | G170: =IF(F170="","",IFERROR(MATCH(F170,OFFSET(Рейтинг!$P$9:$ED$9,D167,,),0),"")) ->  | H170: =IFERROR(IF(F170=0,"",INDEX(Рейтинг!P$6:ED$6,,G170)),"") -> 
A171: =A167+1 -> 31 | B171: =IFERROR(RANK(SMALL(Рейтинг!B$10:B$492,A171),Рейтинг!B$10:B$492,1),"") -> 31 | C171: =IF(B171="","",VLOOKUP(A171,Рейтинг!A$10:C$493,3,FALSE)) -> Самохина Анастасия | D171: =MATCH(C171,Рейтинг!C$10:C$493,0) -> 31 | E171: =IFERROR(IF($B$48=1,SUM(F171:F174),IF($B$48=2,VLOOKUP(C171,Рейтинг!C$10:K$493,9,FALSE),"")),"") -> 65.15509107 | F171: =IFERROR(IF($B$48=1,LARGE(OFFSET(Рейтинг!$L$9:$ED$9,D171,,),1),SMALL(OFFSET(Рейтинг!$L$9:$ED$9,D171,,),1)),"") -> 24.24954972 | G171: =IF(F171="","",IFERROR(MATCH(F171,OFFSET(Рейтинг!$P$9:$ED$9,D171,,),0),"")) -> 15 | H171: =IFERROR(IF(F171=0,"",INDEX(Рейтинг!P$6:ED$6,,G171)),"") -> Чемпионат России п.Виллози Ленинградская обл. 02/09/2021-13/09/2021
C172: =IF(C171="","",VLOOKUP(C171,Рейтинг!C$10:I$493,2,FALSE)) -> Ж | F172: =IFERROR(IF($B$48=1,LARGE(OFFSET(Рейтинг!$L$9:$ED$9,D171,,),2),SMALL(OFFSET(Рейтинг!$L$9:$ED$9,D171,,),2)),"") -> 14.79199923 | G172: =IF(F172="","",IFERROR(MATCH(F172,OFFSET(Рейтинг!$P$9:$ED$9,D171,,),0),"")) -> 24 | H172: =IFERROR(IF(F172=0,"",INDEX(Рейтинг!P$6:ED$6,,G172)),"") -> Кубок Санкт-Петербурга, МП-5, п.Ущевицы Ленинградская обл. 02/07/2022
C173: =IF(C171="","",VLOOKUP(C171,Рейтинг!C$10:I$493,4,FALSE)) -> Россия | F173: =IFERROR(IF($B$48=1,LARGE(OFFSET(Рейтинг!$L$9:$ED$9,D171,,),3),SMALL(OFFSET(Рейтинг!$L$9:$ED$9,D171,,),3)),"") -> 13.72350502 | G173: =IF(F173="","",IFERROR(MATCH(F173,OFFSET(Рейтинг!$P$9:$ED$9,D171,,),0),"")) -> 19 | H173: =IFERROR(IF(F173=0,"",INDEX(Рейтинг!P$6:ED$6,,G173)),"") -> Любительские соревнования "Серебряная Мишенька" 23/02/2022
C174: =IF(C171="","",VLOOKUP(C171,Рейтинг!C$10:I$493,6,FALSE)) -> Ленинградская область | F174: =IFERROR(IF($B$48=1,LARGE(OFFSET(Рейтинг!$L$9:$ED$9,D171,,),4),SMALL(OFFSET(Рейтинг!$L$9:$ED$9,D171,,),4)),"") -> 12.3900371 | G174: =IF(F174="","",IFERROR(MATCH(F174,OFFSET(Рейтинг!$P$9:$ED$9,D171,,),0),"")) -> 25 | H174: =IFERROR(IF(F174=0,"",INDEX(Рейтинг!P$6:ED$6,,G174)),"") -> Кубок Республики Карелия п.Эссойла респ. Карелия. 23/07/2022
A175: =A171+1 -> 32 | B175: =IFERROR(RANK(SMALL(Рейтинг!B$10:B$492,A175),Рейтинг!B$10:B$492,1),"") -> 32 | C175: =IF(B175="","",VLOOKUP(A175,Рейтинг!A$10:C$493,3,FALSE)) -> Плешаков Константин | D175: =MATCH(C175,Рейтинг!C$10:C$493,0) -> 32 | E175: =IFERROR(IF($B$48=1,SUM(F175:F178),IF($B$48=2,VLOOKUP(C175,Рейтинг!C$10:K$493,9,FALSE),"")),"") -> 63.91588365 | F175: =IFERROR(IF($B$48=1,LARGE(OFFSET(Рейтинг!$L$9:$ED$9,D175,,),1),SMALL(OFFSET(Рейтинг!$L$9:$ED$9,D175,,),1)),"") -> 62.15684368 | G175: =IF(F175="","",IFERROR(MATCH(F175,OFFSET(Рейтинг!$P$9:$ED$9,D175,,),0),"")) -> 29 | H175: =IFERROR(IF(F175=0,"",INDEX(Рейтинг!P$6:ED$6,,G175)),"") -> Чемпионат России, Кубок Дружбы. Виллози, Ленобласть. 14/09/2022-21/09/2022
C176: =IF(C175="","",VLOOKUP(C175,Рейтинг!C$10:I$493,2,FALSE)) -> М | F176: =IFERROR(IF($B$48=1,LARGE(OFFSET(Рейтинг!$L$9:$ED$9,D175,,),2),SMALL(OFFSET(Рейтинг!$L$9:$ED$9,D175,,),2)),"") -> 1.759039963 | G176: =IF(F176="","",IFERROR(MATCH(F176,OFFSET(Рейтинг!$P$9:$ED$9,D175,,),0),"")) -> 4 | H176: =IFERROR(IF(F176=0,"",INDEX(Рейтинг!P$6:ED$6,,G176)),"") -> Кубок России п.Виллози Ленинградская обл. 08/10/2020-12/10/2020
C177: =IF(C175="","",VLOOKUP(C175,Рейтинг!C$10:I$493,4,FALSE)) -> Россия | F177: =IFERROR(IF($B$48=1,LARGE(OFFSET(Рейтинг!$L$9:$ED$9,D175,,),3),SMALL(OFFSET(Рейтинг!$L$9:$ED$9,D175,,),3)),"") -> 0 | G177: =IF(F177="","",IFERROR(MATCH(F177,OFFSET(Рейтинг!$P$9:$ED$9,D175,,),0),"")) ->  | H177: =IFERROR(IF(F177=0,"",INDEX(Рейтинг!P$6:ED$6,,G177)),"") -> 
C178: =IF(C175="","",VLOOKUP(C175,Рейтинг!C$10:I$493,6,FALSE)) -> Калининградская область | F178: =IFERROR(IF($B$48=1,LARGE(OFFSET(Рейтинг!$L$9:$ED$9,D175,,),4),SMALL(OFFSET(Рейтинг!$L$9:$ED$9,D175,,),4)),"") -> 0 | G178: =IF(F178="","",IFERROR(MATCH(F178,OFFSET(Рейтинг!$P$9:$ED$9,D175,,),0),"")) ->  | H178: =IFERROR(IF(F178=0,"",INDEX(Рейтинг!P$6:ED$6,,G178)),"") -> 
A179: =A175+1 -> 33 | B179: =IFERROR(RANK(SMALL(Рейтинг!B$10:B$492,A179),Рейтинг!B$10:B$492,1),"") -> 33 | C179: =IF(B179="","",VLOOKUP(A179,Рейтинг!A$10:C$493,3,FALSE)) -> Томашевич Андрей | D179: =MATCH(C179,Рейтинг!C$10:C$493,0) -> 33 | E179: =IFERROR(IF($B$48=1,SUM(F179:F182),IF($B$48=2,VLOOKUP(C179,Рейтинг!C$10:K$493,9,FALSE),"")),"") -> 53.62576779 | F179: =IFERROR(IF($B$48=1,LARGE(OFFSET(Рейтинг!$L$9:$ED$9,D179,,),1),SMALL(OFFSET(Рейтинг!$L$9:$ED$9,D179,,),1)),"") -> 18.78320181 | G179: =IF(F179="","",IFERROR(MATCH(F179,OFFSET(Рейтинг!$P$9:$ED$9,D179,,),0),"")) -> 15 | H179: =IFERROR(IF(F179=0,"",INDEX(Рейтинг!P$6:ED$6,,G179)),"") -> Чемпионат России п.Виллози Ленинградская обл. 02/09/2021-13/09/2021
C180: =IF(C179="","",VLOOKUP(C179,Рейтинг!C$10:I$493,2,FALSE)) -> М | F180: =IFERROR(IF($B$48=1,LARGE(OFFSET(Рейтинг!$L$9:$ED$9,D179,,),2),SMALL(OFFSET(Рейтинг!$L$9:$ED$9,D179,,),2)),"") -> 13.58178966 | G180: =IF(F180="","",IFERROR(MATCH(F180,OFFSET(Рейтинг!$P$9:$ED$9,D179,,),0),"")) -> 20 | H180: =IFERROR(IF(F180=0,"",INDEX(Рейтинг!P$6:ED$6,,G180)),"") -> ЧСЗФО, "SkyStream Accuracy Cup" п.Володарское, Ленобласть. 29/04/2022-04/05/2022
C181: =IF(C179="","",VLOOKUP(C179,Рейтинг!C$10:I$493,4,FALSE)) -> Россия | F181: =IFERROR(IF($B$48=1,LARGE(OFFSET(Рейтинг!$L$9:$ED$9,D179,,),3),SMALL(OFFSET(Рейтинг!$L$9:$ED$9,D179,,),3)),"") -> 11.06900252 | G181: =IF(F181="","",IFERROR(MATCH(F181,OFFSET(Рейтинг!$P$9:$ED$9,D179,,),0),"")) -> 9 | H181: =IFERROR(IF(F181=0,"",INDEX(Рейтинг!P$6:ED$6,,G181)),"") -> ВС. "SkyStream Accuracy Cup" п.Володарское, Ленинградская обл. 11/06/2021-17/06/2021
C182: =IF(C179="","",VLOOKUP(C179,Рейтинг!C$10:I$493,6,FALSE)) -> г.Санкт-Петербург | F182: =IFERROR(IF($B$48=1,LARGE(OFFSET(Рейтинг!$L$9:$ED$9,D179,,),4),SMALL(OFFSET(Рейтинг!$L$9:$ED$9,D179,,),4)),"") -> 10.1917738 | G182: =IF(F182="","",IFERROR(MATCH(F182,OFFSET(Рейтинг!$P$9:$ED$9,D179,,),0),"")) -> 27 | H182: =IFERROR(IF(F182=0,"",INDEX(Рейтинг!P$6:ED$6,,G182)),"") -> Мастер посадки - 6. Клубные, п.Лесное, Ленинградская обл. 20/08/2022
A183: =A179+1 -> 34 | B183: =IFERROR(RANK(SMALL(Рейтинг!B$10:B$492,A183),Рейтинг!B$10:B$492,1),"") -> 34 | C183: =IF(B183="","",VLOOKUP(A183,Рейтинг!A$10:C$493,3,FALSE)) -> Ивашин Матвей | D183: =MATCH(C183,Рейтинг!C$10:C$493,0) -> 34 | E183: =IFERROR(IF($B$48=1,SUM(F183:F186),IF($B$48=2,VLOOKUP(C183,Рейтинг!C$10:K$493,9,FALSE),"")),"") -> 51.70992349 | F183: =IFERROR(IF($B$48=1,LARGE(OFFSET(Рейтинг!$L$9:$ED$9,D183,,),1),SMALL(OFFSET(Рейтинг!$L$9:$ED$9,D183,,),1)),"") -> 36.22401358 | G183: =IF(F183="","",IFERROR(MATCH(F183,OFFSET(Рейтинг!$P$9:$ED$9,D183,,),0),"")) -> 29 | H183: =IFERROR(IF(F183=0,"",INDEX(Рейтинг!P$6:ED$6,,G183)),"") -> Чемпионат России, Кубок Дружбы. Виллози, Ленобласть. 14/09/2022-21/09/2022
C184: =IF(C183="","",VLOOKUP(C183,Рейтинг!C$10:I$493,2,FALSE)) -> М | F184: =IFERROR(IF($B$48=1,LARGE(OFFSET(Рейтинг!$L$9:$ED$9,D183,,),2),SMALL(OFFSET(Рейтинг!$L$9:$ED$9,D183,,),2)),"") -> 15.39916074 | G184: =IF(F184="","",IFERROR(MATCH(F184,OFFSET(Рейтинг!$P$9:$ED$9,D183,,),0),"")) -> 20 | H184: =IFERROR(IF(F184=0,"",INDEX(Рейтинг!P$6:ED$6,,G184)),"") -> ЧСЗФО, "SkyStream Accuracy Cup" п.Володарское, Ленобласть. 29/04/2022-04/05/2022
C185: =IF(C183="","",VLOOKUP(C183,Рейтинг!C$10:I$493,4,FALSE)) -> Россия | F185: =IFERROR(IF($B$48=1,LARGE(OFFSET(Рейтинг!$L$9:$ED$9,D183,,),3),SMALL(OFFSET(Рейтинг!$L$9:$ED$9,D183,,),3)),"") -> 0.08674917204 | G185: =IF(F185="","",IFERROR(MATCH(F185,OFFSET(Рейтинг!$P$9:$ED$9,D183,,),0),"")) -> 4 | H185: =IFERROR(IF(F185=0,"",INDEX(Рейтинг!P$6:ED$6,,G185)),"") -> Кубок России п.Виллози Ленинградская обл. 08/10/2020-12/10/2020
C186: =IF(C183="","",VLOOKUP(C183,Рейтинг!C$10:I$493,6,FALSE)) -> Ленинградская область | F186: =IFERROR(IF($B$48=1,LARGE(OFFSET(Рейтинг!$L$9:$ED$9,D183,,),4),SMALL(OFFSET(Рейтинг!$L$9:$ED$9,D183,,),4)),"") -> 0 | G186: =IF(F186="","",IFERROR(MATCH(F186,OFFSET(Рейтинг!$P$9:$ED$9,D183,,),0),"")) ->  | H186: =IFERROR(IF(F186=0,"",INDEX(Рейтинг!P$6:ED$6,,G186)),"") -> 
A187: =A183+1 -> 35 | B187: =IFERROR(RANK(SMALL(Рейтинг!B$10:B$492,A187),Рейтинг!B$10:B$492,1),"") -> 35 | C187: =IF(B187="","",VLOOKUP(A187,Рейтинг!A$10:C$493,3,FALSE)) -> Степанов Дмитрий | D187: =MATCH(C187,Рейтинг!C$10:C$493,0) -> 35 | E187: =IFERROR(IF($B$48=1,SUM(F187:F190),IF($B$48=2,VLOOKUP(C187,Рейтинг!C$10:K$493,9,FALSE),"")),"") -> 51.39260514 | F187: =IFERROR(IF($B$48=1,LARGE(OFFSET(Рейтинг!$L$9:$ED$9,D187,,),1),SMALL(OFFSET(Рейтинг!$L$9:$ED$9,D187,,),1)),"") -> 16.64521647 | G187: =IF(F187="","",IFERROR(MATCH(F187,OFFSET(Рейтинг!$P$9:$ED$9,D187,,),0),"")) -> 18 | H187: =IFERROR(IF(F187=0,"",INDEX(Рейтинг!P$6:ED$6,,G187)),"") -> Чемпионат СФО с.Голубцово Заринский р-н Алтайский край 19/02/2022-23/02/2022
C188: =IF(C187="","",VLOOKUP(C187,Рейтинг!C$10:I$493,2,FALSE)) -> М | F188: =IFERROR(IF($B$48=1,LARGE(OFFSET(Рейтинг!$L$9:$ED$9,D187,,),2),SMALL(OFFSET(Рейтинг!$L$9:$ED$9,D187,,),2)),"") -> 14.002488 | G188: =IF(F188="","",IFERROR(MATCH(F188,OFFSET(Рейтинг!$P$9:$ED$9,D187,,),0),"")) -> 12 | H188: =IFERROR(IF(F188=0,"",INDEX(Рейтинг!P$6:ED$6,,G188)),"") -> Всероссийские соревнования. с.Солоновка Алтайский край 25/06/2021-27/06/2021
C189: =IF(C187="","",VLOOKUP(C187,Рейтинг!C$10:I$493,4,FALSE)) -> Россия | F189: =IFERROR(IF($B$48=1,LARGE(OFFSET(Рейтинг!$L$9:$ED$9,D187,,),3),SMALL(OFFSET(Рейтинг!$L$9:$ED$9,D187,,),3)),"") -> 10.81444252 | G189: =IF(F189="","",IFERROR(MATCH(F189,OFFSET(Рейтинг!$P$9:$ED$9,D187,,),0),"")) -> 23 | H189: =IFERROR(IF(F189=0,"",INDEX(Рейтинг!P$6:ED$6,,G189)),"") -> Всероссийские соревнования. с.Солоновка Алтайский край 17/06/2022-20/06/2022
C190: =IF(C187="","",VLOOKUP(C187,Рейтинг!C$10:I$493,6,FALSE)) -> Алтайский край | F190: =IFERROR(IF($B$48=1,LARGE(OFFSET(Рейтинг!$L$9:$ED$9,D187,,),4),SMALL(OFFSET(Рейтинг!$L$9:$ED$9,D187,,),4)),"") -> 9.930458148 | G190: =IF(F190="","",IFERROR(MATCH(F190,OFFSET(Рейтинг!$P$9:$ED$9,D187,,),0),"")) -> 30 | H190: =IFERROR(IF(F190=0,"",INDEX(Рейтинг!P$6:ED$6,,G190)),"") -> МРС Кубок Солоновки. Алтайский край. 23/09/2022-26/09/2022
A191: =A187+1 -> 36 | B191: =IFERROR(RANK(SMALL(Рейтинг!B$10:B$492,A191),Рейтинг!B$10:B$492,1),"") -> 36 | C191: =IF(B191="","",VLOOKUP(A191,Рейтинг!A$10:C$493,3,FALSE)) -> Ильясов Идрис | D191: =MATCH(C191,Рейтинг!C$10:C$493,0) -> 36 | E191: =IFERROR(IF($B$48=1,SUM(F191:F194),IF($B$48=2,VLOOKUP(C191,Рейтинг!C$10:K$493,9,FALSE),"")),"") -> 47.52021868 | F191: =IFERROR(IF($B$48=1,LARGE(OFFSET(Рейтинг!$L$9:$ED$9,D191,,),1),SMALL(OFFSET(Рейтинг!$L$9:$ED$9,D191,,),1)),"") -> 39.87006877 | G191: =IF(F191="","",IFERROR(MATCH(F191,OFFSET(Рейтинг!$P$9:$ED$9,D191,,),0),"")) -> 22 | H191: =IFERROR(IF(F191=0,"",INDEX(Рейтинг!P$6:ED$6,,G191)),"") -> Кубок России п.Ува Удмуртская республика 10.06.2022 - 14.06.2022
C192: =IF(C191="","",VLOOKUP(C191,Рейтинг!C$10:I$493,2,FALSE)) -> М | F192: =IFERROR(IF($B$48=1,LARGE(OFFSET(Рейтинг!$L$9:$ED$9,D191,,),2),SMALL(OFFSET(Рейтинг!$L$9:$ED$9,D191,,),2)),"") -> 7.650149912 | G192: =IF(F192="","",IFERROR(MATCH(F192,OFFSET(Рейтинг!$P$9:$ED$9,D191,,),0),"")) -> 10 | H192: =IFERROR(IF(F192=0,"",INDEX(Рейтинг!P$6:ED$6,,G192)),"") -> Чемпионат ПФО. г.Чебоксары Удмуртская республика. 18.06.2021-20.06.2021
C193: =IF(C191="","",VLOOKUP(C191,Рейтинг!C$10:I$493,4,FALSE)) -> Россия | F193: =IFERROR(IF($B$48=1,LARGE(OFFSET(Рейтинг!$L$9:$ED$9,D191,,),3),SMALL(OFFSET(Рейтинг!$L$9:$ED$9,D191,,),3)),"") -> 0 | G193: =IF(F193="","",IFERROR(MATCH(F193,OFFSET(Рейтинг!$P$9:$ED$9,D191,,),0),"")) ->  | H193: =IFERROR(IF(F193=0,"",INDEX(Рейтинг!P$6:ED$6,,G193)),"") -> 
C194: =IF(C191="","",VLOOKUP(C191,Рейтинг!C$10:I$493,6,FALSE)) -> Удмуртская республика | F194: =IFERROR(IF($B$48=1,LARGE(OFFSET(Рейтинг!$L$9:$ED$9,D191,,),4),SMALL(OFFSET(Рейтинг!$L$9:$ED$9,D191,,),4)),"") -> 0 | G194: =IF(F194="","",IFERROR(MATCH(F194,OFFSET(Рейтинг!$P$9:$ED$9,D191,,),0),"")) ->  | H194: =IFERROR(IF(F194=0,"",INDEX(Рейтинг!P$6:ED$6,,G194)),"") -> 
A195: =A191+1 -> 37 | B195: =IFERROR(RANK(SMALL(Рейтинг!B$10:B$492,A195),Рейтинг!B$10:B$492,1),"") -> 37 | C195: =IF(B195="","",VLOOKUP(A195,Рейтинг!A$10:C$493,3,FALSE)) -> Ермакова Ольга | D195: =MATCH(C195,Рейтинг!C$10:C$493,0) -> 37 | E195: =IFERROR(IF($B$48=1,SUM(F195:F198),IF($B$48=2,VLOOKUP(C195,Рейтинг!C$10:K$493,9,FALSE),"")),"") -> 41.56456828 | F195: =IFERROR(IF($B$48=1,LARGE(OFFSET(Рейтинг!$L$9:$ED$9,D195,,),1),SMALL(OFFSET(Рейтинг!$L$9:$ED$9,D195,,),1)),"") -> 18.80287999 | G195: =IF(F195="","",IFERROR(MATCH(F195,OFFSET(Рейтинг!$P$9:$ED$9,D195,,),0),"")) -> 29 | H195: =IFERROR(IF(F195=0,"",INDEX(Рейтинг!P$6:ED$6,,G195)),"") -> Чемпионат России, Кубок Дружбы. Виллози, Ленобласть. 14/09/2022-21/09/2022
C196: =IF(C195="","",VLOOKUP(C195,Рейтинг!C$10:I$493,2,FALSE)) -> Ж | F196: =IFERROR(IF($B$48=1,LARGE(OFFSET(Рейтинг!$L$9:$ED$9,D195,,),2),SMALL(OFFSET(Рейтинг!$L$9:$ED$9,D195,,),2)),"") -> 10.2029435 | G196: =IF(F196="","",IFERROR(MATCH(F196,OFFSET(Рейтинг!$P$9:$ED$9,D195,,),0),"")) -> 20 | H196: =IFERROR(IF(F196=0,"",INDEX(Рейтинг!P$6:ED$6,,G196)),"") -> ЧСЗФО, "SkyStream Accuracy Cup" п.Володарское, Ленобласть. 29/04/2022-04/05/2022
C197: =IF(C195="","",VLOOKUP(C195,Рейтинг!C$10:I$493,4,FALSE)) -> Россия | F197: =IFERROR(IF($B$48=1,LARGE(OFFSET(Рейтинг!$L$9:$ED$9,D195,,),3),SMALL(OFFSET(Рейтинг!$L$9:$ED$9,D195,,),3)),"") -> 7.078339709 | G197: =IF(F197="","",IFERROR(MATCH(F197,OFFSET(Рейтинг!$P$9:$ED$9,D195,,),0),"")) -> 24 | H197: =IFERROR(IF(F197=0,"",INDEX(Рейтинг!P$6:ED$6,,G197)),"") -> Кубок Санкт-Петербурга, МП-5, п.Ущевицы Ленинградская обл. 02/07/2022
C198: =IF(C195="","",VLOOKUP(C195,Рейтинг!C$10:I$493,6,FALSE)) -> Ленинградская область | F198: =IFERROR(IF($B$48=1,LARGE(OFFSET(Рейтинг!$L$9:$ED$9,D195,,),4),SMALL(OFFSET(Рейтинг!$L$9:$ED$9,D195,,),4)),"") -> 5.480405086 | G198: =IF(F198="","",IFERROR(MATCH(F198,OFFSET(Рейтинг!$P$9:$ED$9,D195,,),0),"")) -> 17 | H198: =IFERROR(IF(F198=0,"",INDEX(Рейтинг!P$6:ED$6,,G198)),"") -> Чемпионат Беларуси 2021. с.Зябровка Гомельская обл. 30/10/2021-31/10/2021
A199: =A195+1 -> 38 | B199: =IFERROR(RANK(SMALL(Рейтинг!B$10:B$492,A199),Рейтинг!B$10:B$492,1),"") -> 38 | C199: =IF(B199="","",VLOOKUP(A199,Рейтинг!A$10:C$493,3,FALSE)) -> Ратушин Егор | D199: =MATCH(C199,Рейтинг!C$10:C$493,0) -> 38 | E199: =IFERROR(IF($B$48=1,SUM(F199:F202),IF($B$48=2,VLOOKUP(C199,Рейтинг!C$10:K$493,9,FALSE),"")),"") -> 35.61588814 | F199: =IFERROR(IF($B$48=1,LARGE(OFFSET(Рейтинг!$L$9:$ED$9,D199,,),1),SMALL(OFFSET(Рейтинг!$L$9:$ED$9,D199,,),1)),"") -> 14.03398126 | G199: =IF(F199="","",IFERROR(MATCH(F199,OFFSET(Рейтинг!$P$9:$ED$9,D199,,),0),"")) -> 18 | H199: =IFERROR(IF(F199=0,"",INDEX(Рейтинг!P$6:ED$6,,G199)),"") -> Чемпионат СФО с.Голубцово Заринский р-н Алтайский край 19/02/2022-23/02/2022
C200: =IF(C199="","",VLOOKUP(C199,Рейтинг!C$10:I$493,2,FALSE)) -> М | F200: =IFERROR(IF($B$48=1,LARGE(OFFSET(Рейтинг!$L$9:$ED$9,D199,,),2),SMALL(OFFSET(Рейтинг!$L$9:$ED$9,D199,,),2)),"") -> 12.35726307 | G200: =IF(F200="","",IFERROR(MATCH(F200,OFFSET(Рейтинг!$P$9:$ED$9,D199,,),0),"")) -> 12 | H200: =IFERROR(IF(F200=0,"",INDEX(Рейтинг!P$6:ED$6,,G200)),"") -> Всероссийские соревнования. с.Солоновка Алтайский край 25/06/2021-27/06/2021
C201: =IF(C199="","",VLOOKUP(C199,Рейтинг!C$10:I$493,4,FALSE)) -> Россия | F201: =IFERROR(IF($B$48=1,LARGE(OFFSET(Рейтинг!$L$9:$ED$9,D199,,),3),SMALL(OFFSET(Рейтинг!$L$9:$ED$9,D199,,),3)),"") -> 4.667111082 | G201: =IF(F201="","",IFERROR(MATCH(F201,OFFSET(Рейтинг!$P$9:$ED$9,D199,,),0),"")) -> 30 | H201: =IFERROR(IF(F201=0,"",INDEX(Рейтинг!P$6:ED$6,,G201)),"") -> МРС Кубок Солоновки. Алтайский край. 23/09/2022-26/09/2022
... 1897 more rows

Sheet Рейтинг
P1: =IF(($K9-P9)<0,0,1) -> 1 | Q1: 1 | R1: 1 | S1: 1 | T1: 1 | U1: =IF(($K9-U9)<0,0,1) -> 1 | V1: =IF(($K9-V9)<0,0,1) -> 1 | W1: 1 | X1: 1 | Y1: 1 | Z1: =IF(($K9-Z9)<0,0,1) -> 1 | AA1: 1 | AB1: 1 | AC1: =IF(($K9-AC9)<0,0,1) -> 1 | AD1: 1 | AE1: 1 | AF1: =IF(($K9-AF9)<0,0,1) -> 1 | AG1: 1 | AH1: 1 | AI1: 1 | AJ1: 1 | AK1: 1 | AL1: 1 | AM1: 1 | AN1: 1 | AO1: 1 | AP1: =IF(($K9-AP9)<0,0,1) -> 1 | AQ1: 1 | AR1: 1 | AS1: 1 | AT1: =IF(($K9-AT9)<0,0,1) -> 1
K2: Условие по рангу | P2: =IF(P8=0,0,IF($K8=0,1,IF($K8=P8,1,0))) -> 1 | Q2: 1 | R2: 1 | S2: 1 | T2: =IF(T8=0,0,IF($K8=0,1,IF($K8=T8,1,0))) -> 1 | U2: =IF(U8=0,0,IF($K8=0,1,IF($K8=U8,1,0))) -> 1 | V2: 1 | W2: 1 | X2: 1 | Y2: 1 | Z2: =IF(Z8=0,0,IF($K8=0,1,IF($K8=Z8,1,0))) -> 1 | AA2: 1 | AB2: 1 | AC2: =IF(AC8=0,0,IF($K8=0,1,IF($K8=AC8,1,0))) -> 1 | AD2: 1 | AE2: 1 | AF2: 1 | AG2: 1 | AH2: =IF(AH8=0,0,IF($K8=0,1,IF($K8=AH8,1,0))) -> 1 | AI2: 1 | AJ2: 1 | AK2: =IF(AK8=0,0,IF($K8=0,1,IF($K8=AK8,1,0))) -> 1 | AL2: 1 | AM2: 1 | AN2: 1 | AO2: 1 | AP2: =IF(AP8=0,0,IF($K8=0,1,IF($K8=AP8,1,0))) -> 1 | AQ2: 1 | AR2: 1 | AS2: 1 | AT2: =IF(AT8=0,0,IF($K8=0,1,IF($K8=AT8,1,0))) -> 1
K3: Кд. на дату | P3: =1/(1+2^(($K9-P9)/1096*20-10)) -> 0.0003331418932 | Q3: 0.02746682508 | R3: 0.04583970333 | S3: 0.05047461572 | T3: 0.139264932 | U3: =1/(1+2^(($K9-U9)/1096*20-10)) -> 0.1636005421 | V3: =1/(1+2^(($K9-V9)/1096*20-10)) -> 0.3880889976 | W3: =1/(1+2^(($K9-W9)/1096*20-10)) -> 0.4308777717 | X3: 0.5504227045 | Y3: 0.5597936778 | Z3: =1/(1+2^(($K9-Z9)/1096*20-10)) -> 0.5784019766 | AA3: 0.5814832979 | AB3: 0.6865883935 | AC3: =1/(1+2^(($K9-AC9)/1096*20-10)) -> 0.7358564523 | AD3: 0.7884256778 | AE3: 0.8497788952 | AF3: =1/(1+2^(($K9-AF9)/1096*20-10)) -> 0.8724278666 | AG3: 0.9669841771 | AH3: 0.9669841771 | AI3: 0.986110047 | AJ3: 0.9857592537 | AK3: 0.9916837903 | AL3: 0.9922868819 | AM3: 0.993365885 | AN3: 0.9949055489 | AO3: 0.9952162688 | AP3: =1/(1+2^(($K9-AP9)/1096*20-10)) -> 0.9964194742 | AQ3: 0.9972524128 | AR3: 0.9976084428 | AS3: 0.9977546803 | AT3: =1/(1+2^(($K9-AT9)/1096*20-10)) -> 0.9982334951
K4: Общ.коэф.таблицы | P4: =IF(P7=6,P1*P2*P3,IF(P7=9,IF($K9-P9<365,IF($K9-P9>0,IF(P2=1,1,""),""),""),"")) -> 0.0003331418932 | Q4: 0.02746682508 | R4: 0.04583970333 | S4: 0.05047461572 | T4: =IF(T7=6,T1*T2*T3,IF(T7=9,IF($K9-T9<365,IF($K9-T9>0,IF(T2=1,1,""),""),""),"")) -> 0.139264932 | U4: =IF(U7=6,U1*U2*U3,IF(U7=9,IF($K9-U9<365,IF($K9-U9>0,IF(U2=1,1,""),""),""),"")) -> 0.1636005421 | V4: 0.3880889976 | W4: 0.4308777717 | X4: 0.5504227045 | Y4: 0.5597936778 | Z4: =IF(Z7=6,Z1*Z2*Z3,IF(Z7=9,IF($K9-Z9<365,IF($K9-Z9>0,IF(Z2=1,1,""),""),""),"")) -> 0.5784019766 | AA4: 0.5814832979 | AB4: 0.6865883935 | AC4: =IF(AC7=6,AC1*AC2*AC3,IF(AC7=9,IF($K9-AC9<365,IF($K9-AC9>0,IF(AC2=1,1,""),""),""),"")) -> 0.7358564523 | AD4: 0.7884256778 | AE4: 0.8497788952 | AF4: 0.8724278666 | AG4: 0.9669841771 | AH4: =IF(AH7=6,AH1*AH2*AH3,IF(AH7=9,IF($K9-AH9<365,IF($K9-AH9>0,IF(AH2=1,1,""),""),""),"")) -> 0.9669841771 | AI4: 0.986110047 | AJ4: 0.9857592537 | AK4: =IF(AK7=6,AK1*AK2*AK3,IF(AK7=9,IF($K9-AK9<365,IF($K9-AK9>0,IF(AK2=1,1,""),""),""),"")) -> 0.9916837903 | AL4: 0.9922868819 | AM4: 0.993365885 | AN4: 0.9949055489 | AO4: 0.9952162688 | AP4: =IF(AP7=6,AP1*AP2*AP3,IF(AP7=9,IF($K9-AP9<365,IF($K9-AP9>0,IF(AP2=1,1,""),""),""),"")) -> 0.9964194742 | AQ4: 0.9972524128 | AR4: 0.9976084428 | AS4: 0.9977546803 | AT4: 0.9982334951
B5: Место в рейтинге на | J5: Рейтинг на заданную дату | K5: Рейтинг на дату по условиям | L5: Установочные данные | P5: 2019 год. Даты завершения соревнований | Q5: 2020 год. Даты завершения соревнований | T5: 2021 год. Даты завершения соревнований | AG5: 2022 год. Даты завершения соревнований
A6: N п/п | J6: п.Виллози | K6: Ленинградская | L6: обл. | M6: 02/09/2021-13/09/2021 | P6: ВС. "Кубок Приморские сопки" п.Безверхово Приморский край 06/09/2019-07/09/2019 | Q6: Чемпионат России г.Брянск 17/08/2020-23/08/2020 | R6: ВС "Кубок Солоновки" с.Солоновка Алтайский край 01/10/2020-04/10/2020 | S6: Кубок России п.Виллози Ленинградская обл. 08/10/2020-12/10/2020 | T6: Мастер посадки - 2. Клубные, п.Глухово, Ленинградская обл. 08/01/2021 | U6: Областные соревнования. WinterCup 2021. п.Виллози, Ленинградская обл. 23.01.2021 | V6: Межрегиональные соревнования. Парадром "Южный". КЧР. 23.04.2021-26.04.2021 | W6: Межрегиональные соревнования. с.Солоновка Алтайский край.07.05.2021-10.05.2021 | X6: ВС. "SkyStream Accuracy Cup" п.Володарское, Ленинградская обл. 11/06/2021-17/06/2021 | Y6: Чемпионат ПФО. г.Чебоксары Удмуртская республика. 18.06.2021-20.06.2021 | Z6: Мастер посадки - 3. Клубные, п.Клопицы, Ленинградская обл. 26/06/2021 | AA6: Всероссийские соревнования. с.Солоновка Алтайский край 25/06/2021-27/06/2021 | AB6: Кубок России. г.Калининград 29/07/2021-02/08/2021 | AC6: Мастер посадки - 4. Клубные, п.Углово Ленинградская обл. 21/08/2021 | AD6: Чемпионат России п.Виллози Ленинградская обл. 02/09/2021-13/09/2021 | AE6: Чемпионат Мира г.Прилеп. Македония. 07/10/2021-16/10/2021 | AF6: Чемпионат Беларуси 2021. с.Зябровка Гомельская обл. 30/10/2021-31/10/2021 | AG6: Чемпионат СФО с.Голубцово Заринский р-н Алтайский край 19/02/2022-23/02/2022 | AH6: Любительские соревнования "Серебряная Мишенька" 23/02/2022 | AI6: ЧСЗФО, "SkyStream Accuracy Cup" п.Володарское, Ленобласть. 29/04/2022-04/05/2022 | AJ6: Межрегиональные соревнования. с.Солоновка Алтайский край.30.04.2022-02.05.2022 | AK6: Кубок России п.Ува Удмуртская республика 10.06.2022 - 14.06.2022 | AL6: Всероссийские соревнования. с.Солоновка Алтайский край 17/06/2022-20/06/2022 | AM6: Кубок Санкт-Петербурга, МП-5, п.Ущевицы Ленинградская обл. 02/07/2022 | AN6: Кубок Республики Карелия п.Эссойла респ. Карелия. 23/07/2022 | AO6: Турнир победы. Всероссийское ФМ. Юца, Ставропольский край. 22-28/07/2022 | AP6: Мастер посадки - 6. Клубные, п.Лесное, Ленинградская обл. 20/08/2022 | AQ6: Золотая Мишенька. Клубные, п.Ущевицы, Ленинградская обл. 10/09/2022 | AR6: Чемпионат России, Кубок Дружбы. Виллози, Ленобласть. 14/09/2022-21/09/2022 | AS6: МРС Кубок Солоновки. Алтайский край. 23/09/2022-26/09/2022 | AT6: Чайник CUP. Виллози, Ленобласть. 15/10/2022
H7: Рейтинг(6) или Ср.балл(9) | I7: =IF($K$7=1,6,IF($K$7=2,9,0)) -> 6 | K7: ='Текущий рейтинг'!$B$48 -> 1 | P7: =IF($K$7=1,6,IF($K$7=2,9,0)) -> 6 | Q7: 6 | R7: 6 | S7: 6 | T7: 6 | U7: 6 | V7: 6 | W7: 6 | X7: 6 | Y7: 6 | Z7: 6 | AA7: 6 | AB7: 6 | AC7: 6 | AD7: 6 | AE7: 6 | AF7: 6 | AG7: 6 | AH7: 6 | AI7: 6 | AJ7: 6 | AK7: 6 | AL7: 6 | AM7: 6 | AN7: 6 | AO7: 6 | AP7: 6 | AQ7: 6 | AR7: 6 | AS7: 6 | AT7: 6
H8: Ранг соревнования | K8: ='Текущий рейтинг'!H48-1 -> 0 | P8: 2 | Q8: 2 | R8: 2 | S8: 2 | T8: 4 | U8: 3 | V8: 3 | W8: 3 | X8: 2 | Y8: 3 | Z8: 4 | AA8: 2 | AB8: 2 | AC8: 4 | AD8: 2 | AE8: 1 | AF8: 1 | AG8: 3 | AH8: 4 | AI8: 3 | AJ8: 3 | AK8: 2 | AL8: 2 | AM8: 3 | AN8: 3 | AO8: 2 | AP8: 4 | AQ8: 4 | AR8: 2 | AS8: 3 | AT8: 4
B9: =K9 -> 2022-12-01 | C9: Фамилия Имя | D9: Пол | E9: ='Текущий рейтинг'!F49 ->  | F9: Страна | G9: ='Текущий рейтинг'!E49 -> Россия | H9: Регион | I9: ='Текущий рейтинг'!C49 ->  | J9: =K9 -> 2022-12-01 | K9: ='Текущий рейтинг'!B49 -> 2022-12-01 | L9: 2015-01-01 | M9: 2016-01-01 | N9: 2017-01-01 | O9: 2018-01-01 | P9: 2019-09-07 | Q9: 2020-08-23 | R9: 2020-10-04 | S9: 2020-10-12 | T9: 2021-01-08 | U9: 2021-01-23 | V9: 2021-04-26 | W9: 2021-05-10 | X9: 2021-06-17 | Y9: 2021-06-20 | Z9: 2021-06-26 | AA9: 2021-06-27 | AB9: 2021-08-02 | AC9: 2021-08-21 | AD9: 2021-09-13 | AE9: 2021-10-16 | AF9: 2021-10-31 | AG9: 2022-02-23 | AH9: 2022-02-23 | AI9: 2022-05-04 | AJ9: 2022-05-02 | AK9: 2022-06-14 | AL9: 2022-06-20 | AM9: 2022-07-02 | AN9: 2022-07-23 | AO9: 2022-07-28 | AP9: 2022-08-20 | AQ9: 2022-09-10 | AR9: 2022-09-21 | AS9: 2022-09-26 | AT9: 2022-10-15
A10: =A9+1 -> 1 | B10: =IFERROR(IF(K10=0,"",IF($K$7=1,RANK(K10,K$10:K$510),COUNTIF(K$10:K$510,">0")-RANK(K10,K$10:K$510)+1)),"") -> 1 | C10: Павлушко Константин | D10: М | E10: =IF(E$9="",1,IF(E$9=D10,1,0)) -> 1 | F10: Россия | G10: =IF(G$9="",1,IF(G$9=F10,1,0)) -> 1 | H10: Калининградская область | I10: =IF(I$9="",1,IF(I$9=H10,1,0)) -> 1 | J10: =IFERROR(IF($K$7=1,SUMPRODUCT(LARGE(L10:ED10,{1,2,3,4})),AVERAGE(L10:ED10)),"") -> 272.6146663 | K10: =IFERROR(J10*E10*G10*I10,"") -> 272.6146663 | L10: =IF($K$7=1,0,"") -> 0 | M10: =IF($K$7=1,0,"") -> 0 | N10: =IF($K$7=1,0,"") -> 0 | O10: =IF($K$7=1,0,"") -> 0 | P10: =IFERROR(VLOOKUP($C10,'06,09,19'!$B$5:$J$150,P$7,FALSE)*P$4,"") ->  | Q10: =IFERROR(VLOOKUP($C10,'17,08,20'!$B$5:$J$150,Q$7,FALSE)*Q$4,"") -> 1.779241786 | R10: =IFERROR(VLOOKUP($C10,'01,10,20'!$B$5:$J$150,R$7,FALSE)*R$4,"") ->  | S10: =IFERROR(VLOOKUP($C10,'08,10,20'!$B$5:$J$150,S$7,FALSE)*S$4,"") -> 2.299139047 | T10: =IFERROR(VLOOKUP($C10,'08,01,21'!$B$5:$J$150,T$7,FALSE)*T$4,"") ->  | U10: =IFERROR(VLOOKUP($C10,'23,01,21'!$B$5:$J$150,U$7,FALSE)*U$4,"") -> 5.304485399 | V10: =IFERROR(VLOOKUP($C10,'23,04,21'!$B$5:$J$150,V$7,FALSE)*V$4,"") ->  | W10: =IFERROR(VLOOKUP($C10,'07,05,21'!$B$5:$J$150,W$7,FALSE)*W$4,"") ->  | X10: =IFERROR(VLOOKUP($C10,'11,06,21'!$B$5:$J$150,X$7,FALSE)*X$4,"") ->  | Y10: =IFERROR(VLOOKUP($C10,'18,06,21'!$B$5:$J$150,Y$7,FALSE)*Y$4,"") ->  | Z10: =IFERROR(VLOOKUP($C10,'26,06,21'!$B$5:$J$134,Z$7,FALSE)*Z$4,"") ->  | AA10: =IFERROR(VLOOKUP($C10,'25,06,21'!$B$5:$J$150,AA$7,FALSE)*AA$4,"") ->  | AB10: =IFERROR(VLOOKUP($C10,'29,07,21'!$B$5:$J$150,AB$7,FALSE)*AB$4,"") -> 35.08952656 | AC10: =IFERROR(VLOOKUP($C10,'21,08,21'!$B$5:$J$150,AC$7,FALSE)*AC$4,"") ->  | AD10: =IFERROR(VLOOKUP($C10,'02,09,21'!$B$5:$J$150,AD$7,FALSE)*AD$4,"") -> 80.71118763 | AE10: =IFERROR(VLOOKUP($C10,'07,10,21'!$B$5:$J$150,AE$7,FALSE)*AE$4,"") -> 10.46428235 | AF10: =IFERROR(VLOOKUP($C10,'30,10,21'!$B$5:$J$150,AF$7,FALSE)*AF$4,"") -> 48.23100189 | AG10: =IFERROR(VLOOKUP($C10,'19,02,22'!$B$5:$J$150,AG$7,FALSE)*AG$4,"") ->  | AH10: =IFERROR(VLOOKUP($C10,'23,02,22'!$B$5:$J$150,AH$7,FALSE)*AH$4,"") ->  | AI10: =IFERROR(VLOOKUP($C10,'29,04,22'!$B$5:$J$150,AI$7,FALSE)*AI$4,"") ->  | AJ10: =IFERROR(VLOOKUP($C10,'30,04,22'!$B$5:$J$150,AJ$7,FALSE)*AJ$4,"") ->  | AK10: =IFERROR(VLOOKUP($C10,'10,06,22'!$B$5:$J$150,AK$7,FALSE)*AK$4,"") -> 45.02578381 | AL10: =IFERROR(VLOOKUP($C10,'17,06,22'!$B$5:$J$150,AL$7,FALSE)*AL$4,"") ->  | AM10: =IFERROR(VLOOKUP($C10,'02,07,22'!$B$5:$J$150,AM$7,FALSE)*AM$4,"") ->  | AN10: =IFERROR(VLOOKUP($C10,'23,07,22'!$B$5:$J$150,AN$7,FALSE)*AN$4,"") ->  | AO10: =IFERROR(VLOOKUP($C10,'22,07,22'!$B$5:$J$150,AO$7,FALSE)*AO$4,"") ->  | AP10: =IFERROR(VLOOKUP($C10,'20,08,22'!$B$5:$J$150,AP$7,FALSE)*AP$4,"") ->  | AQ10: =IFERROR(VLOOKUP($C10,'10,09,22'!$B$5:$J$150,AQ$7,FALSE)*AQ$4,"") ->  | AR10: =IFERROR(VLOOKUP($C10,'14,09,22'!$B$5:$J$150,AR$7,FALSE)*AR$4,"") -> 98.64669293 | AS10: =IFERROR(VLOOKUP($C10,'23,09,22'!$B$5:$J$150,AS$7,FALSE)*AS$4,"") ->  | AT10: =IFERROR(VLOOKUP($C10,'15,10,22'!$B$5:$J$150,AT$7,FALSE)*AT$4,"") ->  | FA10: =COUNTBLANK(FB10:FC10) -> 0 | FB10: 36 | FC10: Аляйская Лидия | FD10: Ж | FE10: 1 | FF10: Россия | FG10: 1 | FH10: Ленинградская область
A11: =A10+1 -> 2 | B11: =IFERROR(IF(K11=0,"",IF($K$7=1,RANK(K11,K$10:K$510),COUNTIF(K$10:K$510,">0")-RANK(K11,K$10:K$510)+1)),"") -> 2 | C11: Орлов Андрей | D11: М | E11: =IF(E$9="",1,IF(E$9=D11,1,0)) -> 1 | F11: Россия | G11: =IF(G$9="",1,IF(G$9=F11,1,0)) -> 1 | H11: Удмуртская республика | I11: =IF(I$9="",1,IF(I$9=H11,1,0)) -> 1 | J11: =IFERROR(IF($K$7=1,SUMPRODUCT(LARGE(L11:ED11,{1,2,3,4})),AVERAGE(L11:ED11)),"") -> 250.7994307 | K11: =IFERROR(J11*E11*G11*I11,"") -> 250.7994307 | L11: =IF($K$7=1,0,"") -> 0 | M11: =IF($K$7=1,0,"") -> 0 | N11: =IF($K$7=1,0,"") -> 0 | O11: =IF($K$7=1,0,"") -> 0 | P11: =IFERROR(VLOOKUP($C11,'06,09,19'!$B$5:$J$150,P$7,FALSE)*P$4,"") ->  | Q11: =IFERROR(VLOOKUP($C11,'17,08,20'!$B$5:$J$150,Q$7,FALSE)*Q$4,"") -> 1.399313846 | R11: =IFERROR(VLOOKUP($C11,'01,10,20'!$B$5:$J$150,R$7,FALSE)*R$4,"") ->  | S11: =IFERROR(VLOOKUP($C11,'08,10,20'!$B$5:$J$150,S$7,FALSE)*S$4,"") -> 1.968732416 | T11: =IFERROR(VLOOKUP($C11,'08,01,21'!$B$5:$J$150,T$7,FALSE)*T$4,"") ->  | U11: =IFERROR(VLOOKUP($C11,'23,01,21'!$B$5:$J$150,U$7,FALSE)*U$4,"") ->  | V11: =IFERROR(VLOOKUP($C11,'23,04,21'!$B$5:$J$150,V$7,FALSE)*V$4,"") ->  | W11: =IFERROR(VLOOKUP($C11,'07,05,21'!$B$5:$J$150,W$7,FALSE)*W$4,"") ->  | X11: =IFERROR(VLOOKUP($C11,'11,06,21'!$B$5:$J$150,X$7,FALSE)*X$4,"") ->  | Y11: =IFERROR(VLOOKUP($C11,'18,06,21'!$B$5:$J$150,Y$7,FALSE)*Y$4,"") -> 9.360282856 | Z11: =IFERROR(VLOOKUP($C11,'26,06,21'!$B$5:$J$134,Z$7,FALSE)*Z$4,"") ->  | AA11: =IFERROR(VLOOKUP($C11,'25,06,21'!$B$5:$J$150,AA$7,FALSE)*AA$4,"") ->  | AB11: =IFERROR(VLOOKUP($C11,'29,07,21'!$B$5:$J$150,AB$7,FALSE)*AB$4,"") -> 13.9120869 | AC11: =IFERROR(VLOOKUP($C11,'21,08,21'!$B$5:$J$150,AC$7,FALSE)*AC$4,"") ->  | AD11: =IFERROR(VLOOKUP($C11,'02,09,21'!$B$5:$J$150,AD$7,FALSE)*AD$4,"") -> 70.7320813 | AE11: =IFERROR(VLOOKUP($C11,'07,10,21'!$B$5:$J$150,AE$7,FALSE)*AE$4,"") ->  | AF11: =IFERROR(VLOOKUP($C11,'30,10,21'!$B$5:$J$150,AF$7,FALSE)*AF$4,"") ->  | AG11: =IFERROR(VLOOKUP($C11,'19,02,22'!$B$5:$J$150,AG$7,FALSE)*AG$4,"") ->  | AH11: =IFERROR(VLOOKUP($C11,'23,02,22'!$B$5:$J$150,AH$7,FALSE)*AH$4,"") ->  | AI11: =IFERROR(VLOOKUP($C11,'29,04,22'!$B$5:$J$150,AI$7,FALSE)*AI$4,"") ->  | AJ11: =IFERROR(VLOOKUP($C11,'30,04,22'!$B$5:$J$150,AJ$7,FALSE)*AJ$4,"") ->  | AK11: =IFERROR(VLOOKUP($C11,'10,06,22'!$B$5:$J$150,AK$7,FALSE)*AK$4,"") -> 74.76235394 | AL11: =IFERROR(VLOOKUP($C11,'17,06,22'!$B$5:$J$150,AL$7,FALSE)*AL$4,"") ->  | AM11: =IFERROR(VLOOKUP($C11,'02,07,22'!$B$5:$J$150,AM$7,FALSE)*AM$4,"") ->  | AN11: =IFERROR(VLOOKUP($C11,'23,07,22'!$B$5:$J$150,AN$7,FALSE)*AN$4,"") ->  | AO11: =IFERROR(VLOOKUP($C11,'22,07,22'!$B$5:$J$150,AO$7,FALSE)*AO$4,"") ->  | AP11: =IFERROR(VLOOKUP($C11,'20,08,22'!$B$5:$J$150,AP$7,FALSE)*AP$4,"") ->  | AQ11: =IFERROR(VLOOKUP($C11,'10,09,22'!$B$5:$J$150,AQ$7,FALSE)*AQ$4,"") ->  | AR11: =IFERROR(VLOOKUP($C11,'14,09,22'!$B$5:$J$150,AR$7,FALSE)*AR$4,"") -> 91.39290854 | AS11: =IFERROR(VLOOKUP($C11,'23,09,22'!$B$5:$J$150,AS$7,FALSE)*AS$4,"") ->  | AT11: =IFERROR(VLOOKUP($C11,'15,10,22'!$B$5:$J$150,AT$7,FALSE)*AT$4,"") ->  | FA11: =COUNTBLANK(FB11:FC11) -> 0 | FB11: 21 | FC11: Арендаренко Виталий | FD11: М | FE11: 1 | FF11: Россия | FG11: 1 | FH11: г.Санкт-Петербург
A12: 3 | B12: =IFERROR(IF(K12=0,"",IF($K$7=1,RANK(K12,K$10:K$510),COUNTIF(K$10:K$510,">0")-RANK(K12,K$10:K$510)+1)),"") -> 3 | C12: Мельников Никита | D12: М | E12: =IF(E$9="",1,IF(E$9=D12,1,0)) -> 1 | F12: Россия | G12: =IF(G$9="",1,IF(G$9=F12,1,0)) -> 1 | H12: Самарская область | I12: =IF(I$9="",1,IF(I$9=H12,1,0)) -> 1 | J12: =IFERROR(IF($K$7=1,SUMPRODUCT(LARGE(L12:ED12,{1,2,3,4})),AVERAGE(L12:ED12)),"") -> 248.1289923 | K12: =IFERROR(J12*E12*G12*I12,"") -> 248.1289923 | L12: =IF($K$7=1,0,"") -> 0 | M12: =IF($K$7=1,0,"") -> 0 | N12: =IF($K$7=1,0,"") -> 0 | O12: =IF($K$7=1,0,"") -> 0 | P12: =IFERROR(VLOOKUP($C12,'06,09,19'!$B$5:$J$150,P$7,FALSE)*P$4,"") ->  | Q12: =IFERROR(VLOOKUP($C12,'17,08,20'!$B$5:$J$150,Q$7,FALSE)*Q$4,"") -> 1.985522645 | R12: =IFERROR(VLOOKUP($C12,'01,10,20'!$B$5:$J$150,R$7,FALSE)*R$4,"") ->  | S12: =IFERROR(VLOOKUP($C12,'08,10,20'!$B$5:$J$150,S$7,FALSE)*S$4,"") ->  | T12: =IFERROR(VLOOKUP($C12,'08,01,21'!$B$5:$J$150,T$7,FALSE)*T$4,"") ->  | U12: =IFERROR(VLOOKUP($C12,'23,01,21'!$B$5:$J$150,U$7,FALSE)*U$4,"") ->  | V12: =IFERROR(VLOOKUP($C12,'23,04,21'!$B$5:$J$150,V$7,FALSE)*V$4,"") ->  | W12: =IFERROR(VLOOKUP($C12,'07,05,21'!$B$5:$J$150,W$7,FALSE)*W$4,"") ->  | X12: =IFERROR(VLOOKUP($C12,'11,06,21'!$B$5:$J$150,X$7,FALSE)*X$4,"") -> 27.09833126 | Y12: =IFERROR(VLOOKUP($C12,'18,06,21'!$B$5:$J$150,Y$7,FALSE)*Y$4,"") ->  | Z12: =IFERROR(VLOOKUP($C12,'26,06,21'!$B$5:$J$134,Z$7,FALSE)*Z$4,"") ->  | AA12: =IFERROR(VLOOKUP($C12,'25,06,21'!$B$5:$J$150,AA$7,FALSE)*AA$4,"") ->  | AB12: =IFERROR(VLOOKUP($C12,'29,07,21'!$B$5:$J$150,AB$7,FALSE)*AB$4,"") -> 37.89459832 | AC12: =IFERROR(VLOOKUP($C12,'21,08,21'!$B$5:$J$150,AC$7,FALSE)*AC$4,"") ->  | AD12: =IFERROR(VLOOKUP($C12,'02,09,21'!$B$5:$J$150,AD$7,FALSE)*AD$4,"") -> 61.38321879 | AE12: =IFERROR(VLOOKUP($C12,'07,10,21'!$B$5:$J$150,AE$7,FALSE)*AE$4,"") -> 30.86771515 | AF12: =IFERROR(VLOOKUP($C12,'30,10,21'!$B$5:$J$150,AF$7,FALSE)*AF$4,"") ->  | AG12: =IFERROR(VLOOKUP($C12,'19,02,22'!$B$5:$J$150,AG$7,FALSE)*AG$4,"") ->  | AH12: =IFERROR(VLOOKUP($C12,'23,02,22'!$B$5:$J$150,AH$7,FALSE)*AH$4,"") ->  | AI12: =IFERROR(VLOOKUP($C12,'29,04,22'!$B$5:$J$150,AI$7,FALSE)*AI$4,"") ->  | AJ12: =IFERROR(VLOOKUP($C12,'30,04,22'!$B$5:$J$150,AJ$7,FALSE)*AJ$4,"") ->  | AK12: =IFERROR(VLOOKUP($C12,'10,06,22'!$B$5:$J$150,AK$7,FALSE)*AK$4,"") ->  | AL12: =IFERROR(VLOOKUP($C12,'17,06,22'!$B$5:$J$150,AL$7,FALSE)*AL$4,"") ->  | AM12: =IFERROR(VLOOKUP($C12,'02,07,22'!$B$5:$J$150,AM$7,FALSE)*AM$4,"") ->  | AN12: =IFERROR(VLOOKUP($C12,'23,07,22'!$B$5:$J$150,AN$7,FALSE)*AN$4,"") ->  | AO12: =IFERROR(VLOOKUP($C12,'22,07,22'!$B$5:$J$150,AO$7,FALSE)*AO$4,"") ->  | AP12: =IFERROR(VLOOKUP($C12,'20,08,22'!$B$5:$J$150,AP$7,FALSE)*AP$4,"") ->  | AQ12: =IFERROR(VLOOKUP($C12,'10,09,22'!$B$5:$J$150,AQ$7,FALSE)*AQ$4,"") ->  | AR12: =IFERROR(VLOOKUP($C12,'14,09,22'!$B$5:$J$150,AR$7,FALSE)*AR$4,"") -> 117.98346 | AS12: =IFERROR(VLOOKUP($C12,'23,09,22'!$B$5:$J$150,AS$7,FALSE)*AS$4,"") ->  | AT12: =IFERROR(VLOOKUP($C12,'15,10,22'!$B$5:$J$150,AT$7,FALSE)*AT$4,"") ->  | FA12: =COUNTBLANK(FB12:FC12) -> 0 | FB12: 9 | FC12: Браунов Алексей | FD12: М | FE12: 1 | FF12: Россия | FG12: 1 | FH12: г.Санкт-Петербург
A13: 4 | B13: =IFERROR(IF(K13=0,"",IF($K$7=1,RANK(K13,K$10:K$510),COUNTIF(K$10:K$510,">0")-RANK(K13,K$10:K$510)+1)),"") -> 4 | C13: Звездин Иван | D13: М | E13: =IF(E$9="",1,IF(E$9=D13,1,0)) -> 1 | F13: Россия | G13: =IF(G$9="",1,IF(G$9=F13,1,0)) -> 1 | H13: Ленинградская область | I13: =IF(I$9="",1,IF(I$9=H13,1,0)) -> 1 | J13: =IFERROR(IF($K$7=1,SUMPRODUCT(LARGE(L13:ED13,{1,2,3,4})),AVERAGE(L13:ED13)),"") -> 241.0378527 | K13: =IFERROR(J13*E13*G13*I13,"") -> 241.0378527 | L13: =IF($K$7=1,0,"") -> 0 | M13: =IF($K$7=1,0,"") -> 0 | N13: =IF($K$7=1,0,"") -> 0 | O13: =IF($K$7=1,0,"") -> 0 | P13: =IFERROR(VLOOKUP($C13,'06,09,19'!$B$5:$J$150,P$7,FALSE)*P$4,"") ->  | Q13: =IFERROR(VLOOKUP($C13,'17,08,20'!$B$5:$J$150,Q$7,FALSE)*Q$4,"") -> 0.7716316308 | R13: =IFERROR(VLOOKUP($C13,'01,10,20'!$B$5:$J$150,R$7,FALSE)*R$4,"") ->  | S13: =IFERROR(VLOOKUP($C13,'08,10,20'!$B$5:$J$150,S$7,FALSE)*S$4,"") -> 2.647898939 | T13: =IFERROR(VLOOKUP($C13,'08,01,21'!$B$5:$J$150,T$7,FALSE)*T$4,"") -> 1.400072009 | U13: =IFERROR(VLOOKUP($C13,'23,01,21'!$B$5:$J$150,U$7,FALSE)*U$4,"") -> 4.701176034 | V13: =IFERROR(VLOOKUP($C13,'23,04,21'!$B$5:$J$150,V$7,FALSE)*V$4,"") ->  | W13: =IFERROR(VLOOKUP($C13,'07,05,21'!$B$5:$J$150,W$7,FALSE)*W$4,"") ->  | X13: =IFERROR(VLOOKUP($C13,'11,06,21'!$B$5:$J$150,X$7,FALSE)*X$4,"") -> 20.01774279 | Y13: =IFERROR(VLOOKUP($C13,'18,06,21'!$B$5:$J$150,Y$7,FALSE)*Y$4,"") ->  | Z13: =IFERROR(VLOOKUP($C13,'26,06,21'!$B$5:$J$134,Z$7,FALSE)*Z$4,"") -> 7.630897152 | AA13: =IFERROR(VLOOKUP($C13,'25,06,21'!$B$5:$J$150,AA$7,FALSE)*AA$4,"") ->  | AB13: =IFERROR(VLOOKUP($C13,'29,07,21'!$B$5:$J$150,AB$7,FALSE)*AB$4,"") -> 29.73863065 | AC13: =IFERROR(VLOOKUP($C13,'21,08,21'!$B$5:$J$150,AC$7,FALSE)*AC$4,"") -> 9.324297246 | AD13: =IFERROR(VLOOKUP($C13,'02,09,21'!$B$5:$J$150,AD$7,FALSE)*AD$4,"") -> 44.59292007 | AE13: =IFERROR(VLOOKUP($C13,'07,10,21'!$B$5:$J$150,AE$7,FALSE)*AE$4,"") -> 26.93625212 | AF13: =IFERROR(VLOOKUP($C13,'30,10,21'!$B$5:$J$150,AF$7,FALSE)*AF$4,"") -> 30.71298287 | AG13: =IFERROR(VLOOKUP($C13,'19,02,22'!$B$5:$J$150,AG$7,FALSE)*AG$4,"") ->  | AH13: =IFERROR(VLOOKUP($C13,'23,02,22'!$B$5:$J$150,AH$7,FALSE)*AH$4,"") -> 23.35293044 | AI13: =IFERROR(VLOOKUP($C13,'29,04,22'!$B$5:$J$150,AI$7,FALSE)*AI$4,"") -> 42.96095979 | AJ13: =IFERROR(VLOOKUP($C13,'30,04,22'!$B$5:$J$150,AJ$7,FALSE)*AJ$4,"") ->  | AK13: =IFERROR(VLOOKUP($C13,'10,06,22'!$B$5:$J$150,AK$7,FALSE)*AK$4,"") -> 62.09106435 | AL13: =IFERROR(VLOOKUP($C13,'17,06,22'!$B$5:$J$150,AL$7,FALSE)*AL$4,"") ->  | AM13: =IFERROR(VLOOKUP($C13,'02,07,22'!$B$5:$J$150,AM$7,FALSE)*AM$4,"") -> 31.67243541 | AN13: =IFERROR(VLOOKUP($C13,'23,07,22'!$B$5:$J$150,AN$7,FALSE)*AN$4,"") -> 18.22204092 | AO13: =IFERROR(VLOOKUP($C13,'22,07,22'!$B$5:$J$150,AO$7,FALSE)*AO$4,"") ->  | AP13: =IFERROR(VLOOKUP($C13,'20,08,22'!$B$5:$J$150,AP$7,FALSE)*AP$4,"") -> 13.84889389 | AQ13: =IFERROR(VLOOKUP($C13,'10,09,22'!$B$5:$J$150,AQ$7,FALSE)*AQ$4,"") -> 10.65136975 | AR13: =IFERROR(VLOOKUP($C13,'14,09,22'!$B$5:$J$150,AR$7,FALSE)*AR$4,"") -> 91.39290854 | AS13: =IFERROR(VLOOKUP($C13,'23,09,22'!$B$5:$J$150,AS$7,FALSE)*AS$4,"") ->  | AT13: =IFERROR(VLOOKUP($C13,'15,10,22'!$B$5:$J$150,AT$7,FALSE)*AT$4,"") ->  | FA13: =COUNTBLANK(FB13:FC13) -> 0 | FB13: 27 | FC13: Васильев Дмитрий | FD13: М | FE13: 1 | FF13: Россия | FG13: 1 | FH13: г.Санкт-Петербург
A14: 5 | B14: =IFERROR(IF(K14=0,"",IF($K$7=1,RANK(K14,K$10:K$510),COUNTIF(K$10:K$510,">0")-RANK(K14,K$10:K$510)+1)),"") -> 5 | C14: Бажанов Сергей | D14: М | E14: =IF(E$9="",1,IF(E$9=D14,1,0)) -> 1 | F14: Россия | G14: =IF(G$9="",1,IF(G$9=F14,1,0)) -> 1 | H14: Калининградская область | I14: =IF(I$9="",1,IF(I$9=H14,1,0)) -> 1 | J14: =IFERROR(IF($K$7=1,SUMPRODUCT(LARGE(L14:ED14,{1,2,3,4})),AVERAGE(L14:ED14)),"") -> 237.3621416 | K14: =IFERROR(J14*E14*G14*I14,"") -> 237.3621416 | L14: =IF($K$7=1,0,"") -> 0 | M14: =IF($K$7=1,0,"") -> 0 | N14: =IF($K$7=1,0,"") -> 0 | O14: =IF($K$7=1,0,"") -> 0 | P14: =IFERROR(VLOOKUP($C14,'06,09,19'!$B$5:$J$150,P$7,FALSE)*P$4,"") ->  | Q14: =IFERROR(VLOOKUP($C14,'17,08,20'!$B$5:$J$150,Q$7,FALSE)*Q$4,"") -> 1.225777316 | R14: =IFERROR(VLOOKUP($C14,'01,10,20'!$B$5:$J$150,R$7,FALSE)*R$4,"") ->  | S14: =IFERROR(VLOOKUP($C14,'08,10,20'!$B$5:$J$150,S$7,FALSE)*S$4,"") ->  | T14: =IFERROR(VLOOKUP($C14,'08,01,21'!$B$5:$J$150,T$7,FALSE)*T$4,"") ->  | U14: =IFERROR(VLOOKUP($C14,'23,01,21'!$B$5:$J$150,U$7,FALSE)*U$4,"") ->  | V14: =IFERROR(VLOOKUP($C14,'23,04,21'!$B$5:$J$150,V$7,FALSE)*V$4,"") ->  | W14: =IFERROR(VLOOKUP($C14,'07,05,21'!$B$5:$J$150,W$7,FALSE)*W$4,"") ->  | X14: =IFERROR(VLOOKUP($C14,'11,06,21'!$B$5:$J$150,X$7,FALSE)*X$4,"") ->  | Y14: =IFERROR(VLOOKUP($C14,'18,06,21'!$B$5:$J$150,Y$7,FALSE)*Y$4,"") ->  | Z14: =IFERROR(VLOOKUP($C14,'26,06,21'!$B$5:$J$134,Z$7,FALSE)*Z$4,"") ->  | AA14: =IFERROR(VLOOKUP($C14,'25,06,21'!$B$5:$J$150,AA$7,FALSE)*AA$4,"") ->  | AB14: =IFERROR(VLOOKUP($C14,'29,07,21'!$B$5:$J$150,AB$7,FALSE)*AB$4,"") ->  | AC14: =IFERROR(VLOOKUP($C14,'21,08,21'!$B$5:$J$150,AC$7,FALSE)*AC$4,"") ->  | AD14: =IFERROR(VLOOKUP($C14,'02,09,21'!$B$5:$J$150,AD$7,FALSE)*AD$4,"") -> 75.64309678 | AE14: =IFERROR(VLOOKUP($C14,'07,10,21'!$B$5:$J$150,AE$7,FALSE)*AE$4,"") ->  | AF14: =IFERROR(VLOOKUP($C14,'30,10,21'!$B$5:$J$150,AF$7,FALSE)*AF$4,"") ->  | AG14: =IFERROR(VLOOKUP($C14,'19,02,22'!$B$5:$J$150,AG$7,FALSE)*AG$4,"") ->  | AH14: =IFERROR(VLOOKUP($C14,'23,02,22'!$B$5:$J$150,AH$7,FALSE)*AH$4,"") ->  | AI14: =IFERROR(VLOOKUP($C14,'29,04,22'!$B$5:$J$150,AI$7,FALSE)*AI$4,"") ->  | AJ14: =IFERROR(VLOOKUP($C14,'30,04,22'!$B$5:$J$150,AJ$7,FALSE)*AJ$4,"") ->  | AK14: =IFERROR(VLOOKUP($C14,'10,06,22'!$B$5:$J$150,AK$7,FALSE)*AK$4,"") -> 50.45053281 | AL14: =IFERROR(VLOOKUP($C14,'17,06,22'!$B$5:$J$150,AL$7,FALSE)*AL$4,"") ->  | AM14: =IFERROR(VLOOKUP($C14,'02,07,22'!$B$5:$J$150,AM$7,FALSE)*AM$4,"") ->  | AN14: =IFERROR(VLOOKUP($C14,'23,07,22'!$B$5:$J$150,AN$7,FALSE)*AN$4,"") ->  | AO14: =IFERROR(VLOOKUP($C14,'22,07,22'!$B$5:$J$150,AO$7,FALSE)*AO$4,"") ->  | AP14: =IFERROR(VLOOKUP($C14,'20,08,22'!$B$5:$J$150,AP$7,FALSE)*AP$4,"") ->  | AQ14: =IFERROR(VLOOKUP($C14,'10,09,22'!$B$5:$J$150,AQ$7,FALSE)*AQ$4,"") ->  | AR14: =IFERROR(VLOOKUP($C14,'14,09,22'!$B$5:$J$150,AR$7,FALSE)*AR$4,"") -> 110.0427346 | AS14: =IFERROR(VLOOKUP($C14,'23,09,22'!$B$5:$J$150,AS$7,FALSE)*AS$4,"") ->  | AT14: =IFERROR(VLOOKUP($C14,'15,10,22'!$B$5:$J$150,AT$7,FALSE)*AT$4,"") ->  | FA14: =COUNTBLANK(FB14:FC14) -> 0 | FB14: 16 | FC14: Вишневский Николай | FD14: М | FE14: 1 | FF14: Россия | FG14: 1 | FH14: г.Санкт-Петербург
A15: 6 | B15: =IFERROR(IF(K15=0,"",IF($K$7=1,RANK(K15,K$10:K$510),COUNTIF(K$10:K$510,">0")-RANK(K15,K$10:K$510)+1)),"") -> 6 | C15: Скляренко Дмитрий | D15: М | E15: =IF(E$9="",1,IF(E$9=D15,1,0)) -> 1 | F15: Россия | G15: =IF(G$9="",1,IF(G$9=F15,1,0)) -> 1 | H15: Калининградская область | I15: =IF(I$9="",1,IF(I$9=H15,1,0)) -> 1 | J15: =IFERROR(IF($K$7=1,SUMPRODUCT(LARGE(L15:ED15,{1,2,3,4})),AVERAGE(L15:ED15)),"") -> 231.4527798 | K15: =IFERROR(J15*E15*G15*I15,"") -> 231.4527798 | L15: =IF($K$7=1,0,"") -> 0 | M15: =IF($K$7=1,0,"") -> 0 | N15: =IF($K$7=1,0,"") -> 0 | O15: =IF($K$7=1,0,"") -> 0 | P15: =IFERROR(VLOOKUP($C15,'06,09,19'!$B$5:$J$150,P$7,FALSE)*P$4,"") ->  | Q15: =IFERROR(VLOOKUP($C15,'17,08,20'!$B$5:$J$150,Q$7,FALSE)*Q$4,"") ->  | R15: =IFERROR(VLOOKUP($C15,'01,10,20'!$B$5:$J$150,R$7,FALSE)*R$4,"") ->  | S15: =IFERROR(VLOOKUP($C15,'08,10,20'!$B$5:$J$150,S$7,FALSE)*S$4,"") ->  | T15: =IFERROR(VLOOKUP($C15,'08,01,21'!$B$5:$J$150,T$7,FALSE)*T$4,"") ->  | U15: =IFERROR(VLOOKUP($C15,'23,01,21'!$B$5:$J$150,U$7,FALSE)*U$4,"") -> 3.585475214 | V15: =IFERROR(VLOOKUP($C15,'23,04,21'!$B$5:$J$150,V$7,FALSE)*V$4,"") ->  | W15: =IFERROR(VLOOKUP($C15,'07,05,21'!$B$5:$J$150,W$7,FALSE)*W$4,"") ->  | X15: =IFERROR(VLOOKUP($C15,'11,06,21'!$B$5:$J$150,X$7,FALSE)*X$4,"") ->  | Y15: =IFERROR(VLOOKUP($C15,'18,06,21'!$B$5:$J$150,Y$7,FALSE)*Y$4,"") ->  | Z15: =IFERROR(VLOOKUP($C15,'26,06,21'!$B$5:$J$134,Z$7,FALSE)*Z$4,"") ->  | AA15: =IFERROR(VLOOKUP($C15,'25,06,21'!$B$5:$J$150,AA$7,FALSE)*AA$4,"") ->  | AB15: =IFERROR(VLOOKUP($C15,'29,07,21'!$B$5:$J$150,AB$7,FALSE)*AB$4,"") -> 20.11878788 | AC15: =IFERROR(VLOOKUP($C15,'21,08,21'!$B$5:$J$150,AC$7,FALSE)*AC$4,"") ->  | AD15: =IFERROR(VLOOKUP($C15,'02,09,21'!$B$5:$J$150,AD$7,FALSE)*AD$4,"") -> 40.79607826 | AE15: =IFERROR(VLOOKUP($C15,'07,10,21'!$B$5:$J$150,AE$7,FALSE)*AE$4,"") ->  | AF15: =IFERROR(VLOOKUP($C15,'30,10,21'!$B$5:$J$150,AF$7,FALSE)*AF$4,"") -> 41.32918499 | AG15: =IFERROR(VLOOKUP($C15,'19,02,22'!$B$5:$J$150,AG$7,FALSE)*AG$4,"") ->  | AH15: =IFERROR(VLOOKUP($C15,'23,02,22'!$B$5:$J$150,AH$7,FALSE)*AH$4,"") ->  | AI15: =IFERROR(VLOOKUP($C15,'29,04,22'!$B$5:$J$150,AI$7,FALSE)*AI$4,"") -> 37.69283818 | AJ15: =IFERROR(VLOOKUP($C15,'30,04,22'!$B$5:$J$150,AJ$7,FALSE)*AJ$4,"") ->  | AK15: =IFERROR(VLOOKUP($C15,'10,06,22'!$B$5:$J$150,AK$7,FALSE)*AK$4,"") -> 68.29953727 | AL15: =IFERROR(VLOOKUP($C15,'17,06,22'!$B$5:$J$150,AL$7,FALSE)*AL$4,"") ->  | AM15: =IFERROR(VLOOKUP($C15,'02,07,22'!$B$5:$J$150,AM$7,FALSE)*AM$4,"") ->  | AN15: =IFERROR(VLOOKUP($C15,'23,07,22'!$B$5:$J$150,AN$7,FALSE)*AN$4,"") ->  | AO15: =IFERROR(VLOOKUP($C15,'22,07,22'!$B$5:$J$150,AO$7,FALSE)*AO$4,"") ->  | AP15: =IFERROR(VLOOKUP($C15,'20,08,22'!$B$5:$J$150,AP$7,FALSE)*AP$4,"") ->  | AQ15: =IFERROR(VLOOKUP($C15,'10,09,22'!$B$5:$J$150,AQ$7,FALSE)*AQ$4,"") ->  | AR15: =IFERROR(VLOOKUP($C15,'14,09,22'!$B$5:$J$150,AR$7,FALSE)*AR$4,"") -> 81.02797931 | AS15: =IFERROR(VLOOKUP($C15,'23,09,22'!$B$5:$J$150,AS$7,FALSE)*AS$4,"") ->  | AT15: =IFERROR(VLOOKUP($C15,'15,10,22'!$B$5:$J$150,AT$7,FALSE)*AT$4,"") ->  | FA15: =COUNTBLANK(FB15:FC15) -> 0 | FB15: 39 | FC15: Вячеславов Иван | FD15: М | FE15: 1 | FF15: Россия | FG15: 1 | FH15: г.Санкт-Петербург
A16: 7 | B16: =IFERROR(IF(K16=0,"",IF($K$7=1,RANK(K16,K$10:K$510),COUNTIF(K$10:K$510,">0")-RANK(K16,K$10:K$510)+1)),"") -> 7 | C16: Дымшаков Андрей | D16: М | E16: =IF(E$9="",1,IF(E$9=D16,1,0)) -> 1 | F16: Россия | G16: =IF(G$9="",1,IF(G$9=F16,1,0)) -> 1 | H16: Тюменская область | I16: =IF(I$9="",1,IF(I$9=H16,1,0)) -> 1 | J16: =IFERROR(IF($K$7=1,SUMPRODUCT(LARGE(L16:ED16,{1,2,3,4})),AVERAGE(L16:ED16)),"") -> 224.3987678 | K16: =IFERROR(J16*E16*G16*I16,"") -> 224.3987678 | L16: =IF($K$7=1,0,"") -> 0 | M16: =IF($K$7=1,0,"") -> 0 | N16: =IF($K$7=1,0,"") -> 0 | O16: =IF($K$7=1,0,"") -> 0 | P16: =IFERROR(VLOOKUP($C16,'06,09,19'!$B$5:$J$150,P$7,FALSE)*P$4,"") ->  | Q16: =IFERROR(VLOOKUP($C16,'17,08,20'!$B$5:$J$150,Q$7,FALSE)*Q$4,"") ->  | R16: =IFERROR(VLOOKUP($C16,'01,10,20'!$B$5:$J$150,R$7,FALSE)*R$4,"") ->  | S16: =IFERROR(VLOOKUP($C16,'08,10,20'!$B$5:$J$150,S$7,FALSE)*S$4,"") ->  | T16: =IFERROR(VLOOKUP($C16,'08,01,21'!$B$5:$J$150,T$7,FALSE)*T$4,"") ->  | U16: =IFERROR(VLOOKUP($C16,'23,01,21'!$B$5:$J$150,U$7,FALSE)*U$4,"") ->  | V16: =IFERROR(VLOOKUP($C16,'23,04,21'!$B$5:$J$150,V$7,FALSE)*V$4,"") ->  | W16: =IFERROR(VLOOKUP($C16,'07,05,21'!$B$5:$J$150,W$7,FALSE)*W$4,"") ->  | X16: =IFERROR(VLOOKUP($C16,'11,06,21'!$B$5:$J$150,X$7,FALSE)*X$4,"") ->  | Y16: =IFERROR(VLOOKUP($C16,'18,06,21'!$B$5:$J$150,Y$7,FALSE)*Y$4,"") ->  | Z16: =IFERROR(VLOOKUP($C16,'26,06,21'!$B$5:$J$134,Z$7,FALSE)*Z$4,"") ->  | AA16: =IFERROR(VLOOKUP($C16,'25,06,21'!$B$5:$J$150,AA$7,FALSE)*AA$4,"") -> 10.77611169 | AB16: =IFERROR(VLOOKUP($C16,'29,07,21'!$B$5:$J$150,AB$7,FALSE)*AB$4,"") ->  | AC16: =IFERROR(VLOOKUP($C16,'21,08,21'!$B$5:$J$150,AC$7,FALSE)*AC$4,"") ->  | AD16: =IFERROR(VLOOKUP($C16,'02,09,21'!$B$5:$J$150,AD$7,FALSE)*AD$4,"") -> 37.16079069 | AE16: =IFERROR(VLOOKUP($C16,'07,10,21'!$B$5:$J$150,AE$7,FALSE)*AE$4,"") ->  | AF16: =IFERROR(VLOOKUP($C16,'30,10,21'!$B$5:$J$150,AF$7,FALSE)*AF$4,"") ->  | AG16: =IFERROR(VLOOKUP($C16,'19,02,22'!$B$5:$J$150,AG$7,FALSE)*AG$4,"") ->  | AH16: =IFERROR(VLOOKUP($C16,'23,02,22'!$B$5:$J$150,AH$7,FALSE)*AH$4,"") ->  | AI16: =IFERROR(VLOOKUP($C16,'29,04,22'!$B$5:$J$150,AI$7,FALSE)*AI$4,"") ->  | AJ16: =IFERROR(VLOOKUP($C16,'30,04,22'!$B$5:$J$150,AJ$7,FALSE)*AJ$4,"") ->  | AK16: =IFERROR(VLOOKUP($C16,'10,06,22'!$B$5:$J$150,AK$7,FALSE)*AK$4,"") -> 81.47643481 | AL16: =IFERROR(VLOOKUP($C16,'17,06,22'!$B$5:$J$150,AL$7,FALSE)*AL$4,"") ->  | AM16: =IFERROR(VLOOKUP($C16,'02,07,22'!$B$5:$J$150,AM$7,FALSE)*AM$4,"") ->  | AN16: =IFERROR(VLOOKUP($C16,'23,07,22'!$B$5:$J$150,AN$7,FALSE)*AN$4,"") ->  | AO16: =IFERROR(VLOOKUP($C16,'22,07,22'!$B$5:$J$150,AO$7,FALSE)*AO$4,"") ->  | AP16: =IFERROR(VLOOKUP($C16,'20,08,22'!$B$5:$J$150,AP$7,FALSE)*AP$4,"") ->  | AQ16: =IFERROR(VLOOKUP($C16,'10,09,22'!$B$5:$J$150,AQ$7,FALSE)*AQ$4,"") ->  | AR16: =IFERROR(VLOOKUP($C16,'14,09,22'!$B$5:$J$150,AR$7,FALSE)*AR$4,"") -> 94.98543057 | AS16: =IFERROR(VLOOKUP($C16,'23,09,22'!$B$5:$J$150,AS$7,FALSE)*AS$4,"") ->  | AT16: =IFERROR(VLOOKUP($C16,'15,10,22'!$B$5:$J$150,AT$7,FALSE)*AT$4,"") ->  | FA16: =COUNTBLANK(FB16:FC16) -> 0 | FB16: 3 | FC16: Гордеев Дмитрий | FD16: М | FE16: 1 | FF16: Россия | FG16: 1 | FH16: Ленинградская область
A17: 8 | B17: =IFERROR(IF(K17=0,"",IF($K$7=1,RANK(K17,K$10:K$510),COUNTIF(K$10:K$510,">0")-RANK(K17,K$10:K$510)+1)),"") -> 8 | C17: Сухорученко Сергей | D17: М | E17: =IF(E$9="",1,IF(E$9=D17,1,0)) -> 1 | F17: Россия | G17: =IF(G$9="",1,IF(G$9=F17,1,0)) -> 1 | H17: Калининградская область | I17: =IF(I$9="",1,IF(I$9=H17,1,0)) -> 1 | J17: =IFERROR(IF($K$7=1,SUMPRODUCT(LARGE(L17:ED17,{1,2,3,4})),AVERAGE(L17:ED17)),"") -> 210.1270011 | K17: =IFERROR(J17*E17*G17*I17,"") -> 210.1270011 | L17: =IF($K$7=1,0,"") -> 0 | M17: =IF($K$7=1,0,"") -> 0 | N17: =IF($K$7=1,0,"") -> 0 | O17: =IF($K$7=1,0,"") -> 0 | P17: =IFERROR(VLOOKUP($C17,'06,09,19'!$B$5:$J$150,P$7,FALSE)*P$4,"") ->  | Q17: =IFERROR(VLOOKUP($C17,'17,08,20'!$B$5:$J$150,Q$7,FALSE)*Q$4,"") ->  | R17: =IFERROR(VLOOKUP($C17,'01,10,20'!$B$5:$J$150,R$7,FALSE)*R$4,"") ->  | S17: =IFERROR(VLOOKUP($C17,'08,10,20'!$B$5:$J$150,S$7,FALSE)*S$4,"") -> 2.768109823 | T17: =IFERROR(VLOOKUP($C17,'08,01,21'!$B$5:$J$150,T$7,FALSE)*T$4,"") ->  | U17: =IFERROR(VLOOKUP($C17,'23,01,21'!$B$5:$J$150,U$7,FALSE)*U$4,"") ->  | V17: =IFERROR(VLOOKUP($C17,'23,04,21'!$B$5:$J$150,V$7,FALSE)*V$4,"") ->  | W17: =IFERROR(VLOOKUP($C17,'07,05,21'!$B$5:$J$150,W$7,FALSE)*W$4,"") ->  | X17: =IFERROR(VLOOKUP($C17,'11,06,21'!$B$5:$J$150,X$7,FALSE)*X$4,"") ->  | Y17: =IFERROR(VLOOKUP($C17,'18,06,21'!$B$5:$J$150,Y$7,FALSE)*Y$4,"") ->  | Z17: =IFERROR(VLOOKUP($C17,'26,06,21'!$B$5:$J$134,Z$7,FALSE)*Z$4,"") ->  | AA17: =IFERROR(VLOOKUP($C17,'25,06,21'!$B$5:$J$150,AA$7,FALSE)*AA$4,"") ->  | AB17: =IFERROR(VLOOKUP($C17,'29,07,21'!$B$5:$J$150,AB$7,FALSE)*AB$4,"") -> 32.37038161 | AC17: =IFERROR(VLOOKUP($C17,'21,08,21'!$B$5:$J$150,AC$7,FALSE)*AC$4,"") ->  | AD17: =IFERROR(VLOOKUP($C17,'02,09,21'!$B$5:$J$150,AD$7,FALSE)*AD$4,"") -> 65.97862202 | AE17: =IFERROR(VLOOKUP($C17,'07,10,21'!$B$5:$J$150,AE$7,FALSE)*AE$4,"") -> 9.401320806 | AF17: =IFERROR(VLOOKUP($C17,'30,10,21'!$B$5:$J$150,AF$7,FALSE)*AF$4,"") ->  | AG17: =IFERROR(VLOOKUP($C17,'19,02,22'!$B$5:$J$150,AG$7,FALSE)*AG$4,"") ->  | AH17: =IFERROR(VLOOKUP($C17,'23,02,22'!$B$5:$J$150,AH$7,FALSE)*AH$4,"") ->  | AI17: =IFERROR(VLOOKUP($C17,'29,04,22'!$B$5:$J$150,AI$7,FALSE)*AI$4,"") ->  | AJ17: =IFERROR(VLOOKUP($C17,'30,04,22'!$B$5:$J$150,AJ$7,FALSE)*AJ$4,"") ->  | AK17: =IFERROR(VLOOKUP($C17,'10,06,22'!$B$5:$J$150,AK$7,FALSE)*AK$4,"") -> 0.3805738 | AL17: =IFERROR(VLOOKUP($C17,'17,06,22'!$B$5:$J$150,AL$7,FALSE)*AL$4,"") ->  | AM17: =IFERROR(VLOOKUP($C17,'02,07,22'!$B$5:$J$150,AM$7,FALSE)*AM$4,"") ->  | AN17: =IFERROR(VLOOKUP($C17,'23,07,22'!$B$5:$J$150,AN$7,FALSE)*AN$4,"") ->  | AO17: =IFERROR(VLOOKUP($C17,'22,07,22'!$B$5:$J$150,AO$7,FALSE)*AO$4,"") ->  | AP17: =IFERROR(VLOOKUP($C17,'20,08,22'!$B$5:$J$150,AP$7,FALSE)*AP$4,"") ->  | AQ17: =IFERROR(VLOOKUP($C17,'10,09,22'!$B$5:$J$150,AQ$7,FALSE)*AQ$4,"") ->  | AR17: =IFERROR(VLOOKUP($C17,'14,09,22'!$B$5:$J$150,AR$7,FALSE)*AR$4,"") -> 102.3766767 | AS17: =IFERROR(VLOOKUP($C17,'23,09,22'!$B$5:$J$150,AS$7,FALSE)*AS$4,"") ->  | AT17: =IFERROR(VLOOKUP($C17,'15,10,22'!$B$5:$J$150,AT$7,FALSE)*AT$4,"") ->  | FA17: =COUNTBLANK(FB17:FC17) -> 0 | FB17: 35 | FC17: Гренков Алексей | FD17: М | FE17: 1 | FF17: Россия | FG17: 1 | FH17: Ленинградская область
A18: 9 | B18: =IFERROR(IF(K18=0,"",IF($K$7=1,RANK(K18,K$10:K$510),COUNTIF(K$10:K$510,">0")-RANK(K18,K$10:K$510)+1)),"") -> 9 | C18: Носаль Александр | D18: М | E18: =IF(E$9="",1,IF(E$9=D18,1,0)) -> 1 | F18: Россия | G18: =IF(G$9="",1,IF(G$9=F18,1,0)) -> 1 | H18: Калининградская область | I18: =IF(I$9="",1,IF(I$9=H18,1,0)) -> 1 | J18: =IFERROR(IF($K$7=1,SUMPRODUCT(LARGE(L18:ED18,{1,2,3,4})),AVERAGE(L18:ED18)),"") -> 209.8403382 | K18: =IFERROR(J18*E18*G18*I18,"") -> 209.8403382 | L18: =IF($K$7=1,0,"") -> 0 | M18: =IF($K$7=1,0,"") -> 0 | N18: =IF($K$7=1,0,"") -> 0 | O18: =IF($K$7=1,0,"") -> 0 | P18: =IFERROR(VLOOKUP($C18,'06,09,19'!$B$5:$J$150,P$7,FALSE)*P$4,"") ->  | Q18: =IFERROR(VLOOKUP($C18,'17,08,20'!$B$5:$J$150,Q$7,FALSE)*Q$4,"") -> 1.063272891 | R18: =IFERROR(VLOOKUP($C18,'01,10,20'!$B$5:$J$150,R$7,FALSE)*R$4,"") ->  | S18: =IFERROR(VLOOKUP($C18,'08,10,20'!$B$5:$J$150,S$7,FALSE)*S$4,"") -> 2.529650495 | T18: =IFERROR(VLOOKUP($C18,'08,01,21'!$B$5:$J$150,T$7,FALSE)*T$4,"") ->  | U18: =IFERROR(VLOOKUP($C18,'23,01,21'!$B$5:$J$150,U$7,FALSE)*U$4,"") -> 3.32604349 | V18: =IFERROR(VLOOKUP($C18,'23,04,21'!$B$5:$J$150,V$7,FALSE)*V$4,"") ->  | W18: =IFERROR(VLOOKUP($C18,'07,05,21'!$B$5:$J$150,W$7,FALSE)*W$4,"") ->  | X18: =IFERROR(VLOOKUP($C18,'11,06,21'!$B$5:$J$150,X$7,FALSE)*X$4,"") -> 23.45158604 | Y18: =IFERROR(VLOOKUP($C18,'18,06,21'!$B$5:$J$150,Y$7,FALSE)*Y$4,"") ->  | Z18: =IFERROR(VLOOKUP($C18,'26,06,21'!$B$5:$J$134,Z$7,FALSE)*Z$4,"") ->  | AA18: =IFERROR(VLOOKUP($C18,'25,06,21'!$B$5:$J$150,AA$7,FALSE)*AA$4,"") -> 23.09403508 | AB18: =IFERROR(VLOOKUP($C18,'29,07,21'!$B$5:$J$150,AB$7,FALSE)*AB$4,"") ->  | AC18: =IFERROR(VLOOKUP($C18,'21,08,21'!$B$5:$J$150,AC$7,FALSE)*AC$4,"") ->  | AD18: =IFERROR(VLOOKUP($C18,'02,09,21'!$B$5:$J$150,AD$7,FALSE)*AD$4,"") -> 56.94639203 | AE18: =IFERROR(VLOOKUP($C18,'07,10,21'!$B$5:$J$150,AE$7,FALSE)*AE$4,"") -> 17.67179795 | AF18: =IFERROR(VLOOKUP($C18,'30,10,21'!$B$5:$J$150,AF$7,FALSE)*AF$4,"") -> 32.74424215 | AG18: =IFERROR(VLOOKUP($C18,'19,02,22'!$B$5:$J$150,AG$7,FALSE)*AG$4,"") ->  | AH18: =IFERROR(VLOOKUP($C18,'23,02,22'!$B$5:$J$150,AH$7,FALSE)*AH$4,"") ->  | AI18: =IFERROR(VLOOKUP($C18,'29,04,22'!$B$5:$J$150,AI$7,FALSE)*AI$4,"") -> 45.6876116 | AJ18: =IFERROR(VLOOKUP($C18,'30,04,22'!$B$5:$J$150,AJ$7,FALSE)*AJ$4,"") ->  | AK18: =IFERROR(VLOOKUP($C18,'10,06,22'!$B$5:$J$150,AK$7,FALSE)*AK$4,"") ->  | AL18: =IFERROR(VLOOKUP($C18,'17,06,22'!$B$5:$J$150,AL$7,FALSE)*AL$4,"") ->  | AM18: =IFERROR(VLOOKUP($C18,'02,07,22'!$B$5:$J$150,AM$7,FALSE)*AM$4,"") ->  | AN18: =IFERROR(VLOOKUP($C18,'23,07,22'!$B$5:$J$150,AN$7,FALSE)*AN$4,"") -> 20.31965461 | AO18: =IFERROR(VLOOKUP($C18,'22,07,22'!$B$5:$J$150,AO$7,FALSE)*AO$4,"") ->  | AP18: =IFERROR(VLOOKUP($C18,'20,08,22'!$B$5:$J$150,AP$7,FALSE)*AP$4,"") ->  | AQ18: =IFERROR(VLOOKUP($C18,'10,09,22'!$B$5:$J$150,AQ$7,FALSE)*AQ$4,"") ->  | AR18: =IFERROR(VLOOKUP($C18,'14,09,22'!$B$5:$J$150,AR$7,FALSE)*AR$4,"") -> 74.46209244 | AS18: =IFERROR(VLOOKUP($C18,'23,09,22'!$B$5:$J$150,AS$7,FALSE)*AS$4,"") ->  | AT18: =IFERROR(VLOOKUP($C18,'15,10,22'!$B$5:$J$150,AT$7,FALSE)*AT$4,"") ->  | FA18: =COUNTBLANK(FB18:FC18) -> 0 | FB18: 45 | FC18: Григорьева Мария мл. | FD18: Ж | FE18: 1 | FF18: Россия | FG18: 1 | FH18: Ленинградская область
A19: 10 | B19: =IFERROR(IF(K19=0,"",IF($K$7=1,RANK(K19,K$10:K$510),COUNTIF(K$10:K$510,">0")-RANK(K19,K$10:K$510)+1)),"") -> 10 | C19: Кива Артем | D19: М | E19: =IF(E$9="",1,IF(E$9=D19,1,0)) -> 1 | F19: Россия | G19: =IF(G$9="",1,IF(G$9=F19,1,0)) -> 1 | H19: Ленинградская область | I19: =IF(I$9="",1,IF(I$9=H19,1,0)) -> 1 | J19: =IFERROR(IF($K$7=1,SUMPRODUCT(LARGE(L19:ED19,{1,2,3,4})),AVERAGE(L19:ED19)),"") -> 176.2766666 | K19: =IFERROR(J19*E19*G19*I19,"") -> 176.2766666 | L19: =IF($K$7=1,0,"") -> 0 | M19: =IF($K$7=1,0,"") -> 0 | N19: =IF($K$7=1,0,"") -> 0 | O19: =IF($K$7=1,0,"") -> 0 | P19: =IFERROR(VLOOKUP($C19,'06,09,19'!$B$5:$J$150,P$7,FALSE)*P$4,"") ->  | Q19: =IFERROR(VLOOKUP($C19,'17,08,20'!$B$5:$J$150,Q$7,FALSE)*Q$4,"") ->  | R19: =IFERROR(VLOOKUP($C19,'01,10,20'!$B$5:$J$150,R$7,FALSE)*R$4,"") ->  | S19: =IFERROR(VLOOKUP($C19,'08,10,20'!$B$5:$J$150,S$7,FALSE)*S$4,"") ->  | T19: =IFERROR(VLOOKUP($C19,'08,01,21'!$B$5:$J$150,T$7,FALSE)*T$4,"") ->  | U19: =IFERROR(VLOOKUP($C19,'23,01,21'!$B$5:$J$150,U$7,FALSE)*U$4,"") -> 3.852805304 | V19: =IFERROR(VLOOKUP($C19,'23,04,21'!$B$5:$J$150,V$7,FALSE)*V$4,"") ->  | W19: =IFERROR(VLOOKUP($C19,'07,05,21'!$B$5:$J$150,W$7,FALSE)*W$4,"") ->  | X19: =IFERROR(VLOOKUP($C19,'11,06,21'!$B$5:$J$150,X$7,FALSE)*X$4,"") ->  | Y19: =IFERROR(VLOOKUP($C19,'18,06,21'!$B$5:$J$150,Y$7,FALSE)*Y$4,"") ->  | Z19: =IFERROR(VLOOKUP($C19,'26,06,21'!$B$5:$J$134,Z$7,FALSE)*Z$4,"") ->  | AA19: =IFERROR(VLOOKUP($C19,'25,06,21'!$B$5:$J$150,AA$7,FALSE)*AA$4,"") ->  | AB19: =IFERROR(VLOOKUP($C19,'29,07,21'!$B$5:$J$150,AB$7,FALSE)*AB$4,"") -> 27.19584323 | AC19: =IFERROR(VLOOKUP($C19,'21,08,21'!$B$5:$J$150,AC$7,FALSE)*AC$4,"") ->  | AD19: =IFERROR(VLOOKUP($C19,'02,09,21'!$B$5:$J$150,AD$7,FALSE)*AD$4,"") -> 33.68774548 | AE19: =IFERROR(VLOOKUP($C19,'07,10,21'!$B$5:$J$150,AE$7,FALSE)*AE$4,"") ->  | AF19: =IFERROR(VLOOKUP($C19,'30,10,21'!$B$5:$J$150,AF$7,FALSE)*AF$4,"") ->  | AG19: =IFERROR(VLOOKUP($C19,'19,02,22'!$B$5:$J$150,AG$7,FALSE)*AG$4,"") ->  | AH19: =IFERROR(VLOOKUP($C19,'23,02,22'!$B$5:$J$150,AH$7,FALSE)*AH$4,"") -> 11.61903542 | AI19: =IFERROR(VLOOKUP($C19,'29,04,22'!$B$5:$J$150,AI$7,FALSE)*AI$4,"") ->  | AJ19: =IFERROR(VLOOKUP($C19,'30,04,22'!$B$5:$J$150,AJ$7,FALSE)*AJ$4,"") ->  | AK19: =IFERROR(VLOOKUP($C19,'10,06,22'!$B$5:$J$150,AK$7,FALSE)*AK$4,"") -> 56.14022234 | AL19: =IFERROR(VLOOKUP($C19,'17,06,22'!$B$5:$J$150,AL$7,FALSE)*AL$4,"") ->  | AM19: =IFERROR(VLOOKUP($C19,'02,07,22'!$B$5:$J$150,AM$7,FALSE)*AM$4,"") ->  | AN19: =IFERROR(VLOOKUP($C19,'23,07,22'!$B$5:$J$150,AN$7,FALSE)*AN$4,"") ->  | AO19: =IFERROR(VLOOKUP($C19,'22,07,22'!$B$5:$J$150,AO$7,FALSE)*AO$4,"") ->  | AP19: =IFERROR(VLOOKUP($C19,'20,08,22'!$B$5:$J$150,AP$7,FALSE)*AP$4,"") ->  | AQ19: =IFERROR(VLOOKUP($C19,'10,09,22'!$B$5:$J$150,AQ$7,FALSE)*AQ$4,"") ->  | AR19: =IFERROR(VLOOKUP($C19,'14,09,22'!$B$5:$J$150,AR$7,FALSE)*AR$4,"") -> 59.25285554 | AS19: =IFERROR(VLOOKUP($C19,'23,09,22'!$B$5:$J$150,AS$7,FALSE)*AS$4,"") ->  | AT19: =IFERROR(VLOOKUP($C19,'15,10,22'!$B$5:$J$150,AT$7,FALSE)*AT$4,"") ->  | FA19: =COUNTBLANK(FB19:FC19) -> 0 | FB19: 1 | FC19: Доррер Алексей | FD19: М | FE19: 1 | FF19: Россия | FG19: 1 | FH19: Ленинградская область
A20: 11 | B20: =IFERROR(IF(K20=0,"",IF($K$7=1,RANK(K20,K$10:K$510),COUNTIF(K$10:K$510,">0")-RANK(K20,K$10:K$510)+1)),"") -> 11 | C20: Потапов Дмитрий | D20: М | E20: =IF(E$9="",1,IF(E$9=D20,1,0)) -> 1 | F20: Россия | G20: =IF(G$9="",1,IF(G$9=F20,1,0)) -> 1 | H20: Брянская область | I20: =IF(I$9="",1,IF(I$9=H20,1,0)) -> 1 | J20: =IFERROR(IF($K$7=1,SUMPRODUCT(LARGE(L20:ED20,{1,2,3,4})),AVERAGE(L20:ED20)),"") -> 150.2291298 | K20: =IFERROR(J20*E20*G20*I20,"") -> 150.2291298 | L20: =IF($K$7=1,0,"") -> 0 | M20: =IF($K$7=1,0,"") -> 0 | N20: =IF($K$7=1,0,"") -> 0 | O20: =IF($K$7=1,0,"") -> 0 | P20: =IFERROR(VLOOKUP($C20,'06,09,19'!$B$5:$J$150,P$7,FALSE)*P$4,"") ->  | Q20: =IFERROR(VLOOKUP($C20,'17,08,20'!$B$5:$J$150,Q$7,FALSE)*Q$4,"") -> 1.583821051 | R20: =IFERROR(VLOOKUP($C20,'01,10,20'!$B$5:$J$150,R$7,FALSE)*R$4,"") ->  | S20: =IFERROR(VLOOKUP($C20,'08,10,20'!$B$5:$J$150,S$7,FALSE)*S$4,"") ->  | T20: =IFERROR(VLOOKUP($C20,'08,01,21'!$B$5:$J$150,T$7,FALSE)*T$4,"") ->  | U20: =IFERROR(VLOOKUP($C20,'23,01,21'!$B$5:$J$150,U$7,FALSE)*U$4,"") ->  | V20: =IFERROR(VLOOKUP($C20,'23,04,21'!$B$5:$J$150,V$7,FALSE)*V$4,"") ->  | W20: =IFERROR(VLOOKUP($C20,'07,05,21'!$B$5:$J$150,W$7,FALSE)*W$4,"") ->  | X20: =IFERROR(VLOOKUP($C20,'11,06,21'!$B$5:$J$150,X$7,FALSE)*X$4,"") ->  | Y20: =IFERROR(VLOOKUP($C20,'18,06,21'!$B$5:$J$150,Y$7,FALSE)*Y$4,"") ->  | Z20: =IFERROR(VLOOKUP($C20,'26,06,21'!$B$5:$J$134,Z$7,FALSE)*Z$4,"") ->  | AA20: =IFERROR(VLOOKUP($C20,'25,06,21'!$B$5:$J$150,AA$7,FALSE)*AA$4,"") ->  | AB20: =IFERROR(VLOOKUP($C20,'29,07,21'!$B$5:$J$150,AB$7,FALSE)*AB$4,"") -> 22.38403052 | AC20: =IFERROR(VLOOKUP($C20,'21,08,21'!$B$5:$J$150,AC$7,FALSE)*AC$4,"") ->  | AD20: =IFERROR(VLOOKUP($C20,'02,09,21'!$B$5:$J$150,AD$7,FALSE)*AD$4,"") -> 48.55066272 | AE20: =IFERROR(VLOOKUP($C20,'07,10,21'!$B$5:$J$150,AE$7,FALSE)*AE$4,"") ->  | AF20: =IFERROR(VLOOKUP($C20,'30,10,21'!$B$5:$J$150,AF$7,FALSE)*AF$4,"") ->  | AG20: =IFERROR(VLOOKUP($C20,'19,02,22'!$B$5:$J$150,AG$7,FALSE)*AG$4,"") ->  | AH20: =IFERROR(VLOOKUP($C20,'23,02,22'!$B$5:$J$150,AH$7,FALSE)*AH$4,"") ->  | AI20: =IFERROR(VLOOKUP($C20,'29,04,22'!$B$5:$J$150,AI$7,FALSE)*AI$4,"") ->  | AJ20: =IFERROR(VLOOKUP($C20,'30,04,22'!$B$5:$J$150,AJ$7,FALSE)*AJ$4,"") ->  | AK20: =IFERROR(VLOOKUP($C20,'10,06,22'!$B$5:$J$150,AK$7,FALSE)*AK$4,"") ->  | AL20: =IFERROR(VLOOKUP($C20,'17,06,22'!$B$5:$J$150,AL$7,FALSE)*AL$4,"") ->  | AM20: =IFERROR(VLOOKUP($C20,'02,07,22'!$B$5:$J$150,AM$7,FALSE)*AM$4,"") ->  | AN20: =IFERROR(VLOOKUP($C20,'23,07,22'!$B$5:$J$150,AN$7,FALSE)*AN$4,"") ->  | AO20: =IFERROR(VLOOKUP($C20,'22,07,22'!$B$5:$J$150,AO$7,FALSE)*AO$4,"") ->  | AP20: =IFERROR(VLOOKUP($C20,'20,08,22'!$B$5:$J$150,AP$7,FALSE)*AP$4,"") ->  | AQ20: =IFERROR(VLOOKUP($C20,'10,09,22'!$B$5:$J$150,AQ$7,FALSE)*AQ$4,"") ->  | AR20: =IFERROR(VLOOKUP($C20,'14,09,22'!$B$5:$J$150,AR$7,FALSE)*AR$4,"") -> 77.71061547 | AS20: =IFERROR(VLOOKUP($C20,'23,09,22'!$B$5:$J$150,AS$7,FALSE)*AS$4,"") ->  | AT20: =IFERROR(VLOOKUP($C20,'15,10,22'!$B$5:$J$150,AT$7,FALSE)*AT$4,"") ->  | FA20: =COUNTBLANK(FB20:FC20) -> 0 | FB20: 38 | FC20: Драчев Дмитрий | FD20: М | FE20: 1 | FF20: Россия | FG20: 1 | FH20: Ленинградская область
A21: 12 | B21: =IFERROR(IF(K21=0,"",IF($K$7=1,RANK(K21,K$10:K$510),COUNTIF(K$10:K$510,">0")-RANK(K21,K$10:K$510)+1)),"") -> 12 | C21: Доррер Алексей | D21: М | E21: =IF(E$9="",1,IF(E$9=D21,1,0)) -> 1 | F21: Россия | G21: =IF(G$9="",1,IF(G$9=F21,1,0)) -> 1 | H21: Ленинградская область | I21: =IF(I$9="",1,IF(I$9=H21,1,0)) -> 1 | J21: =IFERROR(IF($K$7=1,SUMPRODUCT(LARGE(L21:ED21,{1,2,3,4})),AVERAGE(L21:ED21)),"") -> 148.2503795 | K21: =IFERROR(J21*E21*G21*I21,"") -> 148.2503795 | L21: =IF($K$7=1,0,"") -> 0 | M21: =IF($K$7=1,0,"") -> 0 | N21: =IF($K$7=1,0,"") -> 0 | O21: =IF($K$7=1,0,"") -> 0 | P21: =IFERROR(VLOOKUP($C21,'06,09,19'!$B$5:$J$150,P$7,FALSE)*P$4,"") ->  | Q21: =IFERROR(VLOOKUP($C21,'17,08,20'!$B$5:$J$150,Q$7,FALSE)*Q$4,"") ->  | R21: =IFERROR(VLOOKUP($C21,'01,10,20'!$B$5:$J$150,R$7,FALSE)*R$4,"") ->  | S21: =IFERROR(VLOOKUP($C21,'08,10,20'!$B$5:$J$150,S$7,FALSE)*S$4,"") -> 2.186927782 | T21: =IFERROR(VLOOKUP($C21,'08,01,21'!$B$5:$J$150,T$7,FALSE)*T$4,"") -> 0.9105409997 | U21: =IFERROR(VLOOKUP($C21,'23,01,21'!$B$5:$J$150,U$7,FALSE)*U$4,"") -> 4.127930079 | V21: =IFERROR(VLOOKUP($C21,'23,04,21'!$B$5:$J$150,V$7,FALSE)*V$4,"") ->  | W21: =IFERROR(VLOOKUP($C21,'07,05,21'!$B$5:$J$150,W$7,FALSE)*W$4,"") ->  | X21: =IFERROR(VLOOKUP($C21,'11,06,21'!$B$5:$J$150,X$7,FALSE)*X$4,"") -> 16.80380529 | Y21: =IFERROR(VLOOKUP($C21,'18,06,21'!$B$5:$J$150,Y$7,FALSE)*Y$4,"") ->  | Z21: =IFERROR(VLOOKUP($C21,'26,06,21'!$B$5:$J$134,Z$7,FALSE)*Z$4,"") -> 5.73865426 | AA21: =IFERROR(VLOOKUP($C21,'25,06,21'!$B$5:$J$150,AA$7,FALSE)*AA$4,"") ->  | AB21: =IFERROR(VLOOKUP($C21,'29,07,21'!$B$5:$J$150,AB$7,FALSE)*AB$4,"") ->  | AC21: =IFERROR(VLOOKUP($C21,'21,08,21'!$B$5:$J$150,AC$7,FALSE)*AC$4,"") -> 5.51640793 | AD21: =IFERROR(VLOOKUP($C21,'02,09,21'!$B$5:$J$150,AD$7,FALSE)*AD$4,"") -> 52.66868441 | AE21: =IFERROR(VLOOKUP($C21,'07,10,21'!$B$5:$J$150,AE$7,FALSE)*AE$4,"") ->  | AF21: =IFERROR(VLOOKUP($C21,'30,10,21'!$B$5:$J$150,AF$7,FALSE)*AF$4,"") ->  | AG21: =IFERROR(VLOOKUP($C21,'19,02,22'!$B$5:$J$150,AG$7,FALSE)*AG$4,"") ->  | AH21: =IFERROR(VLOOKUP($C21,'23,02,22'!$B$5:$J$150,AH$7,FALSE)*AH$4,"") -> 18.30493483 | AI21: =IFERROR(VLOOKUP($C21,'29,04,22'!$B$5:$J$150,AI$7,FALSE)*AI$4,"") -> 27.93034538 | AJ21: =IFERROR(VLOOKUP($C21,'30,04,22'!$B$5:$J$150,AJ$7,FALSE)*AJ$4,"") ->  | AK21: =IFERROR(VLOOKUP($C21,'10,06,22'!$B$5:$J$150,AK$7,FALSE)*AK$4,"") ->  | AL21: =IFERROR(VLOOKUP($C21,'17,06,22'!$B$5:$J$150,AL$7,FALSE)*AL$4,"") ->  | AM21: =IFERROR(VLOOKUP($C21,'02,07,22'!$B$5:$J$150,AM$7,FALSE)*AM$4,"") -> 24.373026 | AN21: =IFERROR(VLOOKUP($C21,'23,07,22'!$B$5:$J$150,AN$7,FALSE)*AN$4,"") ->  | AO21: =IFERROR(VLOOKUP($C21,'22,07,22'!$B$5:$J$150,AO$7,FALSE)*AO$4,"") ->  | AP21: =IFERROR(VLOOKUP($C21,'20,08,22'!$B$5:$J$150,AP$7,FALSE)*AP$4,"") ->  | AQ21: =IFERROR(VLOOKUP($C21,'10,09,22'!$B$5:$J$150,AQ$7,FALSE)*AQ$4,"") -> 13.75911277 | AR21: =IFERROR(VLOOKUP($C21,'14,09,22'!$B$5:$J$150,AR$7,FALSE)*AR$4,"") -> 43.27832376 | AS21: =IFERROR(VLOOKUP($C21,'23,09,22'!$B$5:$J$150,AS$7,FALSE)*AS$4,"") ->  | AT21: =IFERROR(VLOOKUP($C21,'15,10,22'!$B$5:$J$150,AT$7,FALSE)*AT$4,"") ->  | FA21: =COUNTBLANK(FB21:FC21) -> 0 | FB21: 14 | FC21: Дроздов Алексей | FD21: М | FE21: 1 | FF21: Россия | FG21: 1 | FH21: г.Санкт-Петербург
A22: 13 | B22: =IFERROR(IF(K22=0,"",IF($K$7=1,RANK(K22,K$10:K$510),COUNTIF(K$10:K$510,">0")-RANK(K22,K$10:K$510)+1)),"") -> 13 | C22: Зотов Антон | D22: М | E22: =IF(E$9="",1,IF(E$9=D22,1,0)) -> 1 | F22: Россия | G22: =IF(G$9="",1,IF(G$9=F22,1,0)) -> 1 | H22: Калининградская область | I22: =IF(I$9="",1,IF(I$9=H22,1,0)) -> 1 | J22: =IFERROR(IF($K$7=1,SUMPRODUCT(LARGE(L22:ED22,{1,2,3,4})),AVERAGE(L22:ED22)),"") -> 111.0728881 | K22: =IFERROR(J22*E22*G22*I22,"") -> 111.0728881 | L22: =IF($K$7=1,0,"") -> 0 | M22: =IF($K$7=1,0,"") -> 0 | N22: =IF($K$7=1,0,"") -> 0 | O22: =IF($K$7=1,0,"") -> 0 | P22: =IFERROR(VLOOKUP($C22,'06,09,19'!$B$5:$J$150,P$7,FALSE)*P$4,"") ->  | Q22: =IFERROR(VLOOKUP($C22,'17,08,20'!$B$5:$J$150,Q$7,FALSE)*Q$4,"") ->  | R22: =IFERROR(VLOOKUP($C22,'01,10,20'!$B$5:$J$150,R$7,FALSE)*R$4,"") ->  | S22: =IFERROR(VLOOKUP($C22,'08,10,20'!$B$5:$J$150,S$7,FALSE)*S$4,"") ->  | T22: =IFERROR(VLOOKUP($C22,'08,01,21'!$B$5:$J$150,T$7,FALSE)*T$4,"") ->  | U22: =IFERROR(VLOOKUP($C22,'23,01,21'!$B$5:$J$150,U$7,FALSE)*U$4,"") -> 4.410751372 | V22: =IFERROR(VLOOKUP($C22,'23,04,21'!$B$5:$J$150,V$7,FALSE)*V$4,"") ->  | W22: =IFERROR(VLOOKUP($C22,'07,05,21'!$B$5:$J$150,W$7,FALSE)*W$4,"") ->  | X22: =IFERROR(VLOOKUP($C22,'11,06,21'!$B$5:$J$150,X$7,FALSE)*X$4,"") ->  | Y22: =IFERROR(VLOOKUP($C22,'18,06,21'!$B$5:$J$150,Y$7,FALSE)*Y$4,"") ->  | Z22: =IFERROR(VLOOKUP($C22,'26,06,21'!$B$5:$J$134,Z$7,FALSE)*Z$4,"") ->  | AA22: =IFERROR(VLOOKUP($C22,'25,06,21'!$B$5:$J$150,AA$7,FALSE)*AA$4,"") ->  | AB22: =IFERROR(VLOOKUP($C22,'29,07,21'!$B$5:$J$150,AB$7,FALSE)*AB$4,"") -> 12.04816906 | AC22: =IFERROR(VLOOKUP($C22,'21,08,21'!$B$5:$J$150,AC$7,FALSE)*AC$4,"") ->  | AD22: =IFERROR(VLOOKUP($C22,'02,09,21'!$B$5:$J$150,AD$7,FALSE)*AD$4,"") ->  | AE22: =IFERROR(VLOOKUP($C22,'07,10,21'!$B$5:$J$150,AE$7,FALSE)*AE$4,"") ->  | AF22: =IFERROR(VLOOKUP($C22,'30,10,21'!$B$5:$J$150,AF$7,FALSE)*AF$4,"") -> 39.11545021 | AG22: =IFERROR(VLOOKUP($C22,'19,02,22'!$B$5:$J$150,AG$7,FALSE)*AG$4,"") ->  | AH22: =IFERROR(VLOOKUP($C22,'23,02,22'!$B$5:$J$150,AH$7,FALSE)*AH$4,"") ->  | AI22: =IFERROR(VLOOKUP($C22,'29,04,22'!$B$5:$J$150,AI$7,FALSE)*AI$4,"") ->  | AJ22: =IFERROR(VLOOKUP($C22,'30,04,22'!$B$5:$J$150,AJ$7,FALSE)*AJ$4,"") ->  | AK22: =IFERROR(VLOOKUP($C22,'10,06,22'!$B$5:$J$150,AK$7,FALSE)*AK$4,"") -> 8.954417807 | AL22: =IFERROR(VLOOKUP($C22,'17,06,22'!$B$5:$J$150,AL$7,FALSE)*AL$4,"") ->  | AM22: =IFERROR(VLOOKUP($C22,'02,07,22'!$B$5:$J$150,AM$7,FALSE)*AM$4,"") ->  | AN22: =IFERROR(VLOOKUP($C22,'23,07,22'!$B$5:$J$150,AN$7,FALSE)*AN$4,"") ->  | AO22: =IFERROR(VLOOKUP($C22,'22,07,22'!$B$5:$J$150,AO$7,FALSE)*AO$4,"") ->  | AP22: =IFERROR(VLOOKUP($C22,'20,08,22'!$B$5:$J$150,AP$7,FALSE)*AP$4,"") ->  | AQ22: =IFERROR(VLOOKUP($C22,'10,09,22'!$B$5:$J$150,AQ$7,FALSE)*AQ$4,"") ->  | AR22: =IFERROR(VLOOKUP($C22,'14,09,22'!$B$5:$J$150,AR$7,FALSE)*AR$4,"") -> 50.95485097 | AS22: =IFERROR(VLOOKUP($C22,'23,09,22'!$B$5:$J$150,AS$7,FALSE)*AS$4,"") ->  | AT22: =IFERROR(VLOOKUP($C22,'15,10,22'!$B$5:$J$150,AT$7,FALSE)*AT$4,"") ->  | FA22: =COUNTBLANK(FB22:FC22) -> 0 | FB22: 32 | FC22: Евстратов Виктор | FD22: М | FE22: 1 | FF22: Россия | FG22: 1 | FH22: Ленинградская область
A23: 14 | B23: =IFERROR(IF(K23=0,"",IF($K$7=1,RANK(K23,K$10:K$510),COUNTIF(K$10:K$510,">0")-RANK(K23,K$10:K$510)+1)),"") -> 14 | C23: Мичурин Андрей | D23: М | E23: =IF(E$9="",1,IF(E$9=D23,1,0)) -> 1 | F23: Россия | G23: =IF(G$9="",1,IF(G$9=F23,1,0)) -> 1 | H23: Калининградская область | I23: =IF(I$9="",1,IF(I$9=H23,1,0)) -> 1 | J23: =IFERROR(IF($K$7=1,SUMPRODUCT(LARGE(L23:ED23,{1,2,3,4})),AVERAGE(L23:ED23)),"") -> 108.7152601 | K23: =IFERROR(J23*E23*G23*I23,"") -> 108.7152601 | L23: =IF($K$7=1,0,"") -> 0 | M23: =IF($K$7=1,0,"") -> 0 | N23: =IF($K$7=1,0,"") -> 0 | O23: =IF($K$7=1,0,"") -> 0 | P23: =IFERROR(VLOOKUP($C23,'06,09,19'!$B$5:$J$150,P$7,FALSE)*P$4,"") ->  | Q23: =IFERROR(VLOOKUP($C23,'17,08,20'!$B$5:$J$150,Q$7,FALSE)*Q$4,"") ->  | R23: =IFERROR(VLOOKUP($C23,'01,10,20'!$B$5:$J$150,R$7,FALSE)*R$4,"") ->  | S23: =IFERROR(VLOOKUP($C23,'08,10,20'!$B$5:$J$150,S$7,FALSE)*S$4,"") ->  | T23: =IFERROR(VLOOKUP($C23,'08,01,21'!$B$5:$J$150,T$7,FALSE)*T$4,"") ->  | U23: =IFERROR(VLOOKUP($C23,'23,01,21'!$B$5:$J$150,U$7,FALSE)*U$4,"") ->  | V23: =IFERROR(VLOOKUP($C23,'23,04,21'!$B$5:$J$150,V$7,FALSE)*V$4,"") ->  | W23: =IFERROR(VLOOKUP($C23,'07,05,21'!$B$5:$J$150,W$7,FALSE)*W$4,"") ->  | X23: =IFERROR(VLOOKUP($C23,'11,06,21'!$B$5:$J$150,X$7,FALSE)*X$4,"") ->  | Y23: =IFERROR(VLOOKUP($C23,'18,06,21'!$B$5:$J$150,Y$7,FALSE)*Y$4,"") ->  | Z23: =IFERROR(VLOOKUP($C23,'26,06,21'!$B$5:$J$134,Z$7,FALSE)*Z$4,"") ->  | AA23: =IFERROR(VLOOKUP($C23,'25,06,21'!$B$5:$J$150,AA$7,FALSE)*AA$4,"") ->  | AB23: =IFERROR(VLOOKUP($C23,'29,07,21'!$B$5:$J$150,AB$7,FALSE)*AB$4,"") ->  | AC23: =IFERROR(VLOOKUP($C23,'21,08,21'!$B$5:$J$150,AC$7,FALSE)*AC$4,"") -> 0.4479846851 | AD23: =IFERROR(VLOOKUP($C23,'02,09,21'!$B$5:$J$150,AD$7,FALSE)*AD$4,"") -> 4.987958274 | AE23: =IFERROR(VLOOKUP($C23,'07,10,21'!$B$5:$J$150,AE$7,FALSE)*AE$4,"") ->  | AF23: =IFERROR(VLOOKUP($C23,'30,10,21'!$B$5:$J$150,AF$7,FALSE)*AF$4,"") -> 11.73816172 | AG23: =IFERROR(VLOOKUP($C23,'19,02,22'!$B$5:$J$150,AG$7,FALSE)*AG$4,"") ->  | AH23: =IFERROR(VLOOKUP($C23,'23,02,22'!$B$5:$J$150,AH$7,FALSE)*AH$4,"") -> 15.95378742 | AI23: =IFERROR(VLOOKUP($C23,'29,04,22'!$B$5:$J$150,AI$7,FALSE)*AI$4,"") -> 35.15361497 | AJ23: =IFERROR(VLOOKUP($C23,'30,04,22'!$B$5:$J$150,AJ$7,FALSE)*AJ$4,"") ->  | AK23: =IFERROR(VLOOKUP($C23,'10,06,22'!$B$5:$J$150,AK$7,FALSE)*AK$4,"") -> 30.38393876 | AL23: =IFERROR(VLOOKUP($C23,'17,06,22'!$B$5:$J$150,AL$7,FALSE)*AL$4,"") ->  | AM23: =IFERROR(VLOOKUP($C23,'02,07,22'!$B$5:$J$150,AM$7,FALSE)*AM$4,"") -> 20.98932899 | AN23: =IFERROR(VLOOKUP($C23,'23,07,22'!$B$5:$J$150,AN$7,FALSE)*AN$4,"") -> 5.846568544 | AO23: =IFERROR(VLOOKUP($C23,'22,07,22'!$B$5:$J$150,AO$7,FALSE)*AO$4,"") ->  | AP23: =IFERROR(VLOOKUP($C23,'20,08,22'!$B$5:$J$150,AP$7,FALSE)*AP$4,"") ->  | AQ23: =IFERROR(VLOOKUP($C23,'10,09,22'!$B$5:$J$150,AQ$7,FALSE)*AQ$4,"") -> 15.95299856 | AR23: =IFERROR(VLOOKUP($C23,'14,09,22'!$B$5:$J$150,AR$7,FALSE)*AR$4,"") -> 22.1883774 | AS23: =IFERROR(VLOOKUP($C23,'23,09,22'!$B$5:$J$150,AS$7,FALSE)*AS$4,"") ->  | AT23: =IFERROR(VLOOKUP($C23,'15,10,22'!$B$5:$J$150,AT$7,FALSE)*AT$4,"") -> 5.68342907 | FA23: =COUNTBLANK(FB23:FC23) -> 0 | FB23: 17 | FC23: Ермакова Ольга | FD23: Ж | FE23: 1 | FF23: Россия | FG23: 1 | FH23: Ленинградская область
A24: 15 | B24: =IFERROR(IF(K24=0,"",IF($K$7=1,RANK(K24,K$10:K$510),COUNTIF(K$10:K$510,">0")-RANK(K24,K$10:K$510)+1)),"") -> 15 | C24: Кулистиков Евгений | D24: М | E24: =IF(E$9="",1,IF(E$9=D24,1,0)) -> 1 | F24: Россия | G24: =IF(G$9="",1,IF(G$9=F24,1,0)) -> 1 | H24: Брянская область | I24: =IF(I$9="",1,IF(I$9=H24,1,0)) -> 1 | J24: =IFERROR(IF($K$7=1,SUMPRODUCT(LARGE(L24:ED24,{1,2,3,4})),AVERAGE(L24:ED24)),"") -> 104.7456295 | K24: =IFERROR(J24*E24*G24*I24,"") -> 104.7456295 | L24: =IF($K$7=1,0,"") -> 0 | M24: =IF($K$7=1,0,"") -> 0 | N24: =IF($K$7=1,0,"") -> 0 | O24: =IF($K$7=1,0,"") -> 0 | P24: =IFERROR(VLOOKUP($C24,'06,09,19'!$B$5:$J$150,P$7,FALSE)*P$4,"") ->  | Q24: =IFERROR(VLOOKUP($C24,'17,08,20'!$B$5:$J$150,Q$7,FALSE)*Q$4,"") ->  | R24: =IFERROR(VLOOKUP($C24,'01,10,20'!$B$5:$J$150,R$7,FALSE)*R$4,"") ->  | S24: =IFERROR(VLOOKUP($C24,'08,10,20'!$B$5:$J$150,S$7,FALSE)*S$4,"") ->  | T24: =IFERROR(VLOOKUP($C24,'08,01,21'!$B$5:$J$150,T$7,FALSE)*T$4,"") ->  | U24: =IFERROR(VLOOKUP($C24,'23,01,21'!$B$5:$J$150,U$7,FALSE)*U$4,"") ->  | V24: =IFERROR(VLOOKUP($C24,'23,04,21'!$B$5:$J$150,V$7,FALSE)*V$4,"") ->  | W24: =IFERROR(VLOOKUP($C24,'07,05,21'!$B$5:$J$150,W$7,FALSE)*W$4,"") ->  | X24: =IFERROR(VLOOKUP($C24,'11,06,21'!$B$5:$J$150,X$7,FALSE)*X$4,"") ->  | Y24: =IFERROR(VLOOKUP($C24,'18,06,21'!$B$5:$J$150,Y$7,FALSE)*Y$4,"") ->  | Z24: =IFERROR(VLOOKUP($C24,'26,06,21'!$B$5:$J$134,Z$7,FALSE)*Z$4,"") ->  | AA24: =IFERROR(VLOOKUP($C24,'25,06,21'!$B$5:$J$150,AA$7,FALSE)*AA$4,"") ->  | AB24: =IFERROR(VLOOKUP($C24,'29,07,21'!$B$5:$J$150,AB$7,FALSE)*AB$4,"") -> 17.95011607 | AC24: =IFERROR(VLOOKUP($C24,'21,08,21'!$B$5:$J$150,AC$7,FALSE)*AC$4,"") ->  | AD24: =IFERROR(VLOOKUP($C24,'02,09,21'!$B$5:$J$150,AD$7,FALSE)*AD$4,"") -> 30.37766925 | AE24: =IFERROR(VLOOKUP($C24,'07,10,21'!$B$5:$J$150,AE$7,FALSE)*AE$4,"") ->  | AF24: =IFERROR(VLOOKUP($C24,'30,10,21'!$B$5:$J$150,AF$7,FALSE)*AF$4,"") ->  | AG24: =IFERROR(VLOOKUP($C24,'19,02,22'!$B$5:$J$150,AG$7,FALSE)*AG$4,"") ->  | AH24: =IFERROR(VLOOKUP($C24,'23,02,22'!$B$5:$J$150,AH$7,FALSE)*AH$4,"") ->  | AI24: =IFERROR(VLOOKUP($C24,'29,04,22'!$B$5:$J$150,AI$7,FALSE)*AI$4,"") ->  | AJ24: =IFERROR(VLOOKUP($C24,'30,04,22'!$B$5:$J$150,AJ$7,FALSE)*AJ$4,"") ->  | AK24: =IFERROR(VLOOKUP($C24,'10,06,22'!$B$5:$J$150,AK$7,FALSE)*AK$4,"") ->  | AL24: =IFERROR(VLOOKUP($C24,'17,06,22'!$B$5:$J$150,AL$7,FALSE)*AL$4,"") ->  | AM24: =IFERROR(VLOOKUP($C24,'02,07,22'!$B$5:$J$150,AM$7,FALSE)*AM$4,"") ->  | AN24: =IFERROR(VLOOKUP($C24,'23,07,22'!$B$5:$J$150,AN$7,FALSE)*AN$4,"") ->  | AO24: =IFERROR(VLOOKUP($C24,'22,07,22'!$B$5:$J$150,AO$7,FALSE)*AO$4,"") ->  | AP24: =IFERROR(VLOOKUP($C24,'20,08,22'!$B$5:$J$150,AP$7,FALSE)*AP$4,"") ->  | AQ24: =IFERROR(VLOOKUP($C24,'10,09,22'!$B$5:$J$150,AQ$7,FALSE)*AQ$4,"") ->  | AR24: =IFERROR(VLOOKUP($C24,'14,09,22'!$B$5:$J$150,AR$7,FALSE)*AR$4,"") -> 56.41784419 | AS24: =IFERROR(VLOOKUP($C24,'23,09,22'!$B$5:$J$150,AS$7,FALSE)*AS$4,"") ->  | AT24: =IFERROR(VLOOKUP($C24,'15,10,22'!$B$5:$J$150,AT$7,FALSE)*AT$4,"") ->  | FA24: =COUNTBLANK(FB24:FC24) -> 0 | FB24: 2 | FC24: Звездин Иван | FD24: М | FE24: 1 | FF24: Россия | FG24: 1 | FH24: Ленинградская область
A25: 16 | B25: =IFERROR(IF(K25=0,"",IF($K$7=1,RANK(K25,K$10:K$510),COUNTIF(K$10:K$510,">0")-RANK(K25,K$10:K$510)+1)),"") -> 16 | C25: Калинин Константин | D25: М | E25: =IF(E$9="",1,IF(E$9=D25,1,0)) -> 1 | F25: Россия | G25: =IF(G$9="",1,IF(G$9=F25,1,0)) -> 1 | H25: Ленинградская область | I25: =IF(I$9="",1,IF(I$9=H25,1,0)) -> 1 | J25: =IFERROR(IF($K$7=1,SUMPRODUCT(LARGE(L25:ED25,{1,2,3,4})),AVERAGE(L25:ED25)),"") -> 103.2029757 | K25: =IFERROR(J25*E25*G25*I25,"") -> 103.2029757 | L25: =IF($K$7=1,0,"") -> 0 | M25: =IF($K$7=1,0,"") -> 0 | N25: =IF($K$7=1,0,"") -> 0 | O25: =IF($K$7=1,0,"") -> 0 | P25: =IFERROR(VLOOKUP($C25,'06,09,19'!$B$5:$J$150,P$7,FALSE)*P$4,"") ->  | Q25: =IFERROR(VLOOKUP($C25,'17,08,20'!$B$5:$J$150,Q$7,FALSE)*Q$4,"") ->  | R25: =IFERROR(VLOOKUP($C25,'01,10,20'!$B$5:$J$150,R$7,FALSE)*R$4,"") ->  | S25: =IFERROR(VLOOKUP($C25,'08,10,20'!$B$5:$J$150,S$7,FALSE)*S$4,"") -> 2.413388761 | T25: =IFERROR(VLOOKUP($C25,'08,01,21'!$B$5:$J$150,T$7,FALSE)*T$4,"") ->  | U25: =IFERROR(VLOOKUP($C25,'23,01,21'!$B$5:$J$150,U$7,FALSE)*U$4,"") -> 0.4804269069 | V25: =IFERROR(VLOOKUP($C25,'23,04,21'!$B$5:$J$150,V$7,FALSE)*V$4,"") ->  | W25: =IFERROR(VLOOKUP($C25,'07,05,21'!$B$5:$J$150,W$7,FALSE)*W$4,"") ->  | X25: =IFERROR(VLOOKUP($C25,'11,06,21'!$B$5:$J$150,X$7,FALSE)*X$4,"") ->  | Y25: =IFERROR(VLOOKUP($C25,'18,06,21'!$B$5:$J$150,Y$7,FALSE)*Y$4,"") ->  | Z25: =IFERROR(VLOOKUP($C25,'26,06,21'!$B$5:$J$134,Z$7,FALSE)*Z$4,"") ->  | AA25: =IFERROR(VLOOKUP($C25,'25,06,21'!$B$5:$J$150,AA$7,FALSE)*AA$4,"") ->  | AB25: =IFERROR(VLOOKUP($C25,'29,07,21'!$B$5:$J$150,AB$7,FALSE)*AB$4,"") ->  | AC25: =IFERROR(VLOOKUP($C25,'21,08,21'!$B$5:$J$150,AC$7,FALSE)*AC$4,"") ->  | AD25: =IFERROR(VLOOKUP($C25,'02,09,21'!$B$5:$J$150,AD$7,FALSE)*AD$4,"") ->  | AE25: =IFERROR(VLOOKUP($C25,'07,10,21'!$B$5:$J$150,AE$7,FALSE)*AE$4,"") ->  | AF25: =IFERROR(VLOOKUP($C25,'30,10,21'!$B$5:$J$150,AF$7,FALSE)*AF$4,"") ->  | AG25: =IFERROR(VLOOKUP($C25,'19,02,22'!$B$5:$J$150,AG$7,FALSE)*AG$4,"") ->  | AH25: =IFERROR(VLOOKUP($C25,'23,02,22'!$B$5:$J$150,AH$7,FALSE)*AH$4,"") ->  | AI25: =IFERROR(VLOOKUP($C25,'29,04,22'!$B$5:$J$150,AI$7,FALSE)*AI$4,"") -> 40.29567206 | AJ25: =IFERROR(VLOOKUP($C25,'30,04,22'!$B$5:$J$150,AJ$7,FALSE)*AJ$4,"") ->  | AK25: =IFERROR(VLOOKUP($C25,'10,06,22'!$B$5:$J$150,AK$7,FALSE)*AK$4,"") ->  | AL25: =IFERROR(VLOOKUP($C25,'17,06,22'!$B$5:$J$150,AL$7,FALSE)*AL$4,"") ->  | AM25: =IFERROR(VLOOKUP($C25,'02,07,22'!$B$5:$J$150,AM$7,FALSE)*AM$4,"") ->  | AN25: =IFERROR(VLOOKUP($C25,'23,07,22'!$B$5:$J$150,AN$7,FALSE)*AN$4,"") ->  | AO25: =IFERROR(VLOOKUP($C25,'22,07,22'!$B$5:$J$150,AO$7,FALSE)*AO$4,"") -> 19.63620142 | AP25: =IFERROR(VLOOKUP($C25,'20,08,22'!$B$5:$J$150,AP$7,FALSE)*AP$4,"") ->  | AQ25: =IFERROR(VLOOKUP($C25,'10,09,22'!$B$5:$J$150,AQ$7,FALSE)*AQ$4,"") ->  | AR25: =IFERROR(VLOOKUP($C25,'14,09,22'!$B$5:$J$150,AR$7,FALSE)*AR$4,"") -> 40.85771345 | AS25: =IFERROR(VLOOKUP($C25,'23,09,22'!$B$5:$J$150,AS$7,FALSE)*AS$4,"") ->  | AT25: =IFERROR(VLOOKUP($C25,'15,10,22'!$B$5:$J$150,AT$7,FALSE)*AT$4,"") ->  | FA25: =COUNTBLANK(FB25:FC25) -> 0 | FB25: 7 | FC25: Зубкова Анастасия | FD25: Ж | FE25: 1 | FF25: Россия | FG25: 1 | FH25: Ленинградская область
A26: 17 | B26: =IFERROR(IF(K26=0,"",IF($K$7=1,RANK(K26,K$10:K$510),COUNTIF(K$10:K$510,">0")-RANK(K26,K$10:K$510)+1)),"") -> 17 | C26: Крикун Константин | D26: М | E26: =IF(E$9="",1,IF(E$9=D26,1,0)) -> 1 | F26: Россия | G26: =IF(G$9="",1,IF(G$9=F26,1,0)) -> 1 | H26: Удмуртская республика | I26: =IF(I$9="",1,IF(I$9=H26,1,0)) -> 1 | J26: =IFERROR(IF($K$7=1,SUMPRODUCT(LARGE(L26:ED26,{1,2,3,4})),AVERAGE(L26:ED26)),"") -> 102.7129536 | K26: =IFERROR(J26*E26*G26*I26,"") -> 102.7129536 | L26: =IF($K$7=1,0,"") -> 0 | M26: =IF($K$7=1,0,"") -> 0 | N26: =IF($K$7=1,0,"") -> 0 | O26: =IF($K$7=1,0,"") -> 0 | P26: =IFERROR(VLOOKUP($C26,'06,09,19'!$B$5:$J$150,P$7,FALSE)*P$4,"") ->  | Q26: =IFERROR(VLOOKUP($C26,'17,08,20'!$B$5:$J$150,Q$7,FALSE)*Q$4,"") ->  | R26: =IFERROR(VLOOKUP($C26,'01,10,20'!$B$5:$J$150,R$7,FALSE)*R$4,"") ->  | S26: =IFERROR(VLOOKUP($C26,'08,10,20'!$B$5:$J$150,S$7,FALSE)*S$4,"") ->  | T26: =IFERROR(VLOOKUP($C26,'08,01,21'!$B$5:$J$150,T$7,FALSE)*T$4,"") ->  | U26: =IFERROR(VLOOKUP($C26,'23,01,21'!$B$5:$J$150,U$7,FALSE)*U$4,"") ->  | V26: =IFERROR(VLOOKUP($C26,'23,04,21'!$B$5:$J$150,V$7,FALSE)*V$4,"") ->  | W26: =IFERROR(VLOOKUP($C26,'07,05,21'!$B$5:$J$150,W$7,FALSE)*W$4,"") ->  | X26: =IFERROR(VLOOKUP($C26,'11,06,21'!$B$5:$J$150,X$7,FALSE)*X$4,"") ->  | Y26: =IFERROR(VLOOKUP($C26,'18,06,21'!$B$5:$J$150,Y$7,FALSE)*Y$4,"") ->  | Z26: =IFERROR(VLOOKUP($C26,'26,06,21'!$B$5:$J$134,Z$7,FALSE)*Z$4,"") ->  | AA26: =IFERROR(VLOOKUP($C26,'25,06,21'!$B$5:$J$150,AA$7,FALSE)*AA$4,"") ->  | AB26: =IFERROR(VLOOKUP($C26,'29,07,21'!$B$5:$J$150,AB$7,FALSE)*AB$4,"") ->  | AC26: =IFERROR(VLOOKUP($C26,'21,08,21'!$B$5:$J$150,AC$7,FALSE)*AC$4,"") ->  | AD26: =IFERROR(VLOOKUP($C26,'02,09,21'!$B$5:$J$150,AD$7,FALSE)*AD$4,"") ->  | AE26: =IFERROR(VLOOKUP($C26,'07,10,21'!$B$5:$J$150,AE$7,FALSE)*AE$4,"") ->  | AF26: =IFERROR(VLOOKUP($C26,'30,10,21'!$B$5:$J$150,AF$7,FALSE)*AF$4,"") ->  | AG26: =IFERROR(VLOOKUP($C26,'19,02,22'!$B$5:$J$150,AG$7,FALSE)*AG$4,"") ->  | AH26: =IFERROR(VLOOKUP($C26,'23,02,22'!$B$5:$J$150,AH$7,FALSE)*AH$4,"") ->  | AI26: =IFERROR(VLOOKUP($C26,'29,04,22'!$B$5:$J$150,AI$7,FALSE)*AI$4,"") ->  | AJ26: =IFERROR(VLOOKUP($C26,'30,04,22'!$B$5:$J$150,AJ$7,FALSE)*AJ$4,"") ->  | AK26: =IFERROR(VLOOKUP($C26,'10,06,22'!$B$5:$J$150,AK$7,FALSE)*AK$4,"") -> 18.29879058 | AL26: =IFERROR(VLOOKUP($C26,'17,06,22'!$B$5:$J$150,AL$7,FALSE)*AL$4,"") ->  | AM26: =IFERROR(VLOOKUP($C26,'02,07,22'!$B$5:$J$150,AM$7,FALSE)*AM$4,"") ->  | AN26: =IFERROR(VLOOKUP($C26,'23,07,22'!$B$5:$J$150,AN$7,FALSE)*AN$4,"") ->  | AO26: =IFERROR(VLOOKUP($C26,'22,07,22'!$B$5:$J$150,AO$7,FALSE)*AO$4,"") ->  | AP26: =IFERROR(VLOOKUP($C26,'20,08,22'!$B$5:$J$150,AP$7,FALSE)*AP$4,"") ->  | AQ26: =IFERROR(VLOOKUP($C26,'10,09,22'!$B$5:$J$150,AQ$7,FALSE)*AQ$4,"") ->  | AR26: =IFERROR(VLOOKUP($C26,'14,09,22'!$B$5:$J$150,AR$7,FALSE)*AR$4,"") -> 84.41416304 | AS26: =IFERROR(VLOOKUP($C26,'23,09,22'!$B$5:$J$150,AS$7,FALSE)*AS$4,"") ->  | AT26: =IFERROR(VLOOKUP($C26,'15,10,22'!$B$5:$J$150,AT$7,FALSE)*AT$4,"") ->  | FA26: =COUNTBLANK(FB26:FC26) -> 0 | FB26: 23 | FC26: Иванов Дмитрий | FD26: М | FE26: 1 | FF26: Россия | FG26: 1 | FH26: г.Санкт-Петербург
A27: 18 | B27: =IFERROR(IF(K27=0,"",IF($K$7=1,RANK(K27,K$10:K$510),COUNTIF(K$10:K$510,">0")-RANK(K27,K$10:K$510)+1)),"") -> 18 | C27: Кукарцев Владимир | D27: М | E27: =IF(E$9="",1,IF(E$9=D27,1,0)) -> 1 | F27: Россия | G27: =IF(G$9="",1,IF(G$9=F27,1,0)) -> 1 | H27: Калининградская область | I27: =IF(I$9="",1,IF(I$9=H27,1,0)) -> 1 | J27: =IFERROR(IF($K$7=1,SUMPRODUCT(LARGE(L27:ED27,{1,2,3,4})),AVERAGE(L27:ED27)),"") -> 102.5537345 | K27: =IFERROR(J27*E27*G27*I27,"") -> 102.5537345 | L27: =IF($K$7=1,0,"") -> 0 | M27: =IF($K$7=1,0,"") -> 0 | N27: =IF($K$7=1,0,"") -> 0 | O27: =IF($K$7=1,0,"") -> 0 | P27: =IFERROR(VLOOKUP($C27,'06,09,19'!$B$5:$J$150,P$7,FALSE)*P$4,"") ->  | Q27: =IFERROR(VLOOKUP($C27,'17,08,20'!$B$5:$J$150,Q$7,FALSE)*Q$4,"") ->  | R27: =IFERROR(VLOOKUP($C27,'01,10,20'!$B$5:$J$150,R$7,FALSE)*R$4,"") ->  | S27: =IFERROR(VLOOKUP($C27,'08,10,20'!$B$5:$J$150,S$7,FALSE)*S$4,"") ->  | T27: =IFERROR(VLOOKUP($C27,'08,01,21'!$B$5:$J$150,T$7,FALSE)*T$4,"") ->  | U27: =IFERROR(VLOOKUP($C27,'23,01,21'!$B$5:$J$150,U$7,FALSE)*U$4,"") ->  | V27: =IFERROR(VLOOKUP($C27,'23,04,21'!$B$5:$J$150,V$7,FALSE)*V$4,"") ->  | W27: =IFERROR(VLOOKUP($C27,'07,05,21'!$B$5:$J$150,W$7,FALSE)*W$4,"") ->  | X27: =IFERROR(VLOOKUP($C27,'11,06,21'!$B$5:$J$150,X$7,FALSE)*X$4,"") ->  | Y27: =IFERROR(VLOOKUP($C27,'18,06,21'!$B$5:$J$150,Y$7,FALSE)*Y$4,"") ->  | Z27: =IFERROR(VLOOKUP($C27,'26,06,21'!$B$5:$J$134,Z$7,FALSE)*Z$4,"") ->  | AA27: =IFERROR(VLOOKUP($C27,'25,06,21'!$B$5:$J$150,AA$7,FALSE)*AA$4,"") ->  | AB27: =IFERROR(VLOOKUP($C27,'29,07,21'!$B$5:$J$150,AB$7,FALSE)*AB$4,"") -> 8.646618031 | AC27: =IFERROR(VLOOKUP($C27,'21,08,21'!$B$5:$J$150,AC$7,FALSE)*AC$4,"") ->  | AD27: =IFERROR(VLOOKUP($C27,'02,09,21'!$B$5:$J$150,AD$7,FALSE)*AD$4,"") ->  | AE27: =IFERROR(VLOOKUP($C27,'07,10,21'!$B$5:$J$150,AE$7,FALSE)*AE$4,"") ->  | AF27: =IFERROR(VLOOKUP($C27,'30,10,21'!$B$5:$J$150,AF$7,FALSE)*AF$4,"") -> 24.90829767 | AG27: =IFERROR(VLOOKUP($C27,'19,02,22'!$B$5:$J$150,AG$7,FALSE)*AG$4,"") ->  | AH27: =IFERROR(VLOOKUP($C27,'23,02,22'!$B$5:$J$150,AH$7,FALSE)*AH$4,"") ->  | AI27: =IFERROR(VLOOKUP($C27,'29,04,22'!$B$5:$J$150,AI$7,FALSE)*AI$4,"") ->  | AJ27: =IFERROR(VLOOKUP($C27,'30,04,22'!$B$5:$J$150,AJ$7,FALSE)*AJ$4,"") ->  | AK27: =IFERROR(VLOOKUP($C27,'10,06,22'!$B$5:$J$150,AK$7,FALSE)*AK$4,"") -> 34.98783416 | AL27: =IFERROR(VLOOKUP($C27,'17,06,22'!$B$5:$J$150,AL$7,FALSE)*AL$4,"") ->  | AM27: =IFERROR(VLOOKUP($C27,'02,07,22'!$B$5:$J$150,AM$7,FALSE)*AM$4,"") ->  | AN27: =IFERROR(VLOOKUP($C27,'23,07,22'!$B$5:$J$150,AN$7,FALSE)*AN$4,"") ->  | AO27: =IFERROR(VLOOKUP($C27,'22,07,22'!$B$5:$J$150,AO$7,FALSE)*AO$4,"") ->  | AP27: =IFERROR(VLOOKUP($C27,'20,08,22'!$B$5:$J$150,AP$7,FALSE)*AP$4,"") ->  | AQ27: =IFERROR(VLOOKUP($C27,'10,09,22'!$B$5:$J$150,AQ$7,FALSE)*AQ$4,"") ->  | AR27: =IFERROR(VLOOKUP($C27,'14,09,22'!$B$5:$J$150,AR$7,FALSE)*AR$4,"") -> 34.01098464 | AS27: =IFERROR(VLOOKUP($C27,'23,09,22'!$B$5:$J$150,AS$7,FALSE)*AS$4,"") ->  | AT27: =IFERROR(VLOOKUP($C27,'15,10,22'!$B$5:$J$150,AT$7,FALSE)*AT$4,"") ->  | FA27: =COUNTBLANK(FB27:FC27) -> 0 | FB27: 37 | FC27: Калашникова Марина | FD27: Ж | FE27: 1 | FF27: Россия | FG27: 1 | FH27: г.Санкт-Петербург
A28: 19 | B28: =IFERROR(IF(K28=0,"",IF($K$7=1,RANK(K28,K$10:K$510),COUNTIF(K$10:K$510,">0")-RANK(K28,K$10:K$510)+1)),"") -> 19 | C28: Зубкова Анастасия | D28: Ж | E28: =IF(E$9="",1,IF(E$9=D28,1,0)) -> 1 | F28: Россия | G28: =IF(G$9="",1,IF(G$9=F28,1,0)) -> 1 | H28: Ленинградская область | I28: =IF(I$9="",1,IF(I$9=H28,1,0)) -> 1 | J28: =IFERROR(IF($K$7=1,SUMPRODUCT(LARGE(L28:ED28,{1,2,3,4})),AVERAGE(L28:ED28)),"") -> 99.63379619 | K28: =IFERROR(J28*E28*G28*I28,"") -> 99.63379619 | L28: =IF($K$7=1,0,"") -> 0 | M28: =IF($K$7=1,0,"") -> 0 | N28: =IF($K$7=1,0,"") -> 0 | O28: =IF($K$7=1,0,"") -> 0 | P28: =IFERROR(VLOOKUP($C28,'06,09,19'!$B$5:$J$150,P$7,FALSE)*P$4,"") ->  | Q28: =IFERROR(VLOOKUP($C28,'17,08,20'!$B$5:$J$150,Q$7,FALSE)*Q$4,"") -> 0.06375224091 | R28: =IFERROR(VLOOKUP($C28,'01,10,20'!$B$5:$J$150,R$7,FALSE)*R$4,"") ->  | S28: =IFERROR(VLOOKUP($C28,'08,10,20'!$B$5:$J$150,S$7,FALSE)*S$4,"") -> 0.8484518912 | T28: =IFERROR(VLOOKUP($C28,'08,01,21'!$B$5:$J$150,T$7,FALSE)*T$4,"") ->  | U28: =IFERROR(VLOOKUP($C28,'23,01,21'!$B$5:$J$150,U$7,FALSE)*U$4,"") -> 3.074619901 | V28: =IFERROR(VLOOKUP($C28,'23,04,21'!$B$5:$J$150,V$7,FALSE)*V$4,"") ->  | W28: =IFERROR(VLOOKUP($C28,'07,05,21'!$B$5:$J$150,W$7,FALSE)*W$4,"") ->  | X28: =IFERROR(VLOOKUP($C28,'11,06,21'!$B$5:$J$150,X$7,FALSE)*X$4,"") ->  | Y28: =IFERROR(VLOOKUP($C28,'18,06,21'!$B$5:$J$150,Y$7,FALSE)*Y$4,"") ->  | Z28: =IFERROR(VLOOKUP($C28,'26,06,21'!$B$5:$J$134,Z$7,FALSE)*Z$4,"") ->  | AA28: =IFERROR(VLOOKUP($C28,'25,06,21'!$B$5:$J$150,AA$7,FALSE)*AA$4,"") ->  | AB28: =IFERROR(VLOOKUP($C28,'29,07,21'!$B$5:$J$150,AB$7,FALSE)*AB$4,"") ->  | AC28: =IFERROR(VLOOKUP($C28,'21,08,21'!$B$5:$J$150,AC$7,FALSE)*AC$4,"") ->  | AD28: =IFERROR(VLOOKUP($C28,'02,09,21'!$B$5:$J$150,AD$7,FALSE)*AD$4,"") -> 13.98639076 | AE28: =IFERROR(VLOOKUP($C28,'07,10,21'!$B$5:$J$150,AE$7,FALSE)*AE$4,"") ->  | AF28: =IFERROR(VLOOKUP($C28,'30,10,21'!$B$5:$J$150,AF$7,FALSE)*AF$4,"") ->  | AG28: =IFERROR(VLOOKUP($C28,'19,02,22'!$B$5:$J$150,AG$7,FALSE)*AG$4,"") ->  | AH28: =IFERROR(VLOOKUP($C28,'23,02,22'!$B$5:$J$150,AH$7,FALSE)*AH$4,"") ->  | AI28: =IFERROR(VLOOKUP($C28,'29,04,22'!$B$5:$J$150,AI$7,FALSE)*AI$4,"") -> 25.65875679 | AJ28: =IFERROR(VLOOKUP($C28,'30,04,22'!$B$5:$J$150,AJ$7,FALSE)*AJ$4,"") ->  | AK28: =IFERROR(VLOOKUP($C28,'10,06,22'!$B$5:$J$150,AK$7,FALSE)*AK$4,"") ->  | AL28: =IFERROR(VLOOKUP($C28,'17,06,22'!$B$5:$J$150,AL$7,FALSE)*AL$4,"") ->  | AM28: =IFERROR(VLOOKUP($C28,'02,07,22'!$B$5:$J$150,AM$7,FALSE)*AM$4,"") ->  | AN28: =IFERROR(VLOOKUP($C28,'23,07,22'!$B$5:$J$150,AN$7,FALSE)*AN$4,"") ->  | AO28: =IFERROR(VLOOKUP($C28,'22,07,22'!$B$5:$J$150,AO$7,FALSE)*AO$4,"") ->  | AP28: =IFERROR(VLOOKUP($C28,'20,08,22'!$B$5:$J$150,AP$7,FALSE)*AP$4,"") ->  | AQ28: =IFERROR(VLOOKUP($C28,'10,09,22'!$B$5:$J$150,AQ$7,FALSE)*AQ$4,"") -> 11.66172837 | AR28: =IFERROR(VLOOKUP($C28,'14,09,22'!$B$5:$J$150,AR$7,FALSE)*AR$4,"") -> 48.32692027 | AS28: =IFERROR(VLOOKUP($C28,'23,09,22'!$B$5:$J$150,AS$7,FALSE)*AS$4,"") ->  | AT28: =IFERROR(VLOOKUP($C28,'15,10,22'!$B$5:$J$150,AT$7,FALSE)*AT$4,"") ->  | FA28: =COUNTBLANK(FB28:FC28) -> 0 | FB28: 25 | FC28: Капустин Антон | FD28: М | FE28: 1 | FF28: Россия | FG28: 1 | FH28: г.Санкт-Петербург
A29: 20 | B29: =IFERROR(IF(K29=0,"",IF($K$7=1,RANK(K29,K$10:K$510),COUNTIF(K$10:K$510,">0")-RANK(K29,K$10:K$510)+1)),"") -> 20 | C29: Браунов Алексей | D29: М | E29: =IF(E$9="",1,IF(E$9=D29,1,0)) -> 1 | F29: Россия | G29: =IF(G$9="",1,IF(G$9=F29,1,0)) -> 1 | H29: г.Санкт-Петербург | I29: =IF(I$9="",1,IF(I$9=H29,1,0)) -> 1 | J29: =IFERROR(IF($K$7=1,SUMPRODUCT(LARGE(L29:ED29,{1,2,3,4})),AVERAGE(L29:ED29)),"") -> 87.78884816 | K29: =IFERROR(J29*E29*G29*I29,"") -> 87.78884816 | L29: =IF($K$7=1,0,"") -> 0 | M29: =IF($K$7=1,0,"") -> 0 | N29: =IF($K$7=1,0,"") -> 0 | O29: =IF($K$7=1,0,"") -> 0 | P29: =IFERROR(VLOOKUP($C29,'06,09,19'!$B$5:$J$150,P$7,FALSE)*P$4,"") ->  | Q29: =IFERROR(VLOOKUP($C29,'17,08,20'!$B$5:$J$150,Q$7,FALSE)*Q$4,"") ->  | R29: =IFERROR(VLOOKUP($C29,'01,10,20'!$B$5:$J$150,R$7,FALSE)*R$4,"") ->  | S29: =IFERROR(VLOOKUP($C29,'08,10,20'!$B$5:$J$150,S$7,FALSE)*S$4,"") ->  | T29: =IFERROR(VLOOKUP($C29,'08,01,21'!$B$5:$J$150,T$7,FALSE)*T$4,"") -> 0.4965328657 | U29: =IFERROR(VLOOKUP($C29,'23,01,21'!$B$5:$J$150,U$7,FALSE)*U$4,"") -> 2.831320961 | V29: =IFERROR(VLOOKUP($C29,'23,04,21'!$B$5:$J$150,V$7,FALSE)*V$4,"") ->  | W29: =IFERROR(VLOOKUP($C29,'07,05,21'!$B$5:$J$150,W$7,FALSE)*W$4,"") ->  | X29: =IFERROR(VLOOKUP($C29,'11,06,21'!$B$5:$J$150,X$7,FALSE)*X$4,"") -> 6.329598684 | Y29: =IFERROR(VLOOKUP($C29,'18,06,21'!$B$5:$J$150,Y$7,FALSE)*Y$4,"") ->  | Z29: =IFERROR(VLOOKUP($C29,'26,06,21'!$B$5:$J$134,Z$7,FALSE)*Z$4,"") -> 4.01614627 | AA29: =IFERROR(VLOOKUP($C29,'25,06,21'!$B$5:$J$150,AA$7,FALSE)*AA$4,"") ->  | AB29: =IFERROR(VLOOKUP($C29,'29,07,21'!$B$5:$J$150,AB$7,FALSE)*AB$4,"") ->  | AC29: =IFERROR(VLOOKUP($C29,'21,08,21'!$B$5:$J$150,AC$7,FALSE)*AC$4,"") -> 7.331268375 | AD29: =IFERROR(VLOOKUP($C29,'02,09,21'!$B$5:$J$150,AD$7,FALSE)*AD$4,"") -> 27.2313315 | AE29: =IFERROR(VLOOKUP($C29,'07,10,21'!$B$5:$J$150,AE$7,FALSE)*AE$4,"") ->  | AF29: =IFERROR(VLOOKUP($C29,'30,10,21'!$B$5:$J$150,AF$7,FALSE)*AF$4,"") ->  | AG29: =IFERROR(VLOOKUP($C29,'19,02,22'!$B$5:$J$150,AG$7,FALSE)*AG$4,"") ->  | AH29: =IFERROR(VLOOKUP($C29,'23,02,22'!$B$5:$J$150,AH$7,FALSE)*AH$4,"") -> 20.77260189 | AI29: =IFERROR(VLOOKUP($C29,'29,04,22'!$B$5:$J$150,AI$7,FALSE)*AI$4,"") -> 11.8486423 | AJ29: =IFERROR(VLOOKUP($C29,'30,04,22'!$B$5:$J$150,AJ$7,FALSE)*AJ$4,"") ->  | AK29: =IFERROR(VLOOKUP($C29,'10,06,22'!$B$5:$J$150,AK$7,FALSE)*AK$4,"") ->  | AL29: =IFERROR(VLOOKUP($C29,'17,06,22'!$B$5:$J$150,AL$7,FALSE)*AL$4,"") ->  | AM29: =IFERROR(VLOOKUP($C29,'02,07,22'!$B$5:$J$150,AM$7,FALSE)*AM$4,"") -> 27.93627247 | AN29: =IFERROR(VLOOKUP($C29,'23,07,22'!$B$5:$J$150,AN$7,FALSE)*AN$4,"") ->  | AO29: =IFERROR(VLOOKUP($C29,'22,07,22'!$B$5:$J$150,AO$7,FALSE)*AO$4,"") ->  | AP29: =IFERROR(VLOOKUP($C29,'20,08,22'!$B$5:$J$150,AP$7,FALSE)*AP$4,"") -> 7.002749759 | AQ29: =IFERROR(VLOOKUP($C29,'10,09,22'!$B$5:$J$150,AQ$7,FALSE)*AQ$4,"") -> 8.712412299 | AR29: =IFERROR(VLOOKUP($C29,'14,09,22'!$B$5:$J$150,AR$7,FALSE)*AR$4,"") ->  | AS29: =IFERROR(VLOOKUP($C29,'23,09,22'!$B$5:$J$150,AS$7,FALSE)*AS$4,"") ->  | AT29: =IFERROR(VLOOKUP($C29,'15,10,22'!$B$5:$J$150,AT$7,FALSE)*AT$4,"") ->  | FA29: =COUNTBLANK(FB29:FC29) -> 0 | FB29: 4 | FC29: Кива Артем | FD29: М | FE29: 1 | FF29: Россия | FG29: 1 | FH29: Ленинградская область
A30: 21 | B30: =IFERROR(IF(K30=0,"",IF($K$7=1,RANK(K30,K$10:K$510),COUNTIF(K$10:K$510,">0")-RANK(K30,K$10:K$510)+1)),"") -> 21 | C30: Шляпин Владимир | D30: М | E30: =IF(E$9="",1,IF(E$9=D30,1,0)) -> 1 | F30: Россия | G30: =IF(G$9="",1,IF(G$9=F30,1,0)) -> 1 | H30: Удмуртская республика | I30: =IF(I$9="",1,IF(I$9=H30,1,0)) -> 1 | J30: =IFERROR(IF($K$7=1,SUMPRODUCT(LARGE(L30:ED30,{1,2,3,4})),AVERAGE(L30:ED30)),"") -> 84.12871075 | K30: =IFERROR(J30*E30*G30*I30,"") -> 84.12871075 | L30: =IF($K$7=1,0,"") -> 0 | M30: =IF($K$7=1,0,"") -> 0 | N30: =IF($K$7=1,0,"") -> 0 | O30: =IF($K$7=1,0,"") -> 0 | P30: =IFERROR(VLOOKUP($C30,'06,09,19'!$B$5:$J$150,P$7,FALSE)*P$4,"") ->  | Q30: =IFERROR(VLOOKUP($C30,'17,08,20'!$B$5:$J$150,Q$7,FALSE)*Q$4,"") ->  | R30: =IFERROR(VLOOKUP($C30,'01,10,20'!$B$5:$J$150,R$7,FALSE)*R$4,"") ->  | S30: =IFERROR(VLOOKUP($C30,'08,10,20'!$B$5:$J$150,S$7,FALSE)*S$4,"") ->  | T30: =IFERROR(VLOOKUP($C30,'08,01,21'!$B$5:$J$150,T$7,FALSE)*T$4,"") ->  | U30: =IFERROR(VLOOKUP($C30,'23,01,21'!$B$5:$J$150,U$7,FALSE)*U$4,"") ->  | V30: =IFERROR(VLOOKUP($C30,'23,04,21'!$B$5:$J$150,V$7,FALSE)*V$4,"") ->  | W30: =IFERROR(VLOOKUP($C30,'07,05,21'!$B$5:$J$150,W$7,FALSE)*W$4,"") ->  | X30: =IFERROR(VLOOKUP($C30,'11,06,21'!$B$5:$J$150,X$7,FALSE)*X$4,"") ->  | Y30: =IFERROR(VLOOKUP($C30,'18,06,21'!$B$5:$J$150,Y$7,FALSE)*Y$4,"") ->  | Z30: =IFERROR(VLOOKUP($C30,'26,06,21'!$B$5:$J$134,Z$7,FALSE)*Z$4,"") ->  | AA30: =IFERROR(VLOOKUP($C30,'25,06,21'!$B$5:$J$150,AA$7,FALSE)*AA$4,"") ->  | AB30: =IFERROR(VLOOKUP($C30,'29,07,21'!$B$5:$J$150,AB$7,FALSE)*AB$4,"") ->  | AC30: =IFERROR(VLOOKUP($C30,'21,08,21'!$B$5:$J$150,AC$7,FALSE)*AC$4,"") ->  | AD30: =IFERROR(VLOOKUP($C30,'02,09,21'!$B$5:$J$150,AD$7,FALSE)*AD$4,"") -> 16.30057203 | AE30: =IFERROR(VLOOKUP($C30,'07,10,21'!$B$5:$J$150,AE$7,FALSE)*AE$4,"") ->  | AF30: =IFERROR(VLOOKUP($C30,'30,10,21'!$B$5:$J$150,AF$7,FALSE)*AF$4,"") ->  | AG30: =IFERROR(VLOOKUP($C30,'19,02,22'!$B$5:$J$150,AG$7,FALSE)*AG$4,"") ->  | AH30: =IFERROR(VLOOKUP($C30,'23,02,22'!$B$5:$J$150,AH$7,FALSE)*AH$4,"") ->  | AI30: =IFERROR(VLOOKUP($C30,'29,04,22'!$B$5:$J$150,AI$7,FALSE)*AI$4,"") ->  | AJ30: =IFERROR(VLOOKUP($C30,'30,04,22'!$B$5:$J$150,AJ$7,FALSE)*AJ$4,"") ->  | AK30: =IFERROR(VLOOKUP($C30,'10,06,22'!$B$5:$J$150,AK$7,FALSE)*AK$4,"") ->  | AL30: =IFERROR(VLOOKUP($C30,'17,06,22'!$B$5:$J$150,AL$7,FALSE)*AL$4,"") ->  | AM30: =IFERROR(VLOOKUP($C30,'02,07,22'!$B$5:$J$150,AM$7,FALSE)*AM$4,"") ->  | AN30: =IFERROR(VLOOKUP($C30,'23,07,22'!$B$5:$J$150,AN$7,FALSE)*AN$4,"") ->  | AO30: =IFERROR(VLOOKUP($C30,'22,07,22'!$B$5:$J$150,AO$7,FALSE)*AO$4,"") -> 14.17630447 | AP30: =IFERROR(VLOOKUP($C30,'20,08,22'!$B$5:$J$150,AP$7,FALSE)*AP$4,"") ->  | AQ30: =IFERROR(VLOOKUP($C30,'10,09,22'!$B$5:$J$150,AQ$7,FALSE)*AQ$4,"") ->  | AR30: =IFERROR(VLOOKUP($C30,'14,09,22'!$B$5:$J$150,AR$7,FALSE)*AR$4,"") -> 53.65183425 | AS30: =IFERROR(VLOOKUP($C30,'23,09,22'!$B$5:$J$150,AS$7,FALSE)*AS$4,"") ->  | AT30: =IFERROR(VLOOKUP($C30,'15,10,22'!$B$5:$J$150,AT$7,FALSE)*AT$4,"") ->  | FA30: =COUNTBLANK(FB30:FC30) -> 0 | FB30: 15 | FC30: Кленов Евгений | FD30: М | FE30: 1 | FF30: Россия | FG30: 1 | FH30: г.Санкт-Петербург
A31: 22 | B31: =IFERROR(IF(K31=0,"",IF($K$7=1,RANK(K31,K$10:K$510),COUNTIF(K$10:K$510,">0")-RANK(K31,K$10:K$510)+1)),"") -> 22 | C31: Липатникова Наталья | D31: Ж | E31: =IF(E$9="",1,IF(E$9=D31,1,0)) -> 1 | F31: Россия | G31: =IF(G$9="",1,IF(G$9=F31,1,0)) -> 1 | H31: Томская область | I31: =IF(I$9="",1,IF(I$9=H31,1,0)) -> 1 | J31: =IFERROR(IF($K$7=1,SUMPRODUCT(LARGE(L31:ED31,{1,2,3,4})),AVERAGE(L31:ED31)),"") -> 83.90132918 | K31: =IFERROR(J31*E31*G31*I31,"") -> 83.90132918 | L31: =IF($K$7=1,0,"") -> 0 | M31: =IF($K$7=1,0,"") -> 0 | N31: =IF($K$7=1,0,"") -> 0 | O31: =IF($K$7=1,0,"") -> 0 | P31: =IFERROR(VLOOKUP($C31,'06,09,19'!$B$5:$J$150,P$7,FALSE)*P$4,"") ->  | Q31: =IFERROR(VLOOKUP($C31,'17,08,20'!$B$5:$J$150,Q$7,FALSE)*Q$4,"") ->  | R31: =IFERROR(VLOOKUP($C31,'01,10,20'!$B$5:$J$150,R$7,FALSE)*R$4,"") ->  | S31: =IFERROR(VLOOKUP($C31,'08,10,20'!$B$5:$J$150,S$7,FALSE)*S$4,"") ->  | T31: =IFERROR(VLOOKUP($C31,'08,01,21'!$B$5:$J$150,T$7,FALSE)*T$4,"") ->  | U31: =IFERROR(VLOOKUP($C31,'23,01,21'!$B$5:$J$150,U$7,FALSE)*U$4,"") ->  | V31: =IFERROR(VLOOKUP($C31,'23,04,21'!$B$5:$J$150,V$7,FALSE)*V$4,"") ->  | W31: =IFERROR(VLOOKUP($C31,'07,05,21'!$B$5:$J$150,W$7,FALSE)*W$4,"") ->  | X31: =IFERROR(VLOOKUP($C31,'11,06,21'!$B$5:$J$150,X$7,FALSE)*X$4,"") ->  | Y31: =IFERROR(VLOOKUP($C31,'18,06,21'!$B$5:$J$150,Y$7,FALSE)*Y$4,"") ->  | Z31: =IFERROR(VLOOKUP($C31,'26,06,21'!$B$5:$J$134,Z$7,FALSE)*Z$4,"") ->  | AA31: =IFERROR(VLOOKUP($C31,'25,06,21'!$B$5:$J$150,AA$7,FALSE)*AA$4,"") -> 19.29370099 | AB31: =IFERROR(VLOOKUP($C31,'29,07,21'!$B$5:$J$150,AB$7,FALSE)*AB$4,"") ->  | AC31: =IFERROR(VLOOKUP($C31,'21,08,21'!$B$5:$J$150,AC$7,FALSE)*AC$4,"") ->  | AD31: =IFERROR(VLOOKUP($C31,'02,09,21'!$B$5:$J$150,AD$7,FALSE)*AD$4,"") ->  | AE31: =IFERROR(VLOOKUP($C31,'07,10,21'!$B$5:$J$150,AE$7,FALSE)*AE$4,"") -> 1.942148231 | AF31: =IFERROR(VLOOKUP($C31,'30,10,21'!$B$5:$J$150,AF$7,FALSE)*AF$4,"") ->  | AG31: =IFERROR(VLOOKUP($C31,'19,02,22'!$B$5:$J$150,AG$7,FALSE)*AG$4,"") ->  | AH31: =IFERROR(VLOOKUP($C31,'23,02,22'!$B$5:$J$150,AH$7,FALSE)*AH$4,"") ->  | AI31: =IFERROR(VLOOKUP($C31,'29,04,22'!$B$5:$J$150,AI$7,FALSE)*AI$4,"") -> 21.32945672 | AJ31: =IFERROR(VLOOKUP($C31,'30,04,22'!$B$5:$J$150,AJ$7,FALSE)*AJ$4,"") ->  | AK31: =IFERROR(VLOOKUP($C31,'10,06,22'!$B$5:$J$150,AK$7,FALSE)*AK$4,"") -> 26.06372848 | AL31: =IFERROR(VLOOKUP($C31,'17,06,22'!$B$5:$J$150,AL$7,FALSE)*AL$4,"") -> 0.7755344517 | AM31: =IFERROR(VLOOKUP($C31,'02,07,22'!$B$5:$J$150,AM$7,FALSE)*AM$4,"") ->  | AN31: =IFERROR(VLOOKUP($C31,'23,07,22'!$B$5:$J$150,AN$7,FALSE)*AN$4,"") ->  | AO31: =IFERROR(VLOOKUP($C31,'22,07,22'!$B$5:$J$150,AO$7,FALSE)*AO$4,"") ->  | AP31: =IFERROR(VLOOKUP($C31,'20,08,22'!$B$5:$J$150,AP$7,FALSE)*AP$4,"") ->  | AQ31: =IFERROR(VLOOKUP($C31,'10,09,22'!$B$5:$J$150,AQ$7,FALSE)*AQ$4,"") ->  | AR31: =IFERROR(VLOOKUP($C31,'14,09,22'!$B$5:$J$150,AR$7,FALSE)*AR$4,"") -> 17.21444299 | AS31: =IFERROR(VLOOKUP($C31,'23,09,22'!$B$5:$J$150,AS$7,FALSE)*AS$4,"") ->  | AT31: =IFERROR(VLOOKUP($C31,'15,10,22'!$B$5:$J$150,AT$7,FALSE)*AT$4,"") ->  | FA31: =COUNTBLANK(FB31:FC31) -> 0 | FB31: 43 | FC31: Комлев Дмитрий | FD31: М | FE31: 1 | FF31: Россия | FG31: 1 | FH31: Ленинградская область
A32: 23 | B32: =IFERROR(IF(K32=0,"",IF($K$7=1,RANK(K32,K$10:K$510),COUNTIF(K$10:K$510,">0")-RANK(K32,K$10:K$510)+1)),"") -> 23 | C32: Вознесенский Алексей | D32: М | E32: =IF(E$9="",1,IF(E$9=D32,1,0)) -> 1 | F32: Россия | G32: =IF(G$9="",1,IF(G$9=F32,1,0)) -> 1 | H32: Калининградская область | I32: =IF(I$9="",1,IF(I$9=H32,1,0)) -> 1 | J32: =IFERROR(IF($K$7=1,SUMPRODUCT(LARGE(L32:ED32,{1,2,3,4})),AVERAGE(L32:ED32)),"") -> 82.94428993 | K32: =IFERROR(J32*E32*G32*I32,"") -> 82.94428993 | L32: =IF($K$7=1,0,"") -> 0 | M32: =IF($K$7=1,0,"") -> 0 | N32: =IF($K$7=1,0,"") -> 0 | O32: =IF($K$7=1,0,"") -> 0 | P32: =IFERROR(VLOOKUP($C32,'06,09,19'!$B$5:$J$150,P$7,FALSE)*P$4,"") ->  | Q32: =IFERROR(VLOOKUP($C32,'17,08,20'!$B$5:$J$150,Q$7,FALSE)*Q$4,"") ->  | R32: =IFERROR(VLOOKUP($C32,'01,10,20'!$B$5:$J$150,R$7,FALSE)*R$4,"") ->  | S32: =IFERROR(VLOOKUP($C32,'08,10,20'!$B$5:$J$150,S$7,FALSE)*S$4,"") ->  | T32: =IFERROR(VLOOKUP($C32,'08,01,21'!$B$5:$J$150,T$7,FALSE)*T$4,"") ->  | U32: =IFERROR(VLOOKUP($C32,'23,01,21'!$B$5:$J$150,U$7,FALSE)*U$4,"") ->  | V32: =IFERROR(VLOOKUP($C32,'23,04,21'!$B$5:$J$150,V$7,FALSE)*V$4,"") ->  | W32: =IFERROR(VLOOKUP($C32,'07,05,21'!$B$5:$J$150,W$7,FALSE)*W$4,"") ->  | X32: =IFERROR(VLOOKUP($C32,'11,06,21'!$B$5:$J$150,X$7,FALSE)*X$4,"") ->  | Y32: =IFERROR(VLOOKUP($C32,'18,06,21'!$B$5:$J$150,Y$7,FALSE)*Y$4,"") ->  | Z32: =IFERROR(VLOOKUP($C32,'26,06,21'!$B$5:$J$134,Z$7,FALSE)*Z$4,"") ->  | AA32: =IFERROR(VLOOKUP($C32,'25,06,21'!$B$5:$J$150,AA$7,FALSE)*AA$4,"") -> 15.70871471 | AB32: =IFERROR(VLOOKUP($C32,'29,07,21'!$B$5:$J$150,AB$7,FALSE)*AB$4,"") ->  | AC32: =IFERROR(VLOOKUP($C32,'21,08,21'!$B$5:$J$150,AC$7,FALSE)*AC$4,"") ->  | AD32: =IFERROR(VLOOKUP($C32,'02,09,21'!$B$5:$J$150,AD$7,FALSE)*AD$4,"") ->  | AE32: =IFERROR(VLOOKUP($C32,'07,10,21'!$B$5:$J$150,AE$7,FALSE)*AE$4,"") ->  | AF32: =IFERROR(VLOOKUP($C32,'30,10,21'!$B$5:$J$150,AF$7,FALSE)*AF$4,"") -> 28.72930844 | AG32: =IFERROR(VLOOKUP($C32,'19,02,22'!$B$5:$J$150,AG$7,FALSE)*AG$4,"") ->  | AH32: =IFERROR(VLOOKUP($C32,'23,02,22'!$B$5:$J$150,AH$7,FALSE)*AH$4,"") ->  | AI32: =IFERROR(VLOOKUP($C32,'29,04,22'!$B$5:$J$150,AI$7,FALSE)*AI$4,"") ->  | AJ32: =IFERROR(VLOOKUP($C32,'30,04,22'!$B$5:$J$150,AJ$7,FALSE)*AJ$4,"") ->  | AK32: =IFERROR(VLOOKUP($C32,'10,06,22'!$B$5:$J$150,AK$7,FALSE)*AK$4,"") ->  | AL32: =IFERROR(VLOOKUP($C32,'17,06,22'!$B$5:$J$150,AL$7,FALSE)*AL$4,"") ->  | AM32: =IFERROR(VLOOKUP($C32,'02,07,22'!$B$5:$J$150,AM$7,FALSE)*AM$4,"") ->  | AN32: =IFERROR(VLOOKUP($C32,'23,07,22'!$B$5:$J$150,AN$7,FALSE)*AN$4,"") ->  | AO32: =IFERROR(VLOOKUP($C32,'22,07,22'!$B$5:$J$150,AO$7,FALSE)*AO$4,"") ->  | AP32: =IFERROR(VLOOKUP($C32,'20,08,22'!$B$5:$J$150,AP$7,FALSE)*AP$4,"") ->  | AQ32: =IFERROR(VLOOKUP($C32,'10,09,22'!$B$5:$J$150,AQ$7,FALSE)*AQ$4,"") ->  | AR32: =IFERROR(VLOOKUP($C32,'14,09,22'!$B$5:$J$150,AR$7,FALSE)*AR$4,"") -> 38.50626678 | AS32: =IFERROR(VLOOKUP($C32,'23,09,22'!$B$5:$J$150,AS$7,FALSE)*AS$4,"") ->  | AT32: =IFERROR(VLOOKUP($C32,'15,10,22'!$B$5:$J$150,AT$7,FALSE)*AT$4,"") ->  | FA32: =COUNTBLANK(FB32:FC32) -> 0 | FB32: 24 | FC32: Кориков Эдуард | FD32: М | FE32: 1 | FF32: Россия | FG32: 1 | FH32: г.Санкт-Петербург
A33: 24 | B33: =IFERROR(IF(K33=0,"",IF($K$7=1,RANK(K33,K$10:K$510),COUNTIF(K$10:K$510,">0")-RANK(K33,K$10:K$510)+1)),"") -> 24 | C33: Черникова Наталья | D33: Ж | E33: =IF(E$9="",1,IF(E$9=D33,1,0)) -> 1 | F33: Россия | G33: =IF(G$9="",1,IF(G$9=F33,1,0)) -> 1 | H33: Ленинградская область | I33: =IF(I$9="",1,IF(I$9=H33,1,0)) -> 1 | J33: =IFERROR(IF($K$7=1,SUMPRODUCT(LARGE(L33:ED33,{1,2,3,4})),AVERAGE(L33:ED33)),"") -> 79.11893857 | K33: =IFERROR(J33*E33*G33*I33,"") -> 79.11893857 | L33: =IF($K$7=1,0,"") -> 0 | M33: =IF($K$7=1,0,"") -> 0 | N33: =IF($K$7=1,0,"") -> 0 | O33: =IF($K$7=1,0,"") -> 0 | P33: =IFERROR(VLOOKUP($C33,'06,09,19'!$B$5:$J$150,P$7,FALSE)*P$4,"") ->  | Q33: =IFERROR(VLOOKUP($C33,'17,08,20'!$B$5:$J$150,Q$7,FALSE)*Q$4,"") ->  | R33: =IFERROR(VLOOKUP($C33,'01,10,20'!$B$5:$J$150,R$7,FALSE)*R$4,"") ->  | S33: =IFERROR(VLOOKUP($C33,'08,10,20'!$B$5:$J$150,S$7,FALSE)*S$4,"") -> 0.6247909032 | T33: =IFERROR(VLOOKUP($C33,'08,01,21'!$B$5:$J$150,T$7,FALSE)*T$4,"") -> 0.6932354964 | U33: =IFERROR(VLOOKUP($C33,'23,01,21'!$B$5:$J$150,U$7,FALSE)*U$4,"") -> 2.596270699 | V33: =IFERROR(VLOOKUP($C33,'23,04,21'!$B$5:$J$150,V$7,FALSE)*V$4,"") ->  | W33: =IFERROR(VLOOKUP($C33,'07,05,21'!$B$5:$J$150,W$7,FALSE)*W$4,"") ->  | X33: =IFERROR(VLOOKUP($C33,'11,06,21'!$B$5:$J$150,X$7,FALSE)*X$4,"") -> 4.369176563 | Y33: =IFERROR(VLOOKUP($C33,'18,06,21'!$B$5:$J$150,Y$7,FALSE)*Y$4,"") ->  | Z33: =IFERROR(VLOOKUP($C33,'26,06,21'!$B$5:$J$134,Z$7,FALSE)*Z$4,"") -> 4.854743229 | AA33: =IFERROR(VLOOKUP($C33,'25,06,21'!$B$5:$J$150,AA$7,FALSE)*AA$4,"") ->  | AB33: =IFERROR(VLOOKUP($C33,'29,07,21'!$B$5:$J$150,AB$7,FALSE)*AB$4,"") ->  | AC33: =IFERROR(VLOOKUP($C33,'21,08,21'!$B$5:$J$150,AC$7,FALSE)*AC$4,"") -> 2.486407601 | AD33: =IFERROR(VLOOKUP($C33,'02,09,21'!$B$5:$J$150,AD$7,FALSE)*AD$4,"") -> 11.84183756 | AE33: =IFERROR(VLOOKUP($C33,'07,10,21'!$B$5:$J$150,AE$7,FALSE)*AE$4,"") ->  | AF33: =IFERROR(VLOOKUP($C33,'30,10,21'!$B$5:$J$150,AF$7,FALSE)*AF$4,"") -> 13.18534573 | AG33: =IFERROR(VLOOKUP($C33,'19,02,22'!$B$5:$J$150,AG$7,FALSE)*AG$4,"") ->  | AH33: =IFERROR(VLOOKUP($C33,'23,02,22'!$B$5:$J$150,AH$7,FALSE)*AH$4,"") -> 6.122842161 | AI33: =IFERROR(VLOOKUP($C33,'29,04,22'!$B$5:$J$150,AI$7,FALSE)*AI$4,"") -> 19.27543072 | AJ33: =IFERROR(VLOOKUP($C33,'30,04,22'!$B$5:$J$150,AJ$7,FALSE)*AJ$4,"") ->  | AK33: =IFERROR(VLOOKUP($C33,'10,06,22'!$B$5:$J$150,AK$7,FALSE)*AK$4,"") ->  | AL33: =IFERROR(VLOOKUP($C33,'17,06,22'!$B$5:$J$150,AL$7,FALSE)*AL$4,"") ->  | AM33: =IFERROR(VLOOKUP($C33,'02,07,22'!$B$5:$J$150,AM$7,FALSE)*AM$4,"") -> 17.79274224 | AN33: =IFERROR(VLOOKUP($C33,'23,07,22'!$B$5:$J$150,AN$7,FALSE)*AN$4,"") -> 16.19900263 | AO33: =IFERROR(VLOOKUP($C33,'22,07,22'!$B$5:$J$150,AO$7,FALSE)*AO$4,"") ->  | AP33: =IFERROR(VLOOKUP($C33,'20,08,22'!$B$5:$J$150,AP$7,FALSE)*AP$4,"") ->  | AQ33: =IFERROR(VLOOKUP($C33,'10,09,22'!$B$5:$J$150,AQ$7,FALSE)*AQ$4,"") -> 12.69794884 | AR33: =IFERROR(VLOOKUP($C33,'14,09,22'!$B$5:$J$150,AR$7,FALSE)*AR$4,"") -> 25.85176299 | AS33: =IFERROR(VLOOKUP($C33,'23,09,22'!$B$5:$J$150,AS$7,FALSE)*AS$4,"") ->  | AT33: =IFERROR(VLOOKUP($C33,'15,10,22'!$B$5:$J$150,AT$7,FALSE)*AT$4,"") ->  | FA33: =COUNTBLANK(FB33:FC33) -> 0 | FB33: 31 | FC33: Крестников Дмитрий | FD33: М | FE33: 1 | FF33: Россия | FG33: 1 | FH33: г.Санкт-Петербург
A34: 25 | B34: =IFERROR(IF(K34=0,"",IF($K$7=1,RANK(K34,K$10:K$510),COUNTIF(K$10:K$510,">0")-RANK(K34,K$10:K$510)+1)),"") -> 25 | C34: Лебедев Владимир | D34: М | E34: =IF(E$9="",1,IF(E$9=D34,1,0)) -> 1 | F34: Россия | G34: =IF(G$9="",1,IF(G$9=F34,1,0)) -> 1 | H34: Удмуртская республика | I34: =IF(I$9="",1,IF(I$9=H34,1,0)) -> 1 | J34: =IFERROR(IF($K$7=1,SUMPRODUCT(LARGE(L34:ED34,{1,2,3,4})),AVERAGE(L34:ED34)),"") -> 76.58245891 | K34: =IFERROR(J34*E34*G34*I34,"") -> 76.58245891 | L34: =IF($K$7=1,0,"") -> 0 | M34: =IF($K$7=1,0,"") -> 0 | N34: =IF($K$7=1,0,"") -> 0 | O34: =IF($K$7=1,0,"") -> 0 | P34: =IFERROR(VLOOKUP($C34,'06,09,19'!$B$5:$J$150,P$7,FALSE)*P$4,"") ->  | Q34: =IFERROR(VLOOKUP($C34,'17,08,20'!$B$5:$J$150,Q$7,FALSE)*Q$4,"") ->  | R34: =IFERROR(VLOOKUP($C34,'01,10,20'!$B$5:$J$150,R$7,FALSE)*R$4,"") ->  | S34: =IFERROR(VLOOKUP($C34,'08,10,20'!$B$5:$J$150,S$7,FALSE)*S$4,"") ->  | T34: =IFERROR(VLOOKUP($C34,'08,01,21'!$B$5:$J$150,T$7,FALSE)*T$4,"") ->  | U34: =IFERROR(VLOOKUP($C34,'23,01,21'!$B$5:$J$150,U$7,FALSE)*U$4,"") ->  | V34: =IFERROR(VLOOKUP($C34,'23,04,21'!$B$5:$J$150,V$7,FALSE)*V$4,"") ->  | W34: =IFERROR(VLOOKUP($C34,'07,05,21'!$B$5:$J$150,W$7,FALSE)*W$4,"") ->  | X34: =IFERROR(VLOOKUP($C34,'11,06,21'!$B$5:$J$150,X$7,FALSE)*X$4,"") ->  | Y34: =IFERROR(VLOOKUP($C34,'18,06,21'!$B$5:$J$150,Y$7,FALSE)*Y$4,"") -> 8.781257507 | Z34: =IFERROR(VLOOKUP($C34,'26,06,21'!$B$5:$J$134,Z$7,FALSE)*Z$4,"") ->  | AA34: =IFERROR(VLOOKUP($C34,'25,06,21'!$B$5:$J$150,AA$7,FALSE)*AA$4,"") ->  | AB34: =IFERROR(VLOOKUP($C34,'29,07,21'!$B$5:$J$150,AB$7,FALSE)*AB$4,"") ->  | AC34: =IFERROR(VLOOKUP($C34,'21,08,21'!$B$5:$J$150,AC$7,FALSE)*AC$4,"") ->  | AD34: =IFERROR(VLOOKUP($C34,'02,09,21'!$B$5:$J$150,AD$7,FALSE)*AD$4,"") ->  | AE34: =IFERROR(VLOOKUP($C34,'07,10,21'!$B$5:$J$150,AE$7,FALSE)*AE$4,"") ->  | AF34: =IFERROR(VLOOKUP($C34,'30,10,21'!$B$5:$J$150,AF$7,FALSE)*AF$4,"") ->  | AG34: =IFERROR(VLOOKUP($C34,'19,02,22'!$B$5:$J$150,AG$7,FALSE)*AG$4,"") ->  | AH34: =IFERROR(VLOOKUP($C34,'23,02,22'!$B$5:$J$150,AH$7,FALSE)*AH$4,"") ->  | AI34: =IFERROR(VLOOKUP($C34,'29,04,22'!$B$5:$J$150,AI$7,FALSE)*AI$4,"") ->  | AJ34: =IFERROR(VLOOKUP($C34,'30,04,22'!$B$5:$J$150,AJ$7,FALSE)*AJ$4,"") ->  | AK34: =IFERROR(VLOOKUP($C34,'10,06,22'!$B$5:$J$150,AK$7,FALSE)*AK$4,"") -> 22.03313266 | AL34: =IFERROR(VLOOKUP($C34,'17,06,22'!$B$5:$J$150,AL$7,FALSE)*AL$4,"") ->  | AM34: =IFERROR(VLOOKUP($C34,'02,07,22'!$B$5:$J$150,AM$7,FALSE)*AM$4,"") ->  | AN34: =IFERROR(VLOOKUP($C34,'23,07,22'!$B$5:$J$150,AN$7,FALSE)*AN$4,"") ->  | AO34: =IFERROR(VLOOKUP($C34,'22,07,22'!$B$5:$J$150,AO$7,FALSE)*AO$4,"") ->  | AP34: =IFERROR(VLOOKUP($C34,'20,08,22'!$B$5:$J$150,AP$7,FALSE)*AP$4,"") ->  | AQ34: =IFERROR(VLOOKUP($C34,'10,09,22'!$B$5:$J$150,AQ$7,FALSE)*AQ$4,"") ->  | AR34: =IFERROR(VLOOKUP($C34,'14,09,22'!$B$5:$J$150,AR$7,FALSE)*AR$4,"") -> 45.76806874 | AS34: =IFERROR(VLOOKUP($C34,'23,09,22'!$B$5:$J$150,AS$7,FALSE)*AS$4,"") ->  | AT34: =IFERROR(VLOOKUP($C34,'15,10,22'!$B$5:$J$150,AT$7,FALSE)*AT$4,"") ->  | FA34: =COUNTBLANK(FB34:FC34) -> 0 | FB34: 13 | FC34: Кузнецов Сергей | FD34: М | FE34: 1 | FF34: Россия | FG34: 1 | FH34: Ленинградская область
A35: 26 | B35: =IFERROR(IF(K35=0,"",IF($K$7=1,RANK(K35,K$10:K$510),COUNTIF(K$10:K$510,">0")-RANK(K35,K$10:K$510)+1)),"") -> 26 | C35: Земеров Константин | D35: М | E35: =IF(E$9="",1,IF(E$9=D35,1,0)) -> 1 | F35: Россия | G35: =IF(G$9="",1,IF(G$9=F35,1,0)) -> 1 | H35: Алтайский край | I35: =IF(I$9="",1,IF(I$9=H35,1,0)) -> 1 | J35: =IFERROR(IF($K$7=1,SUMPRODUCT(LARGE(L35:ED35,{1,2,3,4})),AVERAGE(L35:ED35)),"") -> 71.51090949 | K35: =IFERROR(J35*E35*G35*I35,"") -> 71.51090949 | L35: =IF($K$7=1,0,"") -> 0 | M35: =IF($K$7=1,0,"") -> 0 | N35: =IF($K$7=1,0,"") -> 0 | O35: =IF($K$7=1,0,"") -> 0 | P35: =IFERROR(VLOOKUP($C35,'06,09,19'!$B$5:$J$150,P$7,FALSE)*P$4,"") ->  | Q35: =IFERROR(VLOOKUP($C35,'17,08,20'!$B$5:$J$150,Q$7,FALSE)*Q$4,"") ->  | R35: =IFERROR(VLOOKUP($C35,'01,10,20'!$B$5:$J$150,R$7,FALSE)*R$4,"") -> 1.039331107 | S35: =IFERROR(VLOOKUP($C35,'08,10,20'!$B$5:$J$150,S$7,FALSE)*S$4,"") ->  | T35: =IFERROR(VLOOKUP($C35,'08,01,21'!$B$5:$J$150,T$7,FALSE)*T$4,"") ->  | U35: =IFERROR(VLOOKUP($C35,'23,01,21'!$B$5:$J$150,U$7,FALSE)*U$4,"") ->  | V35: =IFERROR(VLOOKUP($C35,'23,04,21'!$B$5:$J$150,V$7,FALSE)*V$4,"") ->  | W35: =IFERROR(VLOOKUP($C35,'07,05,21'!$B$5:$J$150,W$7,FALSE)*W$4,"") -> 9.013082428 | X35: =IFERROR(VLOOKUP($C35,'11,06,21'!$B$5:$J$150,X$7,FALSE)*X$4,"") ->  | Y35: =IFERROR(VLOOKUP($C35,'18,06,21'!$B$5:$J$150,Y$7,FALSE)*Y$4,"") ->  | Z35: =IFERROR(VLOOKUP($C35,'26,06,21'!$B$5:$J$134,Z$7,FALSE)*Z$4,"") ->  | AA35: =IFERROR(VLOOKUP($C35,'25,06,21'!$B$5:$J$150,AA$7,FALSE)*AA$4,"") -> 17.47324842 | AB35: =IFERROR(VLOOKUP($C35,'29,07,21'!$B$5:$J$150,AB$7,FALSE)*AB$4,"") ->  | AC35: =IFERROR(VLOOKUP($C35,'21,08,21'!$B$5:$J$150,AC$7,FALSE)*AC$4,"") ->  | AD35: =IFERROR(VLOOKUP($C35,'02,09,21'!$B$5:$J$150,AD$7,FALSE)*AD$4,"") ->  | AE35: =IFERROR(VLOOKUP($C35,'07,10,21'!$B$5:$J$150,AE$7,FALSE)*AE$4,"") ->  | AF35: =IFERROR(VLOOKUP($C35,'30,10,21'!$B$5:$J$150,AF$7,FALSE)*AF$4,"") ->  | AG35: =IFERROR(VLOOKUP($C35,'19,02,22'!$B$5:$J$150,AG$7,FALSE)*AG$4,"") -> 5.787504027 | AH35: =IFERROR(VLOOKUP($C35,'23,02,22'!$B$5:$J$150,AH$7,FALSE)*AH$4,"") ->  | AI35: =IFERROR(VLOOKUP($C35,'29,04,22'!$B$5:$J$150,AI$7,FALSE)*AI$4,"") ->  | AJ35: =IFERROR(VLOOKUP($C35,'30,04,22'!$B$5:$J$150,AJ$7,FALSE)*AJ$4,"") -> 16.88784377 | AK35: =IFERROR(VLOOKUP($C35,'10,06,22'!$B$5:$J$150,AK$7,FALSE)*AK$4,"") ->  | AL35: =IFERROR(VLOOKUP($C35,'17,06,22'!$B$5:$J$150,AL$7,FALSE)*AL$4,"") -> 12.95790704 | AM35: =IFERROR(VLOOKUP($C35,'02,07,22'!$B$5:$J$150,AM$7,FALSE)*AM$4,"") ->  | AN35: =IFERROR(VLOOKUP($C35,'23,07,22'!$B$5:$J$150,AN$7,FALSE)*AN$4,"") ->  | AO35: =IFERROR(VLOOKUP($C35,'22,07,22'!$B$5:$J$150,AO$7,FALSE)*AO$4,"") ->  | AP35: =IFERROR(VLOOKUP($C35,'20,08,22'!$B$5:$J$150,AP$7,FALSE)*AP$4,"") ->  | AQ35: =IFERROR(VLOOKUP($C35,'10,09,22'!$B$5:$J$150,AQ$7,FALSE)*AQ$4,"") ->  | AR35: =IFERROR(VLOOKUP($C35,'14,09,22'!$B$5:$J$150,AR$7,FALSE)*AR$4,"") ->  | AS35: =IFERROR(VLOOKUP($C35,'23,09,22'!$B$5:$J$150,AS$7,FALSE)*AS$4,"") -> 24.19191026 | AT35: =IFERROR(VLOOKUP($C35,'15,10,22'!$B$5:$J$150,AT$7,FALSE)*AT$4,"") ->  | FA35: =COUNTBLANK(FB35:FC35) -> 0 | FB35: 29 | FC35: Михайлов Андрей | FD35: М | FE35: 1 | FF35: Россия | FG35: 1 | FH35: Республика Карелия
A36: 27 | B36: =IFERROR(IF(K36=0,"",IF($K$7=1,RANK(K36,K$10:K$510),COUNTIF(K$10:K$510,">0")-RANK(K36,K$10:K$510)+1)),"") -> 27 | C36: Гордеев Дмитрий | D36: М | E36: =IF(E$9="",1,IF(E$9=D36,1,0)) -> 1 | F36: Россия | G36: =IF(G$9="",1,IF(G$9=F36,1,0)) -> 1 | H36: Ленинградская область | I36: =IF(I$9="",1,IF(I$9=H36,1,0)) -> 1 | J36: =IFERROR(IF($K$7=1,SUMPRODUCT(LARGE(L36:ED36,{1,2,3,4})),AVERAGE(L36:ED36)),"") -> 69.37947515 | K36: =IFERROR(J36*E36*G36*I36,"") -> 69.37947515 | L36: =IF($K$7=1,0,"") -> 0 | M36: =IF($K$7=1,0,"") -> 0 | N36: =IF($K$7=1,0,"") -> 0 | O36: =IF($K$7=1,0,"") -> 0 | P36: =IFERROR(VLOOKUP($C36,'06,09,19'!$B$5:$J$150,P$7,FALSE)*P$4,"") ->  | Q36: =IFERROR(VLOOKUP($C36,'17,08,20'!$B$5:$J$150,Q$7,FALSE)*Q$4,"") ->  | R36: =IFERROR(VLOOKUP($C36,'01,10,20'!$B$5:$J$150,R$7,FALSE)*R$4,"") ->  | S36: =IFERROR(VLOOKUP($C36,'08,10,20'!$B$5:$J$150,S$7,FALSE)*S$4,"") -> 0.7711377034 | T36: =IFERROR(VLOOKUP($C36,'08,01,21'!$B$5:$J$150,T$7,FALSE)*T$4,"") ->  | U36: =IFERROR(VLOOKUP($C36,'23,01,21'!$B$5:$J$150,U$7,FALSE)*U$4,"") -> 1.194384446 | V36: =IFERROR(VLOOKUP($C36,'23,04,21'!$B$5:$J$150,V$7,FALSE)*V$4,"") ->  | W36: =IFERROR(VLOOKUP($C36,'07,05,21'!$B$5:$J$150,W$7,FALSE)*W$4,"") ->  | X36: =IFERROR(VLOOKUP($C36,'11,06,21'!$B$5:$J$150,X$7,FALSE)*X$4,"") -> 8.568476658 | Y36: =IFERROR(VLOOKUP($C36,'18,06,21'!$B$5:$J$150,Y$7,FALSE)*Y$4,"") ->  | Z36: =IFERROR(VLOOKUP($C36,'26,06,21'!$B$5:$J$134,Z$7,FALSE)*Z$4,"") ->  | AA36: =IFERROR(VLOOKUP($C36,'25,06,21'!$B$5:$J$150,AA$7,FALSE)*AA$4,"") ->  | AB36: =IFERROR(VLOOKUP($C36,'29,07,21'!$B$5:$J$150,AB$7,FALSE)*AB$4,"") ->  | AC36: =IFERROR(VLOOKUP($C36,'21,08,21'!$B$5:$J$150,AC$7,FALSE)*AC$4,"") ->  | AD36: =IFERROR(VLOOKUP($C36,'02,09,21'!$B$5:$J$150,AD$7,FALSE)*AD$4,"") -> 8.066917889 | AE36: =IFERROR(VLOOKUP($C36,'07,10,21'!$B$5:$J$150,AE$7,FALSE)*AE$4,"") ->  | AF36: =IFERROR(VLOOKUP($C36,'30,10,21'!$B$5:$J$150,AF$7,FALSE)*AF$4,"") ->  | AG36: =IFERROR(VLOOKUP($C36,'19,02,22'!$B$5:$J$150,AG$7,FALSE)*AG$4,"") ->  | AH36: =IFERROR(VLOOKUP($C36,'23,02,22'!$B$5:$J$150,AH$7,FALSE)*AH$4,"") ->  | AI36: =IFERROR(VLOOKUP($C36,'29,04,22'!$B$5:$J$150,AI$7,FALSE)*AI$4,"") -> 30.27100811 | AJ36: =IFERROR(VLOOKUP($C36,'30,04,22'!$B$5:$J$150,AJ$7,FALSE)*AJ$4,"") ->  | AK36: =IFERROR(VLOOKUP($C36,'10,06,22'!$B$5:$J$150,AK$7,FALSE)*AK$4,"") ->  | AL36: =IFERROR(VLOOKUP($C36,'17,06,22'!$B$5:$J$150,AL$7,FALSE)*AL$4,"") ->  | AM36: =IFERROR(VLOOKUP($C36,'02,07,22'!$B$5:$J$150,AM$7,FALSE)*AM$4,"") ->  | AN36: =IFERROR(VLOOKUP($C36,'23,07,22'!$B$5:$J$150,AN$7,FALSE)*AN$4,"") ->  | AO36: =IFERROR(VLOOKUP($C36,'22,07,22'!$B$5:$J$150,AO$7,FALSE)*AO$4,"") ->  | AP36: =IFERROR(VLOOKUP($C36,'20,08,22'!$B$5:$J$150,AP$7,FALSE)*AP$4,"") ->  | AQ36: =IFERROR(VLOOKUP($C36,'10,09,22'!$B$5:$J$150,AQ$7,FALSE)*AQ$4,"") -> 14.84438428 | AR36: =IFERROR(VLOOKUP($C36,'14,09,22'!$B$5:$J$150,AR$7,FALSE)*AR$4,"") -> 15.6956061 | AS36: =IFERROR(VLOOKUP($C36,'23,09,22'!$B$5:$J$150,AS$7,FALSE)*AS$4,"") ->  | AT36: =IFERROR(VLOOKUP($C36,'15,10,22'!$B$5:$J$150,AT$7,FALSE)*AT$4,"") ->  | FA36: =COUNTBLANK(FB36:FC36) -> 0 | FB36: 6 | FC36: Мичурин Андрей | FD36: М | FE36: 1 | FF36: Россия | FG36: 1 | FH36: Калининградская область
A37: 28 | B37: =IFERROR(IF(K37=0,"",IF($K$7=1,RANK(K37,K$10:K$510),COUNTIF(K$10:K$510,">0")-RANK(K37,K$10:K$510)+1)),"") -> 28 | C37: Козинцев Михаил | D37: М | E37: =IF(E$9="",1,IF(E$9=D37,1,0)) -> 1 | F37: Россия | G37: =IF(G$9="",1,IF(G$9=F37,1,0)) -> 1 | H37: Ленинградская область | I37: =IF(I$9="",1,IF(I$9=H37,1,0)) -> 1 | J37: =IFERROR(IF($K$7=1,SUMPRODUCT(LARGE(L37:ED37,{1,2,3,4})),AVERAGE(L37:ED37)),"") -> 69.01037285 | K37: =IFERROR(J37*E37*G37*I37,"") -> 69.01037285 | L37: =IF($K$7=1,0,"") -> 0 | M37: =IF($K$7=1,0,"") -> 0 | N37: =IF($K$7=1,0,"") -> 0 | O37: =IF($K$7=1,0,"") -> 0 | P37: =IFERROR(VLOOKUP($C37,'06,09,19'!$B$5:$J$150,P$7,FALSE)*P$4,"") ->  | Q37: =IFERROR(VLOOKUP($C37,'17,08,20'!$B$5:$J$150,Q$7,FALSE)*Q$4,"") ->  | R37: =IFERROR(VLOOKUP($C37,'01,10,20'!$B$5:$J$150,R$7,FALSE)*R$4,"") ->  | S37: =IFERROR(VLOOKUP($C37,'08,10,20'!$B$5:$J$150,S$7,FALSE)*S$4,"") ->  | T37: =IFERROR(VLOOKUP($C37,'08,01,21'!$B$5:$J$150,T$7,FALSE)*T$4,"") ->  | U37: =IFERROR(VLOOKUP($C37,'23,01,21'!$B$5:$J$150,U$7,FALSE)*U$4,"") -> 1.941985022 | V37: =IFERROR(VLOOKUP($C37,'23,04,21'!$B$5:$J$150,V$7,FALSE)*V$4,"") ->  | W37: =IFERROR(VLOOKUP($C37,'07,05,21'!$B$5:$J$150,W$7,FALSE)*W$4,"") ->  | X37: =IFERROR(VLOOKUP($C37,'11,06,21'!$B$5:$J$150,X$7,FALSE)*X$4,"") -> 13.81778799 | Y37: =IFERROR(VLOOKUP($C37,'18,06,21'!$B$5:$J$150,Y$7,FALSE)*Y$4,"") ->  | Z37: =IFERROR(VLOOKUP($C37,'26,06,21'!$B$5:$J$134,Z$7,FALSE)*Z$4,"") ->  | AA37: =IFERROR(VLOOKUP($C37,'25,06,21'!$B$5:$J$150,AA$7,FALSE)*AA$4,"") ->  | AB37: =IFERROR(VLOOKUP($C37,'29,07,21'!$B$5:$J$150,AB$7,FALSE)*AB$4,"") ->  | AC37: =IFERROR(VLOOKUP($C37,'21,08,21'!$B$5:$J$150,AC$7,FALSE)*AC$4,"") ->  | AD37: =IFERROR(VLOOKUP($C37,'02,09,21'!$B$5:$J$150,AD$7,FALSE)*AD$4,"") ->  | AE37: =IFERROR(VLOOKUP($C37,'07,10,21'!$B$5:$J$150,AE$7,FALSE)*AE$4,"") ->  | AF37: =IFERROR(VLOOKUP($C37,'30,10,21'!$B$5:$J$150,AF$7,FALSE)*AF$4,"") ->  | AG37: =IFERROR(VLOOKUP($C37,'19,02,22'!$B$5:$J$150,AG$7,FALSE)*AG$4,"") ->  | AH37: =IFERROR(VLOOKUP($C37,'23,02,22'!$B$5:$J$150,AH$7,FALSE)*AH$4,"") ->  | AI37: =IFERROR(VLOOKUP($C37,'29,04,22'!$B$5:$J$150,AI$7,FALSE)*AI$4,"") -> 23.45787222 | AJ37: =IFERROR(VLOOKUP($C37,'30,04,22'!$B$5:$J$150,AJ$7,FALSE)*AJ$4,"") ->  | AK37: =IFERROR(VLOOKUP($C37,'10,06,22'!$B$5:$J$150,AK$7,FALSE)*AK$4,"") ->  | AL37: =IFERROR(VLOOKUP($C37,'17,06,22'!$B$5:$J$150,AL$7,FALSE)*AL$4,"") ->  | AM37: =IFERROR(VLOOKUP($C37,'02,07,22'!$B$5:$J$150,AM$7,FALSE)*AM$4,"") ->  | AN37: =IFERROR(VLOOKUP($C37,'23,07,22'!$B$5:$J$150,AN$7,FALSE)*AN$4,"") ->  | AO37: =IFERROR(VLOOKUP($C37,'22,07,22'!$B$5:$J$150,AO$7,FALSE)*AO$4,"") ->  | AP37: =IFERROR(VLOOKUP($C37,'20,08,22'!$B$5:$J$150,AP$7,FALSE)*AP$4,"") ->  | AQ37: =IFERROR(VLOOKUP($C37,'10,09,22'!$B$5:$J$150,AQ$7,FALSE)*AQ$4,"") ->  | AR37: =IFERROR(VLOOKUP($C37,'14,09,22'!$B$5:$J$150,AR$7,FALSE)*AR$4,"") -> 29.79272763 | AS37: =IFERROR(VLOOKUP($C37,'23,09,22'!$B$5:$J$150,AS$7,FALSE)*AS$4,"") ->  | AT37: =IFERROR(VLOOKUP($C37,'15,10,22'!$B$5:$J$150,AT$7,FALSE)*AT$4,"") ->  | FA37: =COUNTBLANK(FB37:FC37) -> 0 | FB37: 41 | FC37: Молчанов Иван | FD37: М | FE37: 1 | FF37: Россия | FG37: 1 | FH37: г.Санкт-Петербург
A38: 29 | B38: =IFERROR(IF(K38=0,"",IF($K$7=1,RANK(K38,K$10:K$510),COUNTIF(K$10:K$510,">0")-RANK(K38,K$10:K$510)+1)),"") -> 29 | C38: Рудаков Алексей | D38: М | E38: =IF(E$9="",1,IF(E$9=D38,1,0)) -> 1 | F38: Россия | G38: =IF(G$9="",1,IF(G$9=F38,1,0)) -> 1 | H38: Калининградская область | I38: =IF(I$9="",1,IF(I$9=H38,1,0)) -> 1 | J38: =IFERROR(IF($K$7=1,SUMPRODUCT(LARGE(L38:ED38,{1,2,3,4})),AVERAGE(L38:ED38)),"") -> 68.14373033 | K38: =IFERROR(J38*E38*G38*I38,"") -> 68.14373033 | L38: =IF($K$7=1,0,"") -> 0 | M38: =IF($K$7=1,0,"") -> 0 | N38: =IF($K$7=1,0,"") -> 0 | O38: =IF($K$7=1,0,"") -> 0 | P38: =IFERROR(VLOOKUP($C38,'06,09,19'!$B$5:$J$150,P$7,FALSE)*P$4,"") ->  | Q38: =IFERROR(VLOOKUP($C38,'17,08,20'!$B$5:$J$150,Q$7,FALSE)*Q$4,"") -> 0.3241108509 | R38: =IFERROR(VLOOKUP($C38,'01,10,20'!$B$5:$J$150,R$7,FALSE)*R$4,"") ->  | S38: =IFERROR(VLOOKUP($C38,'08,10,20'!$B$5:$J$150,S$7,FALSE)*S$4,"") -> 1.657463084 | T38: =IFERROR(VLOOKUP($C38,'08,01,21'!$B$5:$J$150,T$7,FALSE)*T$4,"") ->  | U38: =IFERROR(VLOOKUP($C38,'23,01,21'!$B$5:$J$150,U$7,FALSE)*U$4,"") ->  | V38: =IFERROR(VLOOKUP($C38,'23,04,21'!$B$5:$J$150,V$7,FALSE)*V$4,"") ->  | W38: =IFERROR(VLOOKUP($C38,'07,05,21'!$B$5:$J$150,W$7,FALSE)*W$4,"") ->  | X38: =IFERROR(VLOOKUP($C38,'11,06,21'!$B$5:$J$150,X$7,FALSE)*X$4,"") ->  | Y38: =IFERROR(VLOOKUP($C38,'18,06,21'!$B$5:$J$150,Y$7,FALSE)*Y$4,"") ->  | Z38: =IFERROR(VLOOKUP($C38,'26,06,21'!$B$5:$J$134,Z$7,FALSE)*Z$4,"") ->  | AA38: =IFERROR(VLOOKUP($C38,'25,06,21'!$B$5:$J$150,AA$7,FALSE)*AA$4,"") ->  | AB38: =IFERROR(VLOOKUP($C38,'29,07,21'!$B$5:$J$150,AB$7,FALSE)*AB$4,"") ->  | AC38: =IFERROR(VLOOKUP($C38,'21,08,21'!$B$5:$J$150,AC$7,FALSE)*AC$4,"") ->  | AD38: =IFERROR(VLOOKUP($C38,'02,09,21'!$B$5:$J$150,AD$7,FALSE)*AD$4,"") ->  | AE38: =IFERROR(VLOOKUP($C38,'07,10,21'!$B$5:$J$150,AE$7,FALSE)*AE$4,"") ->  | AF38: =IFERROR(VLOOKUP($C38,'30,10,21'!$B$5:$J$150,AF$7,FALSE)*AF$4,"") -> 21.28898368 | AG38: =IFERROR(VLOOKUP($C38,'19,02,22'!$B$5:$J$150,AG$7,FALSE)*AG$4,"") ->  | AH38: =IFERROR(VLOOKUP($C38,'23,02,22'!$B$5:$J$150,AH$7,FALSE)*AH$4,"") -> 9.646087014 | AI38: =IFERROR(VLOOKUP($C38,'29,04,22'!$B$5:$J$150,AI$7,FALSE)*AI$4,"") ->  | AJ38: =IFERROR(VLOOKUP($C38,'30,04,22'!$B$5:$J$150,AJ$7,FALSE)*AJ$4,"") ->  | AK38: =IFERROR(VLOOKUP($C38,'10,06,22'!$B$5:$J$150,AK$7,FALSE)*AK$4,"") ->  | AL38: =IFERROR(VLOOKUP($C38,'17,06,22'!$B$5:$J$150,AL$7,FALSE)*AL$4,"") ->  | AM38: =IFERROR(VLOOKUP($C38,'02,07,22'!$B$5:$J$150,AM$7,FALSE)*AM$4,"") -> 9.421093302 | AN38: =IFERROR(VLOOKUP($C38,'23,07,22'!$B$5:$J$150,AN$7,FALSE)*AN$4,"") ->  | AO38: =IFERROR(VLOOKUP($C38,'22,07,22'!$B$5:$J$150,AO$7,FALSE)*AO$4,"") ->  | AP38: =IFERROR(VLOOKUP($C38,'20,08,22'!$B$5:$J$150,AP$7,FALSE)*AP$4,"") ->  | AQ38: =IFERROR(VLOOKUP($C38,'10,09,22'!$B$5:$J$150,AQ$7,FALSE)*AQ$4,"") ->  | AR38: =IFERROR(VLOOKUP($C38,'14,09,22'!$B$5:$J$150,AR$7,FALSE)*AR$4,"") -> 27.78756633 | AS38: =IFERROR(VLOOKUP($C38,'23,09,22'!$B$5:$J$150,AS$7,FALSE)*AS$4,"") ->  | AT38: =IFERROR(VLOOKUP($C38,'15,10,22'!$B$5:$J$150,AT$7,FALSE)*AT$4,"") ->  | FA38: =COUNTBLANK(FB38:FC38) -> 0 | FB38: 34 | FC38: Ничипоренко Максим | FD38: М | FE38: 1 | FF38: Россия | FG38: 1 | FH38: г.Санкт-Петербург
A39: 30 | B39: =IFERROR(IF(K39=0,"",IF($K$7=1,RANK(K39,K$10:K$510),COUNTIF(K$10:K$510,">0")-RANK(K39,K$10:K$510)+1)),"") -> 30 | C39: Михеев Сергей | D39: М | E39: =IF(E$9="",1,IF(E$9=D39,1,0)) -> 1 | F39: Россия | G39: =IF(G$9="",1,IF(G$9=F39,1,0)) -> 1 | H39: Новосибирская область | I39: =IF(I$9="",1,IF(I$9=H39,1,0)) -> 1 | J39: =IFERROR(IF($K$7=1,SUMPRODUCT(LARGE(L39:ED39,{1,2,3,4})),AVERAGE(L39:ED39)),"") -> 66.42185031 | K39: =IFERROR(J39*E39*G39*I39,"") -> 66.42185031 | L39: =IF($K$7=1,0,"") -> 0 | M39: =IF($K$7=1,0,"") -> 0 | N39: =IF($K$7=1,0,"") -> 0 | O39: =IF($K$7=1,0,"") -> 0 | P39: =IFERROR(VLOOKUP($C39,'06,09,19'!$B$5:$J$150,P$7,FALSE)*P$4,"") ->  | Q39: =IFERROR(VLOOKUP($C39,'17,08,20'!$B$5:$J$150,Q$7,FALSE)*Q$4,"") ->  | R39: =IFERROR(VLOOKUP($C39,'01,10,20'!$B$5:$J$150,R$7,FALSE)*R$4,"") -> 1.292065694 | S39: =IFERROR(VLOOKUP($C39,'08,10,20'!$B$5:$J$150,S$7,FALSE)*S$4,"") ->  | T39: =IFERROR(VLOOKUP($C39,'08,01,21'!$B$5:$J$150,T$7,FALSE)*T$4,"") ->  | U39: =IFERROR(VLOOKUP($C39,'23,01,21'!$B$5:$J$150,U$7,FALSE)*U$4,"") ->  | V39: =IFERROR(VLOOKUP($C39,'23,04,21'!$B$5:$J$150,V$7,FALSE)*V$4,"") ->  | W39: =IFERROR(VLOOKUP($C39,'07,05,21'!$B$5:$J$150,W$7,FALSE)*W$4,"") ->  | X39: =IFERROR(VLOOKUP($C39,'11,06,21'!$B$5:$J$150,X$7,FALSE)*X$4,"") ->  | Y39: =IFERROR(VLOOKUP($C39,'18,06,21'!$B$5:$J$150,Y$7,FALSE)*Y$4,"") ->  | Z39: =IFERROR(VLOOKUP($C39,'26,06,21'!$B$5:$J$134,Z$7,FALSE)*Z$4,"") ->  | AA39: =IFERROR(VLOOKUP($C39,'25,06,21'!$B$5:$J$150,AA$7,FALSE)*AA$4,"") ->  | AB39: =IFERROR(VLOOKUP($C39,'29,07,21'!$B$5:$J$150,AB$7,FALSE)*AB$4,"") ->  | AC39: =IFERROR(VLOOKUP($C39,'21,08,21'!$B$5:$J$150,AC$7,FALSE)*AC$4,"") ->  | AD39: =IFERROR(VLOOKUP($C39,'02,09,21'!$B$5:$J$150,AD$7,FALSE)*AD$4,"") ->  | AE39: =IFERROR(VLOOKUP($C39,'07,10,21'!$B$5:$J$150,AE$7,FALSE)*AE$4,"") ->  | AF39: =IFERROR(VLOOKUP($C39,'30,10,21'!$B$5:$J$150,AF$7,FALSE)*AF$4,"") ->  | AG39: =IFERROR(VLOOKUP($C39,'19,02,22'!$B$5:$J$150,AG$7,FALSE)*AG$4,"") ->  | AH39: =IFERROR(VLOOKUP($C39,'23,02,22'!$B$5:$J$150,AH$7,FALSE)*AH$4,"") ->  | AI39: =IFERROR(VLOOKUP($C39,'29,04,22'!$B$5:$J$150,AI$7,FALSE)*AI$4,"") ->  | AJ39: =IFERROR(VLOOKUP($C39,'30,04,22'!$B$5:$J$150,AJ$7,FALSE)*AJ$4,"") ->  | AK39: =IFERROR(VLOOKUP($C39,'10,06,22'!$B$5:$J$150,AK$7,FALSE)*AK$4,"") ->  | AL39: =IFERROR(VLOOKUP($C39,'17,06,22'!$B$5:$J$150,AL$7,FALSE)*AL$4,"") ->  | AM39: =IFERROR(VLOOKUP($C39,'02,07,22'!$B$5:$J$150,AM$7,FALSE)*AM$4,"") ->  | AN39: =IFERROR(VLOOKUP($C39,'23,07,22'!$B$5:$J$150,AN$7,FALSE)*AN$4,"") ->  | AO39: =IFERROR(VLOOKUP($C39,'22,07,22'!$B$5:$J$150,AO$7,FALSE)*AO$4,"") ->  | AP39: =IFERROR(VLOOKUP($C39,'20,08,22'!$B$5:$J$150,AP$7,FALSE)*AP$4,"") ->  | AQ39: =IFERROR(VLOOKUP($C39,'10,09,22'!$B$5:$J$150,AQ$7,FALSE)*AQ$4,"") ->  | AR39: =IFERROR(VLOOKUP($C39,'14,09,22'!$B$5:$J$150,AR$7,FALSE)*AR$4,"") -> 65.12978462 | AS39: =IFERROR(VLOOKUP($C39,'23,09,22'!$B$5:$J$150,AS$7,FALSE)*AS$4,"") ->  | AT39: =IFERROR(VLOOKUP($C39,'15,10,22'!$B$5:$J$150,AT$7,FALSE)*AT$4,"") ->  | FA39: =COUNTBLANK(FB39:FC39) -> 0 | FB39: 18 | FC39: Ожаровская Ольга | FD39: Ж | FE39: 1 | FF39: Россия | FG39: 1 | FH39: г.Санкт-Петербург
A40: 31 | B40: =IFERROR(IF(K40=0,"",IF($K$7=1,RANK(K40,K$10:K$510),COUNTIF(K$10:K$510,">0")-RANK(K40,K$10:K$510)+1)),"") -> 31 | C40: Самохина Анастасия | D40: Ж | E40: =IF(E$9="",1,IF(E$9=D40,1,0)) -> 1 | F40: Россия | G40: =IF(G$9="",1,IF(G$9=F40,1,0)) -> 1 | H40: Ленинградская область | I40: =IF(I$9="",1,IF(I$9=H40,1,0)) -> 1 | J40: =IFERROR(IF($K$7=1,SUMPRODUCT(LARGE(L40:ED40,{1,2,3,4})),AVERAGE(L40:ED40)),"") -> 65.15509107 | K40: =IFERROR(J40*E40*G40*I40,"") -> 65.15509107 | L40: =IF($K$7=1,0,"") -> 0 | M40: =IF($K$7=1,0,"") -> 0 | N40: =IF($K$7=1,0,"") -> 0 | O40: =IF($K$7=1,0,"") -> 0 | P40: =IFERROR(VLOOKUP($C40,'06,09,19'!$B$5:$J$150,P$7,FALSE)*P$4,"") ->  | Q40: =IFERROR(VLOOKUP($C40,'17,08,20'!$B$5:$J$150,Q$7,FALSE)*Q$4,"") ->  | R40: =IFERROR(VLOOKUP($C40,'01,10,20'!$B$5:$J$150,R$7,FALSE)*R$4,"") ->  | S40: =IFERROR(VLOOKUP($C40,'08,10,20'!$B$5:$J$150,S$7,FALSE)*S$4,"") ->  | T40: =IFERROR(VLOOKUP($C40,'08,01,21'!$B$5:$J$150,T$7,FALSE)*T$4,"") ->  | U40: =IFERROR(VLOOKUP($C40,'23,01,21'!$B$5:$J$150,U$7,FALSE)*U$4,"") ->  | V40: =IFERROR(VLOOKUP($C40,'23,04,21'!$B$5:$J$150,V$7,FALSE)*V$4,"") ->  | W40: =IFERROR(VLOOKUP($C40,'07,05,21'!$B$5:$J$150,W$7,FALSE)*W$4,"") ->  | X40: =IFERROR(VLOOKUP($C40,'11,06,21'!$B$5:$J$150,X$7,FALSE)*X$4,"") ->  | Y40: =IFERROR(VLOOKUP($C40,'18,06,21'!$B$5:$J$150,Y$7,FALSE)*Y$4,"") ->  | Z40: =IFERROR(VLOOKUP($C40,'26,06,21'!$B$5:$J$134,Z$7,FALSE)*Z$4,"") ->  | AA40: =IFERROR(VLOOKUP($C40,'25,06,21'!$B$5:$J$150,AA$7,FALSE)*AA$4,"") ->  | AB40: =IFERROR(VLOOKUP($C40,'29,07,21'!$B$5:$J$150,AB$7,FALSE)*AB$4,"") ->  | AC40: =IFERROR(VLOOKUP($C40,'21,08,21'!$B$5:$J$150,AC$7,FALSE)*AC$4,"") ->  | AD40: =IFERROR(VLOOKUP($C40,'02,09,21'!$B$5:$J$150,AD$7,FALSE)*AD$4,"") -> 24.24954972 | AE40: =IFERROR(VLOOKUP($C40,'07,10,21'!$B$5:$J$150,AE$7,FALSE)*AE$4,"") ->  | AF40: =IFERROR(VLOOKUP($C40,'30,10,21'!$B$5:$J$150,AF$7,FALSE)*AF$4,"") ->  | AG40: =IFERROR(VLOOKUP($C40,'19,02,22'!$B$5:$J$150,AG$7,FALSE)*AG$4,"") ->  | AH40: =IFERROR(VLOOKUP($C40,'23,02,22'!$B$5:$J$150,AH$7,FALSE)*AH$4,"") -> 13.72350502 | AI40: =IFERROR(VLOOKUP($C40,'29,04,22'!$B$5:$J$150,AI$7,FALSE)*AI$4,"") ->  | AJ40: =IFERROR(VLOOKUP($C40,'30,04,22'!$B$5:$J$150,AJ$7,FALSE)*AJ$4,"") ->  | AK40: =IFERROR(VLOOKUP($C40,'10,06,22'!$B$5:$J$150,AK$7,FALSE)*AK$4,"") ->  | AL40: =IFERROR(VLOOKUP($C40,'17,06,22'!$B$5:$J$150,AL$7,FALSE)*AL$4,"") ->  | AM40: =IFERROR(VLOOKUP($C40,'02,07,22'!$B$5:$J$150,AM$7,FALSE)*AM$4,"") -> 14.79199923 | AN40: =IFERROR(VLOOKUP($C40,'23,07,22'!$B$5:$J$150,AN$7,FALSE)*AN$4,"") -> 12.3900371 | AO40: =IFERROR(VLOOKUP($C40,'22,07,22'!$B$5:$J$150,AO$7,FALSE)*AO$4,"") ->  | AP40: =IFERROR(VLOOKUP($C40,'20,08,22'!$B$5:$J$150,AP$7,FALSE)*AP$4,"") ->  | AQ40: =IFERROR(VLOOKUP($C40,'10,09,22'!$B$5:$J$150,AQ$7,FALSE)*AQ$4,"") -> 7.786208993 | AR40: =IFERROR(VLOOKUP($C40,'14,09,22'!$B$5:$J$150,AR$7,FALSE)*AR$4,"") -> 5.166700466 | AS40: =IFERROR(VLOOKUP($C40,'23,09,22'!$B$5:$J$150,AS$7,FALSE)*AS$4,"") ->  | AT40: =IFERROR(VLOOKUP($C40,'15,10,22'!$B$5:$J$150,AT$7,FALSE)*AT$4,"") ->  | FA40: =COUNTBLANK(FB40:FC40) -> 0 | FB40: 42 | FC40: Помецкая Мария | FD40: Ж | FE40: 1 | FF40: Россия | FG40: 1 | FH40: Ленинградская область
A41: 32 | B41: =IFERROR(IF(K41=0,"",IF($K$7=1,RANK(K41,K$10:K$510),COUNTIF(K$10:K$510,">0")-RANK(K41,K$10:K$510)+1)),"") -> 32 | C41: Плешаков Константин | D41: М | E41: =IF(E$9="",1,IF(E$9=D41,1,0)) -> 1 | F41: Россия | G41: =IF(G$9="",1,IF(G$9=F41,1,0)) -> 1 | H41: Калининградская область | I41: =IF(I$9="",1,IF(I$9=H41,1,0)) -> 1 | J41: =IFERROR(IF($K$7=1,SUMPRODUCT(LARGE(L41:ED41,{1,2,3,4})),AVERAGE(L41:ED41)),"") -> 63.91588365 | K41: =IFERROR(J41*E41*G41*I41,"") -> 63.91588365 | L41: =IF($K$7=1,0,"") -> 0 | M41: =IF($K$7=1,0,"") -> 0 | N41: =IF($K$7=1,0,"") -> 0 | O41: =IF($K$7=1,0,"") -> 0 | P41: =IFERROR(VLOOKUP($C41,'06,09,19'!$B$5:$J$150,P$7,FALSE)*P$4,"") ->  | Q41: =IFERROR(VLOOKUP($C41,'17,08,20'!$B$5:$J$150,Q$7,FALSE)*Q$4,"") ->  | R41: =IFERROR(VLOOKUP($C41,'01,10,20'!$B$5:$J$150,R$7,FALSE)*R$4,"") ->  | S41: =IFERROR(VLOOKUP($C41,'08,10,20'!$B$5:$J$150,S$7,FALSE)*S$4,"") -> 1.759039963 | T41: =IFERROR(VLOOKUP($C41,'08,01,21'!$B$5:$J$150,T$7,FALSE)*T$4,"") ->  | U41: =IFERROR(VLOOKUP($C41,'23,01,21'!$B$5:$J$150,U$7,FALSE)*U$4,"") ->  | V41: =IFERROR(VLOOKUP($C41,'23,04,21'!$B$5:$J$150,V$7,FALSE)*V$4,"") ->  | W41: =IFERROR(VLOOKUP($C41,'07,05,21'!$B$5:$J$150,W$7,FALSE)*W$4,"") ->  | X41: =IFERROR(VLOOKUP($C41,'11,06,21'!$B$5:$J$150,X$7,FALSE)*X$4,"") ->  | Y41: =IFERROR(VLOOKUP($C41,'18,06,21'!$B$5:$J$150,Y$7,FALSE)*Y$4,"") ->  | Z41: =IFERROR(VLOOKUP($C41,'26,06,21'!$B$5:$J$134,Z$7,FALSE)*Z$4,"") ->  | AA41: =IFERROR(VLOOKUP($C41,'25,06,21'!$B$5:$J$150,AA$7,FALSE)*AA$4,"") ->  | AB41: =IFERROR(VLOOKUP($C41,'29,07,21'!$B$5:$J$150,AB$7,FALSE)*AB$4,"") ->  | AC41: =IFERROR(VLOOKUP($C41,'21,08,21'!$B$5:$J$150,AC$7,FALSE)*AC$4,"") ->  | AD41: =IFERROR(VLOOKUP($C41,'02,09,21'!$B$5:$J$150,AD$7,FALSE)*AD$4,"") ->  | AE41: =IFERROR(VLOOKUP($C41,'07,10,21'!$B$5:$J$150,AE$7,FALSE)*AE$4,"") ->  | AF41: =IFERROR(VLOOKUP($C41,'30,10,21'!$B$5:$J$150,AF$7,FALSE)*AF$4,"") ->  | AG41: =IFERROR(VLOOKUP($C41,'19,02,22'!$B$5:$J$150,AG$7,FALSE)*AG$4,"") ->  | AH41: =IFERROR(VLOOKUP($C41,'23,02,22'!$B$5:$J$150,AH$7,FALSE)*AH$4,"") ->  | AI41: =IFERROR(VLOOKUP($C41,'29,04,22'!$B$5:$J$150,AI$7,FALSE)*AI$4,"") ->  | AJ41: =IFERROR(VLOOKUP($C41,'30,04,22'!$B$5:$J$150,AJ$7,FALSE)*AJ$4,"") ->  | AK41: =IFERROR(VLOOKUP($C41,'10,06,22'!$B$5:$J$150,AK$7,FALSE)*AK$4,"") ->  | AL41: =IFERROR(VLOOKUP($C41,'17,06,22'!$B$5:$J$150,AL$7,FALSE)*AL$4,"") ->  | AM41: =IFERROR(VLOOKUP($C41,'02,07,22'!$B$5:$J$150,AM$7,FALSE)*AM$4,"") ->  | AN41: =IFERROR(VLOOKUP($C41,'23,07,22'!$B$5:$J$150,AN$7,FALSE)*AN$4,"") ->  | AO41: =IFERROR(VLOOKUP($C41,'22,07,22'!$B$5:$J$150,AO$7,FALSE)*AO$4,"") ->  | AP41: =IFERROR(VLOOKUP($C41,'20,08,22'!$B$5:$J$150,AP$7,FALSE)*AP$4,"") ->  | AQ41: =IFERROR(VLOOKUP($C41,'10,09,22'!$B$5:$J$150,AQ$7,FALSE)*AQ$4,"") ->  | AR41: =IFERROR(VLOOKUP($C41,'14,09,22'!$B$5:$J$150,AR$7,FALSE)*AR$4,"") -> 62.15684368 | AS41: =IFERROR(VLOOKUP($C41,'23,09,22'!$B$5:$J$150,AS$7,FALSE)*AS$4,"") ->  | AT41: =IFERROR(VLOOKUP($C41,'15,10,22'!$B$5:$J$150,AT$7,FALSE)*AT$4,"") ->  | FA41: =COUNTBLANK(FB41:FC41) -> 0 | FB41: 45 | FC41: Рамаданов Василий | FD41: М | FE41: 1 | FF41: Россия | FG41: 1 | FH41: Ленинградская область
A42: 33 | B42: =IFERROR(IF(K42=0,"",IF($K$7=1,RANK(K42,K$10:K$510),COUNTIF(K$10:K$510,">0")-RANK(K42,K$10:K$510)+1)),"") -> 33 | C42: Томашевич Андрей | D42: М | E42: =IF(E$9="",1,IF(E$9=D42,1,0)) -> 1 | F42: Россия | G42: =IF(G$9="",1,IF(G$9=F42,1,0)) -> 1 | H42: г.Санкт-Петербург | I42: =IF(I$9="",1,IF(I$9=H42,1,0)) -> 1 | J42: =IFERROR(IF($K$7=1,SUMPRODUCT(LARGE(L42:ED42,{1,2,3,4})),AVERAGE(L42:ED42)),"") -> 53.62576779 | K42: =IFERROR(J42*E42*G42*I42,"") -> 53.62576779 | L42: =IF($K$7=1,0,"") -> 0 | M42: =IF($K$7=1,0,"") -> 0 | N42: =IF($K$7=1,0,"") -> 0 | O42: =IF($K$7=1,0,"") -> 0 | P42: =IFERROR(VLOOKUP($C42,'06,09,19'!$B$5:$J$150,P$7,FALSE)*P$4,"") ->  | Q42: =IFERROR(VLOOKUP($C42,'17,08,20'!$B$5:$J$150,Q$7,FALSE)*Q$4,"") ->  | R42: =IFERROR(VLOOKUP($C42,'01,10,20'!$B$5:$J$150,R$7,FALSE)*R$4,"") ->  | S42: =IFERROR(VLOOKUP($C42,'08,10,20'!$B$5:$J$150,S$7,FALSE)*S$4,"") ->  | T42: =IFERROR(VLOOKUP($C42,'08,01,21'!$B$5:$J$150,T$7,FALSE)*T$4,"") -> 0.3229216276 | U42: =IFERROR(VLOOKUP($C42,'23,01,21'!$B$5:$J$150,U$7,FALSE)*U$4,"") -> 2.369601556 | V42: =IFERROR(VLOOKUP($C42,'23,04,21'!$B$5:$J$150,V$7,FALSE)*V$4,"") ->  | W42: =IFERROR(VLOOKUP($C42,'07,05,21'!$B$5:$J$150,W$7,FALSE)*W$4,"") ->  | X42: =IFERROR(VLOOKUP($C42,'11,06,21'!$B$5:$J$150,X$7,FALSE)*X$4,"") -> 11.06900252 | Y42: =IFERROR(VLOOKUP($C42,'18,06,21'!$B$5:$J$150,Y$7,FALSE)*Y$4,"") ->  | Z42: =IFERROR(VLOOKUP($C42,'26,06,21'!$B$5:$J$134,Z$7,FALSE)*Z$4,"") -> 6.664877169 | AA42: =IFERROR(VLOOKUP($C42,'25,06,21'!$B$5:$J$150,AA$7,FALSE)*AA$4,"") ->  | AB42: =IFERROR(VLOOKUP($C42,'29,07,21'!$B$5:$J$150,AB$7,FALSE)*AB$4,"") -> 4.423194398 | AC42: =IFERROR(VLOOKUP($C42,'21,08,21'!$B$5:$J$150,AC$7,FALSE)*AC$4,"") -> 1.320900062 | AD42: =IFERROR(VLOOKUP($C42,'02,09,21'!$B$5:$J$150,AD$7,FALSE)*AD$4,"") -> 18.78320181 | AE42: =IFERROR(VLOOKUP($C42,'07,10,21'!$B$5:$J$150,AE$7,FALSE)*AE$4,"") ->  | AF42: =IFERROR(VLOOKUP($C42,'30,10,21'!$B$5:$J$150,AF$7,FALSE)*AF$4,"") ->  | AG42: =IFERROR(VLOOKUP($C42,'19,02,22'!$B$5:$J$150,AG$7,FALSE)*AG$4,"") ->  | AH42: =IFERROR(VLOOKUP($C42,'23,02,22'!$B$5:$J$150,AH$7,FALSE)*AH$4,"") ->  | AI42: =IFERROR(VLOOKUP($C42,'29,04,22'!$B$5:$J$150,AI$7,FALSE)*AI$4,"") -> 13.58178966 | AJ42: =IFERROR(VLOOKUP($C42,'30,04,22'!$B$5:$J$150,AJ$7,FALSE)*AJ$4,"") ->  | AK42: =IFERROR(VLOOKUP($C42,'10,06,22'!$B$5:$J$150,AK$7,FALSE)*AK$4,"") ->  | AL42: =IFERROR(VLOOKUP($C42,'17,06,22'!$B$5:$J$150,AL$7,FALSE)*AL$4,"") ->  | AM42: =IFERROR(VLOOKUP($C42,'02,07,22'!$B$5:$J$150,AM$7,FALSE)*AM$4,"") ->  | AN42: =IFERROR(VLOOKUP($C42,'23,07,22'!$B$5:$J$150,AN$7,FALSE)*AN$4,"") ->  | AO42: =IFERROR(VLOOKUP($C42,'22,07,22'!$B$5:$J$150,AO$7,FALSE)*AO$4,"") ->  | AP42: =IFERROR(VLOOKUP($C42,'20,08,22'!$B$5:$J$150,AP$7,FALSE)*AP$4,"") -> 10.1917738 | AQ42: =IFERROR(VLOOKUP($C42,'10,09,22'!$B$5:$J$150,AQ$7,FALSE)*AQ$4,"") ->  | AR42: =IFERROR(VLOOKUP($C42,'14,09,22'!$B$5:$J$150,AR$7,FALSE)*AR$4,"") -> 9.147148 | AS42: =IFERROR(VLOOKUP($C42,'23,09,22'!$B$5:$J$150,AS$7,FALSE)*AS$4,"") ->  | AT42: =IFERROR(VLOOKUP($C42,'15,10,22'!$B$5:$J$150,AT$7,FALSE)*AT$4,"") ->  | FA42: =COUNTBLANK(FB42:FC42) -> 0 | FB42: 5 | FC42: Рудаков Алексей | FD42: М | FE42: 1 | FF42: Россия | FG42: 1 | FH42: Калининградская область
A43: 34 | B43: =IFERROR(IF(K43=0,"",IF($K$7=1,RANK(K43,K$10:K$510),COUNTIF(K$10:K$510,">0")-RANK(K43,K$10:K$510)+1)),"") -> 34 | C43: Ивашин Матвей | D43: М | E43: =IF(E$9="",1,IF(E$9=D43,1,0)) -> 1 | F43: Россия | G43: =IF(G$9="",1,IF(G$9=F43,1,0)) -> 1 | H43: Ленинградская область | I43: =IF(I$9="",1,IF(I$9=H43,1,0)) -> 1 | J43: =IFERROR(IF($K$7=1,SUMPRODUCT(LARGE(L43:ED43,{1,2,3,4})),AVERAGE(L43:ED43)),"") -> 51.70992349 | K43: =IFERROR(J43*E43*G43*I43,"") -> 51.70992349 | L43: =IF($K$7=1,0,"") -> 0 | M43: =IF($K$7=1,0,"") -> 0 | N43: =IF($K$7=1,0,"") -> 0 | O43: =IF($K$7=1,0,"") -> 0 | P43: =IFERROR(VLOOKUP($C43,'06,09,19'!$B$5:$J$150,P$7,FALSE)*P$4,"") ->  | Q43: =IFERROR(VLOOKUP($C43,'17,08,20'!$B$5:$J$150,Q$7,FALSE)*Q$4,"") ->  | R43: =IFERROR(VLOOKUP($C43,'01,10,20'!$B$5:$J$150,R$7,FALSE)*R$4,"") ->  | S43: =IFERROR(VLOOKUP($C43,'08,10,20'!$B$5:$J$150,S$7,FALSE)*S$4,"") -> 0.08674917204 | T43: =IFERROR(VLOOKUP($C43,'08,01,21'!$B$5:$J$150,T$7,FALSE)*T$4,"") ->  | U43: =IFERROR(VLOOKUP($C43,'23,01,21'!$B$5:$J$150,U$7,FALSE)*U$4,"") ->  | V43: =IFERROR(VLOOKUP($C43,'23,04,21'!$B$5:$J$150,V$7,FALSE)*V$4,"") ->  | W43: =IFERROR(VLOOKUP($C43,'07,05,21'!$B$5:$J$150,W$7,FALSE)*W$4,"") ->  | X43: =IFERROR(VLOOKUP($C43,'11,06,21'!$B$5:$J$150,X$7,FALSE)*X$4,"") ->  | Y43: =IFERROR(VLOOKUP($C43,'18,06,21'!$B$5:$J$150,Y$7,FALSE)*Y$4,"") ->  | Z43: =IFERROR(VLOOKUP($C43,'26,06,21'!$B$5:$J$134,Z$7,FALSE)*Z$4,"") ->  | AA43: =IFERROR(VLOOKUP($C43,'25,06,21'!$B$5:$J$150,AA$7,FALSE)*AA$4,"") ->  | AB43: =IFERROR(VLOOKUP($C43,'29,07,21'!$B$5:$J$150,AB$7,FALSE)*AB$4,"") ->  | AC43: =IFERROR(VLOOKUP($C43,'21,08,21'!$B$5:$J$150,AC$7,FALSE)*AC$4,"") ->  | AD43: =IFERROR(VLOOKUP($C43,'02,09,21'!$B$5:$J$150,AD$7,FALSE)*AD$4,"") ->  | AE43: =IFERROR(VLOOKUP($C43,'07,10,21'!$B$5:$J$150,AE$7,FALSE)*AE$4,"") ->  | AF43: =IFERROR(VLOOKUP($C43,'30,10,21'!$B$5:$J$150,AF$7,FALSE)*AF$4,"") ->  | AG43: =IFERROR(VLOOKUP($C43,'19,02,22'!$B$5:$J$150,AG$7,FALSE)*AG$4,"") ->  | AH43: =IFERROR(VLOOKUP($C43,'23,02,22'!$B$5:$J$150,AH$7,FALSE)*AH$4,"") ->  | AI43: =IFERROR(VLOOKUP($C43,'29,04,22'!$B$5:$J$150,AI$7,FALSE)*AI$4,"") -> 15.39916074 | AJ43: =IFERROR(VLOOKUP($C43,'30,04,22'!$B$5:$J$150,AJ$7,FALSE)*AJ$4,"") ->  | AK43: =IFERROR(VLOOKUP($C43,'10,06,22'!$B$5:$J$150,AK$7,FALSE)*AK$4,"") ->  | AL43: =IFERROR(VLOOKUP($C43,'17,06,22'!$B$5:$J$150,AL$7,FALSE)*AL$4,"") ->  | AM43: =IFERROR(VLOOKUP($C43,'02,07,22'!$B$5:$J$150,AM$7,FALSE)*AM$4,"") ->  | AN43: =IFERROR(VLOOKUP($C43,'23,07,22'!$B$5:$J$150,AN$7,FALSE)*AN$4,"") ->  | AO43: =IFERROR(VLOOKUP($C43,'22,07,22'!$B$5:$J$150,AO$7,FALSE)*AO$4,"") ->  | AP43: =IFERROR(VLOOKUP($C43,'20,08,22'!$B$5:$J$150,AP$7,FALSE)*AP$4,"") ->  | AQ43: =IFERROR(VLOOKUP($C43,'10,09,22'!$B$5:$J$150,AQ$7,FALSE)*AQ$4,"") ->  | AR43: =IFERROR(VLOOKUP($C43,'14,09,22'!$B$5:$J$150,AR$7,FALSE)*AR$4,"") -> 36.22401358 | AS43: =IFERROR(VLOOKUP($C43,'23,09,22'!$B$5:$J$150,AS$7,FALSE)*AS$4,"") ->  | AT43: =IFERROR(VLOOKUP($C43,'15,10,22'!$B$5:$J$150,AT$7,FALSE)*AT$4,"") ->  | FA43: =COUNTBLANK(FB43:FC43) -> 0 | FB43: 8 | FC43: Самохина Анастасия | FD43: Ж | FE43: 1 | FF43: Россия | FG43: 1 | FH43: Ленинградская область
A44: 35 | B44: =IFERROR(IF(K44=0,"",IF($K$7=1,RANK(K44,K$10:K$510),COUNTIF(K$10:K$510,">0")-RANK(K44,K$10:K$510)+1)),"") -> 35 | C44: Степанов Дмитрий | D44: М | E44: =IF(E$9="",1,IF(E$9=D44,1,0)) -> 1 | F44: Россия | G44: =IF(G$9="",1,IF(G$9=F44,1,0)) -> 1 | H44: Алтайский край | I44: =IF(I$9="",1,IF(I$9=H44,1,0)) -> 1 | J44: =IFERROR(IF($K$7=1,SUMPRODUCT(LARGE(L44:ED44,{1,2,3,4})),AVERAGE(L44:ED44)),"") -> 51.39260514 | K44: =IFERROR(J44*E44*G44*I44,"") -> 51.39260514 | L44: =IF($K$7=1,0,"") -> 0 | M44: =IF($K$7=1,0,"") -> 0 | N44: =IF($K$7=1,0,"") -> 0 | O44: =IF($K$7=1,0,"") -> 0 | P44: =IFERROR(VLOOKUP($C44,'06,09,19'!$B$5:$J$150,P$7,FALSE)*P$4,"") ->  | Q44: =IFERROR(VLOOKUP($C44,'17,08,20'!$B$5:$J$150,Q$7,FALSE)*Q$4,"") ->  | R44: =IFERROR(VLOOKUP($C44,'01,10,20'!$B$5:$J$150,R$7,FALSE)*R$4,"") ->  | S44: =IFERROR(VLOOKUP($C44,'08,10,20'!$B$5:$J$150,S$7,FALSE)*S$4,"") ->  | T44: =IFERROR(VLOOKUP($C44,'08,01,21'!$B$5:$J$150,T$7,FALSE)*T$4,"") ->  | U44: =IFERROR(VLOOKUP($C44,'23,01,21'!$B$5:$J$150,U$7,FALSE)*U$4,"") ->  | V44: =IFERROR(VLOOKUP($C44,'23,04,21'!$B$5:$J$150,V$7,FALSE)*V$4,"") ->  | W44: =IFERROR(VLOOKUP($C44,'07,05,21'!$B$5:$J$150,W$7,FALSE)*W$4,"") ->  | X44: =IFERROR(VLOOKUP($C44,'11,06,21'!$B$5:$J$150,X$7,FALSE)*X$4,"") ->  | Y44: =IFERROR(VLOOKUP($C44,'18,06,21'!$B$5:$J$150,Y$7,FALSE)*Y$4,"") ->  | Z44: =IFERROR(VLOOKUP($C44,'26,06,21'!$B$5:$J$134,Z$7,FALSE)*Z$4,"") ->  | AA44: =IFERROR(VLOOKUP($C44,'25,06,21'!$B$5:$J$150,AA$7,FALSE)*AA$4,"") -> 14.002488 | AB44: =IFERROR(VLOOKUP($C44,'29,07,21'!$B$5:$J$150,AB$7,FALSE)*AB$4,"") ->  | AC44: =IFERROR(VLOOKUP($C44,'21,08,21'!$B$5:$J$150,AC$7,FALSE)*AC$4,"") ->  | AD44: =IFERROR(VLOOKUP($C44,'02,09,21'!$B$5:$J$150,AD$7,FALSE)*AD$4,"") ->  | AE44: =IFERROR(VLOOKUP($C44,'07,10,21'!$B$5:$J$150,AE$7,FALSE)*AE$4,"") ->  | AF44: =IFERROR(VLOOKUP($C44,'30,10,21'!$B$5:$J$150,AF$7,FALSE)*AF$4,"") ->  | AG44: =IFERROR(VLOOKUP($C44,'19,02,22'!$B$5:$J$150,AG$7,FALSE)*AG$4,"") -> 16.64521647 | AH44: =IFERROR(VLOOKUP($C44,'23,02,22'!$B$5:$J$150,AH$7,FALSE)*AH$4,"") ->  | AI44: =IFERROR(VLOOKUP($C44,'29,04,22'!$B$5:$J$150,AI$7,FALSE)*AI$4,"") ->  | AJ44: =IFERROR(VLOOKUP($C44,'30,04,22'!$B$5:$J$150,AJ$7,FALSE)*AJ$4,"") -> 8.585054168 | AK44: =IFERROR(VLOOKUP($C44,'10,06,22'!$B$5:$J$150,AK$7,FALSE)*AK$4,"") ->  | AL44: =IFERROR(VLOOKUP($C44,'17,06,22'!$B$5:$J$150,AL$7,FALSE)*AL$4,"") -> 10.81444252 | AM44: =IFERROR(VLOOKUP($C44,'02,07,22'!$B$5:$J$150,AM$7,FALSE)*AM$4,"") ->  | AN44: =IFERROR(VLOOKUP($C44,'23,07,22'!$B$5:$J$150,AN$7,FALSE)*AN$4,"") ->  | AO44: =IFERROR(VLOOKUP($C44,'22,07,22'!$B$5:$J$150,AO$7,FALSE)*AO$4,"") ->  | AP44: =IFERROR(VLOOKUP($C44,'20,08,22'!$B$5:$J$150,AP$7,FALSE)*AP$4,"") ->  | AQ44: =IFERROR(VLOOKUP($C44,'10,09,22'!$B$5:$J$150,AQ$7,FALSE)*AQ$4,"") ->  | AR44: =IFERROR(VLOOKUP($C44,'14,09,22'!$B$5:$J$150,AR$7,FALSE)*AR$4,"") ->  | AS44: =IFERROR(VLOOKUP($C44,'23,09,22'!$B$5:$J$150,AS$7,FALSE)*AS$4,"") -> 9.930458148 | AT44: =IFERROR(VLOOKUP($C44,'15,10,22'!$B$5:$J$150,AT$7,FALSE)*AT$4,"") ->  | FA44: =COUNTBLANK(FB44:FC44) -> 0 | FB44: 40 | FC44: Соколов Сергей | FD44: М | FE44: 1 | FF44: Россия | FG44: 1 | FH44: Ленинградская область
A45: 36 | B45: =IFERROR(IF(K45=0,"",IF($K$7=1,RANK(K45,K$10:K$510),COUNTIF(K$10:K$510,">0")-RANK(K45,K$10:K$510)+1)),"") -> 36 | C45: Ильясов Идрис | D45: М | E45: =IF(E$9="",1,IF(E$9=D45,1,0)) -> 1 | F45: Россия | G45: =IF(G$9="",1,IF(G$9=F45,1,0)) -> 1 | H45: Удмуртская республика | I45: =IF(I$9="",1,IF(I$9=H45,1,0)) -> 1 | J45: =IFERROR(IF($K$7=1,SUMPRODUCT(LARGE(L45:ED45,{1,2,3,4})),AVERAGE(L45:ED45)),"") -> 47.52021868 | K45: =IFERROR(J45*E45*G45*I45,"") -> 47.52021868 | L45: =IF($K$7=1,0,"") -> 0 | M45: =IF($K$7=1,0,"") -> 0 | N45: =IF($K$7=1,0,"") -> 0 | O45: =IF($K$7=1,0,"") -> 0 | P45: =IFERROR(VLOOKUP($C45,'06,09,19'!$B$5:$J$150,P$7,FALSE)*P$4,"") ->  | Q45: =IFERROR(VLOOKUP($C45,'17,08,20'!$B$5:$J$150,Q$7,FALSE)*Q$4,"") ->  | R45: =IFERROR(VLOOKUP($C45,'01,10,20'!$B$5:$J$150,R$7,FALSE)*R$4,"") ->  | S45: =IFERROR(VLOOKUP($C45,'08,10,20'!$B$5:$J$150,S$7,FALSE)*S$4,"") ->  | T45: =IFERROR(VLOOKUP($C45,'08,01,21'!$B$5:$J$150,T$7,FALSE)*T$4,"") ->  | U45: =IFERROR(VLOOKUP($C45,'23,01,21'!$B$5:$J$150,U$7,FALSE)*U$4,"") ->  | V45: =IFERROR(VLOOKUP($C45,'23,04,21'!$B$5:$J$150,V$7,FALSE)*V$4,"") ->  | W45: =IFERROR(VLOOKUP($C45,'07,05,21'!$B$5:$J$150,W$7,FALSE)*W$4,"") ->  | X45: =IFERROR(VLOOKUP($C45,'11,06,21'!$B$5:$J$150,X$7,FALSE)*X$4,"") ->  | Y45: =IFERROR(VLOOKUP($C45,'18,06,21'!$B$5:$J$150,Y$7,FALSE)*Y$4,"") -> 7.650149912 | Z45: =IFERROR(VLOOKUP($C45,'26,06,21'!$B$5:$J$134,Z$7,FALSE)*Z$4,"") ->  | AA45: =IFERROR(VLOOKUP($C45,'25,06,21'!$B$5:$J$150,AA$7,FALSE)*AA$4,"") ->  | AB45: =IFERROR(VLOOKUP($C45,'29,07,21'!$B$5:$J$150,AB$7,FALSE)*AB$4,"") ->  | AC45: =IFERROR(VLOOKUP($C45,'21,08,21'!$B$5:$J$150,AC$7,FALSE)*AC$4,"") ->  | AD45: =IFERROR(VLOOKUP($C45,'02,09,21'!$B$5:$J$150,AD$7,FALSE)*AD$4,"") ->  | AE45: =IFERROR(VLOOKUP($C45,'07,10,21'!$B$5:$J$150,AE$7,FALSE)*AE$4,"") ->  | AF45: =IFERROR(VLOOKUP($C45,'30,10,21'!$B$5:$J$150,AF$7,FALSE)*AF$4,"") ->  | AG45: =IFERROR(VLOOKUP($C45,'19,02,22'!$B$5:$J$150,AG$7,FALSE)*AG$4,"") ->  | AH45: =IFERROR(VLOOKUP($C45,'23,02,22'!$B$5:$J$150,AH$7,FALSE)*AH$4,"") ->  | AI45: =IFERROR(VLOOKUP($C45,'29,04,22'!$B$5:$J$150,AI$7,FALSE)*AI$4,"") ->  | AJ45: =IFERROR(VLOOKUP($C45,'30,04,22'!$B$5:$J$150,AJ$7,FALSE)*AJ$4,"") ->  | AK45: =IFERROR(VLOOKUP($C45,'10,06,22'!$B$5:$J$150,AK$7,FALSE)*AK$4,"") -> 39.87006877 | AL45: =IFERROR(VLOOKUP($C45,'17,06,22'!$B$5:$J$150,AL$7,FALSE)*AL$4,"") ->  | AM45: =IFERROR(VLOOKUP($C45,'02,07,22'!$B$5:$J$150,AM$7,FALSE)*AM$4,"") ->  | AN45: =IFERROR(VLOOKUP($C45,'23,07,22'!$B$5:$J$150,AN$7,FALSE)*AN$4,"") ->  | AO45: =IFERROR(VLOOKUP($C45,'22,07,22'!$B$5:$J$150,AO$7,FALSE)*AO$4,"") ->  | AP45: =IFERROR(VLOOKUP($C45,'20,08,22'!$B$5:$J$150,AP$7,FALSE)*AP$4,"") ->  | AQ45: =IFERROR(VLOOKUP($C45,'10,09,22'!$B$5:$J$150,AQ$7,FALSE)*AQ$4,"") ->  | AR45: =IFERROR(VLOOKUP($C45,'14,09,22'!$B$5:$J$150,AR$7,FALSE)*AR$4,"") ->  | AS45: =IFERROR(VLOOKUP($C45,'23,09,22'!$B$5:$J$150,AS$7,FALSE)*AS$4,"") ->  | AT45: =IFERROR(VLOOKUP($C45,'15,10,22'!$B$5:$J$150,AT$7,FALSE)*AT$4,"") ->  | FA45: =COUNTBLANK(FB45:FC45) -> 0 | FB45: 12 | FC45: Томашевич Андрей | FD45: М | FE45: 1 | FF45: Россия | FG45: 1 | FH45: г.Санкт-Петербург
A46: 37 | B46: =IFERROR(IF(K46=0,"",IF($K$7=1,RANK(K46,K$10:K$510),COUNTIF(K$10:K$510,">0")-RANK(K46,K$10:K$510)+1)),"") -> 37 | C46: Ермакова Ольга | D46: Ж | E46: =IF(E$9="",1,IF(E$9=D46,1,0)) -> 1 | F46: Россия | G46: =IF(G$9="",1,IF(G$9=F46,1,0)) -> 1 | H46: Ленинградская область | I46: =IF(I$9="",1,IF(I$9=H46,1,0)) -> 1 | J46: =IFERROR(IF($K$7=1,SUMPRODUCT(LARGE(L46:ED46,{1,2,3,4})),AVERAGE(L46:ED46)),"") -> 41.56456828 | K46: =IFERROR(J46*E46*G46*I46,"") -> 41.56456828 | L46: =IF($K$7=1,0,"") -> 0 | M46: =IF($K$7=1,0,"") -> 0 | N46: =IF($K$7=1,0,"") -> 0 | O46: =IF($K$7=1,0,"") -> 0 | P46: =IFERROR(VLOOKUP($C46,'06,09,19'!$B$5:$J$150,P$7,FALSE)*P$4,"") ->  | Q46: =IFERROR(VLOOKUP($C46,'17,08,20'!$B$5:$J$150,Q$7,FALSE)*Q$4,"") ->  | R46: =IFERROR(VLOOKUP($C46,'01,10,20'!$B$5:$J$150,R$7,FALSE)*R$4,"") ->  | S46: =IFERROR(VLOOKUP($C46,'08,10,20'!$B$5:$J$150,S$7,FALSE)*S$4,"") -> 1.183751077 | T46: =IFERROR(VLOOKUP($C46,'08,01,21'!$B$5:$J$150,T$7,FALSE)*T$4,"") ->  | U46: =IFERROR(VLOOKUP($C46,'23,01,21'!$B$5:$J$150,U$7,FALSE)*U$4,"") -> 0.7345855858 | V46: =IFERROR(VLOOKUP($C46,'23,04,21'!$B$5:$J$150,V$7,FALSE)*V$4,"") ->  | W46: =IFERROR(VLOOKUP($C46,'07,05,21'!$B$5:$J$150,W$7,FALSE)*W$4,"") ->  | X46: =IFERROR(VLOOKUP($C46,'11,06,21'!$B$5:$J$150,X$7,FALSE)*X$4,"") ->  | Y46: =IFERROR(VLOOKUP($C46,'18,06,21'!$B$5:$J$150,Y$7,FALSE)*Y$4,"") ->  | Z46: =IFERROR(VLOOKUP($C46,'26,06,21'!$B$5:$J$134,Z$7,FALSE)*Z$4,"") ->  | AA46: =IFERROR(VLOOKUP($C46,'25,06,21'!$B$5:$J$150,AA$7,FALSE)*AA$4,"") ->  | AB46: =IFERROR(VLOOKUP($C46,'29,07,21'!$B$5:$J$150,AB$7,FALSE)*AB$4,"") ->  | AC46: =IFERROR(VLOOKUP($C46,'21,08,21'!$B$5:$J$150,AC$7,FALSE)*AC$4,"") ->  | AD46: =IFERROR(VLOOKUP($C46,'02,09,21'!$B$5:$J$150,AD$7,FALSE)*AD$4,"") ->  | AE46: =IFERROR(VLOOKUP($C46,'07,10,21'!$B$5:$J$150,AE$7,FALSE)*AE$4,"") -> 0.01584882051 | AF46: =IFERROR(VLOOKUP($C46,'30,10,21'!$B$5:$J$150,AF$7,FALSE)*AF$4,"") -> 5.480405086 | AG46: =IFERROR(VLOOKUP($C46,'19,02,22'!$B$5:$J$150,AG$7,FALSE)*AG$4,"") ->  | AH46: =IFERROR(VLOOKUP($C46,'23,02,22'!$B$5:$J$150,AH$7,FALSE)*AH$4,"") -> 4.590393572 | AI46: =IFERROR(VLOOKUP($C46,'29,04,22'!$B$5:$J$150,AI$7,FALSE)*AI$4,"") -> 10.2029435 | AJ46: =IFERROR(VLOOKUP($C46,'30,04,22'!$B$5:$J$150,AJ$7,FALSE)*AJ$4,"") ->  | AK46: =IFERROR(VLOOKUP($C46,'10,06,22'!$B$5:$J$150,AK$7,FALSE)*AK$4,"") -> 2.63894681 | AL46: =IFERROR(VLOOKUP($C46,'17,06,22'!$B$5:$J$150,AL$7,FALSE)*AL$4,"") ->  | AM46: =IFERROR(VLOOKUP($C46,'02,07,22'!$B$5:$J$150,AM$7,FALSE)*AM$4,"") -> 7.078339709 | AN46: =IFERROR(VLOOKUP($C46,'23,07,22'!$B$5:$J$150,AN$7,FALSE)*AN$4,"") -> 1.162564032 | AO46: =IFERROR(VLOOKUP($C46,'22,07,22'!$B$5:$J$150,AO$7,FALSE)*AO$4,"") ->  | AP46: =IFERROR(VLOOKUP($C46,'20,08,22'!$B$5:$J$150,AP$7,FALSE)*AP$4,"") ->  | AQ46: =IFERROR(VLOOKUP($C46,'10,09,22'!$B$5:$J$150,AQ$7,FALSE)*AQ$4,"") ->  | AR46: =IFERROR(VLOOKUP($C46,'14,09,22'!$B$5:$J$150,AR$7,FALSE)*AR$4,"") -> 18.80287999 | AS46: =IFERROR(VLOOKUP($C46,'23,09,22'!$B$5:$J$150,AS$7,FALSE)*AS$4,"") ->  | AT46: =IFERROR(VLOOKUP($C46,'15,10,22'!$B$5:$J$150,AT$7,FALSE)*AT$4,"") ->  | FA46: =COUNTBLANK(FB46:FC46) -> 0 | FB46: 26 | FC46: Томашевич Даниил | FD46: М | FE46: 1 | FF46: Россия | FG46: 1 | FH46: г.Санкт-Петербург
A47: 38 | B47: =IFERROR(IF(K47=0,"",IF($K$7=1,RANK(K47,K$10:K$510),COUNTIF(K$10:K$510,">0")-RANK(K47,K$10:K$510)+1)),"") -> 38 | C47: Ратушин Егор | D47: М | E47: =IF(E$9="",1,IF(E$9=D47,1,0)) -> 1 | F47: Россия | G47: =IF(G$9="",1,IF(G$9=F47,1,0)) -> 1 | H47: Алтайский край | I47: =IF(I$9="",1,IF(I$9=H47,1,0)) -> 1 | J47: =IFERROR(IF($K$7=1,SUMPRODUCT(LARGE(L47:ED47,{1,2,3,4})),AVERAGE(L47:ED47)),"") -> 35.61588814 | K47: =IFERROR(J47*E47*G47*I47,"") -> 35.61588814 | L47: =IF($K$7=1,0,"") -> 0 | M47: =IF($K$7=1,0,"") -> 0 | N47: =IF($K$7=1,0,"") -> 0 | O47: =IF($K$7=1,0,"") -> 0 | P47: =IFERROR(VLOOKUP($C47,'06,09,19'!$B$5:$J$150,P$7,FALSE)*P$4,"") ->  | Q47: =IFERROR(VLOOKUP($C47,'17,08,20'!$B$5:$J$150,Q$7,FALSE)*Q$4,"") ->  | R47: =IFERROR(VLOOKUP($C47,'01,10,20'!$B$5:$J$150,R$7,FALSE)*R$4,"") ->  | S47: =IFERROR(VLOOKUP($C47,'08,10,20'!$B$5:$J$150,S$7,FALSE)*S$4,"") ->  | T47: =IFERROR(VLOOKUP($C47,'08,01,21'!$B$5:$J$150,T$7,FALSE)*T$4,"") ->  | U47: =IFERROR(VLOOKUP($C47,'23,01,21'!$B$5:$J$150,U$7,FALSE)*U$4,"") ->  | V47: =IFERROR(VLOOKUP($C47,'23,04,21'!$B$5:$J$150,V$7,FALSE)*V$4,"") ->  | W47: =IFERROR(VLOOKUP($C47,'07,05,21'!$B$5:$J$150,W$7,FALSE)*W$4,"") -> 4.557532732 | X47: =IFERROR(VLOOKUP($C47,'11,06,21'!$B$5:$J$150,X$7,FALSE)*X$4,"") ->  | Y47: =IFERROR(VLOOKUP($C47,'18,06,21'!$B$5:$J$150,Y$7,FALSE)*Y$4,"") ->  | Z47: =IFERROR(VLOOKUP($C47,'26,06,21'!$B$5:$J$134,Z$7,FALSE)*Z$4,"") ->  | AA47: =IFERROR(VLOOKUP($C47,'25,06,21'!$B$5:$J$150,AA$7,FALSE)*AA$4,"") -> 12.35726307 | AB47: =IFERROR(VLOOKUP($C47,'29,07,21'!$B$5:$J$150,AB$7,FALSE)*AB$4,"") ->  | AC47: =IFERROR(VLOOKUP($C47,'21,08,21'!$B$5:$J$150,AC$7,FALSE)*AC$4,"") ->  | AD47: =IFERROR(VLOOKUP($C47,'02,09,21'!$B$5:$J$150,AD$7,FALSE)*AD$4,"") ->  | AE47: =IFERROR(VLOOKUP($C47,'07,10,21'!$B$5:$J$150,AE$7,FALSE)*AE$4,"") ->  | AF47: =IFERROR(VLOOKUP($C47,'30,10,21'!$B$5:$J$150,AF$7,FALSE)*AF$4,"") ->  | AG47: =IFERROR(VLOOKUP($C47,'19,02,22'!$B$5:$J$150,AG$7,FALSE)*AG$4,"") -> 14.03398126 | AH47: =IFERROR(VLOOKUP($C47,'23,02,22'!$B$5:$J$150,AH$7,FALSE)*AH$4,"") ->  | AI47: =IFERROR(VLOOKUP($C47,'29,04,22'!$B$5:$J$150,AI$7,FALSE)*AI$4,"") ->  | AJ47: =IFERROR(VLOOKUP($C47,'30,04,22'!$B$5:$J$150,AJ$7,FALSE)*AJ$4,"") -> 0.8000332488 | AK47: =IFERROR(VLOOKUP($C47,'10,06,22'!$B$5:$J$150,AK$7,FALSE)*AK$4,"") ->  | AL47: =IFERROR(VLOOKUP($C47,'17,06,22'!$B$5:$J$150,AL$7,FALSE)*AL$4,"") ->  | AM47: =IFERROR(VLOOKUP($C47,'02,07,22'!$B$5:$J$150,AM$7,FALSE)*AM$4,"") ->  | AN47: =IFERROR(VLOOKUP($C47,'23,07,22'!$B$5:$J$150,AN$7,FALSE)*AN$4,"") ->  | AO47: =IFERROR(VLOOKUP($C47,'22,07,22'!$B$5:$J$150,AO$7,FALSE)*AO$4,"") ->  | AP47: =IFERROR(VLOOKUP($C47,'20,08,22'!$B$5:$J$150,AP$7,FALSE)*AP$4,"") ->  | AQ47: =IFERROR(VLOOKUP($C47,'10,09,22'!$B$5:$J$150,AQ$7,FALSE)*AQ$4,"") ->  | AR47: =IFERROR(VLOOKUP($C47,'14,09,22'!$B$5:$J$150,AR$7,FALSE)*AR$4,"") ->  | AS47: =IFERROR(VLOOKUP($C47,'23,09,22'!$B$5:$J$150,AS$7,FALSE)*AS$4,"") -> 4.667111082 | AT47: =IFERROR(VLOOKUP($C47,'15,10,22'!$B$5:$J$150,AT$7,FALSE)*AT$4,"") ->  | FA47: =COUNTBLANK(FB47:FC47) -> 0 | FB47: 22 | FC47: Томашевич Павел | FD47: М | FE47: 1 | FF47: Россия | FG47: 1 | FH47: г.Санкт-Петербург
A48: 39 | B48: =IFERROR(IF(K48=0,"",IF($K$7=1,RANK(K48,K$10:K$510),COUNTIF(K$10:K$510,">0")-RANK(K48,K$10:K$510)+1)),"") -> 39 | C48: Жерносенко Станислав | D48: М | E48: =IF(E$9="",1,IF(E$9=D48,1,0)) -> 1 | F48: Россия | G48: =IF(G$9="",1,IF(G$9=F48,1,0)) -> 1 | H48: Алтайский край | I48: =IF(I$9="",1,IF(I$9=H48,1,0)) -> 1 | J48: =IFERROR(IF($K$7=1,SUMPRODUCT(LARGE(L48:ED48,{1,2,3,4})),AVERAGE(L48:ED48)),"") -> 34.22033039 | K48: =IFERROR(J48*E48*G48*I48,"") -> 34.22033039 | L48: =IF($K$7=1,0,"") -> 0 | M48: =IF($K$7=1,0,"") -> 0 | N48: =IF($K$7=1,0,"") -> 0 | O48: =IF($K$7=1,0,"") -> 0 | P48: =IFERROR(VLOOKUP($C48,'06,09,19'!$B$5:$J$150,P$7,FALSE)*P$4,"") ->  | Q48: =IFERROR(VLOOKUP($C48,'17,08,20'!$B$5:$J$150,Q$7,FALSE)*Q$4,"") ->  | R48: =IFERROR(VLOOKUP($C48,'01,10,20'!$B$5:$J$150,R$7,FALSE)*R$4,"") -> 0.8586093535 | S48: =IFERROR(VLOOKUP($C48,'08,10,20'!$B$5:$J$150,S$7,FALSE)*S$4,"") ->  | T48: =IFERROR(VLOOKUP($C48,'08,01,21'!$B$5:$J$150,T$7,FALSE)*T$4,"") ->  | U48: =IFERROR(VLOOKUP($C48,'23,01,21'!$B$5:$J$150,U$7,FALSE)*U$4,"") ->  | V48: =IFERROR(VLOOKUP($C48,'23,04,21'!$B$5:$J$150,V$7,FALSE)*V$4,"") ->  | W48: =IFERROR(VLOOKUP($C48,'07,05,21'!$B$5:$J$150,W$7,FALSE)*W$4,"") ->  | X48: =IFERROR(VLOOKUP($C48,'11,06,21'!$B$5:$J$150,X$7,FALSE)*X$4,"") ->  | Y48: =IFERROR(VLOOKUP($C48,'18,06,21'!$B$5:$J$150,Y$7,FALSE)*Y$4,"") ->  | Z48: =IFERROR(VLOOKUP($C48,'26,06,21'!$B$5:$J$134,Z$7,FALSE)*Z$4,"") ->  | AA48: =IFERROR(VLOOKUP($C48,'25,06,21'!$B$5:$J$150,AA$7,FALSE)*AA$4,"") ->  | AB48: =IFERROR(VLOOKUP($C48,'29,07,21'!$B$5:$J$150,AB$7,FALSE)*AB$4,"") ->  | AC48: =IFERROR(VLOOKUP($C48,'21,08,21'!$B$5:$J$150,AC$7,FALSE)*AC$4,"") ->  | AD48: =IFERROR(VLOOKUP($C48,'02,09,21'!$B$5:$J$150,AD$7,FALSE)*AD$4,"") ->  | AE48: =IFERROR(VLOOKUP($C48,'07,10,21'!$B$5:$J$150,AE$7,FALSE)*AE$4,"") ->  | AF48: =IFERROR(VLOOKUP($C48,'30,10,21'!$B$5:$J$150,AF$7,FALSE)*AF$4,"") ->  | AG48: =IFERROR(VLOOKUP($C48,'19,02,22'!$B$5:$J$150,AG$7,FALSE)*AG$4,"") ->  | AH48: =IFERROR(VLOOKUP($C48,'23,02,22'!$B$5:$J$150,AH$7,FALSE)*AH$4,"") ->  | AI48: =IFERROR(VLOOKUP($C48,'29,04,22'!$B$5:$J$150,AI$7,FALSE)*AI$4,"") ->  | AJ48: =IFERROR(VLOOKUP($C48,'30,04,22'!$B$5:$J$150,AJ$7,FALSE)*AJ$4,"") -> 12.5666688 | AK48: =IFERROR(VLOOKUP($C48,'10,06,22'!$B$5:$J$150,AK$7,FALSE)*AK$4,"") ->  | AL48: =IFERROR(VLOOKUP($C48,'17,06,22'!$B$5:$J$150,AL$7,FALSE)*AL$4,"") ->  | AM48: =IFERROR(VLOOKUP($C48,'02,07,22'!$B$5:$J$150,AM$7,FALSE)*AM$4,"") ->  | AN48: =IFERROR(VLOOKUP($C48,'23,07,22'!$B$5:$J$150,AN$7,FALSE)*AN$4,"") ->  | AO48: =IFERROR(VLOOKUP($C48,'22,07,22'!$B$5:$J$150,AO$7,FALSE)*AO$4,"") ->  | AP48: =IFERROR(VLOOKUP($C48,'20,08,22'!$B$5:$J$150,AP$7,FALSE)*AP$4,"") ->  | AQ48: =IFERROR(VLOOKUP($C48,'10,09,22'!$B$5:$J$150,AQ$7,FALSE)*AQ$4,"") ->  | AR48: =IFERROR(VLOOKUP($C48,'14,09,22'!$B$5:$J$150,AR$7,FALSE)*AR$4,"") ->  | AS48: =IFERROR(VLOOKUP($C48,'23,09,22'!$B$5:$J$150,AS$7,FALSE)*AS$4,"") -> 20.79505224 | AT48: =IFERROR(VLOOKUP($C48,'15,10,22'!$B$5:$J$150,AT$7,FALSE)*AT$4,"") ->  | FA48: =COUNTBLANK(FB48:FC48) -> 0 | FB48: 19 | FC48: Тупицын Юрий | FD48: М | FE48: 1 | FF48: Россия | FG48: 1 | FH48: г.Санкт-Петербург
A49: 40 | B49: =IFERROR(IF(K49=0,"",IF($K$7=1,RANK(K49,K$10:K$510),COUNTIF(K$10:K$510,">0")-RANK(K49,K$10:K$510)+1)),"") -> 40 | C49: Зайцев Иван | D49: М | E49: =IF(E$9="",1,IF(E$9=D49,1,0)) -> 1 | F49: Россия | G49: =IF(G$9="",1,IF(G$9=F49,1,0)) -> 1 | H49: г.Санкт-Петербург | I49: =IF(I$9="",1,IF(I$9=H49,1,0)) -> 1 | J49: =IFERROR(IF($K$7=1,SUMPRODUCT(LARGE(L49:ED49,{1,2,3,4})),AVERAGE(L49:ED49)),"") -> 33.93890223 | K49: =IFERROR(J49*E49*G49*I49,"") -> 33.93890223 | L49: =IF($K$7=1,0,"") -> 0 | M49: =IF($K$7=1,0,"") -> 0 | N49: =IF($K$7=1,0,"") -> 0 | O49: =IF($K$7=1,0,"") -> 0 | P49: =IFERROR(VLOOKUP($C49,'06,09,19'!$B$5:$J$150,P$7,FALSE)*P$4,"") ->  | Q49: =IFERROR(VLOOKUP($C49,'17,08,20'!$B$5:$J$150,Q$7,FALSE)*Q$4,"") ->  | R49: =IFERROR(VLOOKUP($C49,'01,10,20'!$B$5:$J$150,R$7,FALSE)*R$4,"") ->  | S49: =IFERROR(VLOOKUP($C49,'08,10,20'!$B$5:$J$150,S$7,FALSE)*S$4,"") ->  | T49: =IFERROR(VLOOKUP($C49,'08,01,21'!$B$5:$J$150,T$7,FALSE)*T$4,"") ->  | U49: =IFERROR(VLOOKUP($C49,'23,01,21'!$B$5:$J$150,U$7,FALSE)*U$4,"") ->  | V49: =IFERROR(VLOOKUP($C49,'23,04,21'!$B$5:$J$150,V$7,FALSE)*V$4,"") ->  | W49: =IFERROR(VLOOKUP($C49,'07,05,21'!$B$5:$J$150,W$7,FALSE)*W$4,"") ->  | X49: =IFERROR(VLOOKUP($C49,'11,06,21'!$B$5:$J$150,X$7,FALSE)*X$4,"") ->  | Y49: =IFERROR(VLOOKUP($C49,'18,06,21'!$B$5:$J$150,Y$7,FALSE)*Y$4,"") ->  | Z49: =IFERROR(VLOOKUP($C49,'26,06,21'!$B$5:$J$134,Z$7,FALSE)*Z$4,"") ->  | AA49: =IFERROR(VLOOKUP($C49,'25,06,21'!$B$5:$J$150,AA$7,FALSE)*AA$4,"") ->  | AB49: =IFERROR(VLOOKUP($C49,'29,07,21'!$B$5:$J$150,AB$7,FALSE)*AB$4,"") ->  | AC49: =IFERROR(VLOOKUP($C49,'21,08,21'!$B$5:$J$150,AC$7,FALSE)*AC$4,"") ->  | AD49: =IFERROR(VLOOKUP($C49,'02,09,21'!$B$5:$J$150,AD$7,FALSE)*AD$4,"") ->  | AE49: =IFERROR(VLOOKUP($C49,'07,10,21'!$B$5:$J$150,AE$7,FALSE)*AE$4,"") ->  | AF49: =IFERROR(VLOOKUP($C49,'30,10,21'!$B$5:$J$150,AF$7,FALSE)*AF$4,"") ->  | AG49: =IFERROR(VLOOKUP($C49,'19,02,22'!$B$5:$J$150,AG$7,FALSE)*AG$4,"") ->  | AH49: =IFERROR(VLOOKUP($C49,'23,02,22'!$B$5:$J$150,AH$7,FALSE)*AH$4,"") ->  | AI49: =IFERROR(VLOOKUP($C49,'29,04,22'!$B$5:$J$150,AI$7,FALSE)*AI$4,"") -> 7.189163997 | AJ49: =IFERROR(VLOOKUP($C49,'30,04,22'!$B$5:$J$150,AJ$7,FALSE)*AJ$4,"") ->  | AK49: =IFERROR(VLOOKUP($C49,'10,06,22'!$B$5:$J$150,AK$7,FALSE)*AK$4,"") ->  | AL49: =IFERROR(VLOOKUP($C49,'17,06,22'!$B$5:$J$150,AL$7,FALSE)*AL$4,"") ->  | AM49: =IFERROR(VLOOKUP($C49,'02,07,22'!$B$5:$J$150,AM$7,FALSE)*AM$4,"") ->  | AN49: =IFERROR(VLOOKUP($C49,'23,07,22'!$B$5:$J$150,AN$7,FALSE)*AN$4,"") ->  | AO49: =IFERROR(VLOOKUP($C49,'22,07,22'!$B$5:$J$150,AO$7,FALSE)*AO$4,"") -> 18.70275302 | AP49: =IFERROR(VLOOKUP($C49,'20,08,22'!$B$5:$J$150,AP$7,FALSE)*AP$4,"") ->  | AQ49: =IFERROR(VLOOKUP($C49,'10,09,22'!$B$5:$J$150,AQ$7,FALSE)*AQ$4,"") ->  | AR49: =IFERROR(VLOOKUP($C49,'14,09,22'!$B$5:$J$150,AR$7,FALSE)*AR$4,"") -> 8.046985219 | AS49: =IFERROR(VLOOKUP($C49,'23,09,22'!$B$5:$J$150,AS$7,FALSE)*AS$4,"") ->  | AT49: =IFERROR(VLOOKUP($C49,'15,10,22'!$B$5:$J$150,AT$7,FALSE)*AT$4,"") ->  | FA49: =COUNTBLANK(FB49:FC49) -> 0 | FB49: 33 | FC49: Федорова Злата | FD49: Ж | FE49: 1 | FF49: Россия | FG49: 1 | FH49: г.Санкт-Петербург
A50: 41 | B50: =IFERROR(IF(K50=0,"",IF($K$7=1,RANK(K50,K$10:K$510),COUNTIF(K$10:K$510,">0")-RANK(K50,K$10:K$510)+1)),"") -> 41 | C50: Гусельников Федор | D50: М | E50: =IF(E$9="",1,IF(E$9=D50,1,0)) -> 1 | F50: Россия | G50: =IF(G$9="",1,IF(G$9=F50,1,0)) -> 1 | H50: Алтайский край | I50: =IF(I$9="",1,IF(I$9=H50,1,0)) -> 1 | J50: =IFERROR(IF($K$7=1,SUMPRODUCT(LARGE(L50:ED50,{1,2,3,4})),AVERAGE(L50:ED50)),"") -> 31.96928117 | K50: =IFERROR(J50*E50*G50*I50,"") -> 31.96928117 | L50: =IF($K$7=1,0,"") -> 0 | M50: =IF($K$7=1,0,"") -> 0 | N50: =IF($K$7=1,0,"") -> 0 | O50: =IF($K$7=1,0,"") -> 0 | P50: =IFERROR(VLOOKUP($C50,'06,09,19'!$B$5:$J$150,P$7,FALSE)*P$4,"") ->  | Q50: =IFERROR(VLOOKUP($C50,'17,08,20'!$B$5:$J$150,Q$7,FALSE)*Q$4,"") ->  | R50: =IFERROR(VLOOKUP($C50,'01,10,20'!$B$5:$J$150,R$7,FALSE)*R$4,"") -> 1.101305441 | S50: =IFERROR(VLOOKUP($C50,'08,10,20'!$B$5:$J$150,S$7,FALSE)*S$4,"") ->  | T50: =IFERROR(VLOOKUP($C50,'08,01,21'!$B$5:$J$150,T$7,FALSE)*T$4,"") ->  | U50: =IFERROR(VLOOKUP($C50,'23,01,21'!$B$5:$J$150,U$7,FALSE)*U$4,"") ->  | V50: =IFERROR(VLOOKUP($C50,'23,04,21'!$B$5:$J$150,V$7,FALSE)*V$4,"") ->  | W50: =IFERROR(VLOOKUP($C50,'07,05,21'!$B$5:$J$150,W$7,FALSE)*W$4,"") -> 9.700038209 | X50: =IFERROR(VLOOKUP($C50,'11,06,21'!$B$5:$J$150,X$7,FALSE)*X$4,"") ->  | Y50: =IFERROR(VLOOKUP($C50,'18,06,21'!$B$5:$J$150,Y$7,FALSE)*Y$4,"") ->  | Z50: =IFERROR(VLOOKUP($C50,'26,06,21'!$B$5:$J$134,Z$7,FALSE)*Z$4,"") ->  | AA50: =IFERROR(VLOOKUP($C50,'25,06,21'!$B$5:$J$150,AA$7,FALSE)*AA$4,"") -> 21.16793752 | AB50: =IFERROR(VLOOKUP($C50,'29,07,21'!$B$5:$J$150,AB$7,FALSE)*AB$4,"") ->  | AC50: =IFERROR(VLOOKUP($C50,'21,08,21'!$B$5:$J$150,AC$7,FALSE)*AC$4,"") ->  | AD50: =IFERROR(VLOOKUP($C50,'02,09,21'!$B$5:$J$150,AD$7,FALSE)*AD$4,"") ->  | AE50: =IFERROR(VLOOKUP($C50,'07,10,21'!$B$5:$J$150,AE$7,FALSE)*AE$4,"") ->  | AF50: =IFERROR(VLOOKUP($C50,'30,10,21'!$B$5:$J$150,AF$7,FALSE)*AF$4,"") ->  | AG50: =IFERROR(VLOOKUP($C50,'19,02,22'!$B$5:$J$150,AG$7,FALSE)*AG$4,"") ->  | AH50: =IFERROR(VLOOKUP($C50,'23,02,22'!$B$5:$J$150,AH$7,FALSE)*AH$4,"") ->  | AI50: =IFERROR(VLOOKUP($C50,'29,04,22'!$B$5:$J$150,AI$7,FALSE)*AI$4,"") ->  | AJ50: =IFERROR(VLOOKUP($C50,'30,04,22'!$B$5:$J$150,AJ$7,FALSE)*AJ$4,"") ->  | AK50: =IFERROR(VLOOKUP($C50,'10,06,22'!$B$5:$J$150,AK$7,FALSE)*AK$4,"") ->  | AL50: =IFERROR(VLOOKUP($C50,'17,06,22'!$B$5:$J$150,AL$7,FALSE)*AL$4,"") ->  | AM50: =IFERROR(VLOOKUP($C50,'02,07,22'!$B$5:$J$150,AM$7,FALSE)*AM$4,"") ->  | AN50: =IFERROR(VLOOKUP($C50,'23,07,22'!$B$5:$J$150,AN$7,FALSE)*AN$4,"") ->  | AO50: =IFERROR(VLOOKUP($C50,'22,07,22'!$B$5:$J$150,AO$7,FALSE)*AO$4,"") ->  | AP50: =IFERROR(VLOOKUP($C50,'20,08,22'!$B$5:$J$150,AP$7,FALSE)*AP$4,"") ->  | AQ50: =IFERROR(VLOOKUP($C50,'10,09,22'!$B$5:$J$150,AQ$7,FALSE)*AQ$4,"") ->  | AR50: =IFERROR(VLOOKUP($C50,'14,09,22'!$B$5:$J$150,AR$7,FALSE)*AR$4,"") ->  | AS50: =IFERROR(VLOOKUP($C50,'23,09,22'!$B$5:$J$150,AS$7,FALSE)*AS$4,"") ->  | AT50: =IFERROR(VLOOKUP($C50,'15,10,22'!$B$5:$J$150,AT$7,FALSE)*AT$4,"") ->  | FA50: =COUNTBLANK(FB50:FC50) -> 0 | FB50: 30 | FC50: Хаджи Максим | FD50: М | FE50: 1 | FF50: Россия | FG50: 1 | FH50: Ленинградская область
A51: 42 | B51: =IFERROR(IF(K51=0,"",IF($K$7=1,RANK(K51,K$10:K$510),COUNTIF(K$10:K$510,">0")-RANK(K51,K$10:K$510)+1)),"") -> 42 | C51: Цыгвинцев Олег | D51: М | E51: =IF(E$9="",1,IF(E$9=D51,1,0)) -> 1 | F51: Россия | G51: =IF(G$9="",1,IF(G$9=F51,1,0)) -> 1 | H51: Удмуртская республика | I51: =IF(I$9="",1,IF(I$9=H51,1,0)) -> 1 | J51: =IFERROR(IF($K$7=1,SUMPRODUCT(LARGE(L51:ED51,{1,2,3,4})),AVERAGE(L51:ED51)),"") -> 31.86721171 | K51: =IFERROR(J51*E51*G51*I51,"") -> 31.86721171 | L51: =IF($K$7=1,0,"") -> 0 | M51: =IF($K$7=1,0,"") -> 0 | N51: =IF($K$7=1,0,"") -> 0 | O51: =IF($K$7=1,0,"") -> 0 | P51: =IFERROR(VLOOKUP($C51,'06,09,19'!$B$5:$J$150,P$7,FALSE)*P$4,"") ->  | Q51: =IFERROR(VLOOKUP($C51,'17,08,20'!$B$5:$J$150,Q$7,FALSE)*Q$4,"") ->  | R51: =IFERROR(VLOOKUP($C51,'01,10,20'!$B$5:$J$150,R$7,FALSE)*R$4,"") ->  | S51: =IFERROR(VLOOKUP($C51,'08,10,20'!$B$5:$J$150,S$7,FALSE)*S$4,"") ->  | T51: =IFERROR(VLOOKUP($C51,'08,01,21'!$B$5:$J$150,T$7,FALSE)*T$4,"") ->  | U51: =IFERROR(VLOOKUP($C51,'23,01,21'!$B$5:$J$150,U$7,FALSE)*U$4,"") ->  | V51: =IFERROR(VLOOKUP($C51,'23,04,21'!$B$5:$J$150,V$7,FALSE)*V$4,"") ->  | W51: =IFERROR(VLOOKUP($C51,'07,05,21'!$B$5:$J$150,W$7,FALSE)*W$4,"") ->  | X51: =IFERROR(VLOOKUP($C51,'11,06,21'!$B$5:$J$150,X$7,FALSE)*X$4,"") ->  | Y51: =IFERROR(VLOOKUP($C51,'18,06,21'!$B$5:$J$150,Y$7,FALSE)*Y$4,"") ->  | Z51: =IFERROR(VLOOKUP($C51,'26,06,21'!$B$5:$J$134,Z$7,FALSE)*Z$4,"") ->  | AA51: =IFERROR(VLOOKUP($C51,'25,06,21'!$B$5:$J$150,AA$7,FALSE)*AA$4,"") ->  | AB51: =IFERROR(VLOOKUP($C51,'29,07,21'!$B$5:$J$150,AB$7,FALSE)*AB$4,"") ->  | AC51: =IFERROR(VLOOKUP($C51,'21,08,21'!$B$5:$J$150,AC$7,FALSE)*AC$4,"") ->  | AD51: =IFERROR(VLOOKUP($C51,'02,09,21'!$B$5:$J$150,AD$7,FALSE)*AD$4,"") ->  | AE51: =IFERROR(VLOOKUP($C51,'07,10,21'!$B$5:$J$150,AE$7,FALSE)*AE$4,"") ->  | AF51: =IFERROR(VLOOKUP($C51,'30,10,21'!$B$5:$J$150,AF$7,FALSE)*AF$4,"") ->  | AG51: =IFERROR(VLOOKUP($C51,'19,02,22'!$B$5:$J$150,AG$7,FALSE)*AG$4,"") ->  | AH51: =IFERROR(VLOOKUP($C51,'23,02,22'!$B$5:$J$150,AH$7,FALSE)*AH$4,"") ->  | AI51: =IFERROR(VLOOKUP($C51,'29,04,22'!$B$5:$J$150,AI$7,FALSE)*AI$4,"") ->  | AJ51: =IFERROR(VLOOKUP($C51,'30,04,22'!$B$5:$J$150,AJ$7,FALSE)*AJ$4,"") ->  | AK51: =IFERROR(VLOOKUP($C51,'10,06,22'!$B$5:$J$150,AK$7,FALSE)*AK$4,"") ->  | AL51: =IFERROR(VLOOKUP($C51,'17,06,22'!$B$5:$J$150,AL$7,FALSE)*AL$4,"") ->  | AM51: =IFERROR(VLOOKUP($C51,'02,07,22'!$B$5:$J$150,AM$7,FALSE)*AM$4,"") ->  | AN51: =IFERROR(VLOOKUP($C51,'23,07,22'!$B$5:$J$150,AN$7,FALSE)*AN$4,"") ->  | AO51: =IFERROR(VLOOKUP($C51,'22,07,22'!$B$5:$J$150,AO$7,FALSE)*AO$4,"") ->  | AP51: =IFERROR(VLOOKUP($C51,'20,08,22'!$B$5:$J$150,AP$7,FALSE)*AP$4,"") ->  | AQ51: =IFERROR(VLOOKUP($C51,'10,09,22'!$B$5:$J$150,AQ$7,FALSE)*AQ$4,"") ->  | AR51: =IFERROR(VLOOKUP($C51,'14,09,22'!$B$5:$J$150,AR$7,FALSE)*AR$4,"") -> 31.86721171 | AS51: =IFERROR(VLOOKUP($C51,'23,09,22'!$B$5:$J$150,AS$7,FALSE)*AS$4,"") ->  | AT51: =IFERROR(VLOOKUP($C51,'15,10,22'!$B$5:$J$150,AT$7,FALSE)*AT$4,"") ->  | FA51: =COUNTBLANK(FB51:FC51) -> 0 | FB51: 11 | FC51: Харитонов Юрий | FD51: М | FE51: 1 | FF51: Россия | FG51: 1 | FH51: Ленинградская область
A52: 43 | B52: =IFERROR(IF(K52=0,"",IF($K$7=1,RANK(K52,K$10:K$510),COUNTIF(K$10:K$510,">0")-RANK(K52,K$10:K$510)+1)),"") -> 43 | C52: Харитонов Юрий | D52: М | E52: =IF(E$9="",1,IF(E$9=D52,1,0)) -> 1 | F52: Россия | G52: =IF(G$9="",1,IF(G$9=F52,1,0)) -> 1 | H52: Ленинградская область | I52: =IF(I$9="",1,IF(I$9=H52,1,0)) -> 1 | J52: =IFERROR(IF($K$7=1,SUMPRODUCT(LARGE(L52:ED52,{1,2,3,4})),AVERAGE(L52:ED52)),"") -> 31.25261138 | K52: =IFERROR(J52*E52*G52*I52,"") -> 31.25261138 | L52: =IF($K$7=1,0,"") -> 0 | M52: =IF($K$7=1,0,"") -> 0 | N52: =IF($K$7=1,0,"") -> 0 | O52: =IF($K$7=1,0,"") -> 0 | P52: =IFERROR(VLOOKUP($C52,'06,09,19'!$B$5:$J$150,P$7,FALSE)*P$4,"") ->  | Q52: =IFERROR(VLOOKUP($C52,'17,08,20'!$B$5:$J$150,Q$7,FALSE)*Q$4,"") ->  | R52: =IFERROR(VLOOKUP($C52,'01,10,20'!$B$5:$J$150,R$7,FALSE)*R$4,"") ->  | S52: =IFERROR(VLOOKUP($C52,'08,10,20'!$B$5:$J$150,S$7,FALSE)*S$4,"") ->  | T52: =IFERROR(VLOOKUP($C52,'08,01,21'!$B$5:$J$150,T$7,FALSE)*T$4,"") ->  | U52: =IFERROR(VLOOKUP($C52,'23,01,21'!$B$5:$J$150,U$7,FALSE)*U$4,"") ->  | V52: =IFERROR(VLOOKUP($C52,'23,04,21'!$B$5:$J$150,V$7,FALSE)*V$4,"") ->  | W52: =IFERROR(VLOOKUP($C52,'07,05,21'!$B$5:$J$150,W$7,FALSE)*W$4,"") ->  | X52: =IFERROR(VLOOKUP($C52,'11,06,21'!$B$5:$J$150,X$7,FALSE)*X$4,"") ->  | Y52: =IFERROR(VLOOKUP($C52,'18,06,21'!$B$5:$J$150,Y$7,FALSE)*Y$4,"") ->  | Z52: =IFERROR(VLOOKUP($C52,'26,06,21'!$B$5:$J$134,Z$7,FALSE)*Z$4,"") ->  | AA52: =IFERROR(VLOOKUP($C52,'25,06,21'!$B$5:$J$150,AA$7,FALSE)*AA$4,"") ->  | AB52: =IFERROR(VLOOKUP($C52,'29,07,21'!$B$5:$J$150,AB$7,FALSE)*AB$4,"") ->  | AC52: =IFERROR(VLOOKUP($C52,'21,08,21'!$B$5:$J$150,AC$7,FALSE)*AC$4,"") ->  | AD52: =IFERROR(VLOOKUP($C52,'02,09,21'!$B$5:$J$150,AD$7,FALSE)*AD$4,"") -> 6.439569962 | AE52: =IFERROR(VLOOKUP($C52,'07,10,21'!$B$5:$J$150,AE$7,FALSE)*AE$4,"") ->  | AF52: =IFERROR(VLOOKUP($C52,'30,10,21'!$B$5:$J$150,AF$7,FALSE)*AF$4,"") ->  | AG52: =IFERROR(VLOOKUP($C52,'19,02,22'!$B$5:$J$150,AG$7,FALSE)*AG$4,"") ->  | AH52: =IFERROR(VLOOKUP($C52,'23,02,22'!$B$5:$J$150,AH$7,FALSE)*AH$4,"") -> 7.811352973 | AI52: =IFERROR(VLOOKUP($C52,'29,04,22'!$B$5:$J$150,AI$7,FALSE)*AI$4,"") ->  | AJ52: =IFERROR(VLOOKUP($C52,'30,04,22'!$B$5:$J$150,AJ$7,FALSE)*AJ$4,"") ->  | AK52: =IFERROR(VLOOKUP($C52,'10,06,22'!$B$5:$J$150,AK$7,FALSE)*AK$4,"") ->  | AL52: =IFERROR(VLOOKUP($C52,'17,06,22'!$B$5:$J$150,AL$7,FALSE)*AL$4,"") ->  | AM52: =IFERROR(VLOOKUP($C52,'02,07,22'!$B$5:$J$150,AM$7,FALSE)*AM$4,"") ->  | AN52: =IFERROR(VLOOKUP($C52,'23,07,22'!$B$5:$J$150,AN$7,FALSE)*AN$4,"") -> 7.333800494 | AO52: =IFERROR(VLOOKUP($C52,'22,07,22'!$B$5:$J$150,AO$7,FALSE)*AO$4,"") ->  | AP52: =IFERROR(VLOOKUP($C52,'20,08,22'!$B$5:$J$150,AP$7,FALSE)*AP$4,"") ->  | AQ52: =IFERROR(VLOOKUP($C52,'10,09,22'!$B$5:$J$150,AQ$7,FALSE)*AQ$4,"") -> 9.667887955 | AR52: =IFERROR(VLOOKUP($C52,'14,09,22'!$B$5:$J$150,AR$7,FALSE)*AR$4,"") ->  | AS52: =IFERROR(VLOOKUP($C52,'23,09,22'!$B$5:$J$150,AS$7,FALSE)*AS$4,"") ->  | AT52: =IFERROR(VLOOKUP($C52,'15,10,22'!$B$5:$J$150,AT$7,FALSE)*AT$4,"") ->  | FA52: =COUNTBLANK(FB52:FC52) -> 0 | FB52: 20 | FC52: Хохлова Наталья | FD52: Ж | FE52: 1 | FF52: Россия | FG52: 1 | FH52: Республика Карелия
A53: 44 | B53: =IFERROR(IF(K53=0,"",IF($K$7=1,RANK(K53,K$10:K$510),COUNTIF(K$10:K$510,">0")-RANK(K53,K$10:K$510)+1)),"") -> 44 | C53: Гридчин Владислав | D53: М | E53: =IF(E$9="",1,IF(E$9=D53,1,0)) -> 1 | F53: Россия | G53: =IF(G$9="",1,IF(G$9=F53,1,0)) -> 1 | H53: Волгоградская область | I53: =IF(I$9="",1,IF(I$9=H53,1,0)) -> 1 | J53: =IFERROR(IF($K$7=1,SUMPRODUCT(LARGE(L53:ED53,{1,2,3,4})),AVERAGE(L53:ED53)),"") -> 30.20389653 | K53: =IFERROR(J53*E53*G53*I53,"") -> 30.20389653 | L53: =IF($K$7=1,0,"") -> 0 | M53: =IF($K$7=1,0,"") -> 0 | N53: =IF($K$7=1,0,"") -> 0 | O53: =IF($K$7=1,0,"") -> 0 | P53: =IFERROR(VLOOKUP($C53,'06,09,19'!$B$5:$J$150,P$7,FALSE)*P$4,"") ->  | Q53: =IFERROR(VLOOKUP($C53,'17,08,20'!$B$5:$J$150,Q$7,FALSE)*Q$4,"") ->  | R53: =IFERROR(VLOOKUP($C53,'01,10,20'!$B$5:$J$150,R$7,FALSE)*R$4,"") ->  | S53: =IFERROR(VLOOKUP($C53,'08,10,20'!$B$5:$J$150,S$7,FALSE)*S$4,"") ->  | T53: =IFERROR(VLOOKUP($C53,'08,01,21'!$B$5:$J$150,T$7,FALSE)*T$4,"") ->  | U53: =IFERROR(VLOOKUP($C53,'23,01,21'!$B$5:$J$150,U$7,FALSE)*U$4,"") ->  | V53: =IFERROR(VLOOKUP($C53,'23,04,21'!$B$5:$J$150,V$7,FALSE)*V$4,"") ->  | W53: =IFERROR(VLOOKUP($C53,'07,05,21'!$B$5:$J$150,W$7,FALSE)*W$4,"") ->  | X53: =IFERROR(VLOOKUP($C53,'11,06,21'!$B$5:$J$150,X$7,FALSE)*X$4,"") ->  | Y53: =IFERROR(VLOOKUP($C53,'18,06,21'!$B$5:$J$150,Y$7,FALSE)*Y$4,"") ->  | Z53: =IFERROR(VLOOKUP($C53,'26,06,21'!$B$5:$J$134,Z$7,FALSE)*Z$4,"") ->  | AA53: =IFERROR(VLOOKUP($C53,'25,06,21'!$B$5:$J$150,AA$7,FALSE)*AA$4,"") ->  | AB53: =IFERROR(VLOOKUP($C53,'29,07,21'!$B$5:$J$150,AB$7,FALSE)*AB$4,"") ->  | AC53: =IFERROR(VLOOKUP($C53,'21,08,21'!$B$5:$J$150,AC$7,FALSE)*AC$4,"") ->  | AD53: =IFERROR(VLOOKUP($C53,'02,09,21'!$B$5:$J$150,AD$7,FALSE)*AD$4,"") ->  | AE53: =IFERROR(VLOOKUP($C53,'07,10,21'!$B$5:$J$150,AE$7,FALSE)*AE$4,"") ->  | AF53: =IFERROR(VLOOKUP($C53,'30,10,21'!$B$5:$J$150,AF$7,FALSE)*AF$4,"") ->  | AG53: =IFERROR(VLOOKUP($C53,'19,02,22'!$B$5:$J$150,AG$7,FALSE)*AG$4,"") ->  | AH53: =IFERROR(VLOOKUP($C53,'23,02,22'!$B$5:$J$150,AH$7,FALSE)*AH$4,"") ->  | AI53: =IFERROR(VLOOKUP($C53,'29,04,22'!$B$5:$J$150,AI$7,FALSE)*AI$4,"") ->  | AJ53: =IFERROR(VLOOKUP($C53,'30,04,22'!$B$5:$J$150,AJ$7,FALSE)*AJ$4,"") ->  | AK53: =IFERROR(VLOOKUP($C53,'10,06,22'!$B$5:$J$150,AK$7,FALSE)*AK$4,"") ->  | AL53: =IFERROR(VLOOKUP($C53,'17,06,22'!$B$5:$J$150,AL$7,FALSE)*AL$4,"") ->  | AM53: =IFERROR(VLOOKUP($C53,'02,07,22'!$B$5:$J$150,AM$7,FALSE)*AM$4,"") ->  | AN53: =IFERROR(VLOOKUP($C53,'23,07,22'!$B$5:$J$150,AN$7,FALSE)*AN$4,"") ->  | AO53: =IFERROR(VLOOKUP($C53,'22,07,22'!$B$5:$J$150,AO$7,FALSE)*AO$4,"") -> 15.95748042 | AP53: =IFERROR(VLOOKUP($C53,'20,08,22'!$B$5:$J$150,AP$7,FALSE)*AP$4,"") ->  | AQ53: =IFERROR(VLOOKUP($C53,'10,09,22'!$B$5:$J$150,AQ$7,FALSE)*AQ$4,"") ->  | AR53: =IFERROR(VLOOKUP($C53,'14,09,22'!$B$5:$J$150,AR$7,FALSE)*AR$4,"") -> 14.24641611 | AS53: =IFERROR(VLOOKUP($C53,'23,09,22'!$B$5:$J$150,AS$7,FALSE)*AS$4,"") ->  | AT53: =IFERROR(VLOOKUP($C53,'15,10,22'!$B$5:$J$150,AT$7,FALSE)*AT$4,"") ->  | FA53: =COUNTBLANK(FB53:FC53) -> 0 | FB53: 10 | FC53: Черникова Наталья | FD53: Ж | FE53: 1 | FF53: Россия | FG53: 1 | FH53: Ленинградская область
A54: 45 | B54: =IFERROR(IF(K54=0,"",IF($K$7=1,RANK(K54,K$10:K$510),COUNTIF(K$10:K$510,">0")-RANK(K54,K$10:K$510)+1)),"") -> 45 | C54: Бойко Иван | D54: М | E54: =IF(E$9="",1,IF(E$9=D54,1,0)) -> 1 | F54: Россия | G54: =IF(G$9="",1,IF(G$9=F54,1,0)) -> 1 | H54: Новосибирская область | I54: =IF(I$9="",1,IF(I$9=H54,1,0)) -> 1 | J54: =IFERROR(IF($K$7=1,SUMPRODUCT(LARGE(L54:ED54,{1,2,3,4})),AVERAGE(L54:ED54)),"") -> 29.6701532 | K54: =IFERROR(J54*E54*G54*I54,"") -> 29.6701532 | L54: =IF($K$7=1,0,"") -> 0 | M54: =IF($K$7=1,0,"") -> 0 | N54: =IF($K$7=1,0,"") -> 0 | O54: =IF($K$7=1,0,"") -> 0 | P54: =IFERROR(VLOOKUP($C54,'06,09,19'!$B$5:$J$150,P$7,FALSE)*P$4,"") ->  | Q54: =IFERROR(VLOOKUP($C54,'17,08,20'!$B$5:$J$150,Q$7,FALSE)*Q$4,"") ->  | R54: =IFERROR(VLOOKUP($C54,'01,10,20'!$B$5:$J$150,R$7,FALSE)*R$4,"") ->  | S54: =IFERROR(VLOOKUP($C54,'08,10,20'!$B$5:$J$150,S$7,FALSE)*S$4,"") ->  | T54: =IFERROR(VLOOKUP($C54,'08,01,21'!$B$5:$J$150,T$7,FALSE)*T$4,"") ->  | U54: =IFERROR(VLOOKUP($C54,'23,01,21'!$B$5:$J$150,U$7,FALSE)*U$4,"") ->  | V54: =IFERROR(VLOOKUP($C54,'23,04,21'!$B$5:$J$150,V$7,FALSE)*V$4,"") ->  | W54: =IFERROR(VLOOKUP($C54,'07,05,21'!$B$5:$J$150,W$7,FALSE)*W$4,"") ->  | X54: =IFERROR(VLOOKUP($C54,'11,06,21'!$B$5:$J$150,X$7,FALSE)*X$4,"") ->  | Y54: =IFERROR(VLOOKUP($C54,'18,06,21'!$B$5:$J$150,Y$7,FALSE)*Y$4,"") ->  | Z54: =IFERROR(VLOOKUP($C54,'26,06,21'!$B$5:$J$134,Z$7,FALSE)*Z$4,"") ->  | AA54: =IFERROR(VLOOKUP($C54,'25,06,21'!$B$5:$J$150,AA$7,FALSE)*AA$4,"") ->  | AB54: =IFERROR(VLOOKUP($C54,'29,07,21'!$B$5:$J$150,AB$7,FALSE)*AB$4,"") ->  | AC54: =IFERROR(VLOOKUP($C54,'21,08,21'!$B$5:$J$150,AC$7,FALSE)*AC$4,"") ->  | AD54: =IFERROR(VLOOKUP($C54,'02,09,21'!$B$5:$J$150,AD$7,FALSE)*AD$4,"") ->  | AE54: =IFERROR(VLOOKUP($C54,'07,10,21'!$B$5:$J$150,AE$7,FALSE)*AE$4,"") ->  | AF54: =IFERROR(VLOOKUP($C54,'30,10,21'!$B$5:$J$150,AF$7,FALSE)*AF$4,"") ->  | AG54: =IFERROR(VLOOKUP($C54,'19,02,22'!$B$5:$J$150,AG$7,FALSE)*AG$4,"") ->  | AH54: =IFERROR(VLOOKUP($C54,'23,02,22'!$B$5:$J$150,AH$7,FALSE)*AH$4,"") ->  | AI54: =IFERROR(VLOOKUP($C54,'29,04,22'!$B$5:$J$150,AI$7,FALSE)*AI$4,"") ->  | AJ54: =IFERROR(VLOOKUP($C54,'30,04,22'!$B$5:$J$150,AJ$7,FALSE)*AJ$4,"") -> 10.52959816 | AK54: =IFERROR(VLOOKUP($C54,'10,06,22'!$B$5:$J$150,AK$7,FALSE)*AK$4,"") ->  | AL54: =IFERROR(VLOOKUP($C54,'17,06,22'!$B$5:$J$150,AL$7,FALSE)*AL$4,"") ->  | AM54: =IFERROR(VLOOKUP($C54,'02,07,22'!$B$5:$J$150,AM$7,FALSE)*AM$4,"") ->  | AN54: =IFERROR(VLOOKUP($C54,'23,07,22'!$B$5:$J$150,AN$7,FALSE)*AN$4,"") ->  | AO54: =IFERROR(VLOOKUP($C54,'22,07,22'!$B$5:$J$150,AO$7,FALSE)*AO$4,"") ->  | AP54: =IFERROR(VLOOKUP($C54,'20,08,22'!$B$5:$J$150,AP$7,FALSE)*AP$4,"") ->  | AQ54: =IFERROR(VLOOKUP($C54,'10,09,22'!$B$5:$J$150,AQ$7,FALSE)*AQ$4,"") ->  | AR54: =IFERROR(VLOOKUP($C54,'14,09,22'!$B$5:$J$150,AR$7,FALSE)*AR$4,"") ->  | AS54: =IFERROR(VLOOKUP($C54,'23,09,22'!$B$5:$J$150,AS$7,FALSE)*AS$4,"") -> 19.14055504 | AT54: =IFERROR(VLOOKUP($C54,'15,10,22'!$B$5:$J$150,AT$7,FALSE)*AT$4,"") ->  | FA54: =COUNTBLANK(FB54:FC54) -> 0 | FB54: 29 | FC54: Шеметов Виталий | FD54: М | FE54: 1 | FF54: Россия | FG54: 1 | FH54: г.Санкт-Петербург
A55: 46 | B55: =IFERROR(IF(K55=0,"",IF($K$7=1,RANK(K55,K$10:K$510),COUNTIF(K$10:K$510,">0")-RANK(K55,K$10:K$510)+1)),"") -> 46 | C55: Смирнов Александр | D55: М | E55: =IF(E$9="",1,IF(E$9=D55,1,0)) -> 1 | F55: Россия | G55: =IF(G$9="",1,IF(G$9=F55,1,0)) -> 1 | H55: Кемеровская область | I55: =IF(I$9="",1,IF(I$9=H55,1,0)) -> 1 | J55: =IFERROR(IF($K$7=1,SUMPRODUCT(LARGE(L55:ED55,{1,2,3,4})),AVERAGE(L55:ED55)),"") -> 28.8449563 | K55: =IFERROR(J55*E55*G55*I55,"") -> 28.8449563 | L55: =IF($K$7=1,0,"") -> 0 | M55: =IF($K$7=1,0,"") -> 0 | N55: =IF($K$7=1,0,"") -> 0 | O55: =IF($K$7=1,0,"") -> 0 | P55: =IFERROR(VLOOKUP($C55,'06,09,19'!$B$5:$J$150,P$7,FALSE)*P$4,"") ->  | Q55: =IFERROR(VLOOKUP($C55,'17,08,20'!$B$5:$J$150,Q$7,FALSE)*Q$4,"") ->  | R55: =IFERROR(VLOOKUP($C55,'01,10,20'!$B$5:$J$150,R$7,FALSE)*R$4,"") ->  | S55: =IFERROR(VLOOKUP($C55,'08,10,20'!$B$5:$J$150,S$7,FALSE)*S$4,"") ->  | T55: =IFERROR(VLOOKUP($C55,'08,01,21'!$B$5:$J$150,T$7,FALSE)*T$4,"") ->  | U55: =IFERROR(VLOOKUP($C55,'23,01,21'!$B$5:$J$150,U$7,FALSE)*U$4,"") ->  | V55: =IFERROR(VLOOKUP($C55,'23,04,21'!$B$5:$J$150,V$7,FALSE)*V$4,"") ->  | W55: =IFERROR(VLOOKUP($C55,'07,05,21'!$B$5:$J$150,W$7,FALSE)*W$4,"") -> 8.337555745 | X55: =IFERROR(VLOOKUP($C55,'11,06,21'!$B$5:$J$150,X$7,FALSE)*X$4,"") ->  | Y55: =IFERROR(VLOOKUP($C55,'18,06,21'!$B$5:$J$150,Y$7,FALSE)*Y$4,"") ->  | Z55: =IFERROR(VLOOKUP($C55,'26,06,21'!$B$5:$J$134,Z$7,FALSE)*Z$4,"") ->  | AA55: =IFERROR(VLOOKUP($C55,'25,06,21'!$B$5:$J$150,AA$7,FALSE)*AA$4,"") ->  | AB55: =IFERROR(VLOOKUP($C55,'29,07,21'!$B$5:$J$150,AB$7,FALSE)*AB$4,"") ->  | AC55: =IFERROR(VLOOKUP($C55,'21,08,21'!$B$5:$J$150,AC$7,FALSE)*AC$4,"") ->  | AD55: =IFERROR(VLOOKUP($C55,'02,09,21'!$B$5:$J$150,AD$7,FALSE)*AD$4,"") ->  | AE55: =IFERROR(VLOOKUP($C55,'07,10,21'!$B$5:$J$150,AE$7,FALSE)*AE$4,"") ->  | AF55: =IFERROR(VLOOKUP($C55,'30,10,21'!$B$5:$J$150,AF$7,FALSE)*AF$4,"") ->  | AG55: =IFERROR(VLOOKUP($C55,'19,02,22'!$B$5:$J$150,AG$7,FALSE)*AG$4,"") ->  | AH55: =IFERROR(VLOOKUP($C55,'23,02,22'!$B$5:$J$150,AH$7,FALSE)*AH$4,"") ->  | AI55: =IFERROR(VLOOKUP($C55,'29,04,22'!$B$5:$J$150,AI$7,FALSE)*AI$4,"") ->  | AJ55: =IFERROR(VLOOKUP($C55,'30,04,22'!$B$5:$J$150,AJ$7,FALSE)*AJ$4,"") -> 0.8000332488 | AK55: =IFERROR(VLOOKUP($C55,'10,06,22'!$B$5:$J$150,AK$7,FALSE)*AK$4,"") ->  | AL55: =IFERROR(VLOOKUP($C55,'17,06,22'!$B$5:$J$150,AL$7,FALSE)*AL$4,"") -> 6.856816347 | AM55: =IFERROR(VLOOKUP($C55,'02,07,22'!$B$5:$J$150,AM$7,FALSE)*AM$4,"") ->  | AN55: =IFERROR(VLOOKUP($C55,'23,07,22'!$B$5:$J$150,AN$7,FALSE)*AN$4,"") ->  | AO55: =IFERROR(VLOOKUP($C55,'22,07,22'!$B$5:$J$150,AO$7,FALSE)*AO$4,"") ->  | AP55: =IFERROR(VLOOKUP($C55,'20,08,22'!$B$5:$J$150,AP$7,FALSE)*AP$4,"") ->  | AQ55: =IFERROR(VLOOKUP($C55,'10,09,22'!$B$5:$J$150,AQ$7,FALSE)*AQ$4,"") ->  | AR55: =IFERROR(VLOOKUP($C55,'14,09,22'!$B$5:$J$150,AR$7,FALSE)*AR$4,"") ->  | AS55: =IFERROR(VLOOKUP($C55,'23,09,22'!$B$5:$J$150,AS$7,FALSE)*AS$4,"") -> 12.85055096 | AT55: =IFERROR(VLOOKUP($C55,'15,10,22'!$B$5:$J$150,AT$7,FALSE)*AT$4,"") ->  | FA55: =COUNTBLANK(FB55:FC55) -> 1 | FC55: Aart de Harder | FD55: М | FE55: 1 | FF55: Netherlands | FG55: 0 | FH55: забугорье
A56: 47 | B56: =IFERROR(IF(K56=0,"",IF($K$7=1,RANK(K56,K$10:K$510),COUNTIF(K$10:K$510,">0")-RANK(K56,K$10:K$510)+1)),"") -> 47 | C56: Кеттунен Максим | D56: М | E56: =IF(E$9="",1,IF(E$9=D56,1,0)) -> 1 | F56: Россия | G56: =IF(G$9="",1,IF(G$9=F56,1,0)) -> 1 | H56: Республика Карелия | I56: =IF(I$9="",1,IF(I$9=H56,1,0)) -> 1 | J56: =IFERROR(IF($K$7=1,SUMPRODUCT(LARGE(L56:ED56,{1,2,3,4})),AVERAGE(L56:ED56)),"") -> 27.12069754 | K56: =IFERROR(J56*E56*G56*I56,"") -> 27.12069754 | L56: =IF($K$7=1,0,"") -> 0 | M56: =IF($K$7=1,0,"") -> 0 | N56: =IF($K$7=1,0,"") -> 0 | O56: =IF($K$7=1,0,"") -> 0 | P56: =IFERROR(VLOOKUP($C56,'06,09,19'!$B$5:$J$150,P$7,FALSE)*P$4,"") ->  | Q56: =IFERROR(VLOOKUP($C56,'17,08,20'!$B$5:$J$150,Q$7,FALSE)*Q$4,"") ->  | R56: =IFERROR(VLOOKUP($C56,'01,10,20'!$B$5:$J$150,R$7,FALSE)*R$4,"") ->  | S56: =IFERROR(VLOOKUP($C56,'08,10,20'!$B$5:$J$150,S$7,FALSE)*S$4,"") ->  | T56: =IFERROR(VLOOKUP($C56,'08,01,21'!$B$5:$J$150,T$7,FALSE)*T$4,"") ->  | U56: =IFERROR(VLOOKUP($C56,'23,01,21'!$B$5:$J$150,U$7,FALSE)*U$4,"") ->  | V56: =IFERROR(VLOOKUP($C56,'23,04,21'!$B$5:$J$150,V$7,FALSE)*V$4,"") ->  | W56: =IFERROR(VLOOKUP($C56,'07,05,21'!$B$5:$J$150,W$7,FALSE)*W$4,"") ->  | X56: =IFERROR(VLOOKUP($C56,'11,06,21'!$B$5:$J$150,X$7,FALSE)*X$4,"") ->  | Y56: =IFERROR(VLOOKUP($C56,'18,06,21'!$B$5:$J$150,Y$7,FALSE)*Y$4,"") ->  | Z56: =IFERROR(VLOOKUP($C56,'26,06,21'!$B$5:$J$134,Z$7,FALSE)*Z$4,"") ->  | AA56: =IFERROR(VLOOKUP($C56,'25,06,21'!$B$5:$J$150,AA$7,FALSE)*AA$4,"") ->  | AB56: =IFERROR(VLOOKUP($C56,'29,07,21'!$B$5:$J$150,AB$7,FALSE)*AB$4,"") ->  | AC56: =IFERROR(VLOOKUP($C56,'21,08,21'!$B$5:$J$150,AC$7,FALSE)*AC$4,"") ->  | AD56: =IFERROR(VLOOKUP($C56,'02,09,21'!$B$5:$J$150,AD$7,FALSE)*AD$4,"") ->  | AE56: =IFERROR(VLOOKUP($C56,'07,10,21'!$B$5:$J$150,AE$7,FALSE)*AE$4,"") ->  | AF56: =IFERROR(VLOOKUP($C56,'30,10,21'!$B$5:$J$150,AF$7,FALSE)*AF$4,"") ->  | AG56: =IFERROR(VLOOKUP($C56,'19,02,22'!$B$5:$J$150,AG$7,FALSE)*AG$4,"") ->  | AH56: =IFERROR(VLOOKUP($C56,'23,02,22'!$B$5:$J$150,AH$7,FALSE)*AH$4,"") ->  | AI56: =IFERROR(VLOOKUP($C56,'29,04,22'!$B$5:$J$150,AI$7,FALSE)*AI$4,"") ->  | AJ56: =IFERROR(VLOOKUP($C56,'30,04,22'!$B$5:$J$150,AJ$7,FALSE)*AJ$4,"") ->  | AK56: =IFERROR(VLOOKUP($C56,'10,06,22'!$B$5:$J$150,AK$7,FALSE)*AK$4,"") ->  | AL56: =IFERROR(VLOOKUP($C56,'17,06,22'!$B$5:$J$150,AL$7,FALSE)*AL$4,"") ->  | AM56: =IFERROR(VLOOKUP($C56,'02,07,22'!$B$5:$J$150,AM$7,FALSE)*AM$4,"") ->  | AN56: =IFERROR(VLOOKUP($C56,'23,07,22'!$B$5:$J$150,AN$7,FALSE)*AN$4,"") -> 14.25377537 | AO56: =IFERROR(VLOOKUP($C56,'22,07,22'!$B$5:$J$150,AO$7,FALSE)*AO$4,"") ->  | AP56: =IFERROR(VLOOKUP($C56,'20,08,22'!$B$5:$J$150,AP$7,FALSE)*AP$4,"") ->  | AQ56: =IFERROR(VLOOKUP($C56,'10,09,22'!$B$5:$J$150,AQ$7,FALSE)*AQ$4,"") ->  | AR56: =IFERROR(VLOOKUP($C56,'14,09,22'!$B$5:$J$150,AR$7,FALSE)*AR$4,"") -> 12.86692216 | AS56: =IFERROR(VLOOKUP($C56,'23,09,22'!$B$5:$J$150,AS$7,FALSE)*AS$4,"") ->  | AT56: =IFERROR(VLOOKUP($C56,'15,10,22'!$B$5:$J$150,AT$7,FALSE)*AT$4,"") ->  | FA56: =COUNTBLANK(FB56:FC56) -> 1 | FC56: Adam Spirkoski | FD56: М | FE56: 1 | FF56: North Macedonia | FG56: 0 | FH56: забугорье
A57: 48 | B57: =IFERROR(IF(K57=0,"",IF($K$7=1,RANK(K57,K$10:K$510),COUNTIF(K$10:K$510,">0")-RANK(K57,K$10:K$510)+1)),"") -> 48 | C57: Негореев Иван | D57: М | E57: =IF(E$9="",1,IF(E$9=D57,1,0)) -> 1 | F57: Россия | G57: =IF(G$9="",1,IF(G$9=F57,1,0)) -> 1 | H57: Ленинградская область | I57: =IF(I$9="",1,IF(I$9=H57,1,0)) -> 1 | J57: =IFERROR(IF($K$7=1,SUMPRODUCT(LARGE(L57:ED57,{1,2,3,4})),AVERAGE(L57:ED57)),"") -> 26.45375933 | K57: =IFERROR(J57*E57*G57*I57,"") -> 26.45375933 | L57: =IF($K$7=1,0,"") -> 0 | M57: =IF($K$7=1,0,"") -> 0 | N57: =IF($K$7=1,0,"") -> 0 | O57: =IF($K$7=1,0,"") -> 0 | P57: =IFERROR(VLOOKUP($C57,'06,09,19'!$B$5:$J$150,P$7,FALSE)*P$4,"") ->  | Q57: =IFERROR(VLOOKUP($C57,'17,08,20'!$B$5:$J$150,Q$7,FALSE)*Q$4,"") ->  | R57: =IFERROR(VLOOKUP($C57,'01,10,20'!$B$5:$J$150,R$7,FALSE)*R$4,"") ->  | S57: =IFERROR(VLOOKUP($C57,'08,10,20'!$B$5:$J$150,S$7,FALSE)*S$4,"") ->  | T57: =IFERROR(VLOOKUP($C57,'08,01,21'!$B$5:$J$150,T$7,FALSE)*T$4,"") ->  | U57: =IFERROR(VLOOKUP($C57,'23,01,21'!$B$5:$J$150,U$7,FALSE)*U$4,"") ->  | V57: =IFERROR(VLOOKUP($C57,'23,04,21'!$B$5:$J$150,V$7,FALSE)*V$4,"") ->  | W57: =IFERROR(VLOOKUP($C57,'07,05,21'!$B$5:$J$150,W$7,FALSE)*W$4,"") ->  | X57: =IFERROR(VLOOKUP($C57,'11,06,21'!$B$5:$J$150,X$7,FALSE)*X$4,"") ->  | Y57: =IFERROR(VLOOKUP($C57,'18,06,21'!$B$5:$J$150,Y$7,FALSE)*Y$4,"") ->  | Z57: =IFERROR(VLOOKUP($C57,'26,06,21'!$B$5:$J$134,Z$7,FALSE)*Z$4,"") ->  | AA57: =IFERROR(VLOOKUP($C57,'25,06,21'!$B$5:$J$150,AA$7,FALSE)*AA$4,"") ->  | AB57: =IFERROR(VLOOKUP($C57,'29,07,21'!$B$5:$J$150,AB$7,FALSE)*AB$4,"") -> 24.74370443 | AC57: =IFERROR(VLOOKUP($C57,'21,08,21'!$B$5:$J$150,AC$7,FALSE)*AC$4,"") ->  | AD57: =IFERROR(VLOOKUP($C57,'02,09,21'!$B$5:$J$150,AD$7,FALSE)*AD$4,"") -> 1.710054899 | AE57: =IFERROR(VLOOKUP($C57,'07,10,21'!$B$5:$J$150,AE$7,FALSE)*AE$4,"") ->  | AF57: =IFERROR(VLOOKUP($C57,'30,10,21'!$B$5:$J$150,AF$7,FALSE)*AF$4,"") ->  | AG57: =IFERROR(VLOOKUP($C57,'19,02,22'!$B$5:$J$150,AG$7,FALSE)*AG$4,"") ->  | AH57: =IFERROR(VLOOKUP($C57,'23,02,22'!$B$5:$J$150,AH$7,FALSE)*AH$4,"") ->  | AI57: =IFERROR(VLOOKUP($C57,'29,04,22'!$B$5:$J$150,AI$7,FALSE)*AI$4,"") ->  | AJ57: =IFERROR(VLOOKUP($C57,'30,04,22'!$B$5:$J$150,AJ$7,FALSE)*AJ$4,"") ->  | AK57: =IFERROR(VLOOKUP($C57,'10,06,22'!$B$5:$J$150,AK$7,FALSE)*AK$4,"") ->  | AL57: =IFERROR(VLOOKUP($C57,'17,06,22'!$B$5:$J$150,AL$7,FALSE)*AL$4,"") ->  | AM57: =IFERROR(VLOOKUP($C57,'02,07,22'!$B$5:$J$150,AM$7,FALSE)*AM$4,"") ->  | AN57: =IFERROR(VLOOKUP($C57,'23,07,22'!$B$5:$J$150,AN$7,FALSE)*AN$4,"") ->  | AO57: =IFERROR(VLOOKUP($C57,'22,07,22'!$B$5:$J$150,AO$7,FALSE)*AO$4,"") ->  | AP57: =IFERROR(VLOOKUP($C57,'20,08,22'!$B$5:$J$150,AP$7,FALSE)*AP$4,"") ->  | AQ57: =IFERROR(VLOOKUP($C57,'10,09,22'!$B$5:$J$150,AQ$7,FALSE)*AQ$4,"") ->  | AR57: =IFERROR(VLOOKUP($C57,'14,09,22'!$B$5:$J$150,AR$7,FALSE)*AR$4,"") ->  | AS57: =IFERROR(VLOOKUP($C57,'23,09,22'!$B$5:$J$150,AS$7,FALSE)*AS$4,"") ->  | AT57: =IFERROR(VLOOKUP($C57,'15,10,22'!$B$5:$J$150,AT$7,FALSE)*AT$4,"") ->  | FA57: =COUNTBLANK(FB57:FC57) -> 1 | FC57: Alejandro Burgos | FD57: М | FE57: 1 | FF57: Chile | FG57: 0 | FH57: забугорье
A58: 49 | B58: =IFERROR(IF(K58=0,"",IF($K$7=1,RANK(K58,K$10:K$510),COUNTIF(K$10:K$510,">0")-RANK(K58,K$10:K$510)+1)),"") -> 49 | C58: Хансиверов Али | D58: М | E58: =IF(E$9="",1,IF(E$9=D58,1,0)) -> 1 | F58: Россия | G58: =IF(G$9="",1,IF(G$9=F58,1,0)) -> 1 | H58: Ленинградская область | I58: =IF(I$9="",1,IF(I$9=H58,1,0)) -> 1 | J58: =IFERROR(IF($K$7=1,SUMPRODUCT(LARGE(L58:ED58,{1,2,3,4})),AVERAGE(L58:ED58)),"") -> 26.22931496 | K58: =IFERROR(J58*E58*G58*I58,"") -> 26.22931496 | L58: =IF($K$7=1,0,"") -> 0 | M58: =IF($K$7=1,0,"") -> 0 | N58: =IF($K$7=1,0,"") -> 0 | O58: =IF($K$7=1,0,"") -> 0 | P58: =IFERROR(VLOOKUP($C58,'06,09,19'!$B$5:$J$150,P$7,FALSE)*P$4,"") ->  | Q58: =IFERROR(VLOOKUP($C58,'17,08,20'!$B$5:$J$150,Q$7,FALSE)*Q$4,"") ->  | R58: =IFERROR(VLOOKUP($C58,'01,10,20'!$B$5:$J$150,R$7,FALSE)*R$4,"") ->  | S58: =IFERROR(VLOOKUP($C58,'08,10,20'!$B$5:$J$150,S$7,FALSE)*S$4,"") -> 1.366240528 | T58: =IFERROR(VLOOKUP($C58,'08,01,21'!$B$5:$J$150,T$7,FALSE)*T$4,"") ->  | U58: =IFERROR(VLOOKUP($C58,'23,01,21'!$B$5:$J$150,U$7,FALSE)*U$4,"") -> 0.8777203754 | V58: =IFERROR(VLOOKUP($C58,'23,04,21'!$B$5:$J$150,V$7,FALSE)*V$4,"") ->  | W58: =IFERROR(VLOOKUP($C58,'07,05,21'!$B$5:$J$150,W$7,FALSE)*W$4,"") ->  | X58: =IFERROR(VLOOKUP($C58,'11,06,21'!$B$5:$J$150,X$7,FALSE)*X$4,"") ->  | Y58: =IFERROR(VLOOKUP($C58,'18,06,21'!$B$5:$J$150,Y$7,FALSE)*Y$4,"") ->  | Z58: =IFERROR(VLOOKUP($C58,'26,06,21'!$B$5:$J$134,Z$7,FALSE)*Z$4,"") ->  | AA58: =IFERROR(VLOOKUP($C58,'25,06,21'!$B$5:$J$150,AA$7,FALSE)*AA$4,"") ->  | AB58: =IFERROR(VLOOKUP($C58,'29,07,21'!$B$5:$J$150,AB$7,FALSE)*AB$4,"") ->  | AC58: =IFERROR(VLOOKUP($C58,'21,08,21'!$B$5:$J$150,AC$7,FALSE)*AC$4,"") ->  | AD58: =IFERROR(VLOOKUP($C58,'02,09,21'!$B$5:$J$150,AD$7,FALSE)*AD$4,"") ->  | AE58: =IFERROR(VLOOKUP($C58,'07,10,21'!$B$5:$J$150,AE$7,FALSE)*AE$4,"") ->  | AF58: =IFERROR(VLOOKUP($C58,'30,10,21'!$B$5:$J$150,AF$7,FALSE)*AF$4,"") ->  | AG58: =IFERROR(VLOOKUP($C58,'19,02,22'!$B$5:$J$150,AG$7,FALSE)*AG$4,"") ->  | AH58: =IFERROR(VLOOKUP($C58,'23,02,22'!$B$5:$J$150,AH$7,FALSE)*AH$4,"") ->  | AI58: =IFERROR(VLOOKUP($C58,'29,04,22'!$B$5:$J$150,AI$7,FALSE)*AI$4,"") ->  | AJ58: =IFERROR(VLOOKUP($C58,'30,04,22'!$B$5:$J$150,AJ$7,FALSE)*AJ$4,"") ->  | AK58: =IFERROR(VLOOKUP($C58,'10,06,22'!$B$5:$J$150,AK$7,FALSE)*AK$4,"") ->  | AL58: =IFERROR(VLOOKUP($C58,'17,06,22'!$B$5:$J$150,AL$7,FALSE)*AL$4,"") ->  | AM58: =IFERROR(VLOOKUP($C58,'02,07,22'!$B$5:$J$150,AM$7,FALSE)*AM$4,"") ->  | AN58: =IFERROR(VLOOKUP($C58,'23,07,22'!$B$5:$J$150,AN$7,FALSE)*AN$4,"") ->  | AO58: =IFERROR(VLOOKUP($C58,'22,07,22'!$B$5:$J$150,AO$7,FALSE)*AO$4,"") ->  | AP58: =IFERROR(VLOOKUP($C58,'20,08,22'!$B$5:$J$150,AP$7,FALSE)*AP$4,"") ->  | AQ58: =IFERROR(VLOOKUP($C58,'10,09,22'!$B$5:$J$150,AQ$7,FALSE)*AQ$4,"") ->  | AR58: =IFERROR(VLOOKUP($C58,'14,09,22'!$B$5:$J$150,AR$7,FALSE)*AR$4,"") -> 23.98535406 | AS58: =IFERROR(VLOOKUP($C58,'23,09,22'!$B$5:$J$150,AS$7,FALSE)*AS$4,"") ->  | AT58: =IFERROR(VLOOKUP($C58,'15,10,22'!$B$5:$J$150,AT$7,FALSE)*AT$4,"") ->  | FA58: =COUNTBLANK(FB58:FC58) -> 1 | FC58: Aleksandra Ufceska | FD58: Ж | FE58: 1 | FF58: North Macedonia | FG58: 0 | FH58: забугорье
A59: 50 | B59: =IFERROR(IF(K59=0,"",IF($K$7=1,RANK(K59,K$10:K$510),COUNTIF(K$10:K$510,">0")-RANK(K59,K$10:K$510)+1)),"") -> 50 | C59: Огнев Максим | D59: М | E59: =IF(E$9="",1,IF(E$9=D59,1,0)) -> 1 | F59: Россия | G59: =IF(G$9="",1,IF(G$9=F59,1,0)) -> 1 | H59: Алтайский край | I59: =IF(I$9="",1,IF(I$9=H59,1,0)) -> 1 | J59: =IFERROR(IF($K$7=1,SUMPRODUCT(LARGE(L59:ED59,{1,2,3,4})),AVERAGE(L59:ED59)),"") -> 25.11679922 | K59: =IFERROR(J59*E59*G59*I59,"") -> 25.11679922 | L59: =IF($K$7=1,0,"") -> 0 | M59: =IF($K$7=1,0,"") -> 0 | N59: =IF($K$7=1,0,"") -> 0 | O59: =IF($K$7=1,0,"") -> 0 | P59: =IFERROR(VLOOKUP($C59,'06,09,19'!$B$5:$J$150,P$7,FALSE)*P$4,"") ->  | Q59: =IFERROR(VLOOKUP($C59,'17,08,20'!$B$5:$J$150,Q$7,FALSE)*Q$4,"") ->  | R59: =IFERROR(VLOOKUP($C59,'01,10,20'!$B$5:$J$150,R$7,FALSE)*R$4,"") -> 0.5767528013 | S59: =IFERROR(VLOOKUP($C59,'08,10,20'!$B$5:$J$150,S$7,FALSE)*S$4,"") ->  | T59: =IFERROR(VLOOKUP($C59,'08,01,21'!$B$5:$J$150,T$7,FALSE)*T$4,"") ->  | U59: =IFERROR(VLOOKUP($C59,'23,01,21'!$B$5:$J$150,U$7,FALSE)*U$4,"") ->  | V59: =IFERROR(VLOOKUP($C59,'23,04,21'!$B$5:$J$150,V$7,FALSE)*V$4,"") ->  | W59: =IFERROR(VLOOKUP($C59,'07,05,21'!$B$5:$J$150,W$7,FALSE)*W$4,"") -> 7.022874388 | X59: =IFERROR(VLOOKUP($C59,'11,06,21'!$B$5:$J$150,X$7,FALSE)*X$4,"") ->  | Y59: =IFERROR(VLOOKUP($C59,'18,06,21'!$B$5:$J$150,Y$7,FALSE)*Y$4,"") ->  | Z59: =IFERROR(VLOOKUP($C59,'26,06,21'!$B$5:$J$134,Z$7,FALSE)*Z$4,"") ->  | AA59: =IFERROR(VLOOKUP($C59,'25,06,21'!$B$5:$J$150,AA$7,FALSE)*AA$4,"") ->  | AB59: =IFERROR(VLOOKUP($C59,'29,07,21'!$B$5:$J$150,AB$7,FALSE)*AB$4,"") ->  | AC59: =IFERROR(VLOOKUP($C59,'21,08,21'!$B$5:$J$150,AC$7,FALSE)*AC$4,"") ->  | AD59: =IFERROR(VLOOKUP($C59,'02,09,21'!$B$5:$J$150,AD$7,FALSE)*AD$4,"") ->  | AE59: =IFERROR(VLOOKUP($C59,'07,10,21'!$B$5:$J$150,AE$7,FALSE)*AE$4,"") ->  | AF59: =IFERROR(VLOOKUP($C59,'30,10,21'!$B$5:$J$150,AF$7,FALSE)*AF$4,"") ->  | AG59: =IFERROR(VLOOKUP($C59,'19,02,22'!$B$5:$J$150,AG$7,FALSE)*AG$4,"") ->  | AH59: =IFERROR(VLOOKUP($C59,'23,02,22'!$B$5:$J$150,AH$7,FALSE)*AH$4,"") ->  | AI59: =IFERROR(VLOOKUP($C59,'29,04,22'!$B$5:$J$150,AI$7,FALSE)*AI$4,"") ->  | AJ59: =IFERROR(VLOOKUP($C59,'30,04,22'!$B$5:$J$150,AJ$7,FALSE)*AJ$4,"") ->  | AK59: =IFERROR(VLOOKUP($C59,'10,06,22'!$B$5:$J$150,AK$7,FALSE)*AK$4,"") ->  | AL59: =IFERROR(VLOOKUP($C59,'17,06,22'!$B$5:$J$150,AL$7,FALSE)*AL$4,"") ->  | AM59: =IFERROR(VLOOKUP($C59,'02,07,22'!$B$5:$J$150,AM$7,FALSE)*AM$4,"") ->  | AN59: =IFERROR(VLOOKUP($C59,'23,07,22'!$B$5:$J$150,AN$7,FALSE)*AN$4,"") ->  | AO59: =IFERROR(VLOOKUP($C59,'22,07,22'!$B$5:$J$150,AO$7,FALSE)*AO$4,"") ->  | AP59: =IFERROR(VLOOKUP($C59,'20,08,22'!$B$5:$J$150,AP$7,FALSE)*AP$4,"") ->  | AQ59: =IFERROR(VLOOKUP($C59,'10,09,22'!$B$5:$J$150,AQ$7,FALSE)*AQ$4,"") ->  | AR59: =IFERROR(VLOOKUP($C59,'14,09,22'!$B$5:$J$150,AR$7,FALSE)*AR$4,"") ->  | AS59: =IFERROR(VLOOKUP($C59,'23,09,22'!$B$5:$J$150,AS$7,FALSE)*AS$4,"") -> 17.51717203 | AT59: =IFERROR(VLOOKUP($C59,'15,10,22'!$B$5:$J$150,AT$7,FALSE)*AT$4,"") ->  | FA59: =COUNTBLANK(FB59:FC59) -> 1 | FC59: Alev Durgun | FD59: Ж | FE59: 1 | FF59: Germany | FG59: 0 | FH59: забугорье
A60: 51 | B60: =IFERROR(IF(K60=0,"",IF($K$7=1,RANK(K60,K$10:K$510),COUNTIF(K$10:K$510,">0")-RANK(K60,K$10:K$510)+1)),"") -> 51 | C60: Богданова Светлана | D60: Ж | E60: =IF(E$9="",1,IF(E$9=D60,1,0)) -> 1 | F60: Россия | G60: =IF(G$9="",1,IF(G$9=F60,1,0)) -> 1 | H60: Ленинградская область | I60: =IF(I$9="",1,IF(I$9=H60,1,0)) -> 1 | J60: =IFERROR(IF($K$7=1,SUMPRODUCT(LARGE(L60:ED60,{1,2,3,4})),AVERAGE(L60:ED60)),"") -> 24.28120965 | K60: =IFERROR(J60*E60*G60*I60,"") -> 24.28120965 | L60: =IF($K$7=1,0,"") -> 0 | M60: =IF($K$7=1,0,"") -> 0 | N60: =IF($K$7=1,0,"") -> 0 | O60: =IF($K$7=1,0,"") -> 0 | P60: =IFERROR(VLOOKUP($C60,'06,09,19'!$B$5:$J$150,P$7,FALSE)*P$4,"") ->  | Q60: =IFERROR(VLOOKUP($C60,'17,08,20'!$B$5:$J$150,Q$7,FALSE)*Q$4,"") ->  | R60: =IFERROR(VLOOKUP($C60,'01,10,20'!$B$5:$J$150,R$7,FALSE)*R$4,"") ->  | S60: =IFERROR(VLOOKUP($C60,'08,10,20'!$B$5:$J$150,S$7,FALSE)*S$4,"") -> 0.6965587238 | T60: =IFERROR(VLOOKUP($C60,'08,01,21'!$B$5:$J$150,T$7,FALSE)*T$4,"") ->  | U60: =IFERROR(VLOOKUP($C60,'23,01,21'!$B$5:$J$150,U$7,FALSE)*U$4,"") -> 2.151455445 | V60: =IFERROR(VLOOKUP($C60,'23,04,21'!$B$5:$J$150,V$7,FALSE)*V$4,"") ->  | W60: =IFERROR(VLOOKUP($C60,'07,05,21'!$B$5:$J$150,W$7,FALSE)*W$4,"") ->  | X60: =IFERROR(VLOOKUP($C60,'11,06,21'!$B$5:$J$150,X$7,FALSE)*X$4,"") ->  | Y60: =IFERROR(VLOOKUP($C60,'18,06,21'!$B$5:$J$150,Y$7,FALSE)*Y$4,"") ->  | Z60: =IFERROR(VLOOKUP($C60,'26,06,21'!$B$5:$J$134,Z$7,FALSE)*Z$4,"") ->  | AA60: =IFERROR(VLOOKUP($C60,'25,06,21'!$B$5:$J$150,AA$7,FALSE)*AA$4,"") ->  | AB60: =IFERROR(VLOOKUP($C60,'29,07,21'!$B$5:$J$150,AB$7,FALSE)*AB$4,"") ->  | AC60: =IFERROR(VLOOKUP($C60,'21,08,21'!$B$5:$J$150,AC$7,FALSE)*AC$4,"") ->  | AD60: =IFERROR(VLOOKUP($C60,'02,09,21'!$B$5:$J$150,AD$7,FALSE)*AD$4,"") -> 21.43319548 | AE60: =IFERROR(VLOOKUP($C60,'07,10,21'!$B$5:$J$150,AE$7,FALSE)*AE$4,"") ->  | AF60: =IFERROR(VLOOKUP($C60,'30,10,21'!$B$5:$J$150,AF$7,FALSE)*AF$4,"") ->  | AG60: =IFERROR(VLOOKUP($C60,'19,02,22'!$B$5:$J$150,AG$7,FALSE)*AG$4,"") ->  | AH60: =IFERROR(VLOOKUP($C60,'23,02,22'!$B$5:$J$150,AH$7,FALSE)*AH$4,"") ->  | AI60: =IFERROR(VLOOKUP($C60,'29,04,22'!$B$5:$J$150,AI$7,FALSE)*AI$4,"") ->  | AJ60: =IFERROR(VLOOKUP($C60,'30,04,22'!$B$5:$J$150,AJ$7,FALSE)*AJ$4,"") ->  | AK60: =IFERROR(VLOOKUP($C60,'10,06,22'!$B$5:$J$150,AK$7,FALSE)*AK$4,"") ->  | AL60: =IFERROR(VLOOKUP($C60,'17,06,22'!$B$5:$J$150,AL$7,FALSE)*AL$4,"") ->  | AM60: =IFERROR(VLOOKUP($C60,'02,07,22'!$B$5:$J$150,AM$7,FALSE)*AM$4,"") ->  | AN60: =IFERROR(VLOOKUP($C60,'23,07,22'!$B$5:$J$150,AN$7,FALSE)*AN$4,"") ->  | AO60: =IFERROR(VLOOKUP($C60,'22,07,22'!$B$5:$J$150,AO$7,FALSE)*AO$4,"") ->  | AP60: =IFERROR(VLOOKUP($C60,'20,08,22'!$B$5:$J$150,AP$7,FALSE)*AP$4,"") ->  | AQ60: =IFERROR(VLOOKUP($C60,'10,09,22'!$B$5:$J$150,AQ$7,FALSE)*AQ$4,"") ->  | AR60: =IFERROR(VLOOKUP($C60,'14,09,22'!$B$5:$J$150,AR$7,FALSE)*AR$4,"") ->  | AS60: =IFERROR(VLOOKUP($C60,'23,09,22'!$B$5:$J$150,AS$7,FALSE)*AS$4,"") ->  | AT60: =IFERROR(VLOOKUP($C60,'15,10,22'!$B$5:$J$150,AT$7,FALSE)*AT$4,"") ->  | FA60: =COUNTBLANK(FB60:FC60) -> 1 | FC60: Alexandra Grillmayer | FD60: Ж | FE60: 1 | FF60: Hungary | FG60: 0 | FH60: забугорье
A61: 52 | B61: =IFERROR(IF(K61=0,"",IF($K$7=1,RANK(K61,K$10:K$510),COUNTIF(K$10:K$510,">0")-RANK(K61,K$10:K$510)+1)),"") -> 52 | C61: Ткаченко Алексей | D61: М | E61: =IF(E$9="",1,IF(E$9=D61,1,0)) -> 1 | F61: Россия | G61: =IF(G$9="",1,IF(G$9=F61,1,0)) -> 1 | H61: Алтайский край | I61: =IF(I$9="",1,IF(I$9=H61,1,0)) -> 1 | J61: =IFERROR(IF($K$7=1,SUMPRODUCT(LARGE(L61:ED61,{1,2,3,4})),AVERAGE(L61:ED61)),"") -> 23.45746268 | K61: =IFERROR(J61*E61*G61*I61,"") -> 23.45746268 | L61: =IF($K$7=1,0,"") -> 0 | M61: =IF($K$7=1,0,"") -> 0 | N61: =IF($K$7=1,0,"") -> 0 | O61: =IF($K$7=1,0,"") -> 0 | P61: =IFERROR(VLOOKUP($C61,'06,09,19'!$B$5:$J$150,P$7,FALSE)*P$4,"") ->  | Q61: =IFERROR(VLOOKUP($C61,'17,08,20'!$B$5:$J$150,Q$7,FALSE)*Q$4,"") ->  | R61: =IFERROR(VLOOKUP($C61,'01,10,20'!$B$5:$J$150,R$7,FALSE)*R$4,"") -> 0.9782046145 | S61: =IFERROR(VLOOKUP($C61,'08,10,20'!$B$5:$J$150,S$7,FALSE)*S$4,"") ->  | T61: =IFERROR(VLOOKUP($C61,'08,01,21'!$B$5:$J$150,T$7,FALSE)*T$4,"") ->  | U61: =IFERROR(VLOOKUP($C61,'23,01,21'!$B$5:$J$150,U$7,FALSE)*U$4,"") ->  | V61: =IFERROR(VLOOKUP($C61,'23,04,21'!$B$5:$J$150,V$7,FALSE)*V$4,"") ->  | W61: =IFERROR(VLOOKUP($C61,'07,05,21'!$B$5:$J$150,W$7,FALSE)*W$4,"") ->  | X61: =IFERROR(VLOOKUP($C61,'11,06,21'!$B$5:$J$150,X$7,FALSE)*X$4,"") ->  | Y61: =IFERROR(VLOOKUP($C61,'18,06,21'!$B$5:$J$150,Y$7,FALSE)*Y$4,"") ->  | Z61: =IFERROR(VLOOKUP($C61,'26,06,21'!$B$5:$J$134,Z$7,FALSE)*Z$4,"") ->  | AA61: =IFERROR(VLOOKUP($C61,'25,06,21'!$B$5:$J$150,AA$7,FALSE)*AA$4,"") ->  | AB61: =IFERROR(VLOOKUP($C61,'29,07,21'!$B$5:$J$150,AB$7,FALSE)*AB$4,"") ->  | AC61: =IFERROR(VLOOKUP($C61,'21,08,21'!$B$5:$J$150,AC$7,FALSE)*AC$4,"") ->  | AD61: =IFERROR(VLOOKUP($C61,'02,09,21'!$B$5:$J$150,AD$7,FALSE)*AD$4,"") ->  | AE61: =IFERROR(VLOOKUP($C61,'07,10,21'!$B$5:$J$150,AE$7,FALSE)*AE$4,"") ->  | AF61: =IFERROR(VLOOKUP($C61,'30,10,21'!$B$5:$J$150,AF$7,FALSE)*AF$4,"") ->  | AG61: =IFERROR(VLOOKUP($C61,'19,02,22'!$B$5:$J$150,AG$7,FALSE)*AG$4,"") ->  | AH61: =IFERROR(VLOOKUP($C61,'23,02,22'!$B$5:$J$150,AH$7,FALSE)*AH$4,"") ->  | AI61: =IFERROR(VLOOKUP($C61,'29,04,22'!$B$5:$J$150,AI$7,FALSE)*AI$4,"") ->  | AJ61: =IFERROR(VLOOKUP($C61,'30,04,22'!$B$5:$J$150,AJ$7,FALSE)*AJ$4,"") ->  | AK61: =IFERROR(VLOOKUP($C61,'10,06,22'!$B$5:$J$150,AK$7,FALSE)*AK$4,"") ->  | AL61: =IFERROR(VLOOKUP($C61,'17,06,22'!$B$5:$J$150,AL$7,FALSE)*AL$4,"") ->  | AM61: =IFERROR(VLOOKUP($C61,'02,07,22'!$B$5:$J$150,AM$7,FALSE)*AM$4,"") ->  | AN61: =IFERROR(VLOOKUP($C61,'23,07,22'!$B$5:$J$150,AN$7,FALSE)*AN$4,"") ->  | AO61: =IFERROR(VLOOKUP($C61,'22,07,22'!$B$5:$J$150,AO$7,FALSE)*AO$4,"") ->  | AP61: =IFERROR(VLOOKUP($C61,'20,08,22'!$B$5:$J$150,AP$7,FALSE)*AP$4,"") ->  | AQ61: =IFERROR(VLOOKUP($C61,'10,09,22'!$B$5:$J$150,AQ$7,FALSE)*AQ$4,"") ->  | AR61: =IFERROR(VLOOKUP($C61,'14,09,22'!$B$5:$J$150,AR$7,FALSE)*AR$4,"") ->  | AS61: =IFERROR(VLOOKUP($C61,'23,09,22'!$B$5:$J$150,AS$7,FALSE)*AS$4,"") -> 22.47925807 | AT61: =IFERROR(VLOOKUP($C61,'15,10,22'!$B$5:$J$150,AT$7,FALSE)*AT$4,"") ->  | FA61: =COUNTBLANK(FB61:FC61) -> 1 | FC61: Andreas Schubert | FD61: М | FE61: 1 | FF61: Germany | FG61: 0 | FH61: забугорье
A62: 53 | B62: =IFERROR(IF(K62=0,"",IF($K$7=1,RANK(K62,K$10:K$510),COUNTIF(K$10:K$510,">0")-RANK(K62,K$10:K$510)+1)),"") -> 53 | C62: Вагайцев Владимир | D62: М | E62: =IF(E$9="",1,IF(E$9=D62,1,0)) -> 1 | F62: Россия | G62: =IF(G$9="",1,IF(G$9=F62,1,0)) -> 1 | H62: Кемеровская область | I62: =IF(I$9="",1,IF(I$9=H62,1,0)) -> 1 | J62: =IFERROR(IF($K$7=1,SUMPRODUCT(LARGE(L62:ED62,{1,2,3,4})),AVERAGE(L62:ED62)),"") -> 23.14965738 | K62: =IFERROR(J62*E62*G62*I62,"") -> 23.14965738 | L62: =IF($K$7=1,0,"") -> 0 | M62: =IF($K$7=1,0,"") -> 0 | N62: =IF($K$7=1,0,"") -> 0 | O62: =IF($K$7=1,0,"") -> 0 | P62: =IFERROR(VLOOKUP($C62,'06,09,19'!$B$5:$J$150,P$7,FALSE)*P$4,"") ->  | Q62: =IFERROR(VLOOKUP($C62,'17,08,20'!$B$5:$J$150,Q$7,FALSE)*Q$4,"") ->  | R62: =IFERROR(VLOOKUP($C62,'01,10,20'!$B$5:$J$150,R$7,FALSE)*R$4,"") ->  | S62: =IFERROR(VLOOKUP($C62,'08,10,20'!$B$5:$J$150,S$7,FALSE)*S$4,"") ->  | T62: =IFERROR(VLOOKUP($C62,'08,01,21'!$B$5:$J$150,T$7,FALSE)*T$4,"") ->  | U62: =IFERROR(VLOOKUP($C62,'23,01,21'!$B$5:$J$150,U$7,FALSE)*U$4,"") ->  | V62: =IFERROR(VLOOKUP($C62,'23,04,21'!$B$5:$J$150,V$7,FALSE)*V$4,"") ->  | W62: =IFERROR(VLOOKUP($C62,'07,05,21'!$B$5:$J$150,W$7,FALSE)*W$4,"") ->  | X62: =IFERROR(VLOOKUP($C62,'11,06,21'!$B$5:$J$150,X$7,FALSE)*X$4,"") ->  | Y62: =IFERROR(VLOOKUP($C62,'18,06,21'!$B$5:$J$150,Y$7,FALSE)*Y$4,"") ->  | Z62: =IFERROR(VLOOKUP($C62,'26,06,21'!$B$5:$J$134,Z$7,FALSE)*Z$4,"") ->  | AA62: =IFERROR(VLOOKUP($C62,'25,06,21'!$B$5:$J$150,AA$7,FALSE)*AA$4,"") ->  | AB62: =IFERROR(VLOOKUP($C62,'29,07,21'!$B$5:$J$150,AB$7,FALSE)*AB$4,"") ->  | AC62: =IFERROR(VLOOKUP($C62,'21,08,21'!$B$5:$J$150,AC$7,FALSE)*AC$4,"") ->  | AD62: =IFERROR(VLOOKUP($C62,'02,09,21'!$B$5:$J$150,AD$7,FALSE)*AD$4,"") ->  | AE62: =IFERROR(VLOOKUP($C62,'07,10,21'!$B$5:$J$150,AE$7,FALSE)*AE$4,"") ->  | AF62: =IFERROR(VLOOKUP($C62,'30,10,21'!$B$5:$J$150,AF$7,FALSE)*AF$4,"") ->  | AG62: =IFERROR(VLOOKUP($C62,'19,02,22'!$B$5:$J$150,AG$7,FALSE)*AG$4,"") -> 7.979363319 | AH62: =IFERROR(VLOOKUP($C62,'23,02,22'!$B$5:$J$150,AH$7,FALSE)*AH$4,"") ->  | AI62: =IFERROR(VLOOKUP($C62,'29,04,22'!$B$5:$J$150,AI$7,FALSE)*AI$4,"") ->  | AJ62: =IFERROR(VLOOKUP($C62,'30,04,22'!$B$5:$J$150,AJ$7,FALSE)*AJ$4,"") -> 0.8000332488 | AK62: =IFERROR(VLOOKUP($C62,'10,06,22'!$B$5:$J$150,AK$7,FALSE)*AK$4,"") ->  | AL62: =IFERROR(VLOOKUP($C62,'17,06,22'!$B$5:$J$150,AL$7,FALSE)*AL$4,"") ->  | AM62: =IFERROR(VLOOKUP($C62,'02,07,22'!$B$5:$J$150,AM$7,FALSE)*AM$4,"") ->  | AN62: =IFERROR(VLOOKUP($C62,'23,07,22'!$B$5:$J$150,AN$7,FALSE)*AN$4,"") ->  | AO62: =IFERROR(VLOOKUP($C62,'22,07,22'!$B$5:$J$150,AO$7,FALSE)*AO$4,"") ->  | AP62: =IFERROR(VLOOKUP($C62,'20,08,22'!$B$5:$J$150,AP$7,FALSE)*AP$4,"") ->  | AQ62: =IFERROR(VLOOKUP($C62,'10,09,22'!$B$5:$J$150,AQ$7,FALSE)*AQ$4,"") ->  | AR62: =IFERROR(VLOOKUP($C62,'14,09,22'!$B$5:$J$150,AR$7,FALSE)*AR$4,"") ->  | AS62: =IFERROR(VLOOKUP($C62,'23,09,22'!$B$5:$J$150,AS$7,FALSE)*AS$4,"") -> 14.37026082 | AT62: =IFERROR(VLOOKUP($C62,'15,10,22'!$B$5:$J$150,AT$7,FALSE)*AT$4,"") ->  | FA62: =COUNTBLANK(FB62:FC62) -> 1 | FC62: Andy Shaw | FD62: М | FE62: 1 | FF62: United Kingdom | FG62: 0 | FH62: забугорье
A63: 54 | B63: =IFERROR(IF(K63=0,"",IF($K$7=1,RANK(K63,K$10:K$510),COUNTIF(K$10:K$510,">0")-RANK(K63,K$10:K$510)+1)),"") -> 54 | C63: Соболев Андрей | D63: М | E63: =IF(E$9="",1,IF(E$9=D63,1,0)) -> 1 | F63: Россия | G63: =IF(G$9="",1,IF(G$9=F63,1,0)) -> 1 | H63: Кемеровская область | I63: =IF(I$9="",1,IF(I$9=H63,1,0)) -> 1 | J63: =IFERROR(IF($K$7=1,SUMPRODUCT(LARGE(L63:ED63,{1,2,3,4})),AVERAGE(L63:ED63)),"") -> 22.05923049 | K63: =IFERROR(J63*E63*G63*I63,"") -> 22.05923049 | L63: =IF($K$7=1,0,"") -> 0 | M63: =IF($K$7=1,0,"") -> 0 | N63: =IF($K$7=1,0,"") -> 0 | O63: =IF($K$7=1,0,"") -> 0 | P63: =IFERROR(VLOOKUP($C63,'06,09,19'!$B$5:$J$150,P$7,FALSE)*P$4,"") ->  | Q63: =IFERROR(VLOOKUP($C63,'17,08,20'!$B$5:$J$150,Q$7,FALSE)*Q$4,"") ->  | R63: =IFERROR(VLOOKUP($C63,'01,10,20'!$B$5:$J$150,R$7,FALSE)*R$4,"") ->  | S63: =IFERROR(VLOOKUP($C63,'08,10,20'!$B$5:$J$150,S$7,FALSE)*S$4,"") ->  | T63: =IFERROR(VLOOKUP($C63,'08,01,21'!$B$5:$J$150,T$7,FALSE)*T$4,"") ->  | U63: =IFERROR(VLOOKUP($C63,'23,01,21'!$B$5:$J$150,U$7,FALSE)*U$4,"") ->  | V63: =IFERROR(VLOOKUP($C63,'23,04,21'!$B$5:$J$150,V$7,FALSE)*V$4,"") ->  | W63: =IFERROR(VLOOKUP($C63,'07,05,21'!$B$5:$J$150,W$7,FALSE)*W$4,"") -> 7.673964959 | X63: =IFERROR(VLOOKUP($C63,'11,06,21'!$B$5:$J$150,X$7,FALSE)*X$4,"") ->  | Y63: =IFERROR(VLOOKUP($C63,'18,06,21'!$B$5:$J$150,Y$7,FALSE)*Y$4,"") ->  | Z63: =IFERROR(VLOOKUP($C63,'26,06,21'!$B$5:$J$134,Z$7,FALSE)*Z$4,"") ->  | AA63: =IFERROR(VLOOKUP($C63,'25,06,21'!$B$5:$J$150,AA$7,FALSE)*AA$4,"") ->  | AB63: =IFERROR(VLOOKUP($C63,'29,07,21'!$B$5:$J$150,AB$7,FALSE)*AB$4,"") ->  | AC63: =IFERROR(VLOOKUP($C63,'21,08,21'!$B$5:$J$150,AC$7,FALSE)*AC$4,"") ->  | AD63: =IFERROR(VLOOKUP($C63,'02,09,21'!$B$5:$J$150,AD$7,FALSE)*AD$4,"") ->  | AE63: =IFERROR(VLOOKUP($C63,'07,10,21'!$B$5:$J$150,AE$7,FALSE)*AE$4,"") ->  | AF63: =IFERROR(VLOOKUP($C63,'30,10,21'!$B$5:$J$150,AF$7,FALSE)*AF$4,"") ->  | AG63: =IFERROR(VLOOKUP($C63,'19,02,22'!$B$5:$J$150,AG$7,FALSE)*AG$4,"") ->  | AH63: =IFERROR(VLOOKUP($C63,'23,02,22'!$B$5:$J$150,AH$7,FALSE)*AH$4,"") ->  | AI63: =IFERROR(VLOOKUP($C63,'29,04,22'!$B$5:$J$150,AI$7,FALSE)*AI$4,"") ->  | AJ63: =IFERROR(VLOOKUP($C63,'30,04,22'!$B$5:$J$150,AJ$7,FALSE)*AJ$4,"") -> 5.017832094 | AK63: =IFERROR(VLOOKUP($C63,'10,06,22'!$B$5:$J$150,AK$7,FALSE)*AK$4,"") ->  | AL63: =IFERROR(VLOOKUP($C63,'17,06,22'!$B$5:$J$150,AL$7,FALSE)*AL$4,"") -> 8.777019627 | AM63: =IFERROR(VLOOKUP($C63,'02,07,22'!$B$5:$J$150,AM$7,FALSE)*AM$4,"") ->  | AN63: =IFERROR(VLOOKUP($C63,'23,07,22'!$B$5:$J$150,AN$7,FALSE)*AN$4,"") ->  | AO63: =IFERROR(VLOOKUP($C63,'22,07,22'!$B$5:$J$150,AO$7,FALSE)*AO$4,"") ->  | AP63: =IFERROR(VLOOKUP($C63,'20,08,22'!$B$5:$J$150,AP$7,FALSE)*AP$4,"") ->  | AQ63: =IFERROR(VLOOKUP($C63,'10,09,22'!$B$5:$J$150,AQ$7,FALSE)*AQ$4,"") ->  | AR63: =IFERROR(VLOOKUP($C63,'14,09,22'!$B$5:$J$150,AR$7,FALSE)*AR$4,"") ->  | AS63: =IFERROR(VLOOKUP($C63,'23,09,22'!$B$5:$J$150,AS$7,FALSE)*AS$4,"") -> 0.5904138084 | AT63: =IFERROR(VLOOKUP($C63,'15,10,22'!$B$5:$J$150,AT$7,FALSE)*AT$4,"") ->  | FA63: =COUNTBLANK(FB63:FC63) -> 1 | FC63: Anne-Sophie Lemesle | FD63: Ж | FE63: 1 | FF63: France | FG63: 0 | FH63: забугорье
A64: 55 | B64: =IFERROR(IF(K64=0,"",IF($K$7=1,RANK(K64,K$10:K$510),COUNTIF(K$10:K$510,">0")-RANK(K64,K$10:K$510)+1)),"") -> 55 | C64: Денисенко Антон | D64: М | E64: =IF(E$9="",1,IF(E$9=D64,1,0)) -> 1 | F64: Россия | G64: =IF(G$9="",1,IF(G$9=F64,1,0)) -> 1 | H64: Ленинградская область | I64: =IF(I$9="",1,IF(I$9=H64,1,0)) -> 1 | J64: =IFERROR(IF($K$7=1,SUMPRODUCT(LARGE(L64:ED64,{1,2,3,4})),AVERAGE(L64:ED64)),"") -> 20.76085386 | K64: =IFERROR(J64*E64*G64*I64,"") -> 20.76085386 | L64: =IF($K$7=1,0,"") -> 0 | M64: =IF($K$7=1,0,"") -> 0 | N64: =IF($K$7=1,0,"") -> 0 | O64: =IF($K$7=1,0,"") -> 0 | P64: =IFERROR(VLOOKUP($C64,'06,09,19'!$B$5:$J$150,P$7,FALSE)*P$4,"") ->  | Q64: =IFERROR(VLOOKUP($C64,'17,08,20'!$B$5:$J$150,Q$7,FALSE)*Q$4,"") ->  | R64: =IFERROR(VLOOKUP($C64,'01,10,20'!$B$5:$J$150,R$7,FALSE)*R$4,"") ->  | S64: =IFERROR(VLOOKUP($C64,'08,10,20'!$B$5:$J$150,S$7,FALSE)*S$4,"") ->  | T64: =IFERROR(VLOOKUP($C64,'08,01,21'!$B$5:$J$150,T$7,FALSE)*T$4,"") ->  | U64: =IFERROR(VLOOKUP($C64,'23,01,21'!$B$5:$J$150,U$7,FALSE)*U$4,"") -> 0.01793552856 | V64: =IFERROR(VLOOKUP($C64,'23,04,21'!$B$5:$J$150,V$7,FALSE)*V$4,"") ->  | W64: =IFERROR(VLOOKUP($C64,'07,05,21'!$B$5:$J$150,W$7,FALSE)*W$4,"") ->  | X64: =IFERROR(VLOOKUP($C64,'11,06,21'!$B$5:$J$150,X$7,FALSE)*X$4,"") -> 1.3815311 | Y64: =IFERROR(VLOOKUP($C64,'18,06,21'!$B$5:$J$150,Y$7,FALSE)*Y$4,"") ->  | Z64: =IFERROR(VLOOKUP($C64,'26,06,21'!$B$5:$J$134,Z$7,FALSE)*Z$4,"") ->  | AA64: =IFERROR(VLOOKUP($C64,'25,06,21'!$B$5:$J$150,AA$7,FALSE)*AA$4,"") ->  | AB64: =IFERROR(VLOOKUP($C64,'29,07,21'!$B$5:$J$150,AB$7,FALSE)*AB$4,"") ->  | AC64: =IFERROR(VLOOKUP($C64,'21,08,21'!$B$5:$J$150,AC$7,FALSE)*AC$4,"") ->  | AD64: =IFERROR(VLOOKUP($C64,'02,09,21'!$B$5:$J$150,AD$7,FALSE)*AD$4,"") -> 3.714144916 | AE64: =IFERROR(VLOOKUP($C64,'07,10,21'!$B$5:$J$150,AE$7,FALSE)*AE$4,"") ->  | AF64: =IFERROR(VLOOKUP($C64,'30,10,21'!$B$5:$J$150,AF$7,FALSE)*AF$4,"") ->  | AG64: =IFERROR(VLOOKUP($C64,'19,02,22'!$B$5:$J$150,AG$7,FALSE)*AG$4,"") ->  | AH64: =IFERROR(VLOOKUP($C64,'23,02,22'!$B$5:$J$150,AH$7,FALSE)*AH$4,"") ->  | AI64: =IFERROR(VLOOKUP($C64,'29,04,22'!$B$5:$J$150,AI$7,FALSE)*AI$4,"") -> 8.648368918 | AJ64: =IFERROR(VLOOKUP($C64,'30,04,22'!$B$5:$J$150,AJ$7,FALSE)*AJ$4,"") ->  | AK64: =IFERROR(VLOOKUP($C64,'10,06,22'!$B$5:$J$150,AK$7,FALSE)*AK$4,"") ->  | AL64: =IFERROR(VLOOKUP($C64,'17,06,22'!$B$5:$J$150,AL$7,FALSE)*AL$4,"") ->  | AM64: =IFERROR(VLOOKUP($C64,'02,07,22'!$B$5:$J$150,AM$7,FALSE)*AM$4,"") ->  | AN64: =IFERROR(VLOOKUP($C64,'23,07,22'!$B$5:$J$150,AN$7,FALSE)*AN$4,"") ->  | AO64: =IFERROR(VLOOKUP($C64,'22,07,22'!$B$5:$J$150,AO$7,FALSE)*AO$4,"") ->  | AP64: =IFERROR(VLOOKUP($C64,'20,08,22'!$B$5:$J$150,AP$7,FALSE)*AP$4,"") ->  | AQ64: =IFERROR(VLOOKUP($C64,'10,09,22'!$B$5:$J$150,AQ$7,FALSE)*AQ$4,"") ->  | AR64: =IFERROR(VLOOKUP($C64,'14,09,22'!$B$5:$J$150,AR$7,FALSE)*AR$4,"") -> 7.016808925 | AS64: =IFERROR(VLOOKUP($C64,'23,09,22'!$B$5:$J$150,AS$7,FALSE)*AS$4,"") ->  | AT64: =IFERROR(VLOOKUP($C64,'15,10,22'!$B$5:$J$150,AT$7,FALSE)*AT$4,"") ->  | FA64: =COUNTBLANK(FB64:FC64) -> 1 | FC64: Anton Svoljšak | FD64: М | FE64: 1 | FF64: Slovenia | FG64: 0 | FH64: забугорье
A65: 56 | B65: =IFERROR(IF(K65=0,"",IF($K$7=1,RANK(K65,K$10:K$510),COUNTIF(K$10:K$510,">0")-RANK(K65,K$10:K$510)+1)),"") -> 56 | C65: Васильева Наталия | D65: Ж | E65: =IF(E$9="",1,IF(E$9=D65,1,0)) -> 1 | F65: Россия | G65: =IF(G$9="",1,IF(G$9=F65,1,0)) -> 1 | H65: Удмуртская республика | I65: =IF(I$9="",1,IF(I$9=H65,1,0)) -> 1 | J65: =IFERROR(IF($K$7=1,SUMPRODUCT(LARGE(L65:ED65,{1,2,3,4})),AVERAGE(L65:ED65)),"") -> 20.44605752 | K65: =IFERROR(J65*E65*G65*I65,"") -> 20.44605752 | L65: =IF($K$7=1,0,"") -> 0 | M65: =IF($K$7=1,0,"") -> 0 | N65: =IF($K$7=1,0,"") -> 0 | O65: =IF($K$7=1,0,"") -> 0 | P65: =IFERROR(VLOOKUP($C65,'06,09,19'!$B$5:$J$150,P$7,FALSE)*P$4,"") ->  | Q65: =IFERROR(VLOOKUP($C65,'17,08,20'!$B$5:$J$150,Q$7,FALSE)*Q$4,"") -> 0.1699236197 | R65: =IFERROR(VLOOKUP($C65,'01,10,20'!$B$5:$J$150,R$7,FALSE)*R$4,"") ->  | S65: =IFERROR(VLOOKUP($C65,'08,10,20'!$B$5:$J$150,S$7,FALSE)*S$4,"") ->  | T65: =IFERROR(VLOOKUP($C65,'08,01,21'!$B$5:$J$150,T$7,FALSE)*T$4,"") ->  | U65: =IFERROR(VLOOKUP($C65,'23,01,21'!$B$5:$J$150,U$7,FALSE)*U$4,"") ->  | V65: =IFERROR(VLOOKUP($C65,'23,04,21'!$B$5:$J$150,V$7,FALSE)*V$4,"") ->  | W65: =IFERROR(VLOOKUP($C65,'07,05,21'!$B$5:$J$150,W$7,FALSE)*W$4,"") ->  | X65: =IFERROR(VLOOKUP($C65,'11,06,21'!$B$5:$J$150,X$7,FALSE)*X$4,"") ->  | Y65: =IFERROR(VLOOKUP($C65,'18,06,21'!$B$5:$J$150,Y$7,FALSE)*Y$4,"") -> 6.026131884 | Z65: =IFERROR(VLOOKUP($C65,'26,06,21'!$B$5:$J$134,Z$7,FALSE)*Z$4,"") ->  | AA65: =IFERROR(VLOOKUP($C65,'25,06,21'!$B$5:$J$150,AA$7,FALSE)*AA$4,"") ->  | AB65: =IFERROR(VLOOKUP($C65,'29,07,21'!$B$5:$J$150,AB$7,FALSE)*AB$4,"") ->  | AC65: =IFERROR(VLOOKUP($C65,'21,08,21'!$B$5:$J$150,AC$7,FALSE)*AC$4,"") ->  | AD65: =IFERROR(VLOOKUP($C65,'02,09,21'!$B$5:$J$150,AD$7,FALSE)*AD$4,"") -> 9.868204329 | AE65: =IFERROR(VLOOKUP($C65,'07,10,21'!$B$5:$J$150,AE$7,FALSE)*AE$4,"") ->  | AF65: =IFERROR(VLOOKUP($C65,'30,10,21'!$B$5:$J$150,AF$7,FALSE)*AF$4,"") ->  | AG65: =IFERROR(VLOOKUP($C65,'19,02,22'!$B$5:$J$150,AG$7,FALSE)*AG$4,"") ->  | AH65: =IFERROR(VLOOKUP($C65,'23,02,22'!$B$5:$J$150,AH$7,FALSE)*AH$4,"") ->  | AI65: =IFERROR(VLOOKUP($C65,'29,04,22'!$B$5:$J$150,AI$7,FALSE)*AI$4,"") ->  | AJ65: =IFERROR(VLOOKUP($C65,'30,04,22'!$B$5:$J$150,AJ$7,FALSE)*AJ$4,"") ->  | AK65: =IFERROR(VLOOKUP($C65,'10,06,22'!$B$5:$J$150,AK$7,FALSE)*AK$4,"") -> 4.381797689 | AL65: =IFERROR(VLOOKUP($C65,'17,06,22'!$B$5:$J$150,AL$7,FALSE)*AL$4,"") ->  | AM65: =IFERROR(VLOOKUP($C65,'02,07,22'!$B$5:$J$150,AM$7,FALSE)*AM$4,"") ->  | AN65: =IFERROR(VLOOKUP($C65,'23,07,22'!$B$5:$J$150,AN$7,FALSE)*AN$4,"") ->  | AO65: =IFERROR(VLOOKUP($C65,'22,07,22'!$B$5:$J$150,AO$7,FALSE)*AO$4,"") ->  | AP65: =IFERROR(VLOOKUP($C65,'20,08,22'!$B$5:$J$150,AP$7,FALSE)*AP$4,"") ->  | AQ65: =IFERROR(VLOOKUP($C65,'10,09,22'!$B$5:$J$150,AQ$7,FALSE)*AQ$4,"") ->  | AR65: =IFERROR(VLOOKUP($C65,'14,09,22'!$B$5:$J$150,AR$7,FALSE)*AR$4,"") ->  | AS65: =IFERROR(VLOOKUP($C65,'23,09,22'!$B$5:$J$150,AS$7,FALSE)*AS$4,"") ->  | AT65: =IFERROR(VLOOKUP($C65,'15,10,22'!$B$5:$J$150,AT$7,FALSE)*AT$4,"") ->  | FA65: =COUNTBLANK(FB65:FC65) -> 1 | FC65: Arber Haxhiaj | FD65: М | FE65: 1 | FF65: Albania | FG65: 0 | FH65: забугорье
A66: 57 | B66: =IFERROR(IF(K66=0,"",IF($K$7=1,RANK(K66,K$10:K$510),COUNTIF(K$10:K$510,">0")-RANK(K66,K$10:K$510)+1)),"") -> 57 | C66: Крашенков Андрей | D66: М | E66: =IF(E$9="",1,IF(E$9=D66,1,0)) -> 1 | F66: Россия | G66: =IF(G$9="",1,IF(G$9=F66,1,0)) -> 1 | H66: Алтайский край | I66: =IF(I$9="",1,IF(I$9=H66,1,0)) -> 1 | J66: =IFERROR(IF($K$7=1,SUMPRODUCT(LARGE(L66:ED66,{1,2,3,4})),AVERAGE(L66:ED66)),"") -> 20.04627441 | K66: =IFERROR(J66*E66*G66*I66,"") -> 20.04627441 | L66: =IF($K$7=1,0,"") -> 0 | M66: =IF($K$7=1,0,"") -> 0 | N66: =IF($K$7=1,0,"") -> 0 | O66: =IF($K$7=1,0,"") -> 0 | P66: =IFERROR(VLOOKUP($C66,'06,09,19'!$B$5:$J$150,P$7,FALSE)*P$4,"") ->  | Q66: =IFERROR(VLOOKUP($C66,'17,08,20'!$B$5:$J$150,Q$7,FALSE)*Q$4,"") ->  | R66: =IFERROR(VLOOKUP($C66,'01,10,20'!$B$5:$J$150,R$7,FALSE)*R$4,"") -> 0.471802975 | S66: =IFERROR(VLOOKUP($C66,'08,10,20'!$B$5:$J$150,S$7,FALSE)*S$4,"") ->  | T66: =IFERROR(VLOOKUP($C66,'08,01,21'!$B$5:$J$150,T$7,FALSE)*T$4,"") ->  | U66: =IFERROR(VLOOKUP($C66,'23,01,21'!$B$5:$J$150,U$7,FALSE)*U$4,"") ->  | V66: =IFERROR(VLOOKUP($C66,'23,04,21'!$B$5:$J$150,V$7,FALSE)*V$4,"") ->  | W66: =IFERROR(VLOOKUP($C66,'07,05,21'!$B$5:$J$150,W$7,FALSE)*W$4,"") ->  | X66: =IFERROR(VLOOKUP($C66,'11,06,21'!$B$5:$J$150,X$7,FALSE)*X$4,"") ->  | Y66: =IFERROR(VLOOKUP($C66,'18,06,21'!$B$5:$J$150,Y$7,FALSE)*Y$4,"") ->  | Z66: =IFERROR(VLOOKUP($C66,'26,06,21'!$B$5:$J$134,Z$7,FALSE)*Z$4,"") ->  | AA66: =IFERROR(VLOOKUP($C66,'25,06,21'!$B$5:$J$150,AA$7,FALSE)*AA$4,"") -> 9.2625779 | AB66: =IFERROR(VLOOKUP($C66,'29,07,21'!$B$5:$J$150,AB$7,FALSE)*AB$4,"") ->  | AC66: =IFERROR(VLOOKUP($C66,'21,08,21'!$B$5:$J$150,AC$7,FALSE)*AC$4,"") ->  | AD66: =IFERROR(VLOOKUP($C66,'02,09,21'!$B$5:$J$150,AD$7,FALSE)*AD$4,"") ->  | AE66: =IFERROR(VLOOKUP($C66,'07,10,21'!$B$5:$J$150,AE$7,FALSE)*AE$4,"") ->  | AF66: =IFERROR(VLOOKUP($C66,'30,10,21'!$B$5:$J$150,AF$7,FALSE)*AF$4,"") ->  | AG66: =IFERROR(VLOOKUP($C66,'19,02,22'!$B$5:$J$150,AG$7,FALSE)*AG$4,"") -> 10.31189354 | AH66: =IFERROR(VLOOKUP($C66,'23,02,22'!$B$5:$J$150,AH$7,FALSE)*AH$4,"") ->  | AI66: =IFERROR(VLOOKUP($C66,'29,04,22'!$B$5:$J$150,AI$7,FALSE)*AI$4,"") ->  | AJ66: =IFERROR(VLOOKUP($C66,'30,04,22'!$B$5:$J$150,AJ$7,FALSE)*AJ$4,"") ->  | AK66: =IFERROR(VLOOKUP($C66,'10,06,22'!$B$5:$J$150,AK$7,FALSE)*AK$4,"") ->  | AL66: =IFERROR(VLOOKUP($C66,'17,06,22'!$B$5:$J$150,AL$7,FALSE)*AL$4,"") ->  | AM66: =IFERROR(VLOOKUP($C66,'02,07,22'!$B$5:$J$150,AM$7,FALSE)*AM$4,"") ->  | AN66: =IFERROR(VLOOKUP($C66,'23,07,22'!$B$5:$J$150,AN$7,FALSE)*AN$4,"") ->  | AO66: =IFERROR(VLOOKUP($C66,'22,07,22'!$B$5:$J$150,AO$7,FALSE)*AO$4,"") ->  | AP66: =IFERROR(VLOOKUP($C66,'20,08,22'!$B$5:$J$150,AP$7,FALSE)*AP$4,"") ->  | AQ66: =IFERROR(VLOOKUP($C66,'10,09,22'!$B$5:$J$150,AQ$7,FALSE)*AQ$4,"") ->  | AR66: =IFERROR(VLOOKUP($C66,'14,09,22'!$B$5:$J$150,AR$7,FALSE)*AR$4,"") ->  | AS66: =IFERROR(VLOOKUP($C66,'23,09,22'!$B$5:$J$150,AS$7,FALSE)*AS$4,"") ->  | AT66: =IFERROR(VLOOKUP($C66,'15,10,22'!$B$5:$J$150,AT$7,FALSE)*AT$4,"") ->  | FA66: =COUNTBLANK(FB66:FC66) -> 1 | FC66: Arber Xhaja | FD66: М | FE66: 1 | FF66: Albania | FG66: 0 | FH66: забугорье
A67: 58 | B67: =IFERROR(IF(K67=0,"",IF($K$7=1,RANK(K67,K$10:K$510),COUNTIF(K$10:K$510,">0")-RANK(K67,K$10:K$510)+1)),"") -> 58 | C67: Попцов Андрей | D67: М | E67: =IF(E$9="",1,IF(E$9=D67,1,0)) -> 1 | F67: Россия | G67: =IF(G$9="",1,IF(G$9=F67,1,0)) -> 1 | H67: Кемеровская область | I67: =IF(I$9="",1,IF(I$9=H67,1,0)) -> 1 | J67: =IFERROR(IF($K$7=1,SUMPRODUCT(LARGE(L67:ED67,{1,2,3,4})),AVERAGE(L67:ED67)),"") -> 19.99054376 | K67: =IFERROR(J67*E67*G67*I67,"") -> 19.99054376 | L67: =IF($K$7=1,0,"") -> 0 | M67: =IF($K$7=1,0,"") -> 0 | N67: =IF($K$7=1,0,"") -> 0 | O67: =IF($K$7=1,0,"") -> 0 | P67: =IFERROR(VLOOKUP($C67,'06,09,19'!$B$5:$J$150,P$7,FALSE)*P$4,"") ->  | Q67: =IFERROR(VLOOKUP($C67,'17,08,20'!$B$5:$J$150,Q$7,FALSE)*Q$4,"") ->  | R67: =IFERROR(VLOOKUP($C67,'01,10,20'!$B$5:$J$150,R$7,FALSE)*R$4,"") ->  | S67: =IFERROR(VLOOKUP($C67,'08,10,20'!$B$5:$J$150,S$7,FALSE)*S$4,"") ->  | T67: =IFERROR(VLOOKUP($C67,'08,01,21'!$B$5:$J$150,T$7,FALSE)*T$4,"") ->  | U67: =IFERROR(VLOOKUP($C67,'23,01,21'!$B$5:$J$150,U$7,FALSE)*U$4,"") ->  | V67: =IFERROR(VLOOKUP($C67,'23,04,21'!$B$5:$J$150,V$7,FALSE)*V$4,"") ->  | W67: =IFERROR(VLOOKUP($C67,'07,05,21'!$B$5:$J$150,W$7,FALSE)*W$4,"") ->  | X67: =IFERROR(VLOOKUP($C67,'11,06,21'!$B$5:$J$150,X$7,FALSE)*X$4,"") ->  | Y67: =IFERROR(VLOOKUP($C67,'18,06,21'!$B$5:$J$150,Y$7,FALSE)*Y$4,"") ->  | Z67: =IFERROR(VLOOKUP($C67,'26,06,21'!$B$5:$J$134,Z$7,FALSE)*Z$4,"") ->  | AA67: =IFERROR(VLOOKUP($C67,'25,06,21'!$B$5:$J$150,AA$7,FALSE)*AA$4,"") -> 7.82081026 | AB67: =IFERROR(VLOOKUP($C67,'29,07,21'!$B$5:$J$150,AB$7,FALSE)*AB$4,"") ->  | AC67: =IFERROR(VLOOKUP($C67,'21,08,21'!$B$5:$J$150,AC$7,FALSE)*AC$4,"") ->  | AD67: =IFERROR(VLOOKUP($C67,'02,09,21'!$B$5:$J$150,AD$7,FALSE)*AD$4,"") ->  | AE67: =IFERROR(VLOOKUP($C67,'07,10,21'!$B$5:$J$150,AE$7,FALSE)*AE$4,"") ->  | AF67: =IFERROR(VLOOKUP($C67,'30,10,21'!$B$5:$J$150,AF$7,FALSE)*AF$4,"") ->  | AG67: =IFERROR(VLOOKUP($C67,'19,02,22'!$B$5:$J$150,AG$7,FALSE)*AG$4,"") ->  | AH67: =IFERROR(VLOOKUP($C67,'23,02,22'!$B$5:$J$150,AH$7,FALSE)*AH$4,"") ->  | AI67: =IFERROR(VLOOKUP($C67,'29,04,22'!$B$5:$J$150,AI$7,FALSE)*AI$4,"") ->  | AJ67: =IFERROR(VLOOKUP($C67,'30,04,22'!$B$5:$J$150,AJ$7,FALSE)*AJ$4,"") -> 0.8000332488 | AK67: =IFERROR(VLOOKUP($C67,'10,06,22'!$B$5:$J$150,AK$7,FALSE)*AK$4,"") ->  | AL67: =IFERROR(VLOOKUP($C67,'17,06,22'!$B$5:$J$150,AL$7,FALSE)*AL$4,"") ->  | AM67: =IFERROR(VLOOKUP($C67,'02,07,22'!$B$5:$J$150,AM$7,FALSE)*AM$4,"") ->  | AN67: =IFERROR(VLOOKUP($C67,'23,07,22'!$B$5:$J$150,AN$7,FALSE)*AN$4,"") ->  | AO67: =IFERROR(VLOOKUP($C67,'22,07,22'!$B$5:$J$150,AO$7,FALSE)*AO$4,"") ->  | AP67: =IFERROR(VLOOKUP($C67,'20,08,22'!$B$5:$J$150,AP$7,FALSE)*AP$4,"") ->  | AQ67: =IFERROR(VLOOKUP($C67,'10,09,22'!$B$5:$J$150,AQ$7,FALSE)*AQ$4,"") ->  | AR67: =IFERROR(VLOOKUP($C67,'14,09,22'!$B$5:$J$150,AR$7,FALSE)*AR$4,"") ->  | AS67: =IFERROR(VLOOKUP($C67,'23,09,22'!$B$5:$J$150,AS$7,FALSE)*AS$4,"") -> 11.36970025 | AT67: =IFERROR(VLOOKUP($C67,'15,10,22'!$B$5:$J$150,AT$7,FALSE)*AT$4,"") ->  | FA67: =COUNTBLANK(FB67:FC67) -> 1 | FC67: Artion Vreto | FD67: М | FE67: 1 | FF67: Albania | FG67: 0 | FH67: забугорье
A68: 59 | B68: =IFERROR(IF(K68=0,"",IF($K$7=1,RANK(K68,K$10:K$510),COUNTIF(K$10:K$510,">0")-RANK(K68,K$10:K$510)+1)),"") -> 59 | C68: Лапин Владимир | D68: М | E68: =IF(E$9="",1,IF(E$9=D68,1,0)) -> 1 | F68: Россия | G68: =IF(G$9="",1,IF(G$9=F68,1,0)) -> 1 | H68: Ставропольский край | I68: =IF(I$9="",1,IF(I$9=H68,1,0)) -> 1 | J68: =IFERROR(IF($K$7=1,SUMPRODUCT(LARGE(L68:ED68,{1,2,3,4})),AVERAGE(L68:ED68)),"") -> 19.8670244 | K68: =IFERROR(J68*E68*G68*I68,"") -> 19.8670244 | L68: =IF($K$7=1,0,"") -> 0 | M68: =IF($K$7=1,0,"") -> 0 | N68: =IF($K$7=1,0,"") -> 0 | O68: =IF($K$7=1,0,"") -> 0 | P68: =IFERROR(VLOOKUP($C68,'06,09,19'!$B$5:$J$150,P$7,FALSE)*P$4,"") ->  | Q68: =IFERROR(VLOOKUP($C68,'17,08,20'!$B$5:$J$150,Q$7,FALSE)*Q$4,"") ->  | R68: =IFERROR(VLOOKUP($C68,'01,10,20'!$B$5:$J$150,R$7,FALSE)*R$4,"") ->  | S68: =IFERROR(VLOOKUP($C68,'08,10,20'!$B$5:$J$150,S$7,FALSE)*S$4,"") ->  | T68: =IFERROR(VLOOKUP($C68,'08,01,21'!$B$5:$J$150,T$7,FALSE)*T$4,"") ->  | U68: =IFERROR(VLOOKUP($C68,'23,01,21'!$B$5:$J$150,U$7,FALSE)*U$4,"") ->  | V68: =IFERROR(VLOOKUP($C68,'23,04,21'!$B$5:$J$150,V$7,FALSE)*V$4,"") -> 3.003925282 | W68: =IFERROR(VLOOKUP($C68,'07,05,21'!$B$5:$J$150,W$7,FALSE)*W$4,"") ->  | X68: =IFERROR(VLOOKUP($C68,'11,06,21'!$B$5:$J$150,X$7,FALSE)*X$4,"") ->  | Y68: =IFERROR(VLOOKUP($C68,'18,06,21'!$B$5:$J$150,Y$7,FALSE)*Y$4,"") ->  | Z68: =IFERROR(VLOOKUP($C68,'26,06,21'!$B$5:$J$134,Z$7,FALSE)*Z$4,"") ->  | AA68: =IFERROR(VLOOKUP($C68,'25,06,21'!$B$5:$J$150,AA$7,FALSE)*AA$4,"") ->  | AB68: =IFERROR(VLOOKUP($C68,'29,07,21'!$B$5:$J$150,AB$7,FALSE)*AB$4,"") ->  | AC68: =IFERROR(VLOOKUP($C68,'21,08,21'!$B$5:$J$150,AC$7,FALSE)*AC$4,"") ->  | AD68: =IFERROR(VLOOKUP($C68,'02,09,21'!$B$5:$J$150,AD$7,FALSE)*AD$4,"") ->  | AE68: =IFERROR(VLOOKUP($C68,'07,10,21'!$B$5:$J$150,AE$7,FALSE)*AE$4,"") ->  | AF68: =IFERROR(VLOOKUP($C68,'30,10,21'!$B$5:$J$150,AF$7,FALSE)*AF$4,"") ->  | AG68: =IFERROR(VLOOKUP($C68,'19,02,22'!$B$5:$J$150,AG$7,FALSE)*AG$4,"") ->  | AH68: =IFERROR(VLOOKUP($C68,'23,02,22'!$B$5:$J$150,AH$7,FALSE)*AH$4,"") ->  | AI68: =IFERROR(VLOOKUP($C68,'29,04,22'!$B$5:$J$150,AI$7,FALSE)*AI$4,"") ->  | AJ68: =IFERROR(VLOOKUP($C68,'30,04,22'!$B$5:$J$150,AJ$7,FALSE)*AJ$4,"") ->  | AK68: =IFERROR(VLOOKUP($C68,'10,06,22'!$B$5:$J$150,AK$7,FALSE)*AK$4,"") ->  | AL68: =IFERROR(VLOOKUP($C68,'17,06,22'!$B$5:$J$150,AL$7,FALSE)*AL$4,"") ->  | AM68: =IFERROR(VLOOKUP($C68,'02,07,22'!$B$5:$J$150,AM$7,FALSE)*AM$4,"") ->  | AN68: =IFERROR(VLOOKUP($C68,'23,07,22'!$B$5:$J$150,AN$7,FALSE)*AN$4,"") ->  | AO68: =IFERROR(VLOOKUP($C68,'22,07,22'!$B$5:$J$150,AO$7,FALSE)*AO$4,"") -> 16.86309911 | AP68: =IFERROR(VLOOKUP($C68,'20,08,22'!$B$5:$J$150,AP$7,FALSE)*AP$4,"") ->  | AQ68: =IFERROR(VLOOKUP($C68,'10,09,22'!$B$5:$J$150,AQ$7,FALSE)*AQ$4,"") ->  | AR68: =IFERROR(VLOOKUP($C68,'14,09,22'!$B$5:$J$150,AR$7,FALSE)*AR$4,"") ->  | AS68: =IFERROR(VLOOKUP($C68,'23,09,22'!$B$5:$J$150,AS$7,FALSE)*AS$4,"") ->  | AT68: =IFERROR(VLOOKUP($C68,'15,10,22'!$B$5:$J$150,AT$7,FALSE)*AT$4,"") ->  | FA68: =COUNTBLANK(FB68:FC68) -> 1 | FC68: Azahara Velasco | FD68: Ж | FE68: 1 | FF68: Spain | FG68: 0 | FH68: забугорье
A69: 60 | B69: =IFERROR(IF(K69=0,"",IF($K$7=1,RANK(K69,K$10:K$510),COUNTIF(K$10:K$510,">0")-RANK(K69,K$10:K$510)+1)),"") -> 60 | C69: Слукин Алексей | D69: М | E69: =IF(E$9="",1,IF(E$9=D69,1,0)) -> 1 | F69: Россия | G69: =IF(G$9="",1,IF(G$9=F69,1,0)) -> 1 | H69: Республика Алтай | I69: =IF(I$9="",1,IF(I$9=H69,1,0)) -> 1 | J69: =IFERROR(IF($K$7=1,SUMPRODUCT(LARGE(L69:ED69,{1,2,3,4})),AVERAGE(L69:ED69)),"") -> 19.30973658 | K69: =IFERROR(J69*E69*G69*I69,"") -> 19.30973658 | L69: =IF($K$7=1,0,"") -> 0 | M69: =IF($K$7=1,0,"") -> 0 | N69: =IF($K$7=1,0,"") -> 0 | O69: =IF($K$7=1,0,"") -> 0 | P69: =IFERROR(VLOOKUP($C69,'06,09,19'!$B$5:$J$150,P$7,FALSE)*P$4,"") ->  | Q69: =IFERROR(VLOOKUP($C69,'17,08,20'!$B$5:$J$150,Q$7,FALSE)*Q$4,"") ->  | R69: =IFERROR(VLOOKUP($C69,'01,10,20'!$B$5:$J$150,R$7,FALSE)*R$4,"") -> 0.5236659479 | S69: =IFERROR(VLOOKUP($C69,'08,10,20'!$B$5:$J$150,S$7,FALSE)*S$4,"") ->  | T69: =IFERROR(VLOOKUP($C69,'08,01,21'!$B$5:$J$150,T$7,FALSE)*T$4,"") ->  | U69: =IFERROR(VLOOKUP($C69,'23,01,21'!$B$5:$J$150,U$7,FALSE)*U$4,"") ->  | V69: =IFERROR(VLOOKUP($C69,'23,04,21'!$B$5:$J$150,V$7,FALSE)*V$4,"") ->  | W69: =IFERROR(VLOOKUP($C69,'07,05,21'!$B$5:$J$150,W$7,FALSE)*W$4,"") ->  | X69: =IFERROR(VLOOKUP($C69,'11,06,21'!$B$5:$J$150,X$7,FALSE)*X$4,"") ->  | Y69: =IFERROR(VLOOKUP($C69,'18,06,21'!$B$5:$J$150,Y$7,FALSE)*Y$4,"") ->  | Z69: =IFERROR(VLOOKUP($C69,'26,06,21'!$B$5:$J$134,Z$7,FALSE)*Z$4,"") ->  | AA69: =IFERROR(VLOOKUP($C69,'25,06,21'!$B$5:$J$150,AA$7,FALSE)*AA$4,"") ->  | AB69: =IFERROR(VLOOKUP($C69,'29,07,21'!$B$5:$J$150,AB$7,FALSE)*AB$4,"") ->  | AC69: =IFERROR(VLOOKUP($C69,'21,08,21'!$B$5:$J$150,AC$7,FALSE)*AC$4,"") ->  | AD69: =IFERROR(VLOOKUP($C69,'02,09,21'!$B$5:$J$150,AD$7,FALSE)*AD$4,"") ->  | AE69: =IFERROR(VLOOKUP($C69,'07,10,21'!$B$5:$J$150,AE$7,FALSE)*AE$4,"") ->  | AF69: =IFERROR(VLOOKUP($C69,'30,10,21'!$B$5:$J$150,AF$7,FALSE)*AF$4,"") ->  | AG69: =IFERROR(VLOOKUP($C69,'19,02,22'!$B$5:$J$150,AG$7,FALSE)*AG$4,"") -> 17.98603739 | AH69: =IFERROR(VLOOKUP($C69,'23,02,22'!$B$5:$J$150,AH$7,FALSE)*AH$4,"") ->  | AI69: =IFERROR(VLOOKUP($C69,'29,04,22'!$B$5:$J$150,AI$7,FALSE)*AI$4,"") ->  | AJ69: =IFERROR(VLOOKUP($C69,'30,04,22'!$B$5:$J$150,AJ$7,FALSE)*AJ$4,"") -> 0.8000332488 | AK69: =IFERROR(VLOOKUP($C69,'10,06,22'!$B$5:$J$150,AK$7,FALSE)*AK$4,"") ->  | AL69: =IFERROR(VLOOKUP($C69,'17,06,22'!$B$5:$J$150,AL$7,FALSE)*AL$4,"") ->  | AM69: =IFERROR(VLOOKUP($C69,'02,07,22'!$B$5:$J$150,AM$7,FALSE)*AM$4,"") ->  | AN69: =IFERROR(VLOOKUP($C69,'23,07,22'!$B$5:$J$150,AN$7,FALSE)*AN$4,"") ->  | AO69: =IFERROR(VLOOKUP($C69,'22,07,22'!$B$5:$J$150,AO$7,FALSE)*AO$4,"") ->  | AP69: =IFERROR(VLOOKUP($C69,'20,08,22'!$B$5:$J$150,AP$7,FALSE)*AP$4,"") ->  | AQ69: =IFERROR(VLOOKUP($C69,'10,09,22'!$B$5:$J$150,AQ$7,FALSE)*AQ$4,"") ->  | AR69: =IFERROR(VLOOKUP($C69,'14,09,22'!$B$5:$J$150,AR$7,FALSE)*AR$4,"") ->  | AS69: =IFERROR(VLOOKUP($C69,'23,09,22'!$B$5:$J$150,AS$7,FALSE)*AS$4,"") ->  | AT69: =IFERROR(VLOOKUP($C69,'15,10,22'!$B$5:$J$150,AT$7,FALSE)*AT$4,"") ->  | FA69: =COUNTBLANK(FB69:FC69) -> 1 | FC69: Batdavaa Alzakhgui | FD69: М | FE69: 1 | FF69: Mongolia | FG69: 0 | FH69: забугорье
A70: 61 | B70: =IFERROR(IF(K70=0,"",IF($K$7=1,RANK(K70,K$10:K$510),COUNTIF(K$10:K$510,">0")-RANK(K70,K$10:K$510)+1)),"") -> 61 | C70: Жильцова А.А. | D70: Ж | E70: =IF(E$9="",1,IF(E$9=D70,1,0)) -> 1 | F70: Россия | G70: =IF(G$9="",1,IF(G$9=F70,1,0)) -> 1 | H70: Удмуртская республика | I70: =IF(I$9="",1,IF(I$9=H70,1,0)) -> 1 | J70: =IFERROR(IF($K$7=1,SUMPRODUCT(LARGE(L70:ED70,{1,2,3,4})),AVERAGE(L70:ED70)),"") -> 18.95645536 | K70: =IFERROR(J70*E70*G70*I70,"") -> 18.95645536 | L70: =IF($K$7=1,0,"") -> 0 | M70: =IF($K$7=1,0,"") -> 0 | N70: =IF($K$7=1,0,"") -> 0 | O70: =IF($K$7=1,0,"") -> 0 | P70: =IFERROR(VLOOKUP($C70,'06,09,19'!$B$5:$J$150,P$7,FALSE)*P$4,"") ->  | Q70: =IFERROR(VLOOKUP($C70,'17,08,20'!$B$5:$J$150,Q$7,FALSE)*Q$4,"") ->  | R70: =IFERROR(VLOOKUP($C70,'01,10,20'!$B$5:$J$150,R$7,FALSE)*R$4,"") ->  | S70: =IFERROR(VLOOKUP($C70,'08,10,20'!$B$5:$J$150,S$7,FALSE)*S$4,"") ->  | T70: =IFERROR(VLOOKUP($C70,'08,01,21'!$B$5:$J$150,T$7,FALSE)*T$4,"") ->  | U70: =IFERROR(VLOOKUP($C70,'23,01,21'!$B$5:$J$150,U$7,FALSE)*U$4,"") ->  | V70: =IFERROR(VLOOKUP($C70,'23,04,21'!$B$5:$J$150,V$7,FALSE)*V$4,"") ->  | W70: =IFERROR(VLOOKUP($C70,'07,05,21'!$B$5:$J$150,W$7,FALSE)*W$4,"") ->  | X70: =IFERROR(VLOOKUP($C70,'11,06,21'!$B$5:$J$150,X$7,FALSE)*X$4,"") ->  | Y70: =IFERROR(VLOOKUP($C70,'18,06,21'!$B$5:$J$150,Y$7,FALSE)*Y$4,"") -> 8.211106353 | Z70: =IFERROR(VLOOKUP($C70,'26,06,21'!$B$5:$J$134,Z$7,FALSE)*Z$4,"") ->  | AA70: =IFERROR(VLOOKUP($C70,'25,06,21'!$B$5:$J$150,AA$7,FALSE)*AA$4,"") ->  | AB70: =IFERROR(VLOOKUP($C70,'29,07,21'!$B$5:$J$150,AB$7,FALSE)*AB$4,"") ->  | AC70: =IFERROR(VLOOKUP($C70,'21,08,21'!$B$5:$J$150,AC$7,FALSE)*AC$4,"") ->  | AD70: =IFERROR(VLOOKUP($C70,'02,09,21'!$B$5:$J$150,AD$7,FALSE)*AD$4,"") ->  | AE70: =IFERROR(VLOOKUP($C70,'07,10,21'!$B$5:$J$150,AE$7,FALSE)*AE$4,"") ->  | AF70: =IFERROR(VLOOKUP($C70,'30,10,21'!$B$5:$J$150,AF$7,FALSE)*AF$4,"") ->  | AG70: =IFERROR(VLOOKUP($C70,'19,02,22'!$B$5:$J$150,AG$7,FALSE)*AG$4,"") ->  | AH70: =IFERROR(VLOOKUP($C70,'23,02,22'!$B$5:$J$150,AH$7,FALSE)*AH$4,"") ->  | AI70: =IFERROR(VLOOKUP($C70,'29,04,22'!$B$5:$J$150,AI$7,FALSE)*AI$4,"") ->  | AJ70: =IFERROR(VLOOKUP($C70,'30,04,22'!$B$5:$J$150,AJ$7,FALSE)*AJ$4,"") ->  | AK70: =IFERROR(VLOOKUP($C70,'10,06,22'!$B$5:$J$150,AK$7,FALSE)*AK$4,"") ->  | AL70: =IFERROR(VLOOKUP($C70,'17,06,22'!$B$5:$J$150,AL$7,FALSE)*AL$4,"") ->  | AM70: =IFERROR(VLOOKUP($C70,'02,07,22'!$B$5:$J$150,AM$7,FALSE)*AM$4,"") ->  | AN70: =IFERROR(VLOOKUP($C70,'23,07,22'!$B$5:$J$150,AN$7,FALSE)*AN$4,"") ->  | AO70: =IFERROR(VLOOKUP($C70,'22,07,22'!$B$5:$J$150,AO$7,FALSE)*AO$4,"") -> 10.745349 | AP70: =IFERROR(VLOOKUP($C70,'20,08,22'!$B$5:$J$150,AP$7,FALSE)*AP$4,"") ->  | AQ70: =IFERROR(VLOOKUP($C70,'10,09,22'!$B$5:$J$150,AQ$7,FALSE)*AQ$4,"") ->  | AR70: =IFERROR(VLOOKUP($C70,'14,09,22'!$B$5:$J$150,AR$7,FALSE)*AR$4,"") ->  | AS70: =IFERROR(VLOOKUP($C70,'23,09,22'!$B$5:$J$150,AS$7,FALSE)*AS$4,"") ->  | AT70: =IFERROR(VLOOKUP($C70,'15,10,22'!$B$5:$J$150,AT$7,FALSE)*AT$4,"") ->  | FA70: =COUNTBLANK(FB70:FC70) -> 1 | FC70: Ben Woodcock | FD70: М | FE70: 1 | FF70: United Kingdom | FG70: 0 | FH70: забугорье
A71: 62 | B71: =IFERROR(IF(K71=0,"",IF($K$7=1,RANK(K71,K$10:K$510),COUNTIF(K$10:K$510,">0")-RANK(K71,K$10:K$510)+1)),"") -> 62 | C71: Петров Максим | D71: М | E71: =IF(E$9="",1,IF(E$9=D71,1,0)) -> 1 | F71: Россия | G71: =IF(G$9="",1,IF(G$9=F71,1,0)) -> 1 | H71: г.Москва | I71: =IF(I$9="",1,IF(I$9=H71,1,0)) -> 1 | J71: =IFERROR(IF($K$7=1,SUMPRODUCT(LARGE(L71:ED71,{1,2,3,4})),AVERAGE(L71:ED71)),"") -> 17.61094861 | K71: =IFERROR(J71*E71*G71*I71,"") -> 17.61094861 | L71: =IF($K$7=1,0,"") -> 0 | M71: =IF($K$7=1,0,"") -> 0 | N71: =IF($K$7=1,0,"") -> 0 | O71: =IF($K$7=1,0,"") -> 0 | P71: =IFERROR(VLOOKUP($C71,'06,09,19'!$B$5:$J$150,P$7,FALSE)*P$4,"") ->  | Q71: =IFERROR(VLOOKUP($C71,'17,08,20'!$B$5:$J$150,Q$7,FALSE)*Q$4,"") ->  | R71: =IFERROR(VLOOKUP($C71,'01,10,20'!$B$5:$J$150,R$7,FALSE)*R$4,"") ->  | S71: =IFERROR(VLOOKUP($C71,'08,10,20'!$B$5:$J$150,S$7,FALSE)*S$4,"") ->  | T71: =IFERROR(VLOOKUP($C71,'08,01,21'!$B$5:$J$150,T$7,FALSE)*T$4,"") ->  | U71: =IFERROR(VLOOKUP($C71,'23,01,21'!$B$5:$J$150,U$7,FALSE)*U$4,"") ->  | V71: =IFERROR(VLOOKUP($C71,'23,04,21'!$B$5:$J$150,V$7,FALSE)*V$4,"") ->  | W71: =IFERROR(VLOOKUP($C71,'07,05,21'!$B$5:$J$150,W$7,FALSE)*W$4,"") ->  | X71: =IFERROR(VLOOKUP($C71,'11,06,21'!$B$5:$J$150,X$7,FALSE)*X$4,"") ->  | Y71: =IFERROR(VLOOKUP($C71,'18,06,21'!$B$5:$J$150,Y$7,FALSE)*Y$4,"") ->  | Z71: =IFERROR(VLOOKUP($C71,'26,06,21'!$B$5:$J$134,Z$7,FALSE)*Z$4,"") ->  | AA71: =IFERROR(VLOOKUP($C71,'25,06,21'!$B$5:$J$150,AA$7,FALSE)*AA$4,"") ->  | AB71: =IFERROR(VLOOKUP($C71,'29,07,21'!$B$5:$J$150,AB$7,FALSE)*AB$4,"") ->  | AC71: =IFERROR(VLOOKUP($C71,'21,08,21'!$B$5:$J$150,AC$7,FALSE)*AC$4,"") ->  | AD71: =IFERROR(VLOOKUP($C71,'02,09,21'!$B$5:$J$150,AD$7,FALSE)*AD$4,"") ->  | AE71: =IFERROR(VLOOKUP($C71,'07,10,21'!$B$5:$J$150,AE$7,FALSE)*AE$4,"") ->  | AF71: =IFERROR(VLOOKUP($C71,'30,10,21'!$B$5:$J$150,AF$7,FALSE)*AF$4,"") -> 14.69257518 | AG71: =IFERROR(VLOOKUP($C71,'19,02,22'!$B$5:$J$150,AG$7,FALSE)*AG$4,"") ->  | AH71: =IFERROR(VLOOKUP($C71,'23,02,22'!$B$5:$J$150,AH$7,FALSE)*AH$4,"") ->  | AI71: =IFERROR(VLOOKUP($C71,'29,04,22'!$B$5:$J$150,AI$7,FALSE)*AI$4,"") ->  | AJ71: =IFERROR(VLOOKUP($C71,'30,04,22'!$B$5:$J$150,AJ$7,FALSE)*AJ$4,"") ->  | AK71: =IFERROR(VLOOKUP($C71,'10,06,22'!$B$5:$J$150,AK$7,FALSE)*AK$4,"") ->  | AL71: =IFERROR(VLOOKUP($C71,'17,06,22'!$B$5:$J$150,AL$7,FALSE)*AL$4,"") ->  | AM71: =IFERROR(VLOOKUP($C71,'02,07,22'!$B$5:$J$150,AM$7,FALSE)*AM$4,"") ->  | AN71: =IFERROR(VLOOKUP($C71,'23,07,22'!$B$5:$J$150,AN$7,FALSE)*AN$4,"") ->  | AO71: =IFERROR(VLOOKUP($C71,'22,07,22'!$B$5:$J$150,AO$7,FALSE)*AO$4,"") ->  | AP71: =IFERROR(VLOOKUP($C71,'20,08,22'!$B$5:$J$150,AP$7,FALSE)*AP$4,"") ->  | AQ71: =IFERROR(VLOOKUP($C71,'10,09,22'!$B$5:$J$150,AQ$7,FALSE)*AQ$4,"") ->  | AR71: =IFERROR(VLOOKUP($C71,'14,09,22'!$B$5:$J$150,AR$7,FALSE)*AR$4,"") -> 2.918373432 | AS71: =IFERROR(VLOOKUP($C71,'23,09,22'!$B$5:$J$150,AS$7,FALSE)*AS$4,"") ->  | AT71: =IFERROR(VLOOKUP($C71,'15,10,22'!$B$5:$J$150,AT$7,FALSE)*AT$4,"") ->  | FA71: =COUNTBLANK(FB71:FC71) -> 1 | FC71: Blerian Brace | FD71: М | FE71: 1 | FF71: Albania | FG71: 0 | FH71: забугорье
A72: 63 | B72: =IFERROR(IF(K72=0,"",IF($K$7=1,RANK(K72,K$10:K$510),COUNTIF(K$10:K$510,">0")-RANK(K72,K$10:K$510)+1)),"") -> 63 | C72: Асташев Андрей | D72: М | E72: =IF(E$9="",1,IF(E$9=D72,1,0)) -> 1 | F72: Россия | G72: =IF(G$9="",1,IF(G$9=F72,1,0)) -> 1 | H72: Кемеровская область | I72: =IF(I$9="",1,IF(I$9=H72,1,0)) -> 1 | J72: =IFERROR(IF($K$7=1,SUMPRODUCT(LARGE(L72:ED72,{1,2,3,4})),AVERAGE(L72:ED72)),"") -> 16.19389414 | K72: =IFERROR(J72*E72*G72*I72,"") -> 16.19389414 | L72: =IF($K$7=1,0,"") -> 0 | M72: =IF($K$7=1,0,"") -> 0 | N72: =IF($K$7=1,0,"") -> 0 | O72: =IF($K$7=1,0,"") -> 0 | P72: =IFERROR(VLOOKUP($C72,'06,09,19'!$B$5:$J$150,P$7,FALSE)*P$4,"") ->  | Q72: =IFERROR(VLOOKUP($C72,'17,08,20'!$B$5:$J$150,Q$7,FALSE)*Q$4,"") ->  | R72: =IFERROR(VLOOKUP($C72,'01,10,20'!$B$5:$J$150,R$7,FALSE)*R$4,"") ->  | S72: =IFERROR(VLOOKUP($C72,'08,10,20'!$B$5:$J$150,S$7,FALSE)*S$4,"") ->  | T72: =IFERROR(VLOOKUP($C72,'08,01,21'!$B$5:$J$150,T$7,FALSE)*T$4,"") ->  | U72: =IFERROR(VLOOKUP($C72,'23,01,21'!$B$5:$J$150,U$7,FALSE)*U$4,"") ->  | V72: =IFERROR(VLOOKUP($C72,'23,04,21'!$B$5:$J$150,V$7,FALSE)*V$4,"") ->  | W72: =IFERROR(VLOOKUP($C72,'07,05,21'!$B$5:$J$150,W$7,FALSE)*W$4,"") ->  | X72: =IFERROR(VLOOKUP($C72,'11,06,21'!$B$5:$J$150,X$7,FALSE)*X$4,"") ->  | Y72: =IFERROR(VLOOKUP($C72,'18,06,21'!$B$5:$J$150,Y$7,FALSE)*Y$4,"") ->  | Z72: =IFERROR(VLOOKUP($C72,'26,06,21'!$B$5:$J$134,Z$7,FALSE)*Z$4,"") ->  | AA72: =IFERROR(VLOOKUP($C72,'25,06,21'!$B$5:$J$150,AA$7,FALSE)*AA$4,"") ->  | AB72: =IFERROR(VLOOKUP($C72,'29,07,21'!$B$5:$J$150,AB$7,FALSE)*AB$4,"") ->  | AC72: =IFERROR(VLOOKUP($C72,'21,08,21'!$B$5:$J$150,AC$7,FALSE)*AC$4,"") ->  | AD72: =IFERROR(VLOOKUP($C72,'02,09,21'!$B$5:$J$150,AD$7,FALSE)*AD$4,"") ->  | AE72: =IFERROR(VLOOKUP($C72,'07,10,21'!$B$5:$J$150,AE$7,FALSE)*AE$4,"") ->  | AF72: =IFERROR(VLOOKUP($C72,'30,10,21'!$B$5:$J$150,AF$7,FALSE)*AF$4,"") ->  | AG72: =IFERROR(VLOOKUP($C72,'19,02,22'!$B$5:$J$150,AG$7,FALSE)*AG$4,"") -> 12.76590848 | AH72: =IFERROR(VLOOKUP($C72,'23,02,22'!$B$5:$J$150,AH$7,FALSE)*AH$4,"") ->  | AI72: =IFERROR(VLOOKUP($C72,'29,04,22'!$B$5:$J$150,AI$7,FALSE)*AI$4,"") ->  | AJ72: =IFERROR(VLOOKUP($C72,'30,04,22'!$B$5:$J$150,AJ$7,FALSE)*AJ$4,"") -> 3.427985651 | AK72: =IFERROR(VLOOKUP($C72,'10,06,22'!$B$5:$J$150,AK$7,FALSE)*AK$4,"") ->  | AL72: =IFERROR(VLOOKUP($C72,'17,06,22'!$B$5:$J$150,AL$7,FALSE)*AL$4,"") ->  | AM72: =IFERROR(VLOOKUP($C72,'02,07,22'!$B$5:$J$150,AM$7,FALSE)*AM$4,"") ->  | AN72: =IFERROR(VLOOKUP($C72,'23,07,22'!$B$5:$J$150,AN$7,FALSE)*AN$4,"") ->  | AO72: =IFERROR(VLOOKUP($C72,'22,07,22'!$B$5:$J$150,AO$7,FALSE)*AO$4,"") ->  | AP72: =IFERROR(VLOOKUP($C72,'20,08,22'!$B$5:$J$150,AP$7,FALSE)*AP$4,"") ->  | AQ72: =IFERROR(VLOOKUP($C72,'10,09,22'!$B$5:$J$150,AQ$7,FALSE)*AQ$4,"") ->  | AR72: =IFERROR(VLOOKUP($C72,'14,09,22'!$B$5:$J$150,AR$7,FALSE)*AR$4,"") ->  | AS72: =IFERROR(VLOOKUP($C72,'23,09,22'!$B$5:$J$150,AS$7,FALSE)*AS$4,"") ->  | AT72: =IFERROR(VLOOKUP($C72,'15,10,22'!$B$5:$J$150,AT$7,FALSE)*AT$4,"") ->  | FA72: =COUNTBLANK(FB72:FC72) -> 1 | FC72: Boguslaw Pelczar | FD72: М | FE72: 1 | FF72: Poland | FG72: 0 | FH72: забугорье
A73: 64 | B73: =IFERROR(IF(K73=0,"",IF($K$7=1,RANK(K73,K$10:K$510),COUNTIF(K$10:K$510,">0")-RANK(K73,K$10:K$510)+1)),"") -> 64 | C73: Ушакова Алина | D73: Ж | E73: =IF(E$9="",1,IF(E$9=D73,1,0)) -> 1 | F73: Россия | G73: =IF(G$9="",1,IF(G$9=F73,1,0)) -> 1 | H73: Брянская область | I73: =IF(I$9="",1,IF(I$9=H73,1,0)) -> 1 | J73: =IFERROR(IF($K$7=1,SUMPRODUCT(LARGE(L73:ED73,{1,2,3,4})),AVERAGE(L73:ED73)),"") -> 16.02427318 | K73: =IFERROR(J73*E73*G73*I73,"") -> 16.02427318 | L73: =IF($K$7=1,0,"") -> 0 | M73: =IF($K$7=1,0,"") -> 0 | N73: =IF($K$7=1,0,"") -> 0 | O73: =IF($K$7=1,0,"") -> 0 | P73: =IFERROR(VLOOKUP($C73,'06,09,19'!$B$5:$J$150,P$7,FALSE)*P$4,"") ->  | Q73: =IFERROR(VLOOKUP($C73,'17,08,20'!$B$5:$J$150,Q$7,FALSE)*Q$4,"") ->  | R73: =IFERROR(VLOOKUP($C73,'01,10,20'!$B$5:$J$150,R$7,FALSE)*R$4,"") ->  | S73: =IFERROR(VLOOKUP($C73,'08,10,20'!$B$5:$J$150,S$7,FALSE)*S$4,"") ->  | T73: =IFERROR(VLOOKUP($C73,'08,01,21'!$B$5:$J$150,T$7,FALSE)*T$4,"") ->  | U73: =IFERROR(VLOOKUP($C73,'23,01,21'!$B$5:$J$150,U$7,FALSE)*U$4,"") ->  | V73: =IFERROR(VLOOKUP($C73,'23,04,21'!$B$5:$J$150,V$7,FALSE)*V$4,"") ->  | W73: =IFERROR(VLOOKUP($C73,'07,05,21'!$B$5:$J$150,W$7,FALSE)*W$4,"") ->  | X73: =IFERROR(VLOOKUP($C73,'11,06,21'!$B$5:$J$150,X$7,FALSE)*X$4,"") ->  | Y73: =IFERROR(VLOOKUP($C73,'18,06,21'!$B$5:$J$150,Y$7,FALSE)*Y$4,"") ->  | Z73: =IFERROR(VLOOKUP($C73,'26,06,21'!$B$5:$J$134,Z$7,FALSE)*Z$4,"") ->  | AA73: =IFERROR(VLOOKUP($C73,'25,06,21'!$B$5:$J$150,AA$7,FALSE)*AA$4,"") ->  | AB73: =IFERROR(VLOOKUP($C73,'29,07,21'!$B$5:$J$150,AB$7,FALSE)*AB$4,"") -> 5.707041182 | AC73: =IFERROR(VLOOKUP($C73,'21,08,21'!$B$5:$J$150,AC$7,FALSE)*AC$4,"") ->  | AD73: =IFERROR(VLOOKUP($C73,'02,09,21'!$B$5:$J$150,AD$7,FALSE)*AD$4,"") ->  | AE73: =IFERROR(VLOOKUP($C73,'07,10,21'!$B$5:$J$150,AE$7,FALSE)*AE$4,"") ->  | AF73: =IFERROR(VLOOKUP($C73,'30,10,21'!$B$5:$J$150,AF$7,FALSE)*AF$4,"") ->  | AG73: =IFERROR(VLOOKUP($C73,'19,02,22'!$B$5:$J$150,AG$7,FALSE)*AG$4,"") ->  | AH73: =IFERROR(VLOOKUP($C73,'23,02,22'!$B$5:$J$150,AH$7,FALSE)*AH$4,"") ->  | AI73: =IFERROR(VLOOKUP($C73,'29,04,22'!$B$5:$J$150,AI$7,FALSE)*AI$4,"") ->  | AJ73: =IFERROR(VLOOKUP($C73,'30,04,22'!$B$5:$J$150,AJ$7,FALSE)*AJ$4,"") ->  | AK73: =IFERROR(VLOOKUP($C73,'10,06,22'!$B$5:$J$150,AK$7,FALSE)*AK$4,"") ->  | AL73: =IFERROR(VLOOKUP($C73,'17,06,22'!$B$5:$J$150,AL$7,FALSE)*AL$4,"") ->  | AM73: =IFERROR(VLOOKUP($C73,'02,07,22'!$B$5:$J$150,AM$7,FALSE)*AM$4,"") ->  | AN73: =IFERROR(VLOOKUP($C73,'23,07,22'!$B$5:$J$150,AN$7,FALSE)*AN$4,"") ->  | AO73: =IFERROR(VLOOKUP($C73,'22,07,22'!$B$5:$J$150,AO$7,FALSE)*AO$4,"") ->  | AP73: =IFERROR(VLOOKUP($C73,'20,08,22'!$B$5:$J$150,AP$7,FALSE)*AP$4,"") ->  | AQ73: =IFERROR(VLOOKUP($C73,'10,09,22'!$B$5:$J$150,AQ$7,FALSE)*AQ$4,"") ->  | AR73: =IFERROR(VLOOKUP($C73,'14,09,22'!$B$5:$J$150,AR$7,FALSE)*AR$4,"") -> 10.31723199 | AS73: =IFERROR(VLOOKUP($C73,'23,09,22'!$B$5:$J$150,AS$7,FALSE)*AS$4,"") ->  | AT73: =IFERROR(VLOOKUP($C73,'15,10,22'!$B$5:$J$150,AT$7,FALSE)*AT$4,"") ->  | FA73: =COUNTBLANK(FB73:FC73) -> 1 | FC73: Bojan Ufceski | FD73: М | FE73: 1 | FF73: North Macedonia | FG73: 0 | FH73: забугорье
A74: 65 | B74: =IFERROR(IF(K74=0,"",IF($K$7=1,RANK(K74,K$10:K$510),COUNTIF(K$10:K$510,">0")-RANK(K74,K$10:K$510)+1)),"") -> 65 | C74: Усов Вадим | D74: М | E74: =IF(E$9="",1,IF(E$9=D74,1,0)) -> 1 | F74: Россия | G74: =IF(G$9="",1,IF(G$9=F74,1,0)) -> 1 | H74: Калининградская область | I74: =IF(I$9="",1,IF(I$9=H74,1,0)) -> 1 | J74: =IFERROR(IF($K$7=1,SUMPRODUCT(LARGE(L74:ED74,{1,2,3,4})),AVERAGE(L74:ED74)),"") -> 15.88035626 | K74: =IFERROR(J74*E74*G74*I74,"") -> 15.88035626 | L74: =IF($K$7=1,0,"") -> 0 | M74: =IF($K$7=1,0,"") -> 0 | N74: =IF($K$7=1,0,"") -> 0 | O74: =IF($K$7=1,0,"") -> 0 | P74: =IFERROR(VLOOKUP($C74,'06,09,19'!$B$5:$J$150,P$7,FALSE)*P$4,"") ->  | Q74: =IFERROR(VLOOKUP($C74,'17,08,20'!$B$5:$J$150,Q$7,FALSE)*Q$4,"") ->  | R74: =IFERROR(VLOOKUP($C74,'01,10,20'!$B$5:$J$150,R$7,FALSE)*R$4,"") ->  | S74: =IFERROR(VLOOKUP($C74,'08,10,20'!$B$5:$J$150,S$7,FALSE)*S$4,"") ->  | T74: =IFERROR(VLOOKUP($C74,'08,01,21'!$B$5:$J$150,T$7,FALSE)*T$4,"") ->  | U74: =IFERROR(VLOOKUP($C74,'23,01,21'!$B$5:$J$150,U$7,FALSE)*U$4,"") ->  | V74: =IFERROR(VLOOKUP($C74,'23,04,21'!$B$5:$J$150,V$7,FALSE)*V$4,"") ->  | W74: =IFERROR(VLOOKUP($C74,'07,05,21'!$B$5:$J$150,W$7,FALSE)*W$4,"") ->  | X74: =IFERROR(VLOOKUP($C74,'11,06,21'!$B$5:$J$150,X$7,FALSE)*X$4,"") ->  | Y74: =IFERROR(VLOOKUP($C74,'18,06,21'!$B$5:$J$150,Y$7,FALSE)*Y$4,"") ->  | Z74: =IFERROR(VLOOKUP($C74,'26,06,21'!$B$5:$J$134,Z$7,FALSE)*Z$4,"") ->  | AA74: =IFERROR(VLOOKUP($C74,'25,06,21'!$B$5:$J$150,AA$7,FALSE)*AA$4,"") ->  | AB74: =IFERROR(VLOOKUP($C74,'29,07,21'!$B$5:$J$150,AB$7,FALSE)*AB$4,"") -> 15.88035626 | AC74: =IFERROR(VLOOKUP($C74,'21,08,21'!$B$5:$J$150,AC$7,FALSE)*AC$4,"") ->  | AD74: =IFERROR(VLOOKUP($C74,'02,09,21'!$B$5:$J$150,AD$7,FALSE)*AD$4,"") ->  | AE74: =IFERROR(VLOOKUP($C74,'07,10,21'!$B$5:$J$150,AE$7,FALSE)*AE$4,"") ->  | AF74: =IFERROR(VLOOKUP($C74,'30,10,21'!$B$5:$J$150,AF$7,FALSE)*AF$4,"") ->  | AG74: =IFERROR(VLOOKUP($C74,'19,02,22'!$B$5:$J$150,AG$7,FALSE)*AG$4,"") ->  | AH74: =IFERROR(VLOOKUP($C74,'23,02,22'!$B$5:$J$150,AH$7,FALSE)*AH$4,"") ->  | AI74: =IFERROR(VLOOKUP($C74,'29,04,22'!$B$5:$J$150,AI$7,FALSE)*AI$4,"") ->  | AJ74: =IFERROR(VLOOKUP($C74,'30,04,22'!$B$5:$J$150,AJ$7,FALSE)*AJ$4,"") ->  | AK74: =IFERROR(VLOOKUP($C74,'10,06,22'!$B$5:$J$150,AK$7,FALSE)*AK$4,"") ->  | AL74: =IFERROR(VLOOKUP($C74,'17,06,22'!$B$5:$J$150,AL$7,FALSE)*AL$4,"") ->  | AM74: =IFERROR(VLOOKUP($C74,'02,07,22'!$B$5:$J$150,AM$7,FALSE)*AM$4,"") ->  | AN74: =IFERROR(VLOOKUP($C74,'23,07,22'!$B$5:$J$150,AN$7,FALSE)*AN$4,"") ->  | AO74: =IFERROR(VLOOKUP($C74,'22,07,22'!$B$5:$J$150,AO$7,FALSE)*AO$4,"") ->  | AP74: =IFERROR(VLOOKUP($C74,'20,08,22'!$B$5:$J$150,AP$7,FALSE)*AP$4,"") ->  | AQ74: =IFERROR(VLOOKUP($C74,'10,09,22'!$B$5:$J$150,AQ$7,FALSE)*AQ$4,"") ->  | AR74: =IFERROR(VLOOKUP($C74,'14,09,22'!$B$5:$J$150,AR$7,FALSE)*AR$4,"") ->  | AS74: =IFERROR(VLOOKUP($C74,'23,09,22'!$B$5:$J$150,AS$7,FALSE)*AS$4,"") ->  | AT74: =IFERROR(VLOOKUP($C74,'15,10,22'!$B$5:$J$150,AT$7,FALSE)*AT$4,"") ->  | FA74: =COUNTBLANK(FB74:FC74) -> 1 | FC74: Bolormaa Bayaraa | FD74: Ж | FE74: 1 | FF74: Mongolia | FG74: 0 | FH74: забугорье
A75: =A74+1 -> 66 | B75: =IFERROR(IF(K75=0,"",IF($K$7=1,RANK(K75,K$10:K$510),COUNTIF(K$10:K$510,">0")-RANK(K75,K$10:K$510)+1)),"") -> 66 | C75: Глушков Николай | D75: М | E75: =IF(E$9="",1,IF(E$9=D75,1,0)) -> 1 | F75: Россия | G75: =IF(G$9="",1,IF(G$9=F75,1,0)) -> 1 | H75: Алтайский край | I75: =IF(I$9="",1,IF(I$9=H75,1,0)) -> 1 | J75: =IFERROR(IF($K$7=1,SUMPRODUCT(LARGE(L75:ED75,{1,2,3,4})),AVERAGE(L75:ED75)),"") -> 15.60832417 | K75: =IFERROR(J75*E75*G75*I75,"") -> 15.60832417 | L75: =IF($K$7=1,0,"") -> 0 | M75: =IF($K$7=1,0,"") -> 0 | N75: =IF($K$7=1,0,"") -> 0 | O75: =IF($K$7=1,0,"") -> 0 | P75: =IFERROR(VLOOKUP($C75,'06,09,19'!$B$5:$J$150,P$7,FALSE)*P$4,"") ->  | Q75: =IFERROR(VLOOKUP($C75,'17,08,20'!$B$5:$J$150,Q$7,FALSE)*Q$4,"") ->  | R75: =IFERROR(VLOOKUP($C75,'01,10,20'!$B$5:$J$150,R$7,FALSE)*R$4,"") ->  | S75: =IFERROR(VLOOKUP($C75,'08,10,20'!$B$5:$J$150,S$7,FALSE)*S$4,"") ->  | T75: =IFERROR(VLOOKUP($C75,'08,01,21'!$B$5:$J$150,T$7,FALSE)*T$4,"") ->  | U75: =IFERROR(VLOOKUP($C75,'23,01,21'!$B$5:$J$150,U$7,FALSE)*U$4,"") ->  | V75: =IFERROR(VLOOKUP($C75,'23,04,21'!$B$5:$J$150,V$7,FALSE)*V$4,"") ->  | W75: =IFERROR(VLOOKUP($C75,'07,05,21'!$B$5:$J$150,W$7,FALSE)*W$4,"") ->  | X75: =IFERROR(VLOOKUP($C75,'11,06,21'!$B$5:$J$150,X$7,FALSE)*X$4,"") ->  | Y75: =IFERROR(VLOOKUP($C75,'18,06,21'!$B$5:$J$150,Y$7,FALSE)*Y$4,"") ->  | Z75: =IFERROR(VLOOKUP($C75,'26,06,21'!$B$5:$J$134,Z$7,FALSE)*Z$4,"") ->  | AA75: =IFERROR(VLOOKUP($C75,'25,06,21'!$B$5:$J$150,AA$7,FALSE)*AA$4,"") ->  | AB75: =IFERROR(VLOOKUP($C75,'29,07,21'!$B$5:$J$150,AB$7,FALSE)*AB$4,"") ->  | AC75: =IFERROR(VLOOKUP($C75,'21,08,21'!$B$5:$J$150,AC$7,FALSE)*AC$4,"") ->  | AD75: =IFERROR(VLOOKUP($C75,'02,09,21'!$B$5:$J$150,AD$7,FALSE)*AD$4,"") ->  | AE75: =IFERROR(VLOOKUP($C75,'07,10,21'!$B$5:$J$150,AE$7,FALSE)*AE$4,"") ->  | AF75: =IFERROR(VLOOKUP($C75,'30,10,21'!$B$5:$J$150,AF$7,FALSE)*AF$4,"") ->  | AG75: =IFERROR(VLOOKUP($C75,'19,02,22'!$B$5:$J$150,AG$7,FALSE)*AG$4,"") ->  | AH75: =IFERROR(VLOOKUP($C75,'23,02,22'!$B$5:$J$150,AH$7,FALSE)*AH$4,"") ->  | AI75: =IFERROR(VLOOKUP($C75,'29,04,22'!$B$5:$J$150,AI$7,FALSE)*AI$4,"") ->  | AJ75: =IFERROR(VLOOKUP($C75,'30,04,22'!$B$5:$J$150,AJ$7,FALSE)*AJ$4,"") -> 2.003604879 | AK75: =IFERROR(VLOOKUP($C75,'10,06,22'!$B$5:$J$150,AK$7,FALSE)*AK$4,"") ->  | AL75: =IFERROR(VLOOKUP($C75,'17,06,22'!$B$5:$J$150,AL$7,FALSE)*AL$4,"") -> 5.068626289 | AM75: =IFERROR(VLOOKUP($C75,'02,07,22'!$B$5:$J$150,AM$7,FALSE)*AM$4,"") ->  | AN75: =IFERROR(VLOOKUP($C75,'23,07,22'!$B$5:$J$150,AN$7,FALSE)*AN$4,"") ->  | AO75: =IFERROR(VLOOKUP($C75,'22,07,22'!$B$5:$J$150,AO$7,FALSE)*AO$4,"") ->  | AP75: =IFERROR(VLOOKUP($C75,'20,08,22'!$B$5:$J$150,AP$7,FALSE)*AP$4,"") ->  | AQ75: =IFERROR(VLOOKUP($C75,'10,09,22'!$B$5:$J$150,AQ$7,FALSE)*AQ$4,"") ->  | AR75: =IFERROR(VLOOKUP($C75,'14,09,22'!$B$5:$J$150,AR$7,FALSE)*AR$4,"") ->  | AS75: =IFERROR(VLOOKUP($C75,'23,09,22'!$B$5:$J$150,AS$7,FALSE)*AS$4,"") -> 8.536093004 | AT75: =IFERROR(VLOOKUP($C75,'15,10,22'!$B$5:$J$150,AT$7,FALSE)*AT$4,"") ->  | FA75: =COUNTBLANK(FB75:FC75) -> 1 | FC75: Borjan Jovanoski | FD75: М | FE75: 1 | FF75: North Macedonia | FG75: 0 | FH75: забугорье
A76: 67 | B76: =IFERROR(IF(K76=0,"",IF($K$7=1,RANK(K76,K$10:K$510),COUNTIF(K$10:K$510,">0")-RANK(K76,K$10:K$510)+1)),"") -> 67 | C76: Бруев Марк | D76: М | E76: =IF(E$9="",1,IF(E$9=D76,1,0)) -> 1 | F76: Россия | G76: =IF(G$9="",1,IF(G$9=F76,1,0)) -> 1 | H76: Алтайский край | I76: =IF(I$9="",1,IF(I$9=H76,1,0)) -> 1 | J76: =IFERROR(IF($K$7=1,SUMPRODUCT(LARGE(L76:ED76,{1,2,3,4})),AVERAGE(L76:ED76)),"") -> 15.56390204 | K76: =IFERROR(J76*E76*G76*I76,"") -> 15.56390204 | L76: =IF($K$7=1,0,"") -> 0 | M76: =IF($K$7=1,0,"") -> 0 | N76: =IF($K$7=1,0,"") -> 0 | O76: =IF($K$7=1,0,"") -> 0 | P76: =IFERROR(VLOOKUP($C76,'06,09,19'!$B$5:$J$150,P$7,FALSE)*P$4,"") ->  | Q76: =IFERROR(VLOOKUP($C76,'17,08,20'!$B$5:$J$150,Q$7,FALSE)*Q$4,"") ->  | R76: =IFERROR(VLOOKUP($C76,'01,10,20'!$B$5:$J$150,R$7,FALSE)*R$4,"") ->  | S76: =IFERROR(VLOOKUP($C76,'08,10,20'!$B$5:$J$150,S$7,FALSE)*S$4,"") ->  | T76: =IFERROR(VLOOKUP($C76,'08,01,21'!$B$5:$J$150,T$7,FALSE)*T$4,"") ->  | U76: =IFERROR(VLOOKUP($C76,'23,01,21'!$B$5:$J$150,U$7,FALSE)*U$4,"") ->  | V76: =IFERROR(VLOOKUP($C76,'23,04,21'!$B$5:$J$150,V$7,FALSE)*V$4,"") ->  | W76: =IFERROR(VLOOKUP($C76,'07,05,21'!$B$5:$J$150,W$7,FALSE)*W$4,"") -> 0.2364054068 | X76: =IFERROR(VLOOKUP($C76,'11,06,21'!$B$5:$J$150,X$7,FALSE)*X$4,"") ->  | Y76: =IFERROR(VLOOKUP($C76,'18,06,21'!$B$5:$J$150,Y$7,FALSE)*Y$4,"") ->  | Z76: =IFERROR(VLOOKUP($C76,'26,06,21'!$B$5:$J$134,Z$7,FALSE)*Z$4,"") ->  | AA76: =IFERROR(VLOOKUP($C76,'25,06,21'!$B$5:$J$150,AA$7,FALSE)*AA$4,"") ->  | AB76: =IFERROR(VLOOKUP($C76,'29,07,21'!$B$5:$J$150,AB$7,FALSE)*AB$4,"") ->  | AC76: =IFERROR(VLOOKUP($C76,'21,08,21'!$B$5:$J$150,AC$7,FALSE)*AC$4,"") ->  | AD76: =IFERROR(VLOOKUP($C76,'02,09,21'!$B$5:$J$150,AD$7,FALSE)*AD$4,"") ->  | AE76: =IFERROR(VLOOKUP($C76,'07,10,21'!$B$5:$J$150,AE$7,FALSE)*AE$4,"") ->  | AF76: =IFERROR(VLOOKUP($C76,'30,10,21'!$B$5:$J$150,AF$7,FALSE)*AF$4,"") ->  | AG76: =IFERROR(VLOOKUP($C76,'19,02,22'!$B$5:$J$150,AG$7,FALSE)*AG$4,"") -> 15.32749663 | AH76: =IFERROR(VLOOKUP($C76,'23,02,22'!$B$5:$J$150,AH$7,FALSE)*AH$4,"") ->  | AI76: =IFERROR(VLOOKUP($C76,'29,04,22'!$B$5:$J$150,AI$7,FALSE)*AI$4,"") ->  | AJ76: =IFERROR(VLOOKUP($C76,'30,04,22'!$B$5:$J$150,AJ$7,FALSE)*AJ$4,"") ->  | AK76: =IFERROR(VLOOKUP($C76,'10,06,22'!$B$5:$J$150,AK$7,FALSE)*AK$4,"") ->  | AL76: =IFERROR(VLOOKUP($C76,'17,06,22'!$B$5:$J$150,AL$7,FALSE)*AL$4,"") ->  | AM76: =IFERROR(VLOOKUP($C76,'02,07,22'!$B$5:$J$150,AM$7,FALSE)*AM$4,"") ->  | AN76: =IFERROR(VLOOKUP($C76,'23,07,22'!$B$5:$J$150,AN$7,FALSE)*AN$4,"") ->  | AO76: =IFERROR(VLOOKUP($C76,'22,07,22'!$B$5:$J$150,AO$7,FALSE)*AO$4,"") ->  | AP76: =IFERROR(VLOOKUP($C76,'20,08,22'!$B$5:$J$150,AP$7,FALSE)*AP$4,"") ->  | AQ76: =IFERROR(VLOOKUP($C76,'10,09,22'!$B$5:$J$150,AQ$7,FALSE)*AQ$4,"") ->  | AR76: =IFERROR(VLOOKUP($C76,'14,09,22'!$B$5:$J$150,AR$7,FALSE)*AR$4,"") ->  | AS76: =IFERROR(VLOOKUP($C76,'23,09,22'!$B$5:$J$150,AS$7,FALSE)*AS$4,"") ->  | AT76: =IFERROR(VLOOKUP($C76,'15,10,22'!$B$5:$J$150,AT$7,FALSE)*AT$4,"") ->  | FA76: =COUNTBLANK(FB76:FC76) -> 1 | FC76: Catherine Devos | FD76: Ж | FE76: 1 | FF76: France | FG76: 0 | FH76: забугорье
